Workbook

Sheet Roster
A1: ID | B1: Tm | C1: Team | D1: ID | F1: First | G1: Last | H1: Full Name | I1: Spouse | J1: Return | K1: Address | L1: City | M1: St | N1: Zip | O1: G | P1: Birth | Q1: E-mail | R1: Phone | S1: Phone 2 | T1: USBC | U1: SCW | V1: CNP | W1: 2011 | X1: 2012 | Y1: 2013 | Z1: 2014 | AA1: 2015 | AB1: 2016 | AC1: 2017 | AD1: 2018 | AE1: Tm Avg | AF1: Var | AJ1: Cap
A2: 11 | B2: 1 | D2: =A2 -> 11 | F2: David | G2: Burke | H2: =F2&" "&G2 -> David Burke | AD2: 217 | AJ2: 645
A3: 12 | B3: 1 | D3: =A3 -> 12 | F3: Rich | G3: Matich | H3: Rich Matich | I3: Denise | J3: 1 | K3: 9614 W Newport Dr | L3: Sun City | M3: AZ | N3: 85351 | O3: M | P3: 1948-11-07 | Q3: avdenise@aol.com | R3: (623) 535-1886 | T3: 157-13981 | V3: 3041 | AA3: 212 | AB3: 220 | AC3: 222 | AD3: 209 | AH3: =IF(AD3>AC3,1,0) -> 0 | AM3: 194 | AN3: 222 | AO3: 228 | AP3: 1
A4: 13 | B4: 1 | D4: 13 | E4: C | F4: Cal | G4: Shirey | H4: Cal Shirey | J4: 1 | K4: 14427 W Trading Post Dr | L4: Sun City West | M4: AZ | N4: 85375 | O4: M | P4: 1944-02-04 | Q4: howardhs@outlook.com | R4: (623) 214-3295 | T4: 2398-593 | U4: 107243 | W4: 227 | X4: 225 | Y4: 228 | Z4: 227 | AA4: 234 | AB4: 228 | AC4: 228 | AD4: 217 | AE4: =AD2+AD3+AD4 -> 643 | AF4: =$AJ$2-AE4 -> 2 | AH4: 0 | AM4: 204 | AN4: 212 | AO4: 218 | AP4: 2
A5: 21 | B5: 2 | C5: Rascals | D5: 21 | E5: C | F5: Marty | G5: Bell | H5: Marty Bell | I5: Joni | J5: 1 | K5: 13319 W Paintbrush Dr | L5: Sun City West | M5: AZ | N5: 85375 | O5: M | P5: 1940-01-26 | Q5: ezbowling@cox.net | R5: (623) 584-9459 | T5: 157-21502 | U5: 72029 | W5: 196 | X5: 199 | Y5: 205 | Z5: 195 | AA5: 204 | AB5: 204 | AC5: 204 | AD5: 201 | AH5: 0 | AM5: 205 | AN5: 213 | AO5: 221 | AP5: 3
A6: 22 | B6: 2 | C6: Rascals | D6: 22 | F6: Alex | G6: Balok | H6: Alex Balok | I6: Kathy | J6: 1 | K6: 13112 W Santa Ynez Ct | L6: Sun City West | M6: AZ | N6: 85375 | O6: M | P6: 1953-06-28 | Q6: balok9@aol.com | R6: (928) 699-4481 | T6: 8833-64090 | V6: 3004 | AC6: 215 | AD6: 212 | AH6: 0 | AM6: 199 | AN6: 220 | AO6: 226 | AP6: 4
A7: 23 | B7: 2 | C7: Rascals | D7: 23 | F7: Johnny | G7: Gonzales | H7: Johnny Gonzales | J7: 1 | K7: 22131 W Grambof Trail Rd | L7: Wittman | M7: AZ | N7: 85361 | O7: M | R7: (623) 687-7498 | T7: 157-872 | AC7: 220 | AD7: 200 | AE7: =AD5+AD6+AD7 -> 613 | AF7: =$AJ$2-AE7 -> 32 | AH7: 0 | AM7: 212 | AN7: 216 | AO7: 216 | AP7: 5
A8: 31 | B8: 3 | D8: =A8 -> 31 | F8: Jeff | G8: Richard | H8: Jeff Richard | I8: Susan | J8: 1 | K8: 7021 W Irma Lane | L8: Glendale | M8: AZ | N8: 85308 | O8: M | P8: 1949-04-09 | Q8: lephty123@cox.net | R8: (623)362-8248 | T8: 8833-55870 | V8: 3072 | Y8: 201 | Z8: 201 | AA8: 205 | AB8: 209 | AC8: 205 | AD8: 202 | AH8: 0 | AM8: 193 | AN8: 220 | AO8: 223 | AP8: 6
A9: 32 | B9: 3 | D9: 32 | F9: Jerry | G9: Elsen | H9: =F9&" "&G9 -> Jerry Elsen | I9: Barbara | J9: 1 | K9: 15910 W Clearwater Way | L9: Surprise | M9: AZ | N9: 85374 | O9: M | P9: 1953-07-21 | Q9: jbbuyers@aol.com | R9: (262) 412-0433 | T9: 2468-4618 | V9: 3113 | W9: 223 | X9: 215 | Y9: 221 | Z9: 221 | AA9: 222 | AB9: 215 | AC9: 216 | AD9: 220 | AH9: =IF(AD9>AC9,1,0) -> 1
A10: 33 | B10: 3 | C10: Desert Sun Embroidery | D10: 33 | E10: C | F10: Bill | G10: Poff | H10: Bill Poff | J10: 1 | K10: 21626 N 157th Dr | L10: Sun City West | M10: AZ | N10: 85375 | O10: M | P10: 1945-06-25 | Q10: bill.poff@hotmail.com | R10: (615) 423-4196 | T10: 263-133 | U10: 109950 | W10: 229 | X10: 229 | Y10: 231 | Z10: 225 | AA10: 221 | AB10: 221 | AC10: 221 | AD10: 219 | AE10: =AD8+AD9+AD10 -> 641 | AF10: =$AJ$2-AE10 -> 4 | AH10: 0 | AM10: 205 | AN10: 207 | AO10: 209 | AP10: 8
A11: 41 | B11: 4 | C11: Pro-Tech | D11: 41 | F11: Dave | G11: Schmitz | H11: Dave Schmitz | I11: Lynn Rushing | J11: 1 | K11: 13611 W Utica Dr | L11: Sun City West | M11: AZ | N11: 85375 | O11: M | P11: 1957-06-08 | Q11: sfpagolf@msn.com | R11: (602) 621-0447 | T11: 2374-592 | U11: 64331 | W11: 207 | X11: 210 | Y11: 205 | Z11: 195 | AA11: 194 | AB11: 199 | AC11: 199 | AD11: 209 | AH11: 1 | AM11: 203 | AN11: 211 | AO11: 216 | AP11: 9
A12: 42 | B12: 4 | C12: Pro-Tech | D12: 42 | E12: C | F12: John | G12: Babbitt | H12: John Babbitt | I12: Sandy | J12: 1 | K12: 14453 W Lexington | L12: Goodyear | M12: AZ | N12: 85395 | O12: M | P12: 1953-05-17 | Q12: johnbabbitt@hotmail.com | R12: 470.535.6926 | T12: 389-1053 | V12: 3165 | W12: 222 | X12: 220 | Y12: 227 | Z12: 223 | AA12: 232 | AC12: 220 | AD12: 227 | AH12: 1 | AK12: =17*31 -> 527 | AM12: 203 | AN12: 211 | AO12: 227 | AP12: 10
A13: 43 | B13: 4 | C13: Pro-Tech | D13: 43 | F13: Larry | G13: Tolar | H13: Larry Tolar | J13: 1 | K13: 14955 W Medinah Way | L13: Surprise | M13: AZ | N13: 85374 | O13: M | P13: 1947-07-28 | Q13: ldt0747@yahoo.com | R13: (623) 544-3529 | T13: 157-42400 | V13: 3036 | W13: 208 | X13: 201 | Y13: 215 | Z13: 211 | AA13: 217 | AB13: 225 | AC13: 226 | AD13: 210 | AE13: =AD11+AD12+AD13 -> 646 | AF13: =$AJ$2-AE13 -> -1 | AH13: 0
A14: 51 | B14: 5 | D14: 51 | F14: Dana | G14: Barrette | H14: Dana Barrette | I14: Karen | J14: 1 | K14: 18247 N 129th Ave | L14: Sun City West | M14: AZ | N14: 85375 | O14: M | P14: 1953-08-23 | Q14: djbarrette@gmail.com | R14: (623) 383-3909 | T14: 8833-57886 | U14: 4011789 | W14: 184 | X14: 190 | Y14: 210 | Z14: 214 | AA14: 211 | AB14: 212 | AC14: 213 | AD14: 216 | AH14: 1
A15: 52 | B15: 5 | D15: 52 | E15: C | F15: Larry | G15: Latham | H15: Larry Latham | J15: 1 | K15: 15614 W Huron Dr | L15: Sun City West | M15: AZ | N15: 85375 | O15: M | P15: 1954-03-29 | Q15: larryd329@gmail.com | R15: (206) 992-7540 | T15: 8833-52304 | U15: 110788 | W15: 215 | X15: 210 | Y15: 217 | Z15: 213 | AA15: 217 | AB15: 216 | AC15: 215 | AD15: 216 | AH15: 1
A16: 53 | B16: 5 | D16: 53 | F16: Bob | G16: Reed | H16: =F16&" "&G16 -> Bob Reed | J16: 1 | K16: 12436 W Spring Ridge Dr | L16: Sun City West | M16: AZ | N16: 85375 | O16: M | Q16: hotrodreed53@hotmail.com | R16: (623) 556-2476 | T16: 8833-56045 | U16: 71020 | AC16: 200 | AD16: 208 | AE16: =AD14+AD15+AD16 -> 640 | AF16: =$AJ$2-AE16 -> 5 | AH16: 1
D17: 0 | AH17: 0
A18: 61 | B18: 6 | C18: Your Strike Shop | D18: 61 | F18: Ken | G18: Pavlik | H18: =F18&" "&G18 -> Ken Pavlik | K18: 21234 N 132 Dr | L18: Sun City West | M18: AZ | N18: 85375 | O18: M | P18: 1939-07-17 | Q18: kpo91060@cox.net | R18: (623) 214-8637 | T18: 157-11953 | U18: 57675 | W18: 192 | X18: 193 | Y18: 203 | Z18: 197 | AA18: 198 | AB18: 193 | AC18: 192 | AH18: 0
A19: 61 | B19: 6 | C19: Your Strike Shop | D19: 61 | F19: Dennis | G19: Klein | H19: Dennis Klein | J19: 1 | K19: 4416 W Via Teresa Dr | L19: Glendale | M19: AZ | N19: 85308 | O19: M | P19: 1961-06-22 | Q19: azcoach61@hotmail.com | R19: (623) 584-8972 | T19: 157-45040 | V19: Waived | W19: 222 | X19: 222 | Y19: 226 | Z19: 221 | AB19: 219 | AC19: 220 | AD19: 222 | AH19: 1
A20: 62 | B20: 6 | C20: Your Strike Shop | D20: 62 | E20: C | F20: Mike | G20: Watt | H20: Mike Watt | J20: 1 | K20: 15634 W Sky Hawk Dr | L20: Sun City West | M20: AZ | N20: 85375 | O20: M | P20: 1950-11-06 | Q20: mlwatt99@gmail.com | R20: 972.989.2208 | T20: 2243-755 | U20: 17692 | W20: 224 | X20: 229 | Y20: 229 | Z20: 229 | AA20: 232 | AB20: 223 | AC20: 223 | AD20: 215 | AH20: 0
D21: 64 | F21: Bill | G21: Palmer | H21: =F21&" "&G21 -> Bill Palmer | J21: 1 | K21: 16617 W Pueblo | L21: Surprise | M21: AZ | N21: 85387 | O21: M | P21: 1950-10-22 | Q21: wpalmer15@yahoo.com | R21: (623) 215-5014 | T21: 11-612616 | W21: 211 | X21: 211 | Y21: 217 | Z21: =ROUNDDOWN((X21+Y21)/2,0) -> 214 | AA21: 209 | AC21: 201 | AD21: 206 | AE21: =AD19+AD20+AD21 -> 643 | AF21: =$AJ$2-AE21 -> 2 | AH21: =IF(AD21>AC21,1,0) -> 1
A22: 71 | B22: 7 | C22: Bitburgers | D22: 71 | F22: Paul | G22: Kleckner | H22: Paul Kleckner | I22: Marlene | J22: 1 | K22: 13902 W Trail Ridge Dr | L22: Sun City West | M22: AZ | N22: 85375 | O22: M | P22: 1949-01-17 | Q22: chiefkco@gmail.com | R22: (719) 246-0371 | S22: (719) 338-4641 | T22: 296-2878 | U22: 128508 | AC22: 218 | AD22: 225 | AH22: 1
A23: 73 | B23: 7 | C23: Bitburgers | D23: =A23 -> 73 | E23: C | F23: Terry | G23: Camp | H23: =F23&" "&G23 -> Terry Camp | J23: 1 | K23: 17677 W Sabrina Dr | L23: Surprise | M23: AZ | N23: 85374 | O23: M | P23: 1950-02-07 | Q23: tlcclu7@yahoo.com | R23: (970) 744-0809 | T23: 1675-43393 | V23: 3049 | W23: 217 | X23: 215 | Y23: 227 | Z23: 218 | AA23: 223 | AB23: 219 | AC23: 219 | AD23: 213 | AH23: =IF(AD23>AC23,1,0) -> 0
A24: 72 | B24: 7 | C24: Bitburgers | D24: =A24 -> 72 | F24: Bob | G24: Edge | H24: =F24&" "&G24 -> Bob Edge | K24: 14216 W Caballero Dr | L24: Sun City West | M24: AZ | N24: 85375 | O24: M | P24: 1953-02-16 | Q24: deadeyebob@aol.com | R24: (224-772-3066 | T24: 522-328 | U24: 125901 | AA24: 212 | AB24: 206 | AC24: 207 | AD24: 205 | AE24: =AD22+AD23+AD24 -> 643 | AF24: =$AJ$2-AE24 -> 2 | AH24: =IF(AD24>AC24,1,0) -> 0
A25: 81 | B25: 8 | C25: Brenda's Kitchen | D25: 81 | F25: Dan | G25: Imholte | H25: Dan Imholte | J25: 1 | K25: 12511 Paintbrush Dr | L25: Sun City West | M25: AZ | N25: 85375 | O25: M | P25: 1942-10-16 | Q25: dimholte1@gmail.com | R25: (623) 975-0139 | T25: 8833-49996 | W25: 210 | X25: 216 | Y25: 219 | Z25: 207 | AA25: 216 | AB25: 205 | AC25: 205 | AD25: 215 | AH25: 1
A26: 82 | B26: 8 | C26: Brenda's Kitchen | D26: 82 | F26: Terry | G26: Hamman | H26: Terry Hamman | J26: 1 | K26: 21868 N Montego Dr | L26: Sun City West | M26: AZ | N26: 85375 | O26: M | P26: 1942-05-21 | Q26: terryhamman@hotmail.com | R26: (623) 243-7666 | T26: 2443-2227 | U26: 108533 | W26: 213 | X26: 206 | Y26: 210 | Z26: 202 | AA26: 207 | AB26: 207 | AC26: 207 | AD26: 203 | AH26: 0
A27: 83 | B27: 8 | C27: Brenda's Kitchen | D27: 83 | E27: C | F27: Gary | G27: Bentley | H27: Gary Bentley | I27: Deborah | J27: 1 | K27: 18449 W Young St | L27: Surprise | M27: AZ | N27: 85388 | O27: M | P27: 1949-04-04 | Q27: debgary1991@gmail.com | R27: (701) 400-6400 | T27: 1749-41 | V27: 3083 | W27: 205 | X27: 208 | Y27: 219 | Z27: 212 | AA27: 217 | AB27: 208 | AC27: 209 | AD27: 219 | AE27: =AD25+AD26+AD27 -> 637 | AF27: =$AJ$2-AE27 -> 8 | AH27: 1
A28: 91 | B28: 9 | D28: 0 | F28: Joe | G28: Couch | H28: Joe Couch | J28: 1 | K28: 23414 N 121st Ave | L28: Sun City | M28: AZ | O28: M | Q28: easyjoe300@aol.com | R28: (562) 367-3629 | T28: 235-135 | W28: 212 | X28: 206 | Y28: 206 | Z28: 215 | AA28: 208 | AB28: 204 | AC28: 205 | AD28: 204 | AH28: 0
A29: 92 | B29: 9 | D29: 92 | E29: C | F29: Paul | G29: Williams | H29: Paul Williams | J29: 1 | K29: 2616 W Yukon | L29: Buckeye | M29: AZ | N29: 85396 | O29: M | P29: 1960-04-03 | Q29: paulrwilliams60@gmail.com | R29: (517 304-1448 | S29: 480-395-1516 | T29: 150-18093 | W29: 220 | X29: 225 | Y29: 216 | Z29: 206 | AA29: 220 | AB29: 209 | AC29: 211 | AD29: 208 | AH29: 0
A30: 93 | B30: 9 | D30: 93 | F30: Ted | G30: Bogumil | H30: Ted Bogumil | K30: 12350 W Bola Dr #318 | L30: Surprise | M30: AZ | N30: 85378 | O30: M | P30: 1959-01-12 | Q30: nascarted@att.com | R30: (602) 820-0853 | T30: 1369-14316 | AC30: 231 | AD30: 219 | AE30: =AD28+AD29+AD30 -> 631 | AF30: =$AJ$2-AE30 -> 14 | AH30: 0
A31: 101 | B31: 10 | C31: Vital Care | D31: 101 | F31: Andy | G31: Lewis | H31: Andy Lewis | I31: Darrell | J31: 1 | K31: 6872 W Remuda Dr | L31: Peoria | M31: AZ | N31: 85383 | O31: W | P31: 1956-08-27 | Q31: azadlewis@cox.net | R31: (602) 882-9228 | T31: 2786-15403 | V31: 3164 | W31: 207 | X31: 208 | Y31: 207 | Z31: 204 | AA31: 206 | AB31: 204 | AC31: 203 | AD31: 200 | AH31: 0
A32: 102 | B32: 10 | C32: Vital Care | D32: 102 | E32: C | F32: Dennis | G32: Barnes | H32: Dennis Barnes | I32: Roberta | J32: 1 | K32: 14227 W Desert Glen Dr | L32: Sun City West | M32: AZ | N32: 85375 | O32: M | P32: 1946-03-27 | Q32: dbarnes1946@cox.net | R32: (623) 229-2010 | T32: 8833-49320 | U32: 109510 | W32: 212 | X32: 208 | Y32: 214 | Z32: 209 | AA32: 217 | AB32: 212 | AC32: 211 | AD32: 206 | AH32: 0
A33: 103 | B33: 10 | C33: Vital Care | D33: 103 | F33: Gary | G33: McCoy | H33: Gary McCoy | J33: 1 | K33: 19965 N Summer Dream Dr | L33: Surprise | M33: AZ | N33: 85374 | O33: M | P33: 1948-02-11 | Q33: gandsmccoy@cox.net | R33: (206) 909-6672 | T33: 5033-2008 | U33: 124548 | W33: 213 | X33: 215 | Y33: 211 | Z33: 206 | AA33: 224 | AB33: 226 | AC33: 227 | AD33: 221 | AE33: =AD31+AD32+AD33 -> 627 | AF33: =$AJ$2-AE33 -> 18 | AH33: 0
A34: 111 | B34: 11 | D34: 111 | E34: C | F34: Phil | G34: Jameson | H34: Phil Jameson | I34: Laura | J34: N | K34: 20226 N 124th Dr | L34: Sun City West | M34: AZ | N34: 85375 | O34: M | P34: 1952-01-24 | Q34: pajameson@cox.net | R34: (480) 544-5467 | T34: 8833-62408 | U34: 112103 | X34: 191 | Y34: 191 | Z34: 203 | AA34: 213 | AB34: 213 | AC34: 213 | AD34: 213 | AH34: =IF(AD34>AC34,1,0) -> 0 | AM34: 205 | AN34: 207 | AO34: 219 | AP34: 7
A35: 112 | B35: 11 | D35: 112 | F35: Leo | G35: Matteucci | H35: Leo Matteucci | I35: B | J35: N | K35: 15448 W Cypress Point Dr | L35: Surprise | M35: AZ | N35: 85374 | O35: M | P35: 1942-10-23 | R35: (623) 544-8749 | T35: 2006-1363 | AA35: 216 | AB35: 216 | AC35: 216 | AD35: 212
A36: 113 | B36: 11 | D36: 113 | F36: Jim | G36: Jacobsen | H36: Jim Jacobsen | I36: Kathy | J36: N | K36: 15420 W Skyview Way | L36: Surprise | M36: AZ | N36: 85374 | O36: M | P36: 1942-04-07 | Q36: jkjacobsen@cox.net | R36: (623) 975-1759 | T36: 157-2955 | V36: 3152 | AD36: 216 | AE36: =AD34+AD35+AD36 -> 641 | AF36: =$AJ$2-AE36 -> 4
A37: 121 | B37: 12 | D37: 121 | E37: C | F37: Martin | G37: Purnell | H37: Martin Purnell | J37: N | AD37: 218
A38: 122 | B38: 12 | D38: 122 | F38: Randy | G38: O'Brien | H38: Randy O'Brien | J38: N | AD38: 200
A39: 123 | B39: 12 | D39: 123 | F39: Tracy | G39: Dumas | H39: Tracy Dumas | J39: N | AD39: 218 | AE39: =AD37+AD38+AD39 -> 636 | AF39: =$AJ$2-AE39 -> 9
F43: Tim | G43: Walker | H43: =F43&" "&G43 -> Tim Walker | AD43: 219
D44: 0 | F44: Steve | G44: Wilson | H44: =F44&" "&G44 -> Steve Wilson | J44: 1 | K44: 4718 W Laurel Ln | L44: Glendale | M44: AZ | N44: 85304 | O44: M | P44: 1949-11-04 | Q44: stevwilson4949@gmail.com | R44: (602) 999-6871 | T44: 157-30076 | V44: 3161 | W44: 202 | X44: 206 | Y44: 206 | Z44: 205 | AA44: 206 | AB44: 195 | AC44: 194 | AD44: 196 | AH44: =IF(AD44>AC44,1,0) -> 1 | AJ44: 645
A45: 91 | B45: 9 | D45: 91 | F45: Gary | G45: Eichstadt | H45: Gary Eichstadt | I45: Donna | J45: 1 | K45: 21620 N 135th Way | L45: Sun City West | M45: AZ | N45: 85375 | O45: M | P45: 1946-11-14 | Q45: geichstadt@cox.net | R45: (623) 252-7345 | T45: 8833-46074 | U45: 103028 | W45: 215 | X45: 203 | Y45: 208 | Z45: 200 | AA45: 203 | AB45: 203 | AC45: 203 | AD45: 203 | AH45: 0
F47: Tim | G47: Walker | H47: =F47&" "&G47 -> Tim Walker | AD47: 219
D50: 64 | F50: Bill | G50: Palmer | H50: =F50&" "&G50 -> Bill Palmer | J50: 1 | K50: 16617 W Pueblo | L50: Surprise | M50: AZ | N50: 85387 | O50: M | P50: 1950-10-22 | Q50: wpalmer15@yahoo.com | R50: (623) 215-5014 | T50: 11-612616 | W50: 211 | X50: 211 | Y50: 217 | Z50: =ROUNDDOWN((X50+Y50)/2,0) -> 214 | AA50: 209 | AC50: 201 | AH50: =IF(AD50>AC50,1,0) -> 0
F51: Lloyd | G51: Johnson | H51: =F51&" "&G51 -> Lloyd Johnson | K51: 10526 W Lehigh Ct | L51: Sun City | M51: AZ | N51: 85351 | O51: M | P51: 1957-03-29 | Q51: lgej3@yahoo.com | R51: (253) 468-6934 | S51: (253) 468-6464 | T51: 8833-56415
F52: Ted | G52: Bogumil | H52: =F52&" "&G52 -> Ted Bogumil | K52: 12350 W Bola Dr #318 | L52: Surprise | M52: AZ | N52: 85378 | O52: M | P52: 1959-01-12 | Q52: nascarted@att.com | R52: (602) 820-0853 | T52: 1369-14316 | AC52: 231
F53: Dave | G53: Bradley | H53: Dave Bradley | J53: 0 | K53: 14507 W Wintercrest Dr | L53: Sun City West | M53: AZ | N53: 85375 | O53: M | P53: 1944-03-09 | Q53: bradleybodie@gmail.com | R53: (623) 544-7135 | T53: 210-1790 | U53: 118112 | W53: 204 | X53: 203 | Y53: 208 | Z53: 202 | AA53: 208 | AC53: 208
F54: Gary | G54: Demeny | H54: Gary Demeny | K54: 11126 W Palmera Dr | L54: Sun City | M54: AZ | N54: 85373 | O54: M | P54: 1958-04-05 | R54: (602) 763-6830 | T54: 11-602976 | AC54: 224
F55: Carl | G55: Doak | H55: Carl Doak | AC55: 194
F56: Paul | G56: Horvick | H56: Paul Horvick | J56: 1 | K56: 20819 N 124th Dr | L56: Sun City West | M56: AZ | N56: 85375 | O56: M | P56: 1946-11-11 | Q56: phorvick@gmail.com | R56: (218) 234-6001 | T56: 8833-58409 | U56: 120527 | W56: 175 | X56: 200 | Y56: 208 | Z56: 198
F57: Rich | G57: Kirby | H57: Rich Kirby | K57: 16558 W Wild Horse Wy | L57: Surprise | M57: AZ | N57: 85387 | O57: M | P57: 1939-11-03 | Q57: uniq4now@hotmail.com | R57: (623) 388-4131 | T57: 2399-879 | V57: 1599 | Z57: 196 | AA57: 205 | AC57: 196
F58: Dan | G58: Matthews | H58: Dan Matthews | K58: 12011 W 123rd Ave | L58: Sun City West | M58: AZ | N58: 85375 | O58: M | Q58: speedworldmx@aol.com | R58: (602) 332-0361 | T58: 8833-47767 | Z58: 200 | AA58: 200 | AC58: 182
F59: Richard | G59: Mazzolini | H59: Richard Mazzolini | I59: Jean | K59: 22619 N Hermosillo Dr | L59: Sun City West | M59: AZ | N59: 85375 | O59: M | P59: 1941-08-06 | Q59: mazz64sr@cox.net | R59: (623) 214-7355 | T59: 157-19067 | AC59: 194
F60: Robert | G60: Meli | H60: Robert Meli | K60: 13003 W Limewood Dr | L60: Sun City West | M60: AZ | N60: 85375 | O60: M | P60: 1938-02-04 | R60: (623) 584-7564 | W60: 192 | X60: 197 | Y60: 184 | Z60: 200 | AA60: 188
F61: Jim | G61: Parker | H61: Jim Parker | AA61: 212
F62: John | G62: Perdew | H62: John Perdew | K62: 12507 W Skylark Dr | L62: Sun City West | M62: AZ | N62: 85375 | O62: M | P62: 1952-01-24 | Q62: azlittlejohn60@gmail.com | U62: 73431 | X62: 191 | Y62: 191 | Z62: 195 | AA62: 194
F63: Bob | G63: Reed | H63: Bob Reed | K63: 12436 W Spring Ridge Dr | L63: Sun City West | M63: AZ | N63: 85375 | O63: M | Q63: hotrodreed53@hotmail.com | R63: (623)556-2476 | T63: 8833-56045 | U63: 71020 | AC63: 200
F64: Greg | G64: Waldon | H64: Greg Waldon | I64: Rose | K64: 14824 W Horsman Ln | L64: Sun City West | M64: AZ | N64: 85375 | O64: M | P64: 1950-06-06 | Q64: waldon.rose@yahoo.com | R64: (623) 518-9016 | T64: 1395-1090 | AC64: 231
F65: Jerry | G65: Walls | H65: Jerry Walls | I65: Ruth | K65: 12643 W Skyview Dr | L65: Sun City West | M65: AZ | N65: 85375 | O65: M | P65: 1946-11-06 | Q65: pba9455@live.com | R65: (541) 810-2695 | T65: 2401-484 | AC65: 219
F66: Roger | G66: Ziemer | H66: Roger Ziemer | K66: 13803 W Pavillion Dr | L66: Sun City West | M66: AZ | N66: 85375 | O66: M | Q66: fudrod@gmail.com | R66: (503) 381-9918 | T66: 2006-200 | W66: 199 | X66: 195 | Y66: 209 | Z66: 203 | AA66: 211

Sheet Financial
A1: ="Team "&VLOOKUP($E23,Roster!$A$2:$AF$33,2)&" "&_xlfn.IFNA(VLOOKUP($E23,Roster!$A$2:$AF$33,3,0),0) -> Team 1 | AK1: 21 | AL1: 1900-01-16
A2: 11 | B2: 1 | H2: 12 | O2: 13
A3: =_xlfn.IFNA(VLOOKUP($E23,Roster!$A$2:$AF$33,8,0),0)&IF(F23="",""," / "&VLOOKUP($F23,Roster!$A$2:$AF$33,8,0)) -> David Burke | H3: =_xlfn.IFNA(VLOOKUP(L23,Roster!$A$2:$AF$33,8,0),0)&IF($M23="",""," / "&VLOOKUP($M23,Roster!$A$2:$AF$33,8,0)) -> Rich Matich | O3: =_xlfn.IFNA(VLOOKUP($S23,Roster!$A$2:$AF$33,8,0),0)&IF(T23="",""," / "&VLOOKUP($T23,Roster!$A$2:$AF$33,8,0)) -> Cal Shirey | V3: =IF(ISNA(LOOKUP(#REF!,#REF!,#REF!)),"",IF(LOOKUP(#REF!,#REF!,#REF!)>"",LOOKUP(#REF!,#REF!,#REF!)&" / "&LOOKUP(#REF!,#REF!,#REF!),LOOKUP(#REF!,#REF!,#REF!))) ->  | AC3: 1 | AP3: Let's Communicate | AR3: Let's Communicate | AT3: Let's Communicate
A4: Date | B4: Ref | C4: Amt | D4: Date | E4: Ref | F4: Amt | H4: Date | I4: Ref | J4: Amt | K4: Date | L4: Ref | M4: Amt | O4: Date | P4: Ref | Q4: Amt | R4: Date | S4: Ref | T4: Amt | V4: Wk | W4: Date | X4: Ref | Y4: Amt | Z4: Date | AA4: Ref | AB4: Amt | AE4: Weekly Team Summary | AK4: USBC | AL4: 24 | AP4: Please Enter Your Data on Sheet | AR4: Please Enter Your Data on Sheet | AT4: Please Enter Your Data on Sheet
A5: =$A$777 -> 2017-09-05 | D5: =$D$777 -> 2018-01-02 | H5: =$A$777 -> 2017-09-05 | K5: =$D$777 -> 2018-01-02 | O5: =$A$777 -> 2017-09-05 | R5: =$D$777 -> 2018-01-02 | V5: 1 | W5: =$A$777 -> 2017-09-05 | Z5: 2016-01-05 | AD5: 16 | AE5: 1 | AF5: =A5 -> 2017-09-05 | AG5: =C5+J5+Q5 -> 0 | AH5: =AE19+1 -> 16 | AI5: =D5 -> 2018-01-02 | AJ5: =F5+M5+T5+AB5 -> 0 | AK5: Fee | AL5: 17
A6: =$A$778 -> 2017-09-12 | D6: =$D$778 -> 2018-01-09 | H6: =$A$778 -> 2017-09-12 | K6: =$D$778 -> 2018-01-09 | O6: =$A$778 -> 2017-09-12 | R6: =$D$778 -> 2018-01-09 | V6: 2 | W6: =$A$778 -> 2017-09-12 | Z6: =Z5+7 -> 2016-01-12 | AD6: =AD5+1 -> 17 | AE6: =AE5+1 -> 2 | AF6: 2017-09-12 | AG6: =C6+J6+Q6+Y6 -> 0 | AH6: =AH5+1 -> 17 | AI6: 2018-01-09 | AJ6: 0 | AK6: Weeks | AL6: 31 | AO6: 1 | AP6: Checks Payable to Classic | AQ6: 1 | AR6: Checks Payable to Classic | AS6: 1 | AT6: Checks Payable to Classic
A7: =$A$779 -> 2017-09-19 | D7: =$D$779 -> 2018-01-16 | H7: =$A$779 -> 2017-09-19 | K7: =$D$779 -> 2018-01-16 | O7: =$A$779 -> 2017-09-19 | R7: =$D$779 -> 2018-01-16 | V7: 3 | W7: =$A$779 -> 2017-09-19 | Z7: =Z6+7 -> 2016-01-19 | AD7: =AD6+1 -> 18 | AE7: =AE6+1 -> 3 | AF7: 2017-09-19 | AG7: 0 | AH7: =AH6+1 -> 18 | AI7: 2018-01-16 | AJ7: 0 | AO7: 2 | AP7: Enter payment on the Date Paid | AQ7: 2 | AR7: Enter payment on the Date Paid | AS7: 2 | AT7: Enter payment on the Date Paid
A8: =$A$780 -> 2017-09-26 | D8: =$D$780 -> 2018-01-23 | H8: =$A$780 -> 2017-09-26 | K8: =$D$780 -> 2018-01-23 | O8: =$A$780 -> 2017-09-26 | R8: =$D$780 -> 2018-01-23 | V8: 4 | W8: =$A$780 -> 2017-09-26 | Z8: 2016-01-26 | AD8: 19 | AE8: 4 | AF8: 2017-09-26 | AG8: 0 | AH8: 19 | AI8: 2018-01-23 | AJ8: 0 | AO8: 3 | AP8: Ref: Enter Check No. or Write Cash | AQ8: 3 | AR8: Ref: Enter Check No. or Write Cash | AS8: 3 | AT8: Ref: Enter Check No. or Write Cash
A9: =$A$781 -> 2017-10-03 | D9: =$D$781 -> 2018-01-30 | H9: =$A$781 -> 2017-10-03 | K9: =$D$781 -> 2018-01-30 | O9: =$A$781 -> 2017-10-03 | R9: =$D$781 -> 2018-01-30 | V9: 5 | W9: =$A$781 -> 2017-10-03 | Z9: 2016-02-02 | AD9: 20 | AE9: 5 | AF9: 2017-10-03 | AG9: 0 | AH9: 20 | AI9: 2018-01-30 | AJ9: 0 | AO9: 4 | AP9: Amt: Amount Paid | AQ9: 4 | AR9: Amt: Amount Paid | AS9: 4 | AT9: Amt: Amount Paid
A10: =$A$782 -> 2017-10-10 | D10: =$D$782 -> 2018-02-06 | H10: =$A$782 -> 2017-10-10 | K10: =$D$782 -> 2018-02-06 | O10: =$A$782 -> 2017-10-10 | R10: =$D$782 -> 2018-02-06 | V10: 6 | W10: =$A$782 -> 2017-10-10 | Z10: 2016-02-09 | AD10: 21 | AE10: 6 | AF10: 2017-10-10 | AG10: 0 | AH10: 21 | AI10: 2018-02-06 | AJ10: 0 | AO10: 5 | AP10: Weeks paid will be marked yellow by Secretary | AQ10: 5 | AR10: Weeks paid will be marked yellow by Secretary | AS10: 5 | AT10: Weeks paid will be marked yellow by Secretary
A11: =$A$783 -> 2017-10-17 | D11: =$D$783 -> 2018-02-13 | H11: =$A$783 -> 2017-10-17 | K11: =$D$783 -> 2018-02-13 | O11: =$A$783 -> 2017-10-17 | R11: =$D$783 -> 2018-02-13 | V11: 7 | W11: =$A$783 -> 2017-10-17 | Z11: 2016-02-16 | AD11: 22 | AE11: 7 | AF11: 2017-10-17 | AG11: 0 | AH11: 22 | AI11: 2018-02-13 | AJ11: 0
A12: =$A$784 -> 2017-10-24 | D12: =$D$784 -> 2018-02-20 | H12: =$A$784 -> 2017-10-24 | K12: =$D$784 -> 2018-02-20 | O12: =$A$784 -> 2017-10-24 | R12: =$D$784 -> 2018-02-20 | V12: 8 | W12: =$A$784 -> 2017-10-24 | Z12: 2016-02-23 | AD12: 23 | AE12: 8 | AF12: 2017-10-24 | AG12: 0 | AH12: 23 | AI12: 2018-02-20 | AJ12: 0 | AP12: One-Time Fees | AR12: One-Time Fees | AT12: One-Time Fees
A13: =$A$785 -> 2017-10-31 | D13: =$D$785 -> 2018-02-27 | H13: =$A$785 -> 2017-10-31 | K13: =$D$785 -> 2018-02-27 | O13: =$A$785 -> 2017-10-31 | R13: =$D$785 -> 2018-02-27 | V13: 9 | W13: =$A$785 -> 2017-10-31 | Z13: 2016-03-01 | AD13: 24 | AE13: 9 | AF13: 2017-10-31 | AG13: 0 | AH13: 24 | AI13: 2018-02-27 | AJ13: 0 | AP13: Non-Residents Pay $20 to Desk Monitor | AR13: Non-Residents Pay $20 to Desk Monitor | AT13: Non-Residents Pay $20 to Desk Monitor
A14: =$A$786 -> 2017-11-07 | D14: =$D$786 -> 2018-03-06 | H14: =$A$786 -> 2017-11-07 | K14: =$D$786 -> 2018-03-06 | O14: =$A$786 -> 2017-11-07 | R14: =$D$786 -> 2018-03-06 | V14: 10 | W14: =$A$786 -> 2017-11-07 | Z14: 2016-03-08 | AD14: 25 | AE14: 10 | AF14: 2017-11-07 | AG14: 0 | AH14: 25 | AI14: 2018-03-06 | AJ14: 0 | AP14: USBC Dues Add $24 to first week | AR14: USBC Dues Add $24 to first week | AT14: USBC Dues Add $24 to first week
A15: =$A$787 -> 2017-11-14 | D15: =$D$787 -> 2018-03-13 | H15: =$A$787 -> 2017-11-14 | K15: =$D$787 -> 2018-03-13 | O15: =$A$787 -> 2017-11-14 | R15: =$D$787 -> 2018-03-13 | V15: 11 | W15: =$A$787 -> 2017-11-14 | Z15: 2016-03-15 | AD15: 26 | AE15: 11 | AF15: 2017-11-14 | AG15: 0 | AH15: 26 | AI15: 2018-03-13 | AJ15: 0
A16: =$A$788 -> 2017-11-21 | D16: =$D$788 -> 2018-03-20 | H16: =$A$788 -> 2017-11-21 | K16: =$D$788 -> 2018-03-20 | O16: =$A$788 -> 2017-11-21 | R16: =$D$788 -> 2018-03-20 | V16: 12 | W16: =$A$788 -> 2017-11-21 | Z16: 2016-03-22 | AD16: 27 | AE16: 12 | AF16: 2017-11-21 | AG16: 0 | AH16: 27 | AI16: 2018-03-20 | AJ16: 0 | AP16: 1st and Last 2 weeks - 3 weeks $51 | AR16: 1st and Last 2 weeks - 3 weeks $51 | AT16: 1st and Last 2 weeks - 3 weeks $51
A17: =$A$789 -> 2017-11-28 | D17: =$D$789 -> 2018-03-27 | H17: =$A$789 -> 2017-11-28 | K17: =$D$789 -> 2018-03-27 | O17: =$A$789 -> 2017-11-28 | R17: =$D$789 -> 2018-03-27 | V17: 13 | W17: =$A$789 -> 2017-11-28 | Z17: 2016-03-29 | AD17: 28 | AE17: 13 | AF17: 2017-11-28 | AG17: 0 | AH17: 28 | AI17: 2018-03-27 | AJ17: 0 | AP17: September - 4 weeks Plus Last 2 weeks $102 | AR17: September - 4 weeks Plus Last 2 weeks $102 | AT17: September - 4 weeks Plus Last 2 weeks $102
A18: =$A$790 -> 2017-12-05 | D18: =$D$790 -> 2018-04-03 | H18: =$A$790 -> 2017-12-05 | K18: =$D$790 -> 2018-04-03 | O18: =$A$790 -> 2017-12-05 | R18: =$D$790 -> 2018-04-03 | V18: 14 | W18: =$A$790 -> 2017-12-05 | Z18: 2016-04-05 | AD18: 29 | AE18: 14 | AF18: 2017-12-05 | AG18: 0 | AH18: 29 | AI18: 2018-04-03 | AJ18: 0 | AP18: October - 5 weeks $85 | AR18: October - 5 weeks $85 | AT18: October - 5 weeks $85
A19: =$A$791 -> 2017-12-12 | D19: =$D$791 -> 2018-04-10 | H19: =$A$791 -> 2017-12-12 | K19: =$D$791 -> 2018-04-10 | O19: =$A$791 -> 2017-12-12 | R19: =$D$791 -> 2018-04-10 | W19: =$A$791 -> 2017-12-12 | Z19: 2016-04-12 | AD19: 30 | AE19: 15 | AF19: 2017-12-12 | AG19: 0 | AH19: 30 | AI19: 2018-04-10 | AJ19: 0 | AP19: November - 4 weeks $68 | AR19: November - 4 weeks $68 | AT19: November - 4 weeks $68
A20: =$A$792 -> 2017-12-19 | D20: =$D$792 -> 00:00:00 | E20: Total | F20: =SUM(C5:C20,F5:F19) -> 0 | H20: =$A$792 -> 2017-12-19 | K20: =$D$792 -> 00:00:00 | L20: Total | M20: =SUM(J5:J20,M5:M19) -> 0 | O20: =$A$792 -> 2017-12-19 | S20: Total | T20: =SUM(Q5:Q20,T5:T19) -> 0 | V20: 15 | Z20: 2016-04-19 | AD20: 31 | AE20: 16 | AF20: =A20 -> 2017-12-19 | AG20: =C20+J20+Q20+Y20 -> 0 | AP20: December - 3 weeks $51 | AR20: December - 3 weeks $51 | AT20: December - 3 weeks $51
A21: USBC | B21: 24 | C21: Paid This League | H21: USBC | J21: Paid Online | O21: USBC | P21: 24 | Q21: Paid This League | Z21: 2016-04-26 | AP21: January - 5 weeks $85 | AR21: January - 5 weeks $85 | AT21: January - 5 weeks $85
A22: Fees | B22: =$AL$5*B23 -> 527 | C22: Total | D22: =B22+B21 -> 551 | E22: Balance | F22: =D22-F20 -> 551 | H22: Fees | I22: =$AL$5*I23 -> 527 | J22: Total | K22: =I22+I21 -> 527 | L22: Balance | M22: =K22-M20 -> 527 | O22: Fees | P22: =$AL$5*P23 -> 527 | Q22: Total | R22: =P22+P21 -> 551 | S22: Balance | T22: =R22-T20 -> 551
A23: Wks | B23: =$AL$6 -> 31 | D23: ID | E23: 11 | H23: Wks | I23: =$AL$6 -> 31 | K23: ID | L23: 12 | O23: Wks | P23: =$AL$6 -> 31 | R23: ID | S23: 13 | AP23: February - 4 weeks $68 | AR23: February - 4 weeks $68 | AT23: February - 4 weeks $68
A25: ="Team "&VLOOKUP($E46,Roster!$A$2:$AF$33,2)&" "&_xlfn.IFNA(VLOOKUP($E46,Roster!$A$2:$AF$33,3,0),0) -> Team 2 Rascals
A26: =_xlfn.IFNA(VLOOKUP($E46,Roster!$A$2:$AF$33,8,0),0)&IF(F46="",""," / "&VLOOKUP($F46,Roster!$A$2:$AF$33,8,0)) -> Marty Bell | H26: =_xlfn.IFNA(VLOOKUP(L46,Roster!$A$2:$AF$33,8,0),0)&IF($M46="",""," / "&VLOOKUP($M46,Roster!$A$2:$AF$33,8,0)) -> Alex Balok | O26: =_xlfn.IFNA(VLOOKUP($S46,Roster!$A$2:$AF$33,8,0),0)&IF(T46="",""," / "&VLOOKUP($T46,Roster!$A$2:$AF$33,8,0)) -> Johnny Gonzales | V26: =IF(ISNA(LOOKUP(#REF!,#REF!,#REF!)),"",IF(LOOKUP(#REF!,#REF!,#REF!)>"",LOOKUP(#REF!,#REF!,#REF!)&" / "&LOOKUP(#REF!,#REF!,#REF!),LOOKUP(#REF!,#REF!,#REF!))) ->  | AC26: 2
A27: Date | B27: Ref | C27: Amt | D27: Date | E27: Ref | F27: Amt | H27: Date | I27: Ref | J27: Amt | K27: Date | L27: Ref | M27: Amt | O27: Date | P27: Ref | Q27: Amt | R27: Date | S27: Ref | T27: Amt | V27: Wk | W27: Date | X27: Ref | Y27: Amt | Z27: Date | AA27: Ref | AB27: Amt | AE27: Weekly Team Summary | AP27: 1. Team Captains are responsible for the collection of all fees. | AR27: 1. Team Captains are responsible for the collection of all fees. | AT27: 1. Team Captains are responsible for the collection of all fees.
A28: =$A$777 -> 2017-09-05 | D28: =$D$777 -> 2018-01-02 | H28: =$A$777 -> 2017-09-05 | K28: =$D$777 -> 2018-01-02 | O28: =$A$777 -> 2017-09-05 | R28: =$D$777 -> 2018-01-02 | V28: 1 | W28: =$A$777 -> 2017-09-05 | Z28: 2016-01-05 | AD28: 16 | AE28: 1 | AF28: =A28 -> 2017-09-05 | AG28: =C28+J28+Q28 -> 0 | AH28: =AE42+1 -> 16 | AI28: =D28 -> 2018-01-02 | AJ28: =F28+M28+T28+AB28 -> 0
A29: =$A$778 -> 2017-09-12 | D29: =$D$778 -> 2018-01-09 | H29: =$A$778 -> 2017-09-12 | K29: =$D$778 -> 2018-01-09 | O29: =$A$778 -> 2017-09-12 | R29: =$D$778 -> 2018-01-09 | V29: 2 | W29: =$A$778 -> 2017-09-12 | Z29: =Z28+7 -> 2016-01-12 | AD29: =AD28+1 -> 17 | AE29: =AE28+1 -> 2 | AF29: 2017-09-12 | AG29: =C29+J29+Q29+Y29 -> 0 | AH29: =AH28+1 -> 17 | AI29: 2018-01-09 | AJ29: 0
A30: =$A$779 -> 2017-09-19 | D30: =$D$779 -> 2018-01-16 | H30: =$A$779 -> 2017-09-19 | K30: =$D$779 -> 2018-01-16 | O30: =$A$779 -> 2017-09-19 | R30: =$D$779 -> 2018-01-16 | V30: 3 | W30: =$A$779 -> 2017-09-19 | Z30: =Z29+7 -> 2016-01-19 | AD30: =AD29+1 -> 18 | AE30: =AE29+1 -> 3 | AF30: 2017-09-19 | AG30: 0 | AH30: =AH29+1 -> 18 | AI30: 2018-01-16 | AJ30: 0 | AP30: 2. Late Arriving Bowlers Listed on Roster are responsible for all season-to-date league fees. | AR30: 2. Late Arriving Bowlers Listed on Roster are responsible for all season-to-date league fees. | AT30: 2. Late Arriving Bowlers Listed on Roster are responsible for all season-to-date league fees.
A31: =$A$780 -> 2017-09-26 | D31: =$D$780 -> 2018-01-23 | H31: =$A$780 -> 2017-09-26 | K31: =$D$780 -> 2018-01-23 | O31: =$A$780 -> 2017-09-26 | R31: =$D$780 -> 2018-01-23 | V31: 4 | W31: =$A$780 -> 2017-09-26 | Z31: 2016-01-26 | AD31: 19 | AE31: 4 | AF31: 2017-09-26 | AG31: 0 | AH31: 19 | AI31: 2018-01-23 | AJ31: 0
A32: =$A$781 -> 2017-10-03 | D32: =$D$781 -> 2018-01-30 | H32: =$A$781 -> 2017-10-03 | K32: =$D$781 -> 2018-01-30 | O32: =$A$781 -> 2017-10-03 | R32: =$D$781 -> 2018-01-30 | V32: 5 | W32: =$A$781 -> 2017-10-03 | Z32: 2016-02-02 | AD32: 20 | AE32: 5 | AF32: 2017-10-03 | AG32: 0 | AH32: 20 | AI32: 2018-01-30 | AJ32: 0
A33: =$A$782 -> 2017-10-10 | D33: =$D$782 -> 2018-02-06 | H33: =$A$782 -> 2017-10-10 | K33: =$D$782 -> 2018-02-06 | O33: =$A$782 -> 2017-10-10 | R33: =$D$782 -> 2018-02-06 | V33: 6 | W33: =$A$782 -> 2017-10-10 | Z33: 2016-02-09 | AD33: 21 | AE33: 6 | AF33: 2017-10-10 | AG33: 0 | AH33: 21 | AI33: 2018-02-06 | AJ33: 0 | AP33: 3. New bowlers beginning after the league schedule begins are responsible for all season-to-date league fees excluding lineage. | AR33: 3. New bowlers beginning after the league schedule begins are responsible for all season-to-date league fees excluding lineage. | AT33: 3. New bowlers beginning after the league schedule begins are responsible for all season-to-date league fees excluding lineage.
A34: =$A$783 -> 2017-10-17 | D34: =$D$783 -> 2018-02-13 | H34: =$A$783 -> 2017-10-17 | K34: =$D$783 -> 2018-02-13 | O34: =$A$783 -> 2017-10-17 | R34: =$D$783 -> 2018-02-13 | V34: 7 | W34: =$A$783 -> 2017-10-17 | Z34: 2016-02-16 | AD34: 22 | AE34: 7 | AF34: 2017-10-17 | AG34: 0 | AH34: 22 | AI34: 2018-02-13 | AJ34: 0
A35: =$A$784 -> 2017-10-24 | D35: =$D$784 -> 2018-02-20 | H35: =$A$784 -> 2017-10-24 | K35: =$D$784 -> 2018-02-20 | O35: =$A$784 -> 2017-10-24 | R35: =$D$784 -> 2018-02-20 | V35: 8 | W35: =$A$784 -> 2017-10-24 | Z35: 2016-02-23 | AD35: 23 | AE35: 8 | AF35: 2017-10-24 | AG35: 0 | AH35: 23 | AI35: 2018-02-20 | AJ35: 0
A36: =$A$785 -> 2017-10-31 | D36: =$D$785 -> 2018-02-27 | H36: =$A$785 -> 2017-10-31 | K36: =$D$785 -> 2018-02-27 | O36: =$A$785 -> 2017-10-31 | R36: =$D$785 -> 2018-02-27 | V36: 9 | W36: =$A$785 -> 2017-10-31 | Z36: 2016-03-01 | AD36: 24 | AE36: 9 | AF36: 2017-10-31 | AG36: 0 | AH36: 24 | AI36: 2018-02-27 | AJ36: 0
A37: =$A$786 -> 2017-11-07 | D37: =$D$786 -> 2018-03-06 | H37: =$A$786 -> 2017-11-07 | K37: =$D$786 -> 2018-03-06 | O37: =$A$786 -> 2017-11-07 | R37: =$D$786 -> 2018-03-06 | V37: 10 | W37: =$A$786 -> 2017-11-07 | Z37: 2016-03-08 | AD37: 25 | AE37: 10 | AF37: 2017-11-07 | AG37: 0 | AH37: 25 | AI37: 2018-03-06 | AJ37: 0
A38: =$A$787 -> 2017-11-14 | D38: =$D$787 -> 2018-03-13 | H38: =$A$787 -> 2017-11-14 | K38: =$D$787 -> 2018-03-13 | O38: =$A$787 -> 2017-11-14 | R38: =$D$787 -> 2018-03-13 | V38: 11 | W38: =$A$787 -> 2017-11-14 | Z38: 2016-03-15 | AD38: 26 | AE38: 11 | AF38: 2017-11-14 | AG38: 0 | AH38: 26 | AI38: 2018-03-13 | AJ38: 0
A39: =$A$788 -> 2017-11-21 | D39: =$D$788 -> 2018-03-20 | H39: =$A$788 -> 2017-11-21 | K39: =$D$788 -> 2018-03-20 | O39: =$A$788 -> 2017-11-21 | R39: =$D$788 -> 2018-03-20 | V39: 12 | W39: =$A$788 -> 2017-11-21 | Z39: 2016-03-22 | AD39: 27 | AE39: 12 | AF39: 2017-11-21 | AG39: 0 | AH39: 27 | AI39: 2018-03-20 | AJ39: 0
A40: =$A$789 -> 2017-11-28 | D40: =$D$789 -> 2018-03-27 | H40: =$A$789 -> 2017-11-28 | K40: =$D$789 -> 2018-03-27 | O40: =$A$789 -> 2017-11-28 | R40: =$D$789 -> 2018-03-27 | V40: 13 | W40: =$A$789 -> 2017-11-28 | Z40: 2016-03-29 | AD40: 28 | AE40: 13 | AF40: 2017-11-28 | AG40: 0 | AH40: 28 | AI40: 2018-03-27 | AJ40: 0 | AP40: Let's Communicate | AR40: Let's Communicate | AT40: Let's Communicate
A41: =$A$790 -> 2017-12-05 | D41: =$D$790 -> 2018-04-03 | H41: =$A$790 -> 2017-12-05 | K41: =$D$790 -> 2018-04-03 | O41: =$A$790 -> 2017-12-05 | R41: =$D$790 -> 2018-04-03 | V41: 14 | W41: =$A$790 -> 2017-12-05 | Z41: 2016-04-05 | AD41: 29 | AE41: 14 | AF41: 2017-12-05 | AG41: 0 | AH41: 29 | AI41: 2018-04-03 | AJ41: 0 | AP41: Please Enter Your Data on Sheet | AR41: Please Enter Your Data on Sheet | AT41: Please Enter Your Data on Sheet
A42: =$A$791 -> 2017-12-12 | D42: =$D$791 -> 2018-04-10 | H42: =$A$791 -> 2017-12-12 | K42: =$D$791 -> 2018-04-10 | O42: =$A$791 -> 2017-12-12 | R42: =$D$791 -> 2018-04-10 | W42: =$A$791 -> 2017-12-12 | Z42: 2016-04-12 | AD42: 30 | AE42: 15 | AF42: 2017-12-12 | AG42: 0 | AH42: 30 | AI42: 2018-04-10 | AJ42: 0
A43: =$A$792 -> 2017-12-19 | D43: =$D$792 -> 00:00:00 | E43: Total | F43: =SUM(C28:C43,F28:F42) -> 0 | H43: =$A$792 -> 2017-12-19 | K43: =$D$792 -> 00:00:00 | L43: Total | M43: =SUM(J28:J43,M28:M42) -> 0 | O43: =$A$792 -> 2017-12-19 | S43: Total | T43: =SUM(Q28:Q43,T28:T42) -> 0 | V43: 15 | Z43: 2016-04-19 | AD43: 31 | AE43: 16 | AF43: 2017-12-19 | AG43: 0 | AO43: 1 | AP43: Checks Payable to Classic | AQ43: 1 | AR43: Checks Payable to Classic | AS43: 1 | AT43: Checks Payable to Classic
A44: USBC | C44: Paid Online | H44: USBC | J44: Paid Online | O44: USBC | Q44: Sun City Sratch Classic | AO44: 2 | AP44: Enter payment on the Date Paid | AQ44: 2 | AR44: Enter payment on the Date Paid | AS44: 2 | AT44: Enter payment on the Date Paid
A45: Fees | B45: =$AL$5*B46 -> 527 | C45: Total | D45: =B45+B44 -> 527 | E45: Balance | F45: =D45-F43 -> 527 | H45: Fees | I45: =$AL$5*I46 -> 527 | J45: Total | K45: =I45+I44 -> 527 | L45: Balance | M45: =K45-M43 -> 527 | O45: Fees | P45: =$AL$5*P46 -> 527 | Q45: Total | R45: =P45+P44 -> 527 | S45: Balance | T45: =R45-T43 -> 527
A46: Wks | B46: =$AL$6 -> 31 | D46: ID | E46: 21 | H46: Wks | I46: =$AL$6 -> 31 | K46: ID | L46: 22 | O46: Wks | P46: =$AL$6 -> 31 | R46: ID | S46: 23 | AO46: 3 | AP46: Ref: Enter Check No. or Write Cash | AQ46: 3 | AR46: Ref: Enter Check No. or Write Cash | AS46: 3 | AT46: Ref: Enter Check No. or Write Cash
A47: 31 | B47: 3 | H47: 32 | O47: 33 | AO47: 4 | AP47: Amt: Amount Paid | AQ47: 4 | AR47: Amt: Amount Paid | AS47: 4 | AT47: Amt: Amount Paid
A48: ="Team "&VLOOKUP($E69,Roster!$A$2:$AF$33,2)&" "&_xlfn.IFNA(VLOOKUP($E69,Roster!$A$2:$AF$33,3,0),0) -> Team 3 | AO48: 5 | AP48: Weeks paid will be marked yellow | AQ48: 5 | AR48: Weeks paid will be marked yellow | AS48: 5 | AT48: Weeks paid will be marked yellow
A49: =_xlfn.IFNA(VLOOKUP($E69,Roster!$A$2:$AF$33,8,0),0)&IF(F69="",""," / "&VLOOKUP($F69,Roster!$A$2:$AF$33,8,0)) -> Jeff Richard | H49: =_xlfn.IFNA(VLOOKUP(L69,Roster!$A$2:$AF$33,8,0),0)&IF($M69="",""," / "&VLOOKUP($M69,Roster!$A$2:$AF$33,8,0)) -> Jerry Elsen | O49: =_xlfn.IFNA(VLOOKUP($S69,Roster!$A$2:$AF$33,8,0),0)&IF(T69="",""," / "&VLOOKUP($T69,Roster!$A$2:$AF$33,8,0)) -> Bill Poff | V49: =IF(ISNA(LOOKUP(#REF!,#REF!,#REF!)),"",IF(LOOKUP(#REF!,#REF!,#REF!)>"",LOOKUP(#REF!,#REF!,#REF!)&" / "&LOOKUP(#REF!,#REF!,#REF!),LOOKUP(#REF!,#REF!,#REF!))) ->  | AC49: 3
A50: Date | B50: Ref | C50: Amt | D50: Date | E50: Ref | F50: Amt | H50: Date | I50: Ref | J50: Amt | K50: Date | L50: Ref | M50: Amt | O50: Date | P50: Ref | Q50: Amt | R50: Date | S50: Ref | T50: Amt | V50: Wk | W50: Date | X50: Ref | Y50: Amt | Z50: Date | AA50: Ref | AB50: Amt | AE50: Weekly Team Summary
A51: =$A$777 -> 2017-09-05 | D51: =$D$777 -> 2018-01-02 | H51: =$A$777 -> 2017-09-05 | K51: =$D$777 -> 2018-01-02 | O51: =$A$777 -> 2017-09-05 | R51: =$D$777 -> 2018-01-02 | V51: 1 | W51: =$A$777 -> 2017-09-05 | Z51: 2016-01-05 | AD51: 16 | AE51: 1 | AF51: =A51 -> 2017-09-05 | AG51: =C51+J51+Q51 -> 0 | AH51: =AE65+1 -> 16 | AI51: =D51 -> 2018-01-02 | AJ51: =F51+M51+T51+AB51 -> 0
A52: =$A$778 -> 2017-09-12 | D52: =$D$778 -> 2018-01-09 | H52: =$A$778 -> 2017-09-12 | K52: =$D$778 -> 2018-01-09 | O52: =$A$778 -> 2017-09-12 | R52: =$D$778 -> 2018-01-09 | V52: 2 | W52: =$A$778 -> 2017-09-12 | Z52: =Z51+7 -> 2016-01-12 | AD52: =AD51+1 -> 17 | AE52: =AE51+1 -> 2 | AF52: 2017-09-12 | AG52: =C52+J52+Q52+Y52 -> 0 | AH52: =AH51+1 -> 17 | AI52: 2018-01-09 | AJ52: 0 | AP52: September - 4 weeks Plus Last 2 weeks $102 | AR52: September - 4 weeks Plus Last 2 weeks $102 | AT52: September - 4 weeks Plus Last 2 weeks $102
A53: =$A$779 -> 2017-09-19 | D53: =$D$779 -> 2018-01-16 | H53: =$A$779 -> 2017-09-19 | K53: =$D$779 -> 2018-01-16 | O53: =$A$779 -> 2017-09-19 | R53: =$D$779 -> 2018-01-16 | V53: 3 | W53: =$A$779 -> 2017-09-19 | Z53: =Z52+7 -> 2016-01-19 | AD53: =AD52+1 -> 18 | AE53: =AE52+1 -> 3 | AF53: 2017-09-19 | AG53: 0 | AH53: =AH52+1 -> 18 | AI53: 2018-01-16 | AJ53: 0 | AP53: October - 5 weeks $85 | AR53: October - 5 weeks $85 | AT53: October - 5 weeks $85
A54: =$A$780 -> 2017-09-26 | D54: =$D$780 -> 2018-01-23 | H54: =$A$780 -> 2017-09-26 | K54: =$D$780 -> 2018-01-23 | O54: =$A$780 -> 2017-09-26 | R54: =$D$780 -> 2018-01-23 | V54: 4 | W54: =$A$780 -> 2017-09-26 | Z54: 2016-01-26 | AD54: 19 | AE54: 4 | AF54: 2017-09-26 | AG54: 0 | AH54: 19 | AI54: 2018-01-23 | AJ54: 0 | AP54: November - 4 weeks $68 | AR54: November - 4 weeks $68 | AT54: November - 4 weeks $68
A55: =$A$781 -> 2017-10-03 | D55: =$D$781 -> 2018-01-30 | H55: =$A$781 -> 2017-10-03 | K55: =$D$781 -> 2018-01-30 | O55: =$A$781 -> 2017-10-03 | R55: =$D$781 -> 2018-01-30 | V55: 5 | W55: =$A$781 -> 2017-10-03 | Z55: 2016-02-02 | AD55: 20 | AE55: 5 | AF55: 2017-10-03 | AG55: 0 | AH55: 20 | AI55: 2018-01-30 | AJ55: 0 | AP55: December - 3 weeks $51 | AR55: December - 3 weeks $51 | AT55: December - 3 weeks $51
A56: =$A$782 -> 2017-10-10 | D56: =$D$782 -> 2018-02-06 | H56: =$A$782 -> 2017-10-10 | K56: =$D$782 -> 2018-02-06 | O56: =$A$782 -> 2017-10-10 | R56: =$D$782 -> 2018-02-06 | V56: 6 | W56: =$A$782 -> 2017-10-10 | Z56: 2016-02-09 | AD56: 21 | AE56: 6 | AF56: 2017-10-10 | AG56: 0 | AH56: 21 | AI56: 2018-02-06 | AJ56: 0 | AP56: January - 5 weeks $85 | AR56: January - 5 weeks $85 | AT56: January - 5 weeks $85
A57: =$A$783 -> 2017-10-17 | D57: =$D$783 -> 2018-02-13 | H57: =$A$783 -> 2017-10-17 | K57: =$D$783 -> 2018-02-13 | O57: =$A$783 -> 2017-10-17 | R57: =$D$783 -> 2018-02-13 | V57: 7 | W57: =$A$783 -> 2017-10-17 | Z57: 2016-02-16 | AD57: 22 | AE57: 7 | AF57: 2017-10-17 | AG57: 0 | AH57: 22 | AI57: 2018-02-13 | AJ57: 0 | AP57: February - 4 weeks $68 | AR57: February - 4 weeks $68 | AT57: February - 4 weeks $68
A58: =$A$784 -> 2017-10-24 | D58: =$D$784 -> 2018-02-20 | H58: =$A$784 -> 2017-10-24 | K58: =$D$784 -> 2018-02-20 | O58: =$A$784 -> 2017-10-24 | R58: =$D$784 -> 2018-02-20 | V58: 8 | W58: =$A$784 -> 2017-10-24 | Z58: 2016-02-23 | AD58: 23 | AE58: 8 | AF58: 2017-10-24 | AG58: 0 | AH58: 23 | AI58: 2018-02-20 | AJ58: 0 | AP58: March - 4 weeks $68 | AR58: March - 4 weeks $68 | AT58: March - 4 weeks $68
A59: =$A$785 -> 2017-10-31 | D59: =$D$785 -> 2018-02-27 | H59: =$A$785 -> 2017-10-31 | K59: =$D$785 -> 2018-02-27 | O59: =$A$785 -> 2017-10-31 | R59: =$D$785 -> 2018-02-27 | V59: 9 | W59: =$A$785 -> 2017-10-31 | Z59: 2016-03-01 | AD59: 24 | AE59: 9 | AF59: 2017-10-31 | AG59: 0 | AH59: 24 | AI59: 2018-02-27 | AJ59: 0 | AP59: April - 2 weeks $34 | AR59: April - 2 weeks $34 | AT59: April - 2 weeks $34
A60: =$A$786 -> 2017-11-07 | D60: =$D$786 -> 2018-03-06 | H60: =$A$786 -> 2017-11-07 | K60: =$D$786 -> 2018-03-06 | O60: =$A$786 -> 2017-11-07 | R60: =$D$786 -> 2018-03-06 | V60: 10 | W60: =$A$786 -> 2017-11-07 | Z60: 2016-03-08 | AD60: 25 | AE60: 10 | AF60: 2017-11-07 | AG60: 0 | AH60: 25 | AI60: 2018-03-06 | AJ60: 0 | AP60: Full Season - 31 Weeks $527 | AR60: Full Season - 31 Weeks $527 | AT60: Full Season - 31 Weeks $527
A61: =$A$787 -> 2017-11-14 | D61: =$D$787 -> 2018-03-13 | H61: =$A$787 -> 2017-11-14 | K61: =$D$787 -> 2018-03-13 | O61: =$A$787 -> 2017-11-14 | R61: =$D$787 -> 2018-03-13 | V61: 11 | W61: =$A$787 -> 2017-11-14 | Z61: 2016-03-15 | AD61: 26 | AE61: 11 | AF61: 2017-11-14 | AG61: 0 | AH61: 26 | AI61: 2018-03-13 | AJ61: 0
A62: =$A$788 -> 2017-11-21 | D62: =$D$788 -> 2018-03-20 | H62: =$A$788 -> 2017-11-21 | K62: =$D$788 -> 2018-03-20 | O62: =$A$788 -> 2017-11-21 | R62: =$D$788 -> 2018-03-20 | V62: 12 | W62: =$A$788 -> 2017-11-21 | Z62: 2016-03-22 | AD62: 27 | AE62: 12 | AF62: 2017-11-21 | AG62: 0 | AH62: 27 | AI62: 2018-03-20 | AJ62: 0
A63: =$A$789 -> 2017-11-28 | D63: =$D$789 -> 2018-03-27 | H63: =$A$789 -> 2017-11-28 | K63: =$D$789 -> 2018-03-27 | O63: =$A$789 -> 2017-11-28 | R63: =$D$789 -> 2018-03-27 | V63: 13 | W63: =$A$789 -> 2017-11-28 | Z63: 2016-03-29 | AD63: 28 | AE63: 13 | AF63: 2017-11-28 | AG63: 0 | AH63: 28 | AI63: 2018-03-27 | AJ63: 0
A64: =$A$790 -> 2017-12-05 | D64: =$D$790 -> 2018-04-03 | H64: =$A$790 -> 2017-12-05 | K64: =$D$790 -> 2018-04-03 | O64: =$A$790 -> 2017-12-05 | R64: =$D$790 -> 2018-04-03 | V64: 14 | W64: =$A$790 -> 2017-12-05 | Z64: 2016-04-05 | AD64: 29 | AE64: 14 | AF64: 2017-12-05 | AG64: 0 | AH64: 29 | AI64: 2018-04-03 | AJ64: 0 | AP64: Let's Communicate | AR64: Let's Communicate | AT64: Let's Communicate
A65: =$A$791 -> 2017-12-12 | D65: =$D$791 -> 2018-04-10 | H65: =$A$791 -> 2017-12-12 | K65: =$D$791 -> 2018-04-10 | O65: =$A$791 -> 2017-12-12 | R65: =$D$791 -> 2018-04-10 | W65: =$A$791 -> 2017-12-12 | Z65: 2016-04-12 | AD65: 30 | AE65: 15 | AF65: 2017-12-12 | AG65: 0 | AH65: 30 | AI65: 2018-04-10 | AJ65: 0 | AP65: Please Enter Your Data on Sheet | AR65: Please Enter Your Data on Sheet | AT65: Please Enter Your Data on Sheet
A66: =$A$792 -> 2017-12-19 | D66: =$D$792 -> 00:00:00 | E66: Total | F66: =SUM(C51:C66,F51:F65) -> 0 | H66: =$A$792 -> 2017-12-19 | K66: =$D$792 -> 00:00:00 | L66: Total | M66: =SUM(J51:J66,M51:M65) -> 0 | O66: =$A$792 -> 2017-12-19 | S66: Total | T66: =SUM(Q51:Q66,T51:T65) -> 0 | V66: 15 | Z66: 2016-04-19 | AD66: 31 | AE66: 16 | AF66: 2017-12-19 | AG66: 0
A67: USBC | C67: Paid in Peterson | H67: USBC | I67: 24 | J67: Paid This League | O67: USBC | P67: 24 | Q67: Paid This League | AK67: =Q51-21+Q55+Q58+Q64+Q65+T52+T57+T61 -> -21 | AO67: 1 | AP67: Checks Payable to Classic | AQ67: 1 | AR67: Checks Payable to Classic | AS67: 1 | AT67: Checks Payable to Classic
A68: Fees | B68: =$AL$5*B69 -> 527 | C68: Total | D68: =B68+B67 -> 527 | E68: Balance | F68: =D68-F66 -> 527 | H68: Fees | I68: =$AL$5*I69 -> 527 | J68: Total | K68: =I68+I67 -> 551 | L68: Balance | M68: =K68-M66 -> 551 | O68: Fees | P68: =$AL$5*P69 -> 527 | Q68: Total | R68: =P68+P67 -> 551 | S68: Balance | T68: =R68-T66 -> 551 | AO68: 2 | AP68: Enter payment on the Date Paid | AQ68: 2 | AR68: Enter payment on the Date Paid | AS68: 2 | AT68: Enter payment on the Date Paid
A69: Wks | B69: =$AL$6 -> 31 | C69: =$AL$5*B69 -> 527 | D69: ID | E69: 31 | H69: Wks | I69: =$AL$6 -> 31 | J69: =$AL$5*I69 -> 527 | K69: ID | L69: 32 | O69: Wks | P69: =$AL$6 -> 31 | Q69: =$AL$5*P69 -> 527 | R69: ID | S69: 33
A71: 41 | B71: 4 | H71: 42 | O71: 43 | AO71: 3 | AP71: Ref: Enter Check No. or Write Cash | AQ71: 3 | AR71: Ref: Enter Check No. or Write Cash | AS71: 3 | AT71: Ref: Enter Check No. or Write Cash
A72: ="Team "&VLOOKUP($E93,Roster!$A$2:$AF$33,2)&" "&_xlfn.IFNA(VLOOKUP($E93,Roster!$A$2:$AF$33,3,0),0) -> Team 4 Pro-Tech | AO72: 4 | AP72: Amt: Amount Paid | AQ72: 4 | AR72: Amt: Amount Paid | AS72: 4 | AT72: Amt: Amount Paid
A73: =_xlfn.IFNA(VLOOKUP(E93,Roster!$A$2:$AF$33,8,0),0)&IF(F93="",""," / "&VLOOKUP(F93,Roster!$A$2:$AF$33,8,0)) -> Dave Schmitz | H73: =_xlfn.IFNA(VLOOKUP(L93,Roster!$A$2:$AF$33,8,0),0)&IF(M93="",""," / "&VLOOKUP(M93,Roster!$A$2:$AF$33,8,0)) -> John Babbitt | O73: =_xlfn.IFNA(VLOOKUP(S93,Roster!$A$2:$AF$33,8,0),0)&IF(T93="",""," / "&VLOOKUP(T93,Roster!$A$2:$AF$33,8,0)) -> Larry Tolar | V73: =IF(ISNA(LOOKUP(#REF!,#REF!,#REF!)),"",IF(LOOKUP(#REF!,#REF!,#REF!)>"",LOOKUP(#REF!,#REF!,#REF!)&" / "&LOOKUP(#REF!,#REF!,#REF!),LOOKUP(#REF!,#REF!,#REF!))) ->  | AC73: 4 | AO73: 5 | AP73: Weeks paid will be marked yellow | AQ73: 5 | AR73: Weeks paid will be marked yellow | AS73: 5 | AT73: Weeks paid will be marked yellow
A74: Date | B74: Ref | C74: Amt | D74: Date | E74: Ref | F74: Amt | H74: Date | I74: Ref | J74: Amt | K74: Date | L74: Ref | M74: Amt | O74: Date | P74: Ref | Q74: Amt | R74: Date | S74: Ref | T74: Amt | V74: Wk | W74: Date | X74: Ref | Y74: Amt | Z74: Date | AA74: Ref | AB74: Amt | AE74: Weekly Team Summary
A75: =$A$777 -> 2017-09-05 | D75: =$D$777 -> 2018-01-02 | H75: =$A$777 -> 2017-09-05 | K75: =$D$777 -> 2018-01-02 | O75: =$A$777 -> 2017-09-05 | R75: =$D$777 -> 2018-01-02 | V75: 1 | W75: =$A$777 -> 2017-09-05 | Z75: 2016-01-05 | AD75: 16 | AE75: 1 | AF75: =A75 -> 2017-09-05 | AG75: =C75+J75+Q75 -> 0 | AH75: =AE89+1 -> 16 | AI75: =D75 -> 2018-01-02 | AJ75: =F75+M75+T75+AB75 -> 0
A76: =$A$778 -> 2017-09-12 | D76: =$D$778 -> 2018-01-09 | H76: =$A$778 -> 2017-09-12 | K76: =$D$778 -> 2018-01-09 | O76: =$A$778 -> 2017-09-12 | R76: =$D$778 -> 2018-01-09 | V76: 2 | W76: =$A$778 -> 2017-09-12 | Z76: =Z75+7 -> 2016-01-12 | AD76: =AD75+1 -> 17 | AE76: =AE75+1 -> 2 | AF76: 2017-09-12 | AG76: =C76+J76+Q76+Y76 -> 0 | AH76: =AH75+1 -> 17 | AI76: 2018-01-09 | AJ76: 0
A77: =$A$779 -> 2017-09-19 | D77: =$D$779 -> 2018-01-16 | H77: =$A$779 -> 2017-09-19 | K77: =$D$779 -> 2018-01-16 | O77: =$A$779 -> 2017-09-19 | R77: =$D$779 -> 2018-01-16 | V77: 3 | W77: =$A$779 -> 2017-09-19 | Z77: =Z76+7 -> 2016-01-19 | AD77: =AD76+1 -> 18 | AE77: =AE76+1 -> 3 | AF77: 2017-09-19 | AG77: 0 | AH77: =AH76+1 -> 18 | AI77: 2018-01-16 | AJ77: 0 | AP77: September - 4 weeks Plus Last 2 weeks $102 | AR77: September - 4 weeks Plus Last 2 weeks $102 | AT77: September - 4 weeks Plus Last 2 weeks $102
A78: =$A$780 -> 2017-09-26 | D78: =$D$780 -> 2018-01-23 | H78: =$A$780 -> 2017-09-26 | K78: =$D$780 -> 2018-01-23 | O78: =$A$780 -> 2017-09-26 | R78: =$D$780 -> 2018-01-23 | V78: 4 | W78: =$A$780 -> 2017-09-26 | Z78: 2016-01-26 | AD78: 19 | AE78: 4 | AF78: 2017-09-26 | AG78: 0 | AH78: 19 | AI78: 2018-01-23 | AJ78: 0 | AP78: October - 5 weeks $85 | AR78: October - 5 weeks $85 | AT78: October - 5 weeks $85
A79: =$A$781 -> 2017-10-03 | D79: =$D$781 -> 2018-01-30 | H79: =$A$781 -> 2017-10-03 | K79: =$D$781 -> 2018-01-30 | O79: =$A$781 -> 2017-10-03 | R79: =$D$781 -> 2018-01-30 | V79: 5 | W79: =$A$781 -> 2017-10-03 | Z79: 2016-02-02 | AD79: 20 | AE79: 5 | AF79: 2017-10-03 | AG79: 0 | AH79: 20 | AI79: 2018-01-30 | AJ79: 0 | AP79: November - 4 weeks $68 | AR79: November - 4 weeks $68 | AT79: November - 4 weeks $68
A80: =$A$782 -> 2017-10-10 | D80: =$D$782 -> 2018-02-06 | H80: =$A$782 -> 2017-10-10 | K80: =$D$782 -> 2018-02-06 | O80: =$A$782 -> 2017-10-10 | R80: =$D$782 -> 2018-02-06 | V80: 6 | W80: =$A$782 -> 2017-10-10 | Z80: 2016-02-09 | AD80: 21 | AE80: 6 | AF80: 2017-10-10 | AG80: 0 | AH80: 21 | AI80: 2018-02-06 | AJ80: 0 | AP80: December - 3 weeks $51 | AR80: December - 3 weeks $51 | AT80: December - 3 weeks $51
A81: =$A$783 -> 2017-10-17 | D81: =$D$783 -> 2018-02-13 | H81: =$A$783 -> 2017-10-17 | K81: =$D$783 -> 2018-02-13 | O81: =$A$783 -> 2017-10-17 | R81: =$D$783 -> 2018-02-13 | V81: 7 | W81: =$A$783 -> 2017-10-17 | Z81: 2016-02-16 | AD81: 22 | AE81: 7 | AF81: 2017-10-17 | AG81: 0 | AH81: 22 | AI81: 2018-02-13 | AJ81: 0 | AP81: January - 5 weeks $85 | AR81: January - 5 weeks $85 | AT81: January - 5 weeks $85
A82: =$A$784 -> 2017-10-24 | D82: =$D$784 -> 2018-02-20 | H82: =$A$784 -> 2017-10-24 | K82: =$D$784 -> 2018-02-20 | O82: =$A$784 -> 2017-10-24 | R82: =$D$784 -> 2018-02-20 | V82: 8 | W82: =$A$784 -> 2017-10-24 | Z82: 2016-02-23 | AD82: 23 | AE82: 8 | AF82: 2017-10-24 | AG82: 0 | AH82: 23 | AI82: 2018-02-20 | AJ82: 0 | AP82: February - 4 weeks $68 | AR82: February - 4 weeks $68 | AT82: February - 4 weeks $68
A83: =$A$785 -> 2017-10-31 | D83: =$D$785 -> 2018-02-27 | H83: =$A$785 -> 2017-10-31 | K83: =$D$785 -> 2018-02-27 | O83: =$A$785 -> 2017-10-31 | R83: =$D$785 -> 2018-02-27 | V83: 9 | W83: =$A$785 -> 2017-10-31 | Z83: 2016-03-01 | AD83: 24 | AE83: 9 | AF83: 2017-10-31 | AG83: 0 | AH83: 24 | AI83: 2018-02-27 | AJ83: 0 | AP83: March - 4 weeks $68 | AR83: March - 4 weeks $68 | AT83: March - 4 weeks $68
A84: =$A$786 -> 2017-11-07 | D84: =$D$786 -> 2018-03-06 | H84: =$A$786 -> 2017-11-07 | K84: =$D$786 -> 2018-03-06 | O84: =$A$786 -> 2017-11-07 | R84: =$D$786 -> 2018-03-06 | V84: 10 | W84: =$A$786 -> 2017-11-07 | Z84: 2016-03-08 | AD84: 25 | AE84: 10 | AF84: 2017-11-07 | AG84: 0 | AH84: 25 | AI84: 2018-03-06 | AJ84: 0 | AP84: April - 2 weeks $34 | AR84: April - 2 weeks $34 | AT84: April - 2 weeks $34
A85: =$A$787 -> 2017-11-14 | D85: =$D$787 -> 2018-03-13 | H85: =$A$787 -> 2017-11-14 | K85: =$D$787 -> 2018-03-13 | O85: =$A$787 -> 2017-11-14 | R85: =$D$787 -> 2018-03-13 | V85: 11 | W85: =$A$787 -> 2017-11-14 | Z85: 2016-03-15 | AD85: 26 | AE85: 11 | AF85: 2017-11-14 | AG85: 0 | AH85: 26 | AI85: 2018-03-13 | AJ85: 0 | AP85: Full Season - 31 Weeks $527 | AR85: Full Season - 31 Weeks $527 | AT85: Full Season - 31 Weeks $527
A86: =$A$788 -> 2017-11-21 | D86: =$D$788 -> 2018-03-20 | H86: =$A$788 -> 2017-11-21 | K86: =$D$788 -> 2018-03-20 | O86: =$A$788 -> 2017-11-21 | R86: =$D$788 -> 2018-03-20 | V86: 12 | W86: =$A$788 -> 2017-11-21 | Z86: 2016-03-22 | AD86: 27 | AE86: 12 | AF86: 2017-11-21 | AG86: 0 | AH86: 27 | AI86: 2018-03-20 | AJ86: 0
A87: =$A$789 -> 2017-11-28 | D87: =$D$789 -> 2018-03-27 | H87: =$A$789 -> 2017-11-28 | K87: =$D$789 -> 2018-03-27 | O87: =$A$789 -> 2017-11-28 | R87: =$D$789 -> 2018-03-27 | V87: 13 | W87: =$A$789 -> 2017-11-28 | Z87: 2016-03-29 | AD87: 28 | AE87: 13 | AF87: 2017-11-28 | AG87: 0 | AH87: 28 | AI87: 2018-03-27 | AJ87: 0
A88: =$A$790 -> 2017-12-05 | D88: =$D$790 -> 2018-04-03 | H88: =$A$790 -> 2017-12-05 | K88: =$D$790 -> 2018-04-03 | O88: =$A$790 -> 2017-12-05 | R88: =$D$790 -> 2018-04-03 | V88: 14 | W88: =$A$790 -> 2017-12-05 | Z88: 2016-04-05 | AD88: 29 | AE88: 14 | AF88: 2017-12-05 | AG88: 0 | AH88: 29 | AI88: 2018-04-03 | AJ88: 0
A89: =$A$791 -> 2017-12-12 | D89: =$D$791 -> 2018-04-10 | H89: =$A$791 -> 2017-12-12 | K89: =$D$791 -> 2018-04-10 | O89: =$A$791 -> 2017-12-12 | R89: =$D$791 -> 2018-04-10 | W89: =$A$791 -> 2017-12-12 | Z89: 2016-04-12 | AD89: 30 | AE89: 15 | AF89: 2017-12-12 | AG89: 0 | AH89: 30 | AI89: 2018-04-10 | AJ89: 0
A90: =$A$792 -> 2017-12-19 | D90: =$D$792 -> 00:00:00 | E90: Total | F90: =SUM(C75:C90,F75:F89) -> 0 | H90: =$A$792 -> 2017-12-19 | K90: =$D$792 -> 00:00:00 | L90: Total | M90: =SUM(J75:J90,M75:M89) -> 0 | O90: =$A$792 -> 2017-12-19 | S90: Total | T90: =SUM(Q75:Q90,T75:T89) -> 0 | V90: 15 | Z90: 2016-04-19 | AD90: 31 | AE90: 16 | AF90: 2017-12-19 | AG90: 0
A91: USBC | B91: 24 | C91: Paid This League | H91: USBC | J91: Paid Pony League | O91: USBC | P91: 24 | Q91: Paid This League
A92: Fees | B92: =$AL$5*B93 -> 527 | C92: Total | D92: =B92+B91 -> 551 | E92: Balance | F92: =D92-F90 -> 551 | H92: Fees | I92: =$AL$5*I93 -> 527 | J92: Total | K92: =I92+I91 -> 527 | L92: Balance | M92: =K92-M90 -> 527 | O92: Fees | P92: =$AL$5*P93 -> 527 | Q92: Total | R92: =P92+P91 -> 551 | S92: Balance | T92: =R92-T90 -> 551
A93: Wks | B93: =$AL$6 -> 31 | C93: =$AL$5*B93 -> 527 | D93: ID | E93: 41 | H93: Wks | I93: =$AL$6 -> 31 | J93: =$AL$5*I93 -> 527 | K93: ID | L93: 42 | O93: Wks | P93: =$AL$6 -> 31 | Q93: =$AL$5*P93 -> 527 | R93: ID | S93: 43
A94: 51 | B94: 5 | H94: 52 | O94: 53
A95: ="Team "&VLOOKUP($E116,Roster!$A$2:$AF$33,2)&" "&_xlfn.IFNA(VLOOKUP($E116,Roster!$A$2:$AF$33,3,0),0) -> Team 5
A96: =_xlfn.IFNA(VLOOKUP(E116,Roster!$A$2:$AF$33,8,0),0)&IF(F116="",""," / "&VLOOKUP(F116,Roster!$A$2:$AF$33,8,0)) -> Dana Barrette | H96: =_xlfn.IFNA(VLOOKUP(L116,Roster!$A$2:$AF$33,8,0),0)&IF(M116="",""," / "&VLOOKUP(M116,Roster!$A$2:$AF$33,8,0)) -> Larry Latham | O96: =_xlfn.IFNA(VLOOKUP(S116,Roster!$A$2:$AF$33,8,0),0)&IF(T116="",""," / "&VLOOKUP(T116,Roster!$A$2:$AF$33,8,0)) -> Bob Reed | V96: =IF(ISNA(LOOKUP(#REF!,#REF!,#REF!)),"",IF(LOOKUP(#REF!,#REF!,#REF!)>"",LOOKUP(#REF!,#REF!,#REF!)&" / "&LOOKUP(#REF!,#REF!,#REF!),LOOKUP(#REF!,#REF!,#REF!))) ->  | AC96: 5
A97: Date | B97: Ref | C97: Amt | D97: Date | E97: Ref | F97: Amt | H97: Date | I97: Ref | J97: Amt | K97: Date | L97: Ref | M97: Amt | O97: Date | P97: Ref | Q97: Amt | R97: Date | S97: Ref | T97: Amt | V97: Wk | W97: Date | X97: Ref | Y97: Amt | Z97: Date | AA97: Ref | AB97: Amt | AE97: Weekly Team Summary
A98: =$A$777 -> 2017-09-05 | D98: =$D$777 -> 2018-01-02 | H98: =$A$777 -> 2017-09-05 | K98: =$D$777 -> 2018-01-02 | O98: =$A$777 -> 2017-09-05 | R98: =$D$777 -> 2018-01-02 | V98: 1 | W98: =$A$777 -> 2017-09-05 | Z98: 2016-01-05 | AB98: Owed | AD98: 16 | AE98: 1 | AF98: =A98 -> 2017-09-05 | AG98: =C98+J98+Q98 -> 0 | AH98: =AE112+1 -> 16 | AI98: =D98 -> 2018-01-02 | AJ98: =F98+M98+T98 -> 0 | AL98: 1900-02-19
A99: =$A$778 -> 2017-09-12 | D99: =$D$778 -> 2018-01-09 | H99: =$A$778 -> 2017-09-12 | K99: =$D$778 -> 2018-01-09 | O99: =$A$778 -> 2017-09-12 | R99: =$D$778 -> 2018-01-09 | V99: 2 | W99: =$A$778 -> 2017-09-12 | Z99: =Z98+7 -> 2016-01-12 | AD99: =AD98+1 -> 17 | AE99: =AE98+1 -> 2 | AF99: 2017-09-12 | AG99: =C99+J99+Q99+Y99 -> 0 | AH99: =AH98+1 -> 17 | AI99: 2018-01-09 | AJ99: =F99+M99+T99+AB99 -> 0 | AL99: 60
A100: =$A$779 -> 2017-09-19 | D100: =$D$779 -> 2018-01-16 | H100: =$A$779 -> 2017-09-19 | K100: =$D$779 -> 2018-01-16 | O100: =$A$779 -> 2017-09-19 | R100: =$D$779 -> 2018-01-16 | V100: 3 | W100: =$A$779 -> 2017-09-19 | Z100: =Z99+7 -> 2016-01-19 | AD100: =AD99+1 -> 18 | AE100: =AE99+1 -> 3 | AF100: 2017-09-19 | AG100: 0 | AH100: =AH99+1 -> 18 | AI100: 2018-01-16 | AJ100: 0 | AL100: 60
A101: =$A$780 -> 2017-09-26 | D101: =$D$780 -> 2018-01-23 | H101: =$A$780 -> 2017-09-26 | K101: =$D$780 -> 2018-01-23 | O101: =$A$780 -> 2017-09-26 | R101: =$D$780 -> 2018-01-23 | V101: 4 | W101: =$A$780 -> 2017-09-26 | Z101: 2016-01-26 | AD101: 19 | AE101: 4 | AF101: 2017-09-26 | AG101: 0 | AH101: 19 | AI101: 2018-01-23 | AJ101: 0 | AL101: 1900-01-16
A102: =$A$781 -> 2017-10-03 | D102: =$D$781 -> 2018-01-30 | H102: =$A$781 -> 2017-10-03 | K102: =$D$781 -> 2018-01-30 | O102: =$A$781 -> 2017-10-03 | R102: =$D$781 -> 2018-01-30 | V102: 5 | W102: =$A$781 -> 2017-10-03 | Z102: 2016-02-02 | AD102: 20 | AE102: 5 | AF102: 2017-10-03 | AG102: 0 | AH102: 20 | AI102: 2018-01-30 | AJ102: 0 | AL102: 1900-02-11
A103: =$A$782 -> 2017-10-10 | D103: =$D$782 -> 2018-02-06 | H103: =$A$782 -> 2017-10-10 | K103: =$D$782 -> 2018-02-06 | O103: =$A$782 -> 2017-10-10 | R103: =$D$782 -> 2018-02-06 | V103: 6 | W103: =$A$782 -> 2017-10-10 | Z103: 2016-02-09 | AD103: 21 | AE103: 6 | AF103: 2017-10-10 | AG103: 0 | AH103: 21 | AI103: 2018-02-06 | AJ103: 0 | AL103: 1900-01-16
A104: =$A$783 -> 2017-10-17 | D104: =$D$783 -> 2018-02-13 | H104: =$A$783 -> 2017-10-17 | K104: =$D$783 -> 2018-02-13 | O104: =$A$783 -> 2017-10-17 | R104: =$D$783 -> 2018-02-13 | V104: 7 | W104: =$A$783 -> 2017-10-17 | Z104: 2016-02-16 | AD104: 22 | AE104: 7 | AF104: 2017-10-17 | AG104: 0 | AH104: 22 | AI104: 2018-02-13 | AJ104: 0 | AL104: 1900-01-16
A105: =$A$784 -> 2017-10-24 | D105: =$D$784 -> 2018-02-20 | H105: =$A$784 -> 2017-10-24 | K105: =$D$784 -> 2018-02-20 | O105: =$A$784 -> 2017-10-24 | R105: =$D$784 -> 2018-02-20 | V105: 8 | W105: =$A$784 -> 2017-10-24 | Z105: 2016-02-23 | AD105: 23 | AE105: 8 | AF105: 2017-10-24 | AG105: 0 | AH105: 23 | AI105: 2018-02-20 | AJ105: 0 | AL105: 1900-01-16
A106: =$A$785 -> 2017-10-31 | D106: =$D$785 -> 2018-02-27 | H106: =$A$785 -> 2017-10-31 | K106: =$D$785 -> 2018-02-27 | O106: =$A$785 -> 2017-10-31 | R106: =$D$785 -> 2018-02-27 | V106: 9 | W106: =$A$785 -> 2017-10-31 | Z106: 2016-03-01 | AD106: 24 | AE106: 9 | AF106: 2017-10-31 | AG106: 0 | AH106: 24 | AI106: 2018-02-27 | AJ106: 0 | AL106: 1900-01-16
A107: =$A$786 -> 2017-11-07 | D107: =$D$786 -> 2018-03-06 | H107: =$A$786 -> 2017-11-07 | K107: =$D$786 -> 2018-03-06 | O107: =$A$786 -> 2017-11-07 | R107: =$D$786 -> 2018-03-06 | V107: 10 | W107: =$A$786 -> 2017-11-07 | Z107: 2016-03-08 | AD107: 25 | AE107: 10 | AF107: 2017-11-07 | AG107: 0 | AH107: 25 | AI107: 2018-03-06 | AJ107: 0 | AL107: 1900-02-20
A108: =$A$787 -> 2017-11-14 | D108: =$D$787 -> 2018-03-13 | H108: =$A$787 -> 2017-11-14 | K108: =$D$787 -> 2018-03-13 | O108: =$A$787 -> 2017-11-14 | R108: =$D$787 -> 2018-03-13 | V108: 11 | W108: =$A$787 -> 2017-11-14 | Z108: 2016-03-15 | AD108: 26 | AE108: 11 | AF108: 2017-11-14 | AG108: 0 | AH108: 26 | AI108: 2018-03-13 | AJ108: 0 | AL108: =SUM(AL98:AL107) -> 1900-12-08
A109: =$A$788 -> 2017-11-21 | D109: =$D$788 -> 2018-03-20 | H109: =$A$788 -> 2017-11-21 | K109: =$D$788 -> 2018-03-20 | O109: =$A$788 -> 2017-11-21 | R109: =$D$788 -> 2018-03-20 | V109: 12 | W109: =$A$788 -> 2017-11-21 | Z109: 2016-03-22 | AD109: 27 | AE109: 12 | AF109: 2017-11-21 | AG109: 0 | AH109: 27 | AI109: 2018-03-20 | AJ109: 0 | AL109: 1900-01-16T12:00:00
A110: =$A$789 -> 2017-11-28 | D110: =$D$789 -> 2018-03-27 | H110: =$A$789 -> 2017-11-28 | K110: =$D$789 -> 2018-03-27 | O110: =$A$789 -> 2017-11-28 | R110: =$D$789 -> 2018-03-27 | V110: 13 | W110: =$A$789 -> 2017-11-28 | Z110: 2016-03-29 | AD110: 28 | AE110: 13 | AF110: 2017-11-28 | AG110: 0 | AH110: 28 | AI110: 2018-03-27 | AJ110: 0 | AL110: 1900-01-21
A111: =$A$790 -> 2017-12-05 | D111: =$D$790 -> 2018-04-03 | H111: =$A$790 -> 2017-12-05 | K111: =$D$790 -> 2018-04-03 | O111: =$A$790 -> 2017-12-05 | R111: =$D$790 -> 2018-04-03 | V111: 14 | W111: =$A$790 -> 2017-12-05 | Z111: 2016-04-05 | AD111: 29 | AE111: 14 | AF111: 2017-12-05 | AG111: 0 | AH111: 29 | AI111: 2018-04-03 | AJ111: 0 | AL111: 12:00:00
A112: =$A$791 -> 2017-12-12 | D112: =$D$791 -> 2018-04-10 | H112: =$A$791 -> 2017-12-12 | K112: =$D$791 -> 2018-04-10 | O112: =$A$791 -> 2017-12-12 | R112: =$D$791 -> 2018-04-10 | W112: =$A$791 -> 2017-12-12 | Z112: 2016-04-12 | AD112: 30 | AE112: 15 | AF112: 2017-12-12 | AG112: 0 | AH112: 30 | AI112: 2018-04-10 | AJ112: 0 | AL112: =AL108-AL109-AL110-AL111 -> 1900-10-31
A113: =$A$792 -> 2017-12-19 | D113: =$D$792 -> 00:00:00 | E113: Total | F113: =SUM(C98:C113,F98:F112) -> 0 | H113: =$A$792 -> 2017-12-19 | K113: =$D$792 -> 00:00:00 | L113: Total | M113: =SUM(J98:J113,M98:M112) -> 0 | O113: =$A$792 -> 2017-12-19 | S113: Total | T113: =SUM(Q98:Q113,T98:T112) -> 0 | V113: 15 | Z113: 2016-04-19 | AD113: 31 | AE113: 16 | AF113: 2017-12-19 | AG113: 0 | AL113: =AL112/16 -> 1900-01-19T01:30:00
A114: USBC | B114: 24 | C114: Paid This League | H114: USBC | I114: 24 | J114: Paid This League | O114: USBC | Q114: Paid Online | AE114: =Q98+Q101+Q109+T98 -> 0
A115: Fees | B115: =$AL$5*B116 -> 527 | C115: Total | D115: =B115+B114 -> 551 | E115: Balance | F115: =D115-F113 -> 551 | H115: Fees | I115: =$AL$5*I116 -> 527 | J115: Total | K115: =I115+I114 -> 551 | L115: Balance | M115: =K115-M113 -> 551 | O115: Fees | P115: =$AL$5*P116 -> 527 | Q115: Total | R115: =P115+P114 -> 527 | S115: Balance | T115: =R115-T113 -> 527
A116: Wks | B116: =$AL$6 -> 31 | C116: =$AL$5*B116 -> 527 | D116: ID | E116: 51 | H116: Wks | I116: =$AL$6 -> 31 | J116: =$AL$5*I116 -> 527 | K116: ID | L116: 52 | O116: Wks | P116: =$AL$6 -> 31 | Q116: =$AL$5*P116 -> 527 | R116: ID | S116: 53
A117: 61 | B117: 6 | H117: 62 | O117: 63
A118: ="Team "&VLOOKUP($E139,Roster!$A$2:$AF$33,2)&" "&_xlfn.IFNA(VLOOKUP($E139,Roster!$A$2:$AF$33,3,0),0) -> Team 6 0
A119: =_xlfn.IFNA(VLOOKUP(E139,Roster!$A$2:$AF$33,8,0),0)&IF(F139="",""," / "&VLOOKUP(F139,Roster!$A$2:$AF$33,8,0)) ->  | H119: =_xlfn.IFNA(VLOOKUP(L139,Roster!$A$2:$AF$33,8,0),0)&IF(M139="",""," / "&VLOOKUP(M139,Roster!$A$2:$AF$33,8,0)) -> Mike Watt | O119: =_xlfn.IFNA(VLOOKUP(S139,Roster!$A$2:$AF$33,8,0),0)&IF(T139="",""," / "&VLOOKUP(T139,Roster!$A$2:$AF$33,8,0)) -> 0 | V119: =IF(ISNA(LOOKUP(#REF!,#REF!,#REF!)),"",IF(LOOKUP(#REF!,#REF!,#REF!)>"",LOOKUP(#REF!,#REF!,#REF!)&" / "&LOOKUP(#REF!,#REF!,#REF!),LOOKUP(#REF!,#REF!,#REF!))) ->  | AC119: 6
A120: Date | B120: Ref | C120: Amt | D120: Date | E120: Ref | F120: Amt | H120: Date | I120: Ref | J120: Amt | K120: Date | L120: Ref | M120: Amt | O120: Date | P120: Ref | Q120: Amt | R120: Date | S120: Ref | T120: Amt | V120: Wk | W120: Date | X120: Ref | Y120: Amt | Z120: Date | AA120: Ref | AB120: Amt | AE120: Weekly Team Summary
A121: =$A$777 -> 2017-09-05 | D121: =$D$777 -> 2018-01-02 | H121: =$A$777 -> 2017-09-05 | K121: =$D$777 -> 2018-01-02 | O121: =$A$777 -> 2017-09-05 | R121: =$D$777 -> 2018-01-02 | V121: 1 | W121: =$A$777 -> 2017-09-05 | Z121: 2016-01-05 | AD121: 16 | AE121: 1 | AF121: =A121 -> 2017-09-05 | AG121: =C121+J121+Q121 -> 0 | AH121: =AE135+1 -> 16 | AI121: =D121 -> 2018-01-02 | AJ121: =F121+M121+T121+AB121 -> 0
A122: =$A$778 -> 2017-09-12 | D122: =$D$778 -> 2018-01-09 | H122: =$A$778 -> 2017-09-12 | K122: =$D$778 -> 2018-01-09 | O122: =$A$778 -> 2017-09-12 | R122: =$D$778 -> 2018-01-09 | V122: 2 | W122: =$A$778 -> 2017-09-12 | Z122: =Z121+7 -> 2016-01-12 | AD122: =AD121+1 -> 17 | AE122: =AE121+1 -> 2 | AF122: 2017-09-12 | AG122: =C122+J122+Q122+Y122 -> 0 | AH122: =AH121+1 -> 17 | AI122: 2018-01-09 | AJ122: 0
A123: =$A$779 -> 2017-09-19 | D123: =$D$779 -> 2018-01-16 | H123: =$A$779 -> 2017-09-19 | K123: =$D$779 -> 2018-01-16 | O123: =$A$779 -> 2017-09-19 | R123: =$D$779 -> 2018-01-16 | V123: 3 | W123: =$A$779 -> 2017-09-19 | Z123: =Z122+7 -> 2016-01-19 | AD123: =AD122+1 -> 18 | AE123: =AE122+1 -> 3 | AF123: 2017-09-19 | AG123: 0 | AH123: =AH122+1 -> 18 | AI123: 2018-01-16 | AJ123: 0
A124: =$A$780 -> 2017-09-26 | D124: =$D$780 -> 2018-01-23 | H124: =$A$780 -> 2017-09-26 | K124: =$D$780 -> 2018-01-23 | O124: =$A$780 -> 2017-09-26 | R124: =$D$780 -> 2018-01-23 | V124: 4 | W124: =$A$780 -> 2017-09-26 | Z124: 2016-01-26 | AD124: 19 | AE124: 4 | AF124: 2017-09-26 | AG124: 0 | AH124: 19 | AI124: 2018-01-23 | AJ124: 0
A125: =$A$781 -> 2017-10-03 | D125: =$D$781 -> 2018-01-30 | H125: =$A$781 -> 2017-10-03 | K125: =$D$781 -> 2018-01-30 | O125: =$A$781 -> 2017-10-03 | R125: =$D$781 -> 2018-01-30 | U125: =85-52 -> 33 | V125: 5 | W125: =$A$781 -> 2017-10-03 | Z125: 2016-02-02 | AD125: 20 | AE125: 5 | AF125: 2017-10-03 | AG125: 0 | AH125: 20 | AI125: 2018-01-30 | AJ125: 0
A126: =$A$782 -> 2017-10-10 | D126: =$D$782 -> 2018-02-06 | H126: =$A$782 -> 2017-10-10 | K126: =$D$782 -> 2018-02-06 | O126: =$A$782 -> 2017-10-10 | R126: =$D$782 -> 2018-02-06 | V126: 6 | W126: =$A$782 -> 2017-10-10 | Z126: 2016-02-09 | AD126: 21 | AE126: 6 | AF126: 2017-10-10 | AG126: 0 | AH126: 21 | AI126: 2018-02-06 | AJ126: 0
A127: =$A$783 -> 2017-10-17 | D127: =$D$783 -> 2018-02-13 | H127: =$A$783 -> 2017-10-17 | K127: =$D$783 -> 2018-02-13 | O127: =$A$783 -> 2017-10-17 | R127: =$D$783 -> 2018-02-13 | V127: 7 | W127: =$A$783 -> 2017-10-17 | Z127: 2016-02-16 | AD127: 22 | AE127: 7 | AF127: 2017-10-17 | AG127: 0 | AH127: 22 | AI127: 2018-02-13 | AJ127: 0
A128: =$A$784 -> 2017-10-24 | D128: =$D$784 -> 2018-02-20 | H128: =$A$784 -> 2017-10-24 | K128: =$D$784 -> 2018-02-20 | O128: =$A$784 -> 2017-10-24 | R128: =$D$784 -> 2018-02-20 | V128: 8 | W128: =$A$784 -> 2017-10-24 | Z128: 2016-02-23 | AD128: 23 | AE128: 8 | AF128: 2017-10-24 | AG128: 0 | AH128: 23 | AI128: 2018-02-20 | AJ128: 0
A129: =$A$785 -> 2017-10-31 | D129: =$D$785 -> 2018-02-27 | H129: =$A$785 -> 2017-10-31 | K129: =$D$785 -> 2018-02-27 | O129: =$A$785 -> 2017-10-31 | R129: =$D$785 -> 2018-02-27 | V129: 9 | W129: =$A$785 -> 2017-10-31 | Z129: 2016-03-01 | AD129: 24 | AE129: 9 | AF129: 2017-10-31 | AG129: 0 | AH129: 24 | AI129: 2018-02-27 | AJ129: 0
A130: =$A$786 -> 2017-11-07 | D130: =$D$786 -> 2018-03-06 | H130: =$A$786 -> 2017-11-07 | K130: =$D$786 -> 2018-03-06 | O130: =$A$786 -> 2017-11-07 | R130: =$D$786 -> 2018-03-06 | V130: 10 | W130: =$A$786 -> 2017-11-07 | Z130: 2016-03-08 | AD130: 25 | AE130: 10 | AF130: 2017-11-07 | AG130: 0 | AH130: 25 | AI130: 2018-03-06 | AJ130: 0
A131: =$A$787 -> 2017-11-14 | D131: =$D$787 -> 2018-03-13 | H131: =$A$787 -> 2017-11-14 | K131: =$D$787 -> 2018-03-13 | O131: =$A$787 -> 2017-11-14 | R131: =$D$787 -> 2018-03-13 | V131: 11 | W131: =$A$787 -> 2017-11-14 | Z131: 2016-03-15 | AD131: 26 | AE131: 11 | AF131: 2017-11-14 | AG131: 0 | AH131: 26 | AI131: 2018-03-13 | AJ131: 0
A132: =$A$788 -> 2017-11-21 | D132: =$D$788 -> 2018-03-20 | H132: =$A$788 -> 2017-11-21 | K132: =$D$788 -> 2018-03-20 | O132: =$A$788 -> 2017-11-21 | R132: =$D$788 -> 2018-03-20 | V132: 12 | W132: =$A$788 -> 2017-11-21 | Z132: 2016-03-22 | AD132: 27 | AE132: 12 | AF132: 2017-11-21 | AG132: 0 | AH132: 27 | AI132: 2018-03-20 | AJ132: 0
A133: =$A$789 -> 2017-11-28 | D133: =$D$789 -> 2018-03-27 | H133: =$A$789 -> 2017-11-28 | K133: =$D$789 -> 2018-03-27 | O133: =$A$789 -> 2017-11-28 | R133: =$D$789 -> 2018-03-27 | V133: 13 | W133: =$A$789 -> 2017-11-28 | Z133: 2016-03-29 | AD133: 28 | AE133: 13 | AF133: 2017-11-28 | AG133: 0 | AH133: 28 | AI133: 2018-03-27 | AJ133: 0
A134: =$A$790 -> 2017-12-05 | D134: =$D$790 -> 2018-04-03 | H134: =$A$790 -> 2017-12-05 | K134: =$D$790 -> 2018-04-03 | O134: =$A$790 -> 2017-12-05 | R134: =$D$790 -> 2018-04-03 | V134: 14 | W134: =$A$790 -> 2017-12-05 | Z134: 2016-04-05 | AD134: 29 | AE134: 14 | AF134: 2017-12-05 | AG134: 0 | AH134: 29 | AI134: 2018-04-03 | AJ134: 0
A135: =$A$791 -> 2017-12-12 | D135: =$D$791 -> 2018-04-10 | H135: =$A$791 -> 2017-12-12 | K135: =$D$791 -> 2018-04-10 | O135: =$A$791 -> 2017-12-12 | R135: =$D$791 -> 2018-04-10 | W135: =$A$791 -> 2017-12-12 | Z135: 2016-04-12 | AD135: 30 | AE135: 15 | AF135: 2017-12-12 | AG135: 0 | AH135: 30 | AI135: 2018-04-10 | AJ135: 0
A136: =$A$792 -> 2017-12-19 | D136: =$D$792 -> 00:00:00 | E136: Total | F136: =SUM(C121:C136,F121:F135) -> 0 | H136: =$A$792 -> 2017-12-19 | K136: =$D$792 -> 00:00:00 | L136: Total | M136: =SUM(J121:J136,M121:M135) -> 0 | O136: =$A$792 -> 2017-12-19 | S136: Total | T136: =SUM(Q121:Q136,T121:T135) -> 0 | V136: 15 | Z136: 2016-04-19 | AD136: 31 | AE136: 16 | AF136: 2017-12-19 | AG136: 0
A137: USBC | C137: KP LSt, BP Classic, JC Classic | H137: USBC | J137: Paid This Thurs Night Classic | O137: USBC | Q137: Paid Late Starters
A138: Fees | B138: =$AL$5*B139 -> 527 | C138: Total | D138: =B138+B137 -> 527 | E138: Balance | F138: =D138-F136 -> 527 | H138: Fees | I138: =$AL$5*I139 -> 527 | J138: Total | K138: =I138+I137 -> 527 | L138: Balance | M138: =K138-M136 -> 527 | O138: Fees | P138: =$AL$5*P139 -> 527 | Q138: Total | R138: =P138+P137 -> 527 | S138: Balance | T138: =R138-T136 -> 527
A139: Wks | B139: =$AL$6 -> 31 | C139: =$AL$5*B139 -> 527 | D139: ID | E139: 64 | F139: 65 | H139: Wks | I139: =$AL$6 -> 31 | J139: =$AL$5*I139 -> 527 | K139: ID | L139: 62 | O139: Wks | P139: =$AL$6 -> 31 | Q139: =$AL$5*P139 -> 527 | R139: ID | S139: 63
A140: 71 | B140: 7 | H140: 72 | O140: 73
A141: ="Team "&VLOOKUP($E162,Roster!$A$2:$AF$33,2)&" "&_xlfn.IFNA(VLOOKUP($E162,Roster!$A$2:$AF$33,3,0),0) -> Team 7 Bitburgers
A142: =_xlfn.IFNA(VLOOKUP(E162,Roster!$A$2:$AF$33,8,0),0)&IF(F162="",""," / "&VLOOKUP(F162,Roster!$A$2:$AF$33,8,0)) -> Paul Kleckner | H142: =_xlfn.IFNA(VLOOKUP(L162,Roster!$A$2:$AF$33,8,0),0)&IF(M162="",""," / "&VLOOKUP(M162,Roster!$A$2:$AF$33,8,0)) -> Bob Edge | O142: =_xlfn.IFNA(VLOOKUP(S162,Roster!$A$2:$AF$33,8,0),0)&IF(T162="",""," / "&VLOOKUP(T162,Roster!$A$2:$AF$33,8,0)) -> Terry Camp | V142: =IF(ISNA(LOOKUP(#REF!,#REF!,#REF!)),"",IF(LOOKUP(#REF!,#REF!,#REF!)>"",LOOKUP(#REF!,#REF!,#REF!)&" / "&LOOKUP(#REF!,#REF!,#REF!),LOOKUP(#REF!,#REF!,#REF!))) ->  | AC142: 7
A143: Date | B143: Ref | C143: Amt | D143: Date | E143: Ref | F143: Amt | H143: Date | I143: Ref | J143: Amt | K143: Date | L143: Ref | M143: Amt | O143: Date | P143: Ref | Q143: Amt | R143: Date | S143: Ref | T143: Amt | V143: Wk | W143: Date | X143: Ref | Y143: Amt | Z143: Date | AA143: Ref | AB143: Amt | AE143: Weekly Team Summary
A144: =$A$777 -> 2017-09-05 | D144: =$D$777 -> 2018-01-02 | H144: =$A$777 -> 2017-09-05 | K144: =$D$777 -> 2018-01-02 | O144: =$A$777 -> 2017-09-05 | R144: =$D$777 -> 2018-01-02 | V144: 1 | W144: =$A$777 -> 2017-09-05 | Z144: 2016-01-05 | AD144: 16 | AE144: 1 | AF144: =A144 -> 2017-09-05 | AG144: =C144+J144+Q144 -> 0 | AH144: =AE158+1 -> 16 | AI144: =D144 -> 2018-01-02 | AJ144: =F144+M144+T144+AB144 -> 0
A145: =$A$778 -> 2017-09-12 | D145: =$D$778 -> 2018-01-09 | H145: =$A$778 -> 2017-09-12 | K145: =$D$778 -> 2018-01-09 | O145: =$A$778 -> 2017-09-12 | R145: =$D$778 -> 2018-01-09 | V145: 2 | W145: =$A$778 -> 2017-09-12 | Z145: =Z144+7 -> 2016-01-12 | AD145: =AD144+1 -> 17 | AE145: =AE144+1 -> 2 | AF145: 2017-09-12 | AG145: =C145+J145+Q145+Y145 -> 0 | AH145: =AH144+1 -> 17 | AI145: 2018-01-09 | AJ145: 0
A146: =$A$779 -> 2017-09-19 | D146: =$D$779 -> 2018-01-16 | H146: =$A$779 -> 2017-09-19 | K146: =$D$779 -> 2018-01-16 | O146: =$A$779 -> 2017-09-19 | R146: =$D$779 -> 2018-01-16 | V146: 3 | W146: =$A$779 -> 2017-09-19 | Z146: =Z145+7 -> 2016-01-19 | AD146: =AD145+1 -> 18 | AE146: =AE145+1 -> 3 | AF146: 2017-09-19 | AG146: 0 | AH146: =AH145+1 -> 18 | AI146: 2018-01-16 | AJ146: 0
A147: =$A$780 -> 2017-09-26 | D147: =$D$780 -> 2018-01-23 | H147: =$A$780 -> 2017-09-26 | K147: =$D$780 -> 2018-01-23 | O147: =$A$780 -> 2017-09-26 | R147: =$D$780 -> 2018-01-23 | V147: 4 | W147: =$A$780 -> 2017-09-26 | Z147: 2016-01-26 | AD147: 19 | AE147: 4 | AF147: 2017-09-26 | AG147: 0 | AH147: 19 | AI147: 2018-01-23 | AJ147: 0
A148: =$A$781 -> 2017-10-03 | D148: =$D$781 -> 2018-01-30 | H148: =$A$781 -> 2017-10-03 | K148: =$D$781 -> 2018-01-30 | O148: =$A$781 -> 2017-10-03 | R148: =$D$781 -> 2018-01-30 | V148: 5 | W148: =$A$781 -> 2017-10-03 | Z148: 2016-02-02 | AD148: 20 | AE148: 5 | AF148: 2017-10-03 | AG148: 0 | AH148: 20 | AI148: 2018-01-30 | AJ148: 0
A149: =$A$782 -> 2017-10-10 | D149: =$D$782 -> 2018-02-06 | H149: =$A$782 -> 2017-10-10 | K149: =$D$782 -> 2018-02-06 | O149: =$A$782 -> 2017-10-10 | R149: =$D$782 -> 2018-02-06 | V149: 6 | W149: =$A$782 -> 2017-10-10 | Z149: 2016-02-09 | AD149: 21 | AE149: 6 | AF149: 2017-10-10 | AG149: 0 | AH149: 21 | AI149: 2018-02-06 | AJ149: 0
A150: =$A$783 -> 2017-10-17 | D150: =$D$783 -> 2018-02-13 | H150: =$A$783 -> 2017-10-17 | K150: =$D$783 -> 2018-02-13 | O150: =$A$783 -> 2017-10-17 | R150: =$D$783 -> 2018-02-13 | V150: 7 | W150: =$A$783 -> 2017-10-17 | Z150: 2016-02-16 | AD150: 22 | AE150: 7 | AF150: 2017-10-17 | AG150: 0 | AH150: 22 | AI150: 2018-02-13 | AJ150: 0
A151: =$A$784 -> 2017-10-24 | D151: =$D$784 -> 2018-02-20 | H151: =$A$784 -> 2017-10-24 | K151: =$D$784 -> 2018-02-20 | O151: =$A$784 -> 2017-10-24 | R151: =$D$784 -> 2018-02-20 | V151: 8 | W151: =$A$784 -> 2017-10-24 | Z151: 2016-02-23 | AD151: 23 | AE151: 8 | AF151: 2017-10-24 | AG151: 0 | AH151: 23 | AI151: 2018-02-20 | AJ151: 0
A152: =$A$785 -> 2017-10-31 | D152: =$D$785 -> 2018-02-27 | H152: =$A$785 -> 2017-10-31 | K152: =$D$785 -> 2018-02-27 | O152: =$A$785 -> 2017-10-31 | R152: =$D$785 -> 2018-02-27 | V152: 9 | W152: =$A$785 -> 2017-10-31 | Z152: 2016-03-01 | AD152: 24 | AE152: 9 | AF152: 2017-10-31 | AG152: 0 | AH152: 24 | AI152: 2018-02-27 | AJ152: 0
A153: =$A$786 -> 2017-11-07 | D153: =$D$786 -> 2018-03-06 | H153: =$A$786 -> 2017-11-07 | K153: =$D$786 -> 2018-03-06 | O153: =$A$786 -> 2017-11-07 | R153: =$D$786 -> 2018-03-06 | V153: 10 | W153: =$A$786 -> 2017-11-07 | Z153: 2016-03-08 | AD153: 25 | AE153: 10 | AF153: 2017-11-07 | AG153: 0 | AH153: 25 | AI153: 2018-03-06 | AJ153: 0
A154: =$A$787 -> 2017-11-14 | D154: =$D$787 -> 2018-03-13 | H154: =$A$787 -> 2017-11-14 | K154: =$D$787 -> 2018-03-13 | O154: =$A$787 -> 2017-11-14 | R154: =$D$787 -> 2018-03-13 | V154: 11 | W154: =$A$787 -> 2017-11-14 | Z154: 2016-03-15 | AD154: 26 | AE154: 11 | AF154: 2017-11-14 | AG154: 0 | AH154: 26 | AI154: 2018-03-13 | AJ154: 0
A155: =$A$788 -> 2017-11-21 | D155: =$D$788 -> 2018-03-20 | H155: =$A$788 -> 2017-11-21 | K155: =$D$788 -> 2018-03-20 | O155: =$A$788 -> 2017-11-21 | R155: =$D$788 -> 2018-03-20 | V155: 12 | W155: =$A$788 -> 2017-11-21 | Z155: 2016-03-22 | AD155: 27 | AE155: 12 | AF155: 2017-11-21 | AG155: 0 | AH155: 27 | AI155: 2018-03-20 | AJ155: 0
A156: =$A$789 -> 2017-11-28 | D156: =$D$789 -> 2018-03-27 | H156: =$A$789 -> 2017-11-28 | K156: =$D$789 -> 2018-03-27 | O156: =$A$789 -> 2017-11-28 | R156: =$D$789 -> 2018-03-27 | V156: 13 | W156: =$A$789 -> 2017-11-28 | Z156: 2016-03-29 | AD156: 28 | AE156: 13 | AF156: 2017-11-28 | AG156: 0 | AH156: 28 | AI156: 2018-03-27 | AJ156: 0
A157: =$A$790 -> 2017-12-05 | D157: =$D$790 -> 2018-04-03 | H157: =$A$790 -> 2017-12-05 | K157: =$D$790 -> 2018-04-03 | O157: =$A$790 -> 2017-12-05 | R157: =$D$790 -> 2018-04-03 | V157: 14 | W157: =$A$790 -> 2017-12-05 | Z157: 2016-04-05 | AD157: 29 | AE157: 14 | AF157: 2017-12-05 | AG157: 0 | AH157: 29 | AI157: 2018-04-03 | AJ157: 0
A158: =$A$791 -> 2017-12-12 | D158: =$D$791 -> 2018-04-10 | H158: =$A$791 -> 2017-12-12 | K158: =$D$791 -> 2018-04-10 | O158: =$A$791 -> 2017-12-12 | R158: =$D$791 -> 2018-04-10 | W158: =$A$791 -> 2017-12-12 | Z158: 2016-04-12 | AD158: 30 | AE158: 15 | AF158: 2017-12-12 | AG158: 0 | AH158: 30 | AI158: 2018-04-10 | AJ158: 0
A159: =$A$792 -> 2017-12-19 | D159: =$D$792 -> 00:00:00 | E159: Total | F159: =SUM(C144:C159,F144:F158) -> 0 | H159: =$A$792 -> 2017-12-19 | K159: =$D$792 -> 00:00:00 | L159: Total | M159: =SUM(J144:J159,M144:M158) -> 0 | O159: =$A$792 -> 2017-12-19 | S159: Total | T159: =SUM(Q144:Q159,T144:T158) -> 0 | V159: 15 | Z159: 2016-04-19 | AD159: 31 | AE159: 16 | AF159: 2017-12-19 | AG159: 0
A160: USBC | B160: 24 | C160: Paid This League | H160: USBC | I160: 24 | J160: Paid This League | O160: USBC | P160: 24 | Q160: Paid This League
A161: Fees | B161: =$AL$5*B162 -> 527 | C161: Total | D161: =B161+B160 -> 551 | E161: Balance | F161: =D161-F159 -> 551 | H161: Fees | I161: =$AL$5*I162 -> 527 | J161: Total | K161: =I161+I160 -> 551 | L161: Balance | M161: =K161-M159 -> 551 | O161: Fees | P161: =$AL$5*P162 -> 527 | Q161: Total | R161: =P161+P160 -> 551 | S161: Balance | T161: =R161-T159 -> 551
A162: Wks | B162: =$AL$6 -> 31 | C162: =$AL$5*B162 -> 527 | D162: ID | E162: 71 | H162: Wks | I162: =$AL$6 -> 31 | J162: =$AL$5*I162 -> 527 | K162: ID | L162: 72 | O162: Wks | P162: =$AL$6 -> 31 | Q162: =$AL$5*P162 -> 527 | R162: ID | S162: 73
A163: 81 | B163: 8 | H163: 82 | O163: 83
A164: ="Team "&VLOOKUP($E185,Roster!$A$2:$AF$33,2)&" "&_xlfn.IFNA(VLOOKUP($E185,Roster!$A$2:$AF$33,3,0),0) -> Team 8 Brenda's Kitchen
A165: =_xlfn.IFNA(VLOOKUP(E185,Roster!$A$2:$AF$33,8,0),0)&IF(F185="",""," / "&VLOOKUP(F185,Roster!$A$2:$AF$33,8,0)) -> Dan Imholte | H165: =_xlfn.IFNA(VLOOKUP(L185,Roster!$A$2:$AF$33,8,0),0)&IF(M185="",""," / "&VLOOKUP(M185,Roster!$A$2:$AF$33,8,0)) -> Terry Hamman | O165: =_xlfn.IFNA(VLOOKUP(S185,Roster!$A$2:$AF$33,8,0),0)&IF(T185="",""," / "&VLOOKUP(T185,Roster!$A$2:$AF$33,8,0)) -> Gary Bentley | V165: =IF(ISNA(LOOKUP(#REF!,#REF!,#REF!)),"",IF(LOOKUP(#REF!,#REF!,#REF!)>"",LOOKUP(#REF!,#REF!,#REF!)&" / "&LOOKUP(#REF!,#REF!,#REF!),LOOKUP(#REF!,#REF!,#REF!))) ->  | AC165: 8
A166: Date | B166: Ref | C166: Amt | D166: Date | E166: Ref | F166: Amt | H166: Date | I166: Ref | J166: Amt | K166: Date | L166: Ref | M166: Amt | O166: Date | P166: Ref | Q166: Amt | R166: Date | S166: Ref | T166: Amt | V166: Wk | W166: Date | X166: Ref | Y166: Amt | Z166: Date | AA166: Ref | AB166: Amt | AE166: Weekly Team Summary
A167: =$A$777 -> 2017-09-05 | D167: =$D$777 -> 2018-01-02 | H167: =$A$777 -> 2017-09-05 | K167: =$D$777 -> 2018-01-02 | O167: =$A$777 -> 2017-09-05 | R167: =$D$777 -> 2018-01-02 | V167: 1 | W167: =$A$777 -> 2017-09-05 | Z167: 2016-01-05 | AD167: 16 | AE167: 1 | AF167: =A167 -> 2017-09-05 | AG167: =C167+J167+Q167 -> 0 | AH167: =AE181+1 -> 16 | AI167: =D167 -> 2018-01-02 | AJ167: =F167+M167+T167+AB167 -> 0
A168: =$A$778 -> 2017-09-12 | D168: =$D$778 -> 2018-01-09 | H168: =$A$778 -> 2017-09-12 | K168: =$D$778 -> 2018-01-09 | O168: =$A$778 -> 2017-09-12 | R168: =$D$778 -> 2018-01-09 | V168: 2 | W168: =$A$778 -> 2017-09-12 | Z168: =Z167+7 -> 2016-01-12 | AD168: =AD167+1 -> 17 | AE168: =AE167+1 -> 2 | AF168: 2017-09-12 | AG168: =C168+J168+Q168+Y168 -> 0 | AH168: =AH167+1 -> 17 | AI168: 2018-01-09 | AJ168: 0
A169: =$A$779 -> 2017-09-19 | D169: =$D$779 -> 2018-01-16 | H169: =$A$779 -> 2017-09-19 | K169: =$D$779 -> 2018-01-16 | O169: =$A$779 -> 2017-09-19 | R169: =$D$779 -> 2018-01-16 | V169: 3 | W169: =$A$779 -> 2017-09-19 | Z169: =Z168+7 -> 2016-01-19 | AD169: =AD168+1 -> 18 | AE169: =AE168+1 -> 3 | AF169: 2017-09-19 | AG169: 0 | AH169: =AH168+1 -> 18 | AI169: 2018-01-16 | AJ169: 0
A170: =$A$780 -> 2017-09-26 | D170: =$D$780 -> 2018-01-23 | H170: =$A$780 -> 2017-09-26 | K170: =$D$780 -> 2018-01-23 | O170: =$A$780 -> 2017-09-26 | R170: =$D$780 -> 2018-01-23 | V170: 4 | W170: =$A$780 -> 2017-09-26 | Z170: 2016-01-26 | AD170: 19 | AE170: 4 | AF170: 2017-09-26 | AG170: 0 | AH170: 19 | AI170: 2018-01-23 | AJ170: 0
A171: =$A$781 -> 2017-10-03 | D171: =$D$781 -> 2018-01-30 | H171: =$A$781 -> 2017-10-03 | K171: =$D$781 -> 2018-01-30 | O171: =$A$781 -> 2017-10-03 | R171: =$D$781 -> 2018-01-30 | V171: 5 | W171: =$A$781 -> 2017-10-03 | Z171: 2016-02-02 | AD171: 20 | AE171: 5 | AF171: 2017-10-03 | AG171: 0 | AH171: 20 | AI171: 2018-01-30 | AJ171: 0
A172: =$A$782 -> 2017-10-10 | D172: =$D$782 -> 2018-02-06 | H172: =$A$782 -> 2017-10-10 | K172: =$D$782 -> 2018-02-06 | O172: =$A$782 -> 2017-10-10 | R172: =$D$782 -> 2018-02-06 | V172: 6 | W172: =$A$782 -> 2017-10-10 | Z172: 2016-02-09 | AD172: 21 | AE172: 6 | AF172: 2017-10-10 | AG172: 0 | AH172: 21 | AI172: 2018-02-06 | AJ172: 0
A173: =$A$783 -> 2017-10-17 | D173: =$D$783 -> 2018-02-13 | H173: =$A$783 -> 2017-10-17 | K173: =$D$783 -> 2018-02-13 | O173: =$A$783 -> 2017-10-17 | R173: =$D$783 -> 2018-02-13 | V173: 7 | W173: =$A$783 -> 2017-10-17 | Z173: 2016-02-16 | AD173: 22 | AE173: 7 | AF173: 2017-10-17 | AG173: 0 | AH173: 22 | AI173: 2018-02-13 | AJ173: 0
A174: =$A$784 -> 2017-10-24 | D174: =$D$784 -> 2018-02-20 | H174: =$A$784 -> 2017-10-24 | K174: =$D$784 -> 2018-02-20 | O174: =$A$784 -> 2017-10-24 | R174: =$D$784 -> 2018-02-20 | V174: 8 | W174: =$A$784 -> 2017-10-24 | Z174: 2016-02-23 | AD174: 23 | AE174: 8 | AF174: 2017-10-24 | AG174: 0 | AH174: 23 | AI174: 2018-02-20 | AJ174: 0
A175: =$A$785 -> 2017-10-31 | D175: =$D$785 -> 2018-02-27 | H175: =$A$785 -> 2017-10-31 | K175: =$D$785 -> 2018-02-27 | O175: =$A$785 -> 2017-10-31 | R175: =$D$785 -> 2018-02-27 | V175: 9 | W175: =$A$785 -> 2017-10-31 | Z175: 2016-03-01 | AD175: 24 | AE175: 9 | AF175: 2017-10-31 | AG175: 0 | AH175: 24 | AI175: 2018-02-27 | AJ175: 0
A176: =$A$786 -> 2017-11-07 | D176: =$D$786 -> 2018-03-06 | H176: =$A$786 -> 2017-11-07 | K176: =$D$786 -> 2018-03-06 | O176: =$A$786 -> 2017-11-07 | R176: =$D$786 -> 2018-03-06 | V176: 10 | W176: =$A$786 -> 2017-11-07 | Z176: 2016-03-08 | AD176: 25 | AE176: 10 | AF176: 2017-11-07 | AG176: 0 | AH176: 25 | AI176: 2018-03-06 | AJ176: 0
A177: =$A$787 -> 2017-11-14 | D177: =$D$787 -> 2018-03-13 | H177: =$A$787 -> 2017-11-14 | K177: =$D$787 -> 2018-03-13 | O177: =$A$787 -> 2017-11-14 | R177: =$D$787 -> 2018-03-13 | V177: 11 | W177: =$A$787 -> 2017-11-14 | Z177: 2016-03-15 | AD177: 26 | AE177: 11 | AF177: 2017-11-14 | AG177: 0 | AH177: 26 | AI177: 2018-03-13 | AJ177: 0
A178: =$A$788 -> 2017-11-21 | D178: =$D$788 -> 2018-03-20 | H178: =$A$788 -> 2017-11-21 | K178: =$D$788 -> 2018-03-20 | O178: =$A$788 -> 2017-11-21 | R178: =$D$788 -> 2018-03-20 | V178: 12 | W178: =$A$788 -> 2017-11-21 | Z178: 2016-03-22 | AD178: 27 | AE178: 12 | AF178: 2017-11-21 | AG178: 0 | AH178: 27 | AI178: 2018-03-20 | AJ178: 0
A179: =$A$789 -> 2017-11-28 | D179: =$D$789 -> 2018-03-27 | H179: =$A$789 -> 2017-11-28 | K179: =$D$789 -> 2018-03-27 | O179: =$A$789 -> 2017-11-28 | R179: =$D$789 -> 2018-03-27 | V179: 13 | W179: =$A$789 -> 2017-11-28 | Z179: 2016-03-29 | AD179: 28 | AE179: 13 | AF179: 2017-11-28 | AG179: 0 | AH179: 28 | AI179: 2018-03-27 | AJ179: 0
A180: =$A$790 -> 2017-12-05 | D180: =$D$790 -> 2018-04-03 | H180: =$A$790 -> 2017-12-05 | K180: =$D$790 -> 2018-04-03 | O180: =$A$790 -> 2017-12-05 | R180: =$D$790 -> 2018-04-03 | V180: 14 | W180: =$A$790 -> 2017-12-05 | Z180: 2016-04-05 | AD180: 29 | AE180: 14 | AF180: 2017-12-05 | AG180: 0 | AH180: 29 | AI180: 2018-04-03 | AJ180: 0
A181: =$A$791 -> 2017-12-12 | D181: =$D$791 -> 2018-04-10 | H181: =$A$791 -> 2017-12-12 | K181: =$D$791 -> 2018-04-10 | O181: =$A$791 -> 2017-12-12 | R181: =$D$791 -> 2018-04-10 | W181: =$A$791 -> 2017-12-12 | Z181: 2016-04-12 | AD181: 30 | AE181: 15 | AF181: 2017-12-12 | AG181: 0 | AH181: 30 | AI181: 2018-04-10 | AJ181: 0
A182: =$A$792 -> 2017-12-19 | D182: =$D$792 -> 00:00:00 | E182: Total | F182: =SUM(C167:C182,F167:F181) -> 0 | H182: =$A$792 -> 2017-12-19 | K182: =$D$792 -> 00:00:00 | L182: Total | M182: =SUM(J167:J182,M167:M181) -> 0 | O182: =$A$792 -> 2017-12-19 | S182: Total | T182: =SUM(Q167:Q182,T167:T181) -> 0 | V182: 15 | Z182: 2016-04-19 | AD182: 31 | AE182: 16 | AF182: 2017-12-19 | AG182: 0
A183: USBC | B183: 24 | C183: Paid This League | H183: USBC | I183: 24 | J183: Paid This League | O183: USBC | P183: 24 | Q183: Paid This League
A184: Fees | B184: =$AL$5*B185 -> 527 | C184: Total | D184: =B184+B183 -> 551 | E184: Balance | F184: =D184-F182 -> 551 | H184: Fees | I184: =$AL$5*I185 -> 527 | J184: Total | K184: =I184+I183 -> 551 | L184: Balance | M184: =K184-M182 -> 551 | O184: Fees | P184: =$AL$5*P185 -> 527 | Q184: Total | R184: =P184+P183 -> 551 | S184: Balance | T184: =R184-T182 -> 551
A185: Wks | B185: =$AL$6 -> 31 | C185: =$AL$5*B185 -> 527 | D185: ID | E185: 81 | H185: Wks | I185: =$AL$6 -> 31 | J185: =$AL$5*I185 -> 527 | K185: ID | L185: 82 | O185: Wks | P185: =$AL$6 -> 31 | Q185: =$AL$5*P185 -> 527 | R185: ID | S185: 83
A186: 91 | B186: 9 | H186: 92 | O186: 93
A187: ="Team "&VLOOKUP($E208,Roster!$A$2:$AF$33,2)&" "&_xlfn.IFNA(VLOOKUP($E208,Roster!$A$2:$AF$33,3,0),0) -> Team 9
A188: =_xlfn.IFNA(VLOOKUP(E208,Roster!$A$2:$AF$33,8,0),0)&IF(F208="",""," / "&VLOOKUP(F208,Roster!$A$2:$AF$33,8,0)) -> Joe Couch | H188: =_xlfn.IFNA(VLOOKUP(L208,Roster!$A$2:$AF$33,8,0),0)&IF(M208="",""," / "&VLOOKUP(M208,Roster!$A$2:$AF$33,8,0)) -> Paul Williams | O188: =_xlfn.IFNA(VLOOKUP(S208,Roster!$A$2:$AF$33,8,0),0)&IF(T208="",""," / "&VLOOKUP(T208,Roster!$A$2:$AF$33,8,0)) -> Ted Bogumil | V188: =IF(ISNA(LOOKUP(#REF!,#REF!,#REF!)),"",IF(LOOKUP(#REF!,#REF!,#REF!)>"",LOOKUP(#REF!,#REF!,#REF!)&" / "&LOOKUP(#REF!,#REF!,#REF!),LOOKUP(#REF!,#REF!,#REF!))) ->  | AC188: 9
A189: Date | B189: Ref | C189: Amt | D189: Date | E189: Ref | F189: Amt | H189: Date | I189: Ref | J189: Amt | K189: Date | L189: Ref | M189: Amt | O189: Date | P189: Ref | Q189: Amt | R189: Date | S189: Ref | T189: Amt | V189: Wk | W189: Date | X189: Ref | Y189: Amt | Z189: Date | AA189: Ref | AB189: Amt | AE189: Weekly Team Summary
A190: =$A$777 -> 2017-09-05 | D190: =$D$777 -> 2018-01-02 | H190: =$A$777 -> 2017-09-05 | K190: =$D$777 -> 2018-01-02 | O190: =$A$777 -> 2017-09-05 | R190: =$D$777 -> 2018-01-02 | V190: 1 | W190: =$A$777 -> 2017-09-05 | Z190: 2016-01-05 | AD190: 16 | AE190: 1 | AF190: =A190 -> 2017-09-05 | AG190: =C190+J190+Q190 -> 0 | AH190: =AE204+1 -> 16 | AI190: =D190 -> 2018-01-02 | AJ190: =F190+M190+T190+AB190 -> 0 | AL190: =8*16 -> 1900-05-07
A191: =$A$778 -> 2017-09-12 | D191: =$D$778 -> 2018-01-09 | H191: =$A$778 -> 2017-09-12 | K191: =$D$778 -> 2018-01-09 | O191: =$A$778 -> 2017-09-12 | R191: =$D$778 -> 2018-01-09 | V191: 2 | W191: =$A$778 -> 2017-09-12 | Z191: =Z190+7 -> 2016-01-12 | AD191: =AD190+1 -> 17 | AE191: =AE190+1 -> 2 | AF191: 2017-09-12 | AG191: =C191+J191+Q191+Y191 -> 0 | AH191: =AH190+1 -> 17 | AI191: 2018-01-09 | AJ191: 0 | AL191: =8.25*2 -> 1900-01-16T12:00:00 | AW191: =SUM(AS191:AV191) -> 0
A192: =$A$779 -> 2017-09-19 | D192: =$D$779 -> 2018-01-16 | H192: =$A$779 -> 2017-09-19 | K192: =$D$779 -> 2018-01-16 | O192: =$A$779 -> 2017-09-19 | R192: =$D$779 -> 2018-01-16 | V192: 3 | W192: =$A$779 -> 2017-09-19 | Z192: =Z191+7 -> 2016-01-19 | AD192: =AD191+1 -> 18 | AE192: =AE191+1 -> 3 | AF192: 2017-09-19 | AG192: 0 | AH192: =AH191+1 -> 18 | AI192: 2018-01-16 | AJ192: 0 | AL192: =AL190+AL191 -> 1900-05-23T12:00:00 | AW192: =SUM(AS192:AV192) -> 0
A193: =$A$780 -> 2017-09-26 | D193: =$D$780 -> 2018-01-23 | H193: =$A$780 -> 2017-09-26 | K193: =$D$780 -> 2018-01-23 | O193: =$A$780 -> 2017-09-26 | R193: =$D$780 -> 2018-01-23 | V193: 4 | W193: =$A$780 -> 2017-09-26 | Z193: 2016-01-26 | AD193: 19 | AE193: 4 | AF193: 2017-09-26 | AG193: 0 | AH193: 19 | AI193: 2018-01-23 | AJ193: 0
A194: =$A$781 -> 2017-10-03 | D194: =$D$781 -> 2018-01-30 | H194: =$A$781 -> 2017-10-03 | K194: =$D$781 -> 2018-01-30 | O194: =$A$781 -> 2017-10-03 | R194: =$D$781 -> 2018-01-30 | V194: 5 | W194: =$A$781 -> 2017-10-03 | Z194: 2016-02-02 | AD194: 20 | AE194: 5 | AF194: 2017-10-03 | AG194: 0 | AH194: 20 | AI194: 2018-01-30 | AJ194: 0
A195: =$A$782 -> 2017-10-10 | D195: =$D$782 -> 2018-02-06 | H195: =$A$782 -> 2017-10-10 | K195: =$D$782 -> 2018-02-06 | O195: =$A$782 -> 2017-10-10 | R195: =$D$782 -> 2018-02-06 | V195: 6 | W195: =$A$782 -> 2017-10-10 | Z195: 2016-02-09 | AD195: 21 | AE195: 6 | AF195: 2017-10-10 | AG195: 0 | AH195: 21 | AI195: 2018-02-06 | AJ195: 0
A196: =$A$783 -> 2017-10-17 | D196: =$D$783 -> 2018-02-13 | H196: =$A$783 -> 2017-10-17 | K196: =$D$783 -> 2018-02-13 | O196: =$A$783 -> 2017-10-17 | R196: =$D$783 -> 2018-02-13 | V196: 7 | W196: =$A$783 -> 2017-10-17 | Z196: 2016-02-16 | AD196: 22 | AE196: 7 | AF196: 2017-10-17 | AG196: 0 | AH196: 22 | AI196: 2018-02-13 | AJ196: 0
A197: =$A$784 -> 2017-10-24 | D197: =$D$784 -> 2018-02-20 | H197: =$A$784 -> 2017-10-24 | K197: =$D$784 -> 2018-02-20 | O197: =$A$784 -> 2017-10-24 | R197: =$D$784 -> 2018-02-20 | V197: 8 | W197: =$A$784 -> 2017-10-24 | Z197: 2016-02-23 | AD197: 23 | AE197: 8 | AF197: 2017-10-24 | AG197: 0 | AH197: 23 | AI197: 2018-02-20 | AJ197: 0
A198: =$A$785 -> 2017-10-31 | D198: =$D$785 -> 2018-02-27 | H198: =$A$785 -> 2017-10-31 | K198: =$D$785 -> 2018-02-27 | O198: =$A$785 -> 2017-10-31 | R198: =$D$785 -> 2018-02-27 | V198: 9 | W198: =$A$785 -> 2017-10-31 | Z198: 2016-03-01 | AD198: 24 | AE198: 9 | AF198: 2017-10-31 | AG198: 0 | AH198: 24 | AI198: 2018-02-27 | AJ198: 0
A199: =$A$786 -> 2017-11-07 | D199: =$D$786 -> 2018-03-06 | H199: =$A$786 -> 2017-11-07 | K199: =$D$786 -> 2018-03-06 | O199: =$A$786 -> 2017-11-07 | R199: =$D$786 -> 2018-03-06 | V199: 10 | W199: =$A$786 -> 2017-11-07 | Z199: 2016-03-08 | AD199: 25 | AE199: 10 | AF199: 2017-11-07 | AG199: 0 | AH199: 25 | AI199: 2018-03-06 | AJ199: 0
A200: =$A$787 -> 2017-11-14 | D200: =$D$787 -> 2018-03-13 | H200: =$A$787 -> 2017-11-14 | K200: =$D$787 -> 2018-03-13 | O200: =$A$787 -> 2017-11-14 | R200: =$D$787 -> 2018-03-13 | V200: 11 | W200: =$A$787 -> 2017-11-14 | Z200: 2016-03-15 | AD200: 26 | AE200: 11 | AF200: 2017-11-14 | AG200: 0 | AH200: 26 | AI200: 2018-03-13 | AJ200: 0
A201: =$A$788 -> 2017-11-21 | D201: =$D$788 -> 2018-03-20 | H201: =$A$788 -> 2017-11-21 | K201: =$D$788 -> 2018-03-20 | O201: =$A$788 -> 2017-11-21 | R201: =$D$788 -> 2018-03-20 | V201: 12 | W201: =$A$788 -> 2017-11-21 | Z201: 2016-03-22 | AD201: 27 | AE201: 12 | AF201: 2017-11-21 | AG201: 0 | AH201: 27 | AI201: 2018-03-20 | AJ201: 0
A202: =$A$789 -> 2017-11-28 | D202: =$D$789 -> 2018-03-27 | H202: =$A$789 -> 2017-11-28 | K202: =$D$789 -> 2018-03-27 | O202: =$A$789 -> 2017-11-28 | R202: =$D$789 -> 2018-03-27 | V202: 13 | W202: =$A$789 -> 2017-11-28 | Z202: 2016-03-29 | AD202: 28 | AE202: 13 | AF202: 2017-11-28 | AG202: 0 | AH202: 28 | AI202: 2018-03-27 | AJ202: 0
... 493 more rows

Sheet Returning Bowlers
A1: ="Team "&VLOOKUP($E23,Roster!$A$2:$AF$33,2)&" "&_xlfn.IFNA(VLOOKUP($E23,Roster!$A$2:$AF$33,3,0),0) -> Team 1
A2: 11 | B2: 1 | H2: 12 | O2: 13
A3: =_xlfn.IFNA(VLOOKUP($E23,Roster!$A$2:$AF$33,8,0),0)&IF(F23="",""," / "&VLOOKUP($F23,Roster!$A$2:$AF$33,8,0)) -> David Burke | H3: =_xlfn.IFNA(VLOOKUP(L23,Roster!$A$2:$AF$33,8,0),0)&IF($M23="",""," / "&VLOOKUP($M23,Roster!$A$2:$AF$33,8,0)) -> Rich Matich | O3: =_xlfn.IFNA(VLOOKUP($S23,Roster!$A$2:$AF$33,8,0),0)&IF(T23="",""," / "&VLOOKUP($T23,Roster!$A$2:$AF$33,8,0)) -> Cal Shirey
E4: Yes | F4: No | L4: Yes | M4: No | S4: Yes | T4: No
A5: Returning next season? | H5: Returning next season? | O5: Returning next season?
E6: Yes | F6: No | L6: Yes | M6: No | S6: Yes | T6: No
A7: Same Team? | H7: Same Team? | O7: Same Team?
A9: OtherInformation | H9: OtherInformation | O9: OtherInformation
A21: USBC | B21: 24 | C21: Paid This League | H21: USBC | J21: Paid Online | O21: USBC | P21: 24 | Q21: Paid This League
A22: Fees | B22: =$AF$5*B23 -> 0 | C22: Total | D22: =B22+B21 -> 24 | E22: Balance | F22: =D22-F20 -> 24 | H22: Fees | I22: =$AF$5*I23 -> 0 | J22: Total | K22: =I22+I21 -> 0 | L22: Balance | M22: =K22-M20 -> 0 | O22: Fees | P22: =$AF$5*P23 -> 0 | Q22: Total | R22: =P22+P21 -> 24 | S22: Balance | T22: =R22-T20 -> 24
A23: Wks | B23: =$AF$6 -> 0 | D23: ID | E23: 11 | H23: Wks | I23: =$AF$6 -> 0 | K23: ID | L23: 12 | O23: Wks | P23: =$AF$6 -> 0 | R23: ID | S23: 13
A25: ="Team "&VLOOKUP($E46,Roster!$A$2:$AF$33,2)&" "&_xlfn.IFNA(VLOOKUP($E46,Roster!$A$2:$AF$33,3,0),0) -> Team 2 Rascals
A26: =_xlfn.IFNA(VLOOKUP($E46,Roster!$A$2:$AF$33,8,0),0)&IF(F46="",""," / "&VLOOKUP($F46,Roster!$A$2:$AF$33,8,0)) -> Marty Bell | H26: =_xlfn.IFNA(VLOOKUP(L46,Roster!$A$2:$AF$33,8,0),0)&IF($M46="",""," / "&VLOOKUP($M46,Roster!$A$2:$AF$33,8,0)) -> Alex Balok | O26: =_xlfn.IFNA(VLOOKUP($S46,Roster!$A$2:$AF$33,8,0),0)&IF(T46="",""," / "&VLOOKUP($T46,Roster!$A$2:$AF$33,8,0)) -> Johnny Gonzales
E27: Yes | F27: No | L27: Yes | M27: No | S27: Yes | T27: No
A28: Returning next season? | H28: Returning next season? | O28: Returning next season?
E29: Yes | F29: No | L29: Yes | M29: No | S29: Yes | T29: No
A30: Same Team? | H30: Same Team? | O30: Same Team?
A32: OtherInformation | H32: OtherInformation | O32: OtherInformation
A44: USBC | C44: Paid Online | H44: USBC | J44: Paid Online | O44: USBC | Q44: Sun City Sratch Classic
A45: Fees | B45: =$AF$5*B46 -> 0 | C45: Total | D45: =B45+B44 -> 0 | E45: Balance | F45: =D45-F43 -> 0 | H45: Fees | I45: =$AF$5*I46 -> 0 | J45: Total | K45: =I45+I44 -> 0 | L45: Balance | M45: =K45-M43 -> 0 | O45: Fees | P45: =$AF$5*P46 -> 0 | Q45: Total | R45: =P45+P44 -> 0 | S45: Balance | T45: =R45-T43 -> 0
A46: Wks | B46: =$AF$6 -> 0 | D46: ID | E46: 21 | H46: Wks | I46: =$AF$6 -> 0 | K46: ID | L46: 22 | O46: Wks | P46: =$AF$6 -> 0 | R46: ID | S46: 23
A47: 31 | B47: 3 | H47: 32 | O47: 33
A48: ="Team "&VLOOKUP($E69,Roster!$A$2:$AF$33,2)&" "&_xlfn.IFNA(VLOOKUP($E69,Roster!$A$2:$AF$33,3,0),0) -> Team 3
A49: =_xlfn.IFNA(VLOOKUP($E69,Roster!$A$2:$AF$33,8,0),0)&IF(F69="",""," / "&VLOOKUP($F69,Roster!$A$2:$AF$33,8,0)) -> Jeff Richard | H49: =_xlfn.IFNA(VLOOKUP(L69,Roster!$A$2:$AF$33,8,0),0)&IF($M69="",""," / "&VLOOKUP($M69,Roster!$A$2:$AF$33,8,0)) -> Jerry Elsen | O49: =_xlfn.IFNA(VLOOKUP($S69,Roster!$A$2:$AF$33,8,0),0)&IF(T69="",""," / "&VLOOKUP($T69,Roster!$A$2:$AF$33,8,0)) -> Bill Poff
E50: Yes | F50: No | L50: Yes | M50: No | S50: Yes | T50: No
A51: Returning next season? | H51: Returning next season? | O51: Returning next season?
E52: Yes | F52: No | L52: Yes | M52: No | S52: Yes | T52: No
A53: Same Team? | H53: Same Team? | O53: Same Team?
A55: OtherInformation | H55: OtherInformation | O55: OtherInformation
A67: USBC | C67: Paid in Peterson | H67: USBC | I67: 24 | J67: Paid This League | O67: USBC | P67: 24 | Q67: Paid This League
A68: Fees | B68: =$AF$5*B69 -> 0 | C68: Total | D68: =B68+B67 -> 0 | E68: Balance | F68: =D68-F66 -> 0 | H68: Fees | I68: =$AF$5*I69 -> 0 | J68: Total | K68: =I68+I67 -> 24 | L68: Balance | M68: =K68-M66 -> 24 | O68: Fees | P68: =$AF$5*P69 -> 0 | Q68: Total | R68: =P68+P67 -> 24 | S68: Balance | T68: =R68-T66 -> 24
A69: Wks | B69: =$AF$6 -> 0 | C69: =$AF$5*B69 -> 0 | D69: ID | E69: 31 | H69: Wks | I69: =$AF$6 -> 0 | J69: =$AF$5*I69 -> 0 | K69: ID | L69: 32 | O69: Wks | P69: =$AF$6 -> 0 | Q69: =$AF$5*P69 -> 0 | R69: ID | S69: 33
A71: 41 | B71: 4 | H71: 42 | O71: 43
A72: ="Team "&VLOOKUP($E93,Roster!$A$2:$AF$33,2)&" "&_xlfn.IFNA(VLOOKUP($E93,Roster!$A$2:$AF$33,3,0),0) -> Team 4 Pro-Tech
A73: =_xlfn.IFNA(VLOOKUP(E93,Roster!$A$2:$AF$33,8,0),0)&IF(F93="",""," / "&VLOOKUP(F93,Roster!$A$2:$AF$33,8,0)) -> Dave Schmitz | H73: =_xlfn.IFNA(VLOOKUP(L93,Roster!$A$2:$AF$33,8,0),0)&IF(M93="",""," / "&VLOOKUP(M93,Roster!$A$2:$AF$33,8,0)) -> John Babbitt | O73: =_xlfn.IFNA(VLOOKUP(S93,Roster!$A$2:$AF$33,8,0),0)&IF(T93="",""," / "&VLOOKUP(T93,Roster!$A$2:$AF$33,8,0)) -> Larry Tolar
E74: Yes | F74: No | L74: Yes | M74: No | S74: Yes | T74: No
A75: Returning next season? | H75: Returning next season? | O75: Returning next season?
E76: Yes | F76: No | L76: Yes | M76: No | S76: Yes | T76: No
A77: Same Team? | H77: Same Team? | O77: Same Team?
A79: OtherInformation | H79: OtherInformation | O79: OtherInformation
A91: USBC | B91: 24 | C91: Paid This League | H91: USBC | J91: Paid Pony League | O91: USBC | P91: 24 | Q91: Paid This League
A92: Fees | B92: =$AF$5*B93 -> 0 | C92: Total | D92: =B92+B91 -> 24 | E92: Balance | F92: =D92-F90 -> 24 | H92: Fees | I92: =$AF$5*I93 -> 0 | J92: Total | K92: =I92+I91 -> 0 | L92: Balance | M92: =K92-M90 -> 0 | O92: Fees | P92: =$AF$5*P93 -> 0 | Q92: Total | R92: =P92+P91 -> 24 | S92: Balance | T92: =R92-T90 -> 24
A93: Wks | B93: =$AF$6 -> 0 | C93: =$AF$5*B93 -> 0 | D93: ID | E93: 41 | H93: Wks | I93: =$AF$6 -> 0 | J93: =$AF$5*I93 -> 0 | K93: ID | L93: 42 | O93: Wks | P93: =$AF$6 -> 0 | Q93: =$AF$5*P93 -> 0 | R93: ID | S93: 43
A94: 51 | B94: 5 | H94: 52 | O94: 53
A95: ="Team "&VLOOKUP($E116,Roster!$A$2:$AF$33,2)&" "&_xlfn.IFNA(VLOOKUP($E116,Roster!$A$2:$AF$33,3,0),0) -> Team 5
A96: =_xlfn.IFNA(VLOOKUP(E116,Roster!$A$2:$AF$33,8,0),0)&IF(F116="",""," / "&VLOOKUP(F116,Roster!$A$2:$AF$33,8,0)) -> Dana Barrette | H96: =_xlfn.IFNA(VLOOKUP(L116,Roster!$A$2:$AF$33,8,0),0)&IF(M116="",""," / "&VLOOKUP(M116,Roster!$A$2:$AF$33,8,0)) -> Larry Latham | O96: =_xlfn.IFNA(VLOOKUP(S116,Roster!$A$2:$AF$33,8,0),0)&IF(T116="",""," / "&VLOOKUP(T116,Roster!$A$2:$AF$33,8,0)) -> Bob Reed
E97: Yes | F97: No | L97: Yes | M97: No | S97: Yes | T97: No
A98: Returning next season? | H98: Returning next season? | O98: Returning next season?
E99: Yes | F99: No | L99: Yes | M99: No | S99: Yes | T99: No
A100: Same Team? | H100: Same Team? | O100: Same Team?
A102: OtherInformation | H102: OtherInformation | O102: OtherInformation
A114: USBC | B114: 24 | C114: Paid This League | H114: USBC | I114: 24 | J114: Paid This League | O114: USBC | Q114: Paid Online
A115: Fees | B115: =$AF$5*B116 -> 0 | C115: Total | D115: =B115+B114 -> 24 | E115: Balance | F115: =D115-F113 -> 24 | H115: Fees | I115: =$AF$5*I116 -> 0 | J115: Total | K115: =I115+I114 -> 24 | L115: Balance | M115: =K115-M113 -> 24 | O115: Fees | P115: =$AF$5*P116 -> 0 | Q115: Total | R115: =P115+P114 -> 0 | S115: Balance | T115: =R115-T113 -> 0
A116: Wks | B116: =$AF$6 -> 0 | C116: =$AF$5*B116 -> 0 | D116: ID | E116: 51 | H116: Wks | I116: =$AF$6 -> 0 | J116: =$AF$5*I116 -> 0 | K116: ID | L116: 52 | O116: Wks | P116: =$AF$6 -> 0 | Q116: =$AF$5*P116 -> 0 | R116: ID | S116: 53
A117: 61 | B117: 6 | H117: 62 | O117: 63
A118: ="Team "&VLOOKUP($E139,Roster!$A$2:$AF$33,2)&" "&_xlfn.IFNA(VLOOKUP($E139,Roster!$A$2:$AF$33,3,0),0) -> Team 6 0
A119: =_xlfn.IFNA(VLOOKUP(E139,Roster!$A$2:$AF$33,8,0),0)&IF(F139="",""," / "&VLOOKUP(F139,Roster!$A$2:$AF$33,8,0)) ->  | H119: =_xlfn.IFNA(VLOOKUP(L139,Roster!$A$2:$AF$33,8,0),0)&IF(M139="",""," / "&VLOOKUP(M139,Roster!$A$2:$AF$33,8,0)) -> Mike Watt | O119: =_xlfn.IFNA(VLOOKUP(S139,Roster!$A$2:$AF$33,8,0),0)&IF(T139="",""," / "&VLOOKUP(T139,Roster!$A$2:$AF$33,8,0)) -> 0
E120: Yes | F120: No | L120: Yes | M120: No | S120: Yes | T120: No
A121: Returning next season? | H121: Returning next season? | O121: Returning next season?
E122: Yes | F122: No | L122: Yes | M122: No | S122: Yes | T122: No
A123: Same Team? | H123: Same Team? | O123: Same Team?
A125: OtherInformation | H125: OtherInformation | O125: OtherInformation
A137: USBC | C137: KP LSt, BP Classic, JC Classic | H137: USBC | J137: Paid This Thurs Night Classic | O137: USBC | Q137: Paid Late Starters
A138: Fees | B138: =$AF$5*B139 -> 0 | C138: Total | D138: =B138+B137 -> 0 | E138: Balance | F138: =D138-F136 -> 0 | H138: Fees | I138: =$AF$5*I139 -> 0 | J138: Total | K138: =I138+I137 -> 0 | L138: Balance | M138: =K138-M136 -> 0 | O138: Fees | P138: =$AF$5*P139 -> 0 | Q138: Total | R138: =P138+P137 -> 0 | S138: Balance | T138: =R138-T136 -> 0
A139: Wks | B139: =$AF$6 -> 0 | C139: =$AF$5*B139 -> 0 | D139: ID | E139: 64 | F139: 65 | H139: Wks | I139: =$AF$6 -> 0 | J139: =$AF$5*I139 -> 0 | K139: ID | L139: 62 | O139: Wks | P139: =$AF$6 -> 0 | Q139: =$AF$5*P139 -> 0 | R139: ID | S139: 63
A140: 71 | B140: 7 | H140: 72 | O140: 73
A141: ="Team "&VLOOKUP($E162,Roster!$A$2:$AF$33,2)&" "&_xlfn.IFNA(VLOOKUP($E162,Roster!$A$2:$AF$33,3,0),0) -> Team 7 Bitburgers
A142: =_xlfn.IFNA(VLOOKUP(E162,Roster!$A$2:$AF$33,8,0),0)&IF(F162="",""," / "&VLOOKUP(F162,Roster!$A$2:$AF$33,8,0)) -> Paul Kleckner | H142: =_xlfn.IFNA(VLOOKUP(L162,Roster!$A$2:$AF$33,8,0),0)&IF(M162="",""," / "&VLOOKUP(M162,Roster!$A$2:$AF$33,8,0)) -> Bob Edge | O142: =_xlfn.IFNA(VLOOKUP(S162,Roster!$A$2:$AF$33,8,0),0)&IF(T162="",""," / "&VLOOKUP(T162,Roster!$A$2:$AF$33,8,0)) -> Terry Camp
E143: Yes | F143: No | L143: Yes | M143: No | S143: Yes | T143: No
A144: Returning next season? | H144: Returning next season? | O144: Returning next season?
E145: Yes | F145: No | L145: Yes | M145: No | S145: Yes | T145: No
A146: Same Team? | H146: Same Team? | O146: Same Team?
A148: OtherInformation | H148: OtherInformation | O148: OtherInformation
A160: USBC | B160: 24 | C160: Paid This League | H160: USBC | I160: 24 | J160: Paid This League | O160: USBC | P160: 24 | Q160: Paid This League
A161: Fees | B161: =$AF$5*B162 -> 0 | C161: Total | D161: =B161+B160 -> 24 | E161: Balance | F161: =D161-F159 -> 24 | H161: Fees | I161: =$AF$5*I162 -> 0 | J161: Total | K161: =I161+I160 -> 24 | L161: Balance | M161: =K161-M159 -> 24 | O161: Fees | P161: =$AF$5*P162 -> 0 | Q161: Total | R161: =P161+P160 -> 24 | S161: Balance | T161: =R161-T159 -> 24
A162: Wks | B162: =$AF$6 -> 0 | C162: =$AF$5*B162 -> 0 | D162: ID | E162: 71 | H162: Wks | I162: =$AF$6 -> 0 | J162: =$AF$5*I162 -> 0 | K162: ID | L162: 72 | O162: Wks | P162: =$AF$6 -> 0 | Q162: =$AF$5*P162 -> 0 | R162: ID | S162: 73
A163: 81 | B163: 8 | H163: 82 | O163: 83
A164: ="Team "&VLOOKUP($E185,Roster!$A$2:$AF$33,2)&" "&_xlfn.IFNA(VLOOKUP($E185,Roster!$A$2:$AF$33,3,0),0) -> Team 8 Brenda's Kitchen
A165: =_xlfn.IFNA(VLOOKUP(E185,Roster!$A$2:$AF$33,8,0),0)&IF(F185="",""," / "&VLOOKUP(F185,Roster!$A$2:$AF$33,8,0)) -> Dan Imholte | H165: =_xlfn.IFNA(VLOOKUP(L185,Roster!$A$2:$AF$33,8,0),0)&IF(M185="",""," / "&VLOOKUP(M185,Roster!$A$2:$AF$33,8,0)) -> Terry Hamman | O165: =_xlfn.IFNA(VLOOKUP(S185,Roster!$A$2:$AF$33,8,0),0)&IF(T185="",""," / "&VLOOKUP(T185,Roster!$A$2:$AF$33,8,0)) -> Gary Bentley
E166: Yes | F166: No | L166: Yes | M166: No | S166: Yes | T166: No
A167: Returning next season? | H167: Returning next season? | O167: Returning next season?
E168: Yes | F168: No | L168: Yes | M168: No | S168: Yes | T168: No
A169: Same Team? | H169: Same Team? | O169: Same Team?
A171: OtherInformation | H171: OtherInformation | O171: OtherInformation
A183: USBC | B183: 24 | C183: Paid This League | H183: USBC | I183: 24 | J183: Paid This League | O183: USBC | P183: 24 | Q183: Paid This League
A184: Fees | B184: =$AF$5*B185 -> 0 | C184: Total | D184: =B184+B183 -> 24 | E184: Balance | F184: =D184-F182 -> 24 | H184: Fees | I184: =$AF$5*I185 -> 0 | J184: Total | K184: =I184+I183 -> 24 | L184: Balance | M184: =K184-M182 -> 24 | O184: Fees | P184: =$AF$5*P185 -> 0 | Q184: Total | R184: =P184+P183 -> 24 | S184: Balance | T184: =R184-T182 -> 24
A185: Wks | B185: =$AF$6 -> 0 | C185: =$AF$5*B185 -> 0 | D185: ID | E185: 81 | H185: Wks | I185: =$AF$6 -> 0 | J185: =$AF$5*I185 -> 0 | K185: ID | L185: 82 | O185: Wks | P185: =$AF$6 -> 0 | Q185: =$AF$5*P185 -> 0 | R185: ID | S185: 83
A186: 91 | B186: 9 | H186: 92 | O186: 93
A187: ="Team "&VLOOKUP($E208,Roster!$A$2:$AF$33,2)&" "&_xlfn.IFNA(VLOOKUP($E208,Roster!$A$2:$AF$33,3,0),0) -> Team 9
A188: =_xlfn.IFNA(VLOOKUP(E208,Roster!$A$2:$AF$33,8,0),0)&IF(F208="",""," / "&VLOOKUP(F208,Roster!$A$2:$AF$33,8,0)) -> Joe Couch | H188: =_xlfn.IFNA(VLOOKUP(L208,Roster!$A$2:$AF$33,8,0),0)&IF(M208="",""," / "&VLOOKUP(M208,Roster!$A$2:$AF$33,8,0)) -> Paul Williams | O188: =_xlfn.IFNA(VLOOKUP(S208,Roster!$A$2:$AF$33,8,0),0)&IF(T208="",""," / "&VLOOKUP(T208,Roster!$A$2:$AF$33,8,0)) -> Ted Bogumil
E189: Yes | F189: No | L189: Yes | M189: No | S189: Yes | T189: No
A190: Returning next season? | H190: Returning next season? | O190: Returning next season?
E191: Yes | F191: No | L191: Yes | M191: No | S191: Yes | T191: No
A192: Same Team? | H192: Same Team? | O192: Same Team?
A194: OtherInformation | H194: OtherInformation | O194: OtherInformation
A206: USBC | B206: 24 | C206: Paid This League | H206: USBC | J206: Paid Drop Outs | O206: USBC | P206: 24 | Q206: Paid This League
A207: Fees | B207: =$AF$5*B208 -> 0 | C207: Total | D207: =B207+B206 -> 24 | E207: Balance | F207: =D207-F205 -> 24 | H207: Fees | I207: =$AF$5*I208 -> 0 | J207: Total | K207: =I207+I206 -> 0 | L207: Balance | M207: =K207-M205 -> 0 | O207: Fees | P207: =$AF$5*P208 -> 0 | Q207: Total | R207: =P207+P206 -> 24 | S207: Balance | T207: =R207-T205 -> 24
A208: Wks | B208: =$AF$6 -> 0 | C208: =$AF$5*B208 -> 0 | D208: ID | E208: 91 | H208: Wks | I208: =$AF$6 -> 0 | J208: =$AF$5*I208 -> 0 | K208: ID | L208: 92 | O208: Wks | P208: =$AF$6 -> 0 | Q208: =$AF$5*P208 -> 0 | R208: ID | S208: 93
A209: 101 | B209: 10 | H209: 102 | O209: 103
A210: ="Team "&VLOOKUP($E231,Roster!$A$2:$AF$33,2)&" "&_xlfn.IFNA(VLOOKUP($E231,Roster!$A$2:$AF$33,3,0),0) -> Team 10 Vital Care
A211: =_xlfn.IFNA(VLOOKUP(E231,Roster!$A$2:$AF$33,8,0),0)&IF(F231="",""," / "&VLOOKUP(F231,Roster!$A$2:$AF$33,8,0)) -> Andy Lewis | H211: =_xlfn.IFNA(VLOOKUP(L231,Roster!$A$2:$AF$33,8,0),0)&IF(M231="",""," / "&VLOOKUP(M231,Roster!$A$2:$AF$33,8,0)) -> Dennis Barnes | O211: =_xlfn.IFNA(VLOOKUP(S231,Roster!$A$2:$AF$33,8,0),0)&IF(T231="",""," / "&VLOOKUP(T231,Roster!$A$2:$AF$33,8,0)) -> Gary McCoy
E212: Yes | F212: No | L212: Yes | M212: No | S212: Yes | T212: No
A213: Returning next season? | H213: Returning next season? | O213: Returning next season?
E214: Yes | F214: No | L214: Yes | M214: No | S214: Yes | T214: No
A215: Same Team? | H215: Same Team? | O215: Same Team?
A217: OtherInformation | H217: OtherInformation | O217: OtherInformation
A229: USBC | B229: 24 | C229: Paid This League | H229: USBC | J229: Paid Peterson | O229: USBC | Q229: Paid Peterson
A230: Fees | B230: =$AF$5*B231 -> 0 | C230: Total | D230: =B230+B229 -> 24 | E230: Balance | F230: =D230-F228 -> 24 | H230: Fees | I230: =$AF$5*I231 -> 0 | J230: Total | K230: =I230+I229 -> 0 | L230: Balance | M230: =K230-M228 -> 0 | O230: Fees | P230: =$AF$5*P231 -> 0 | Q230: Total | R230: =P230+P229 -> 0 | S230: Balance | T230: =R230-T228 -> 0
A231: Wks | B231: =$AF$6 -> 0 | C231: =$AF$5*B231 -> 0 | D231: ID | E231: 101 | H231: Wks | I231: =$AF$6 -> 0 | J231: =$AF$5*I231 -> 0 | K231: ID | L231: 102 | O231: Wks | P231: =$AF$6 -> 0 | Q231: =$AF$5*P231 -> 0 | R231: ID | S231: 103

Sheet Est. $$$
A1: Classic Bowling League
A2: 2017 - 2018 Estimated Prize Awards
A3: As of 29 August, 2017
A6: Income | C6: Bowlers | D6: Weeks | E6: Fee
B7: Bank Balance as of 8/29/17 | G7: 51.31
B8: Estimated League Fees | C8: 30 | D8: 31 | E8: 17 | G8: =C8*D8*E8 -> 15810
B9: Estimated USBC Dues | C9: 20 | E9: 21 | G9: =C9*E9 -> 420
C10: Total Estimated Income | G10: =SUM(G7:G9) -> 16281.31
A11: Expenses
B12: Lineage Fees - Reg. Weeks | C12: 30 | D12: 30 | E12: 8.4 | G12: =C12*D12*E12 -> 7560
B13: Lineage Fees - Fun Night & Roll Off | C13: 30 | D13: 1 | E13: 4 | G13: =C13*D13*E13 -> 120 | I13: =G12+G13 -> 7680 | J13: Ttl Lineage
B14: Secretary Fee's | C14: 30 | D14: 31 | E14: 0.5 | G14: =C14*D14*E14 -> 465
B15: USBC Dues Paid | C15: =C9 -> 20 | E15: =E9 -> 21 | G15: =C15*E15 -> 420
B16: Refunds | G16: 0
B17: Bank Fees | G17: 6
C18: Total Estimated Expenses | G18: =SUM(G12:G17) -> 8571
B20: Estimated League Prize Fund | G20: =G10-G18 -> 7710.31

Sheet Est Prize Fund
A1: Estimated Classic League Prize Fund 2017-2018
M2: Team Awards
B3: Prize Fund | C3: Bowlers | D3: Weeks | M3: Third Segments | P3: 1st Segment Team Awards | U3: 2nd Segment Team Awards | Z3: 3rd Segment Team Awards
A4: Estimated Available Funds | B4: =17-8.4-0.5 -> 8.1 | C4: 30 | D4: 30 | E4: =B4*C4*D4 -> 7290 | H4: Place | M4: Each Third | N4: Each | P4: Place | Q4: # | R4: Team | S4: Each | U4: Place | V4: # | W4: Team | X4: Each | Z4: Place | AA4: # | AB4: Team | AC4: Each
A5: Est. Available Over Avg. | B5: 12.5 | C5: 30 | D5: 1 | E5: =B5*C5*D5 -> 375 | H5: 1 | M5: =N5*3 -> 300 | N5: 100 | P5: 1 | Q5: 4 | R5: Pro-Tech | S5: =$N5 -> 100 | U5: 1 | V5: 4 | W5: Pro-Tech | X5: =$N5 -> 100 | Z5: 1 | AA5: 3 | AB5: Desert Sun Embroidery | AC5: =$N5 -> 100
A6: Total Est. Available Funds | F6: =E4+E5 -> 7665 | H6: 2 | M6: =N6*3 -> 270 | N6: 90 | P6: 2 | Q6: 7 | R6: EKC | S6: =$N6 -> 90 | U6: 2 | V6: 10 | W6: Vital Care | X6: =$N6 -> 90 | Z6: 2 | AA6: 9 | AB6: Team 9 | AC6: =$N6 -> 90
H7: 3 | M7: 255 | N7: 85 | P7: 3 | Q7: 8 | R7: Brenda's Kitchen | S7: 85 | U7: 3 | V7: 1 | W7: Protech II | X7: 85 | Z7: 3 | AA7: 5 | AB7: Team 5 | AC7: 85
A8: Individual Awards | B8: 1st | C8: 2nd | D8: Sub Total | F8: Totals | H8: 4 | M8: 240 | N8: 80 | P8: 4 | Q8: 5 | R8: Team 5 | S8: 80 | U8: 4 | V8: 5 | W8: Team 5 | X8: 80 | Z8: 4 | AA8: 10 | AB8: Vital Care | AC8: 80
A9: Bowler High Points | B9: 50 | C9: 20 | D9: =B9+C9 -> 70 | H9: 5 | M9: 225 | N9: 75 | P9: 5 | Q9: 6 | R9: Your Strike Shop | S9: 75 | U9: 5 | V9: 6 | W9: Your Strike Shop | X9: 75 | Z9: 5 | AA9: 7 | AB9: EKC | AC9: 75
A10: Bowler High Game | B10: 35 | C10: 20 | D10: =B10+C10 -> 55 | H10: 6 | M10: 210 | N10: 70 | P10: 6 | Q10: 9 | R10: Team 9 | S10: 70 | U10: 6 | V10: 7 | W10: EKC | X10: 70 | Z10: 6 | AA10: 1 | AB10: Pro-Tech | AC10: 70
A11: Bowler High Series | B11: 50 | C11: 20 | D11: =B11+C11 -> 70 | H11: 7 | M11: 195 | N11: 65 | P11: 7 | Q11: 3 | R11: Desert Sun Embroidery | S11: 65 | U11: 7 | V11: 8 | W11: Brenda's Kitchen | X11: 65 | Z11: 7 | AA11: 2 | AB11: Rascals | AC11: 65
A12: Individual Totals | F12: =D11+D10+D9 -> 195 | H12: 8 | M12: 180 | N12: 60 | P12: 8 | Q12: 10 | R12: Vital Care | S12: 60 | U12: 8 | V12: 3 | W12: Desert Sun Embroidery | X12: 60 | Z12: 8 | AA12: 4 | AB12: Pro-Tech | AC12: 60
H13: 9 | M13: 165 | N13: 55 | P13: 9 | Q13: 1 | R13: Protech II | S13: 55 | U13: 9 | V13: 9 | W13: Team 9 | X13: 55 | Z13: 9 | AA13: 8 | AB13: Brenda's Kitchen | AC13: 55
A14: Team Awards | B14: 1st | C14: 2nd | H14: 10 | M14: 150 | N14: 50 | P14: 10 | Q14: 2 | R14: Rascals | S14: 50 | U14: 10 | V14: 2 | W14: Rascals | X14: 50 | Z14: 10 | AA14: 6 | AB14: Your Strike Shop | AC14: 50
A15: Team High Game | B15: 60 | C15: 30 | E15: =B15+C15+D15 -> 90 | M15: =SUM(M5:M14) -> 2190 | P15: Total | R15: =M15 -> 2190 | S15: =(SUM(S5:S14))*3 -> 2190 | U15: Total | W15: =R15 -> 2190 | X15: =(SUM(X5:X14))*3 -> 2190 | Z15: Total | AB15: =W15 -> 2190 | AC15: =(SUM(AC5:AC14))*3 -> 2190
A16: Each Bowler | B16: =B15/3 -> 20 | C16: =C15/3 -> 10 | D16: =D15/3 -> 0
A17: Team High Series | B17: 60 | C17: 30 | E17: =B17+C17+D17 -> 90 | P17: Bowler High Game | U17: Team High Game | Z17: League Championship
A18: Each Bowler | B18: =B17/3 -> 20 | C18: =C17/3 -> 10 | D18: =D17/3 -> 0 | P18: Place | R18: Bowler | S18: Each | U18: Place | W18: Team | X18: Each | Z18: Place | AB18: Team | AC18: Each
A19: Total Team Special Awards | F19: =E15+E17 -> 180 | P19: 1 | Q19: 300 | R19: Elsen, Richard | S19: 14 | U19: 1 | V19: 787 | W19: Protech II | X19: =90/2 -> 45 | Z19: 1 | AC19: =B29 -> 40
P20: 1 | Q20: 300 | R20: Babbitt, Barrette | S20: 14 | U20: 1 | V20: 787 | W20: Team 5 | X20: =90/2 -> 45 | Z20: 2 | AC20: =C29 -> 35
B21: Prize Fund | C21: Bowlers | D21: Weeks | Z21: 3 | AC21: =D29 -> 25
A22: Over-Average Fun Night | B22: =17-4-0.5 -> 12.5 | C22: 30 | D22: 1 | F22: =B22*C22 -> 375 | P22: Bowler High Series | U22: Team High Series | Z22: 4 | AC22: =E29 -> 15
P23: Place | R23: Bowler | S23: Each | U23: Place | W23: Team | X23: Each
A24: Team Segment Awards | B24: 1st | C24: 2nd | D24: 3rd | P24: 1 | Q24: 1047 | R24: Pete Kleckner | S24: =B11 -> 50 | U24: 1 | V24: 2842 | W24: Pro-Tech | X24: =B18 -> 20
A25: Team Awards | B25: 2190 | C25: 2190 | D25: 2190 | F25: =B25+C25+D25 -> 6570 | P25: 2 | Q25: 1020 | R25: Dennis Klein | S25: =C11 -> 20 | U25: 2 | V25: 2803 | W25: Team 5 | X25: =C18 -> 10
A27: League Championship | B27: 1st | C27: 2nd | D27: 3rd | E27: 4th | P27: Bowler High Points
A28: Team | B28: =B29*3 -> 120 | C28: =C29*3 -> 105 | D28: =D29*3 -> 75 | E28: =E29*3 -> 45 | F28: =B28+C28+D28+E28 -> 345 | P28: Place | R28: Bowler | S28: Each
A29: Each Bowler | B29: 40 | C29: 35 | D29: 25 | E29: 15 | P29: 1 | Q29: 72 | R29: Rich Matich | S29: =B9 -> 50
P30: 2 | Q30: 69 | R30: Dave Schmitz | S30: =C9 -> 20
A31: Grand Total | F31: =F12+F19+F22+F25+F28 -> 7665
A32: Carried Over to Next Season | F32: =F6-F31 -> 0

Sheet Prize Fund
K1: 1 | L1: 2 | M1: 3 | N1: 4 | O1: 5 | P1: 6 | Q1: 7 | R1: 8 | S1: 9 | T1: 10
A2: 2017 2018 CLASSIC PRIZE FUND - Option 1 Selected by Teams | J2: Option 2 was preferred by team vote () on
A4: SEGMENT STANDINGS | C4: THIRD STANDINGS
A5: PLACE | B5: TEAM # | C5: TEAM PAYOUT | D5: EACH | F5: INDIVIDUAL AWARDS | G5: 1ST | H5: 2ND | I5: EACH
A6: 1 | C6: 210 | D6: =C6/3 -> 70 | F6: HIGH AVERAGE | G6: 60
A7: 2 | C7: 180 | D7: 60 | F7: HIGH POINTS | G7: 60 | H7: 30
A8: 3 | C8: 165 | D8: 55 | F8: HIGH GAME | G8: 60 | H8: 30
A9: 4 | C9: 150 | D9: 50 | F9: HIGH SERIES | G9: 60 | H9: 30
A10: 5 | C10: 105 | D10: 35 | F10: TOTAL | H10: =SUM(G6:H9) -> 330
A11: 6 | C11: 90 | D11: 30 | F11: TEAM AWARDS
A12: 7 | C12: 75 | D12: 25 | F12: HIGH TEAM GAME | G12: 60 | H12: 30 | I12: 20 / 10
A13: 8 | C13: 75 | D13: 25 | F13: HIGH TEAM SERIES | G13: 60 | H13: 30 | I13: 20 / 10
A14: 9 | C14: 75 | D14: 25 | F14: TOTAL | H14: =SUM(G12:H13) -> 180
A15: 10 | C15: 75 | D15: 25
A16: TOTAL EACH THIRD | C16: =SUM(C6:C15) -> 1200 | F16: LEAGUE CHAMPIONSHIP | G16: 1ST | H16: 120 | I16: =H16/3 -> 40
A17: TOTAL THIRDS $ | C17: =C16*3 -> 3600 | G17: 2ND | H17: 90 | I17: =H17/3 -> 30
G18: 3RD | H18: 60 | I18: =H18/3 -> 20
A19: Points / Week | B19: 125 | G19: 4TH | H19: 45 | I19: =H19/3 -> 15
A20: # Weeks | B20: 30 | F20: TOTAL | H20: =SUM(H16:H19) -> 315
A21: Total Points | B21: =B19*B20 -> 3750
A22: Point Money Per Point | B22: =0.8 -> 0.8
A23: Total Point Money | B23: 3000
A25: TOTAL "THIRD" MONEY | B25: =C17 -> 3600
A26: INDIVIDUAL AWARDS | B26: =H10 -> 330
A27: TEAM AWARDS | B27: =H14 -> 180
A28: LEAGUE CHAMPIONSHIP | B28: =H20 -> 315
A29: EST PRIZE MONEY | B29: ='Est. $$$'!G20 -> 7710.31
A30: TOTAL PRIZES PAID | B30: =H10+H14+H20+C17+B23 -> 7425
A31: REMAINING $ | B31: =B29-B30 -> 285.31
K32: 1 | L32: 2 | M32: 3 | N32: 4 | O32: 5 | P32: 6 | Q32: 7 | R32: 8 | S32: 9 | T32: 10
A33: 2016 2017 CLASSIC PRIZE FUND - Option 2 Selected by Teams | J33: Option 2 was preferred by team vote () on
A35: SEGMENT STANDINGS | C35: THIRD STANDINGS
A36: Place | B36: Team No. | C36: TEAM PAYOUT | D36: EACH | F36: INDIVIDUAL AWARDS | G36: 1ST | H36: 2ND | I36: EACH
A37: 1 | C37: =D37*3 -> 300 | D37: 100 | F37: HIGH AVERAGE | G37: 50
A38: 2 | C38: =D38*3 -> 270 | D38: 90 | F38: HIGH POINTS | G38: 60 | H38: 30 | U38: Bank | V38: 9393.81
A39: 3 | C39: 255 | D39: 85 | F39: HIGH GAME | G39: 50 | H39: 30 | U39: Lineage | V39: =3*247.5 -> 742.5
A40: 4 | C40: 240 | D40: 80 | F40: HIGH SERIES | G40: 50 | H40: 30 | U40: OA Lineage | V40: =30*4 -> 120
A41: 5 | C41: 225 | D41: 75 | F41: TOTAL | H41: =SUM(G37:H40) -> 300
A42: 6 | C42: 210 | D42: 70 | F42: TEAM AWARDS | U42: Available | V42: =V38-V39-V40 -> 8531.31
A43: 7 | C43: 195 | D43: 65 | F43: HIGH TEAM GAME | G43: 60 | H43: 30 | I43: 20 / 10 | U43: Admin Fee | V43: 465
A44: 8 | C44: 180 | D44: 60 | F44: HIGH TEAM SERIES | G44: 60 | H44: 30 | I44: 20 / 10 | U44: Over Avg Tournment | V44: =Sweeper!H36 -> 0
A45: 9 | C45: 165 | D45: 55 | F45: TOTAL | H45: =SUM(G43:H44) -> 180 | V45: =V42-V43-V44 -> 8066.31
A46: 10 | C46: 150 | D46: 50
A47: TOTAL EACH THIRD | B47: TOTAL EACH THIRD | C47: =SUM(C37:C46) -> 2190 | F47: LEAGUE CHAMPIONSHIP | G47: 1ST | H47: 120 | I47: =H47/3 -> 40
A48: TOTAL THIRDS $ | B48: TOTAL THIRDS $ | C48: =C47*3 -> 6570 | G48: 2ND | H48: 105 | I48: =H48/3 -> 35
G49: 3RD | H49: 90 | I49: =H49/3 -> 30
G50: 4TH | H50: 60 | I50: =H50/3 -> 20
A51: TOTAL "THIRD" MONEY | B51: =C48 -> 6570 | C51: =C48 -> 6570 | F51: TOTAL | H51: =SUM(H47:H50) -> 375
A52: INDIVIDUAL AWARDS | B52: =H41 -> 300 | C52: =H41 -> 300 | U52: Weeks | V52: 31
A53: TEAM AWARDS | B53: =H45 -> 180 | C53: =H45 -> 180 | U53: Bowlers | V53: 30
A54: LEAGUE CHAMPIONSHIP | B54: =H51 -> 375 | C54: =H51 -> 375 | U54: League Fee | V54: 17 | W54: =V54*V53*V52 -> 15810 | Y54: =V54-V55-V56 -> 8.25
A55: EST PRIZE MONEY | B55: ='Est. $$$'!G20 -> 7710.31 | C55: =SUM(C51:C54) -> 7425 | U55: Lineage | V55: 8.25 | W55: =V55*V53*V52 -> 7672.5
A56: TOTAL PRIZES PAID | B56: =SUM(B50:B54) -> 7425 | U56: Admin Fee | V56: 0.5 | W56: =V53*V52*V56 -> 465
A57: REMAINING $ | B57: =B55-B56 -> 285.31 | U57: Over Avg Tournament | V57: =(V54-4)*V53 -> 390 | W57: =V57 -> 390
U58: Prize Fund | W58: =W54-W55-W56-W57 -> 7282.5

Sheet Prize Approvals
A1: Classic League 2017-2018 Prize Fund Approval
C2: Option 1 | E2: Option 2
A3: =Financial!A1 -> Team 1
A4: =Financial!A25 -> Team 2 Rascals
A5: =Financial!A48 -> Team 3
A6: =Financial!A72 -> Team 4 Pro-Tech
A7: =Financial!A95 -> Team 5
A8: =Financial!A118 -> Team 6 0
A9: =Financial!A141 -> Team 7 Bitburgers
A10: =Financial!A164 -> Team 8 Brenda's Kitchen
A11: =Financial!A187 -> Team 9
A12: =Financial!A210 -> Team 10 Vital Care
A14: Thanks to the Prize Committee for their inputs

Sheet Team Awards
A3: Classic League Segment Team Awards
A4: 1st Segment | F4: 2nd Segment | K4: 3rd Segment
A5: Place | B5: Team | C5: Prize $ | D5: $each | F5: Place | G5: Team | H5: Prize $ | I5: $each | K5: Place | L5: Team | M5: Prize $ | N5: $ each | O5: Place
A6: 1 | B6: 1 | C6: =VLOOKUP($A6,'Prize Fund'!$A$37:$D$46,3) -> 300 | D6: =VLOOKUP($A6,'Prize Fund'!$A$37:$D$46,4) -> 100 | F6: 1 | H6: =VLOOKUP($A6,'Prize Fund'!$A$37:$D$46,3) -> 300 | I6: =VLOOKUP($A6,'Prize Fund'!$A$37:$D$46,4) -> 100 | K6: 1 | M6: =VLOOKUP($A6,'Prize Fund'!$A$37:$D$46,3) -> 300 | N6: =VLOOKUP($A6,'Prize Fund'!$A$37:$D$46,4) -> 100 | O6: 1
A7: 2 | C7: =VLOOKUP($A7,'Prize Fund'!$A$37:$D$46,3) -> 270 | D7: =VLOOKUP($A7,'Prize Fund'!$A$37:$D$46,4) -> 90 | F7: 2 | H7: =VLOOKUP($A7,'Prize Fund'!$A$37:$D$46,3) -> 270 | I7: =VLOOKUP($A7,'Prize Fund'!$A$37:$D$46,4) -> 90 | K7: 2 | M7: =VLOOKUP($A7,'Prize Fund'!$A$37:$D$46,3) -> 270 | N7: =VLOOKUP($A7,'Prize Fund'!$A$37:$D$46,4) -> 90 | O7: 2
A8: 3 | C8: =VLOOKUP($A8,'Prize Fund'!$A$37:$D$46,3) -> 255 | D8: =VLOOKUP($A8,'Prize Fund'!$A$37:$D$46,4) -> 85 | F8: 3 | H8: =VLOOKUP($A8,'Prize Fund'!$A$37:$D$46,3) -> 255 | I8: =VLOOKUP($A8,'Prize Fund'!$A$37:$D$46,4) -> 85 | K8: 3 | M8: =VLOOKUP($A8,'Prize Fund'!$A$37:$D$46,3) -> 255 | N8: =VLOOKUP($A8,'Prize Fund'!$A$37:$D$46,4) -> 85 | O8: 3
A9: 4 | C9: =VLOOKUP($A9,'Prize Fund'!$A$37:$D$46,3) -> 240 | D9: =VLOOKUP($A9,'Prize Fund'!$A$37:$D$46,4) -> 80 | F9: 4 | H9: =VLOOKUP($A9,'Prize Fund'!$A$37:$D$46,3) -> 240 | I9: =VLOOKUP($A9,'Prize Fund'!$A$37:$D$46,4) -> 80 | K9: 4 | M9: =VLOOKUP($A9,'Prize Fund'!$A$37:$D$46,3) -> 240 | N9: =VLOOKUP($A9,'Prize Fund'!$A$37:$D$46,4) -> 80 | O9: 4
A10: 5 | C10: =VLOOKUP($A10,'Prize Fund'!$A$37:$D$46,3) -> 225 | D10: =VLOOKUP($A10,'Prize Fund'!$A$37:$D$46,4) -> 75 | F10: 5 | H10: =VLOOKUP($A10,'Prize Fund'!$A$37:$D$46,3) -> 225 | I10: =VLOOKUP($A10,'Prize Fund'!$A$37:$D$46,4) -> 75 | K10: 5 | M10: =VLOOKUP($A10,'Prize Fund'!$A$37:$D$46,3) -> 225 | N10: =VLOOKUP($A10,'Prize Fund'!$A$37:$D$46,4) -> 75 | O10: 5
A11: 6 | C11: =VLOOKUP($A11,'Prize Fund'!$A$37:$D$46,3) -> 210 | D11: =VLOOKUP($A11,'Prize Fund'!$A$37:$D$46,4) -> 70 | F11: 6 | H11: =VLOOKUP($A11,'Prize Fund'!$A$37:$D$46,3) -> 210 | I11: =VLOOKUP($A11,'Prize Fund'!$A$37:$D$46,4) -> 70 | K11: 6 | M11: =VLOOKUP($A11,'Prize Fund'!$A$37:$D$46,3) -> 210 | N11: =VLOOKUP($A11,'Prize Fund'!$A$37:$D$46,4) -> 70 | O11: 6
A12: 7 | C12: =VLOOKUP($A12,'Prize Fund'!$A$37:$D$46,3) -> 195 | D12: =VLOOKUP($A12,'Prize Fund'!$A$37:$D$46,4) -> 65 | F12: 7 | H12: =VLOOKUP($A12,'Prize Fund'!$A$37:$D$46,3) -> 195 | I12: =VLOOKUP($A12,'Prize Fund'!$A$37:$D$46,4) -> 65 | K12: 7 | M12: =VLOOKUP($A12,'Prize Fund'!$A$37:$D$46,3) -> 195 | N12: =VLOOKUP($A12,'Prize Fund'!$A$37:$D$46,4) -> 65 | O12: 7
A13: 8 | C13: =VLOOKUP($A13,'Prize Fund'!$A$37:$D$46,3) -> 180 | D13: =VLOOKUP($A13,'Prize Fund'!$A$37:$D$46,4) -> 60 | F13: 8 | H13: =VLOOKUP($A13,'Prize Fund'!$A$37:$D$46,3) -> 180 | I13: =VLOOKUP($A13,'Prize Fund'!$A$37:$D$46,4) -> 60 | K13: 8 | M13: =VLOOKUP($A13,'Prize Fund'!$A$37:$D$46,3) -> 180 | N13: =VLOOKUP($A13,'Prize Fund'!$A$37:$D$46,4) -> 60 | O13: 8
A14: 9 | C14: =VLOOKUP($A14,'Prize Fund'!$A$37:$D$46,3) -> 165 | D14: =VLOOKUP($A14,'Prize Fund'!$A$37:$D$46,4) -> 55 | F14: 9 | H14: =VLOOKUP($A14,'Prize Fund'!$A$37:$D$46,3) -> 165 | I14: =VLOOKUP($A14,'Prize Fund'!$A$37:$D$46,4) -> 55 | K14: 9 | M14: =VLOOKUP($A14,'Prize Fund'!$A$37:$D$46,3) -> 165 | N14: =VLOOKUP($A14,'Prize Fund'!$A$37:$D$46,4) -> 55 | O14: 9
A15: 10 | C15: =VLOOKUP($A15,'Prize Fund'!$A$37:$D$46,3) -> 150 | D15: =VLOOKUP($A15,'Prize Fund'!$A$37:$D$46,4) -> 50 | F15: 10 | H15: =VLOOKUP($A15,'Prize Fund'!$A$37:$D$46,3) -> 150 | I15: =VLOOKUP($A15,'Prize Fund'!$A$37:$D$46,4) -> 50 | K15: 10 | M15: =VLOOKUP($A15,'Prize Fund'!$A$37:$D$46,3) -> 150 | N15: =VLOOKUP($A15,'Prize Fund'!$A$37:$D$46,4) -> 50 | O15: 10
B16: Total | C16: =SUM(C6:C15) -> 2190 | H16: =SUM(H6:H15) -> 2190 | M16: =SUM(M6:M15) -> 2190

Sheet Distribution 2017
A1: 11 | B1: 1 | E1: 12 | I1: 13
A2: ="Team "&VLOOKUP(B1,Roster!$B$2:$AF$33,1)&" "&VLOOKUP(B1,Roster!$B$2:$AF$33,2) -> Team 1
A3: =_xlfn.IFNA(VLOOKUP($A1,Roster!$A$2:$AF$33,8,0),0)&IF(A18="",""," / "&VLOOKUP($A18,Roster!$A$2:$AF$33,8,0)) -> David Burke | E3: =_xlfn.IFNA(VLOOKUP($E1,Roster!$A$2:$AF$33,8,0),0)&IF(E18="",""," / "&VLOOKUP($E18,Roster!$A$2:$AF$33,8,0)) -> Rich Matich | I3: =_xlfn.IFNA(VLOOKUP($I1,Roster!$A$2:$AF$33,8,0),0)&IF(I18="",""," / "&VLOOKUP($I18,Roster!$A$2:$AF$33,8,0)) -> Cal Shirey | M3: =A2 -> Team 1
A4: Award Category | B4: Ref | C4: Award | E4: Award Category | F4: Ref | G4: Award | I4: Award Category | J4: Ref | K4: Award | M4: Award Category | N4: Award
A5: Bowler High Avg. | E5: Bowler High Avg. | I5: Bowler High Avg. | J5: 227.98 | K5: ='Prize Fund'!G37 -> 50 | M5: Bowler High Avg. | N5: =C5+G5+K5 -> 50
A6: Bowler High Points | E6: Bowler High Points | I6: Bowler High Points | J6: 83 | K6: ='Prize Fund'!H38 -> 30 | M6: Bowler High Points | N6: 30
A7: Bowler High Game | B7: JT | C7: =ROUNDUP(('Prize Fund'!$G$39+'Prize Fund'!$H$39)/4,0) -> 20 | E7: Bowler High Game | I7: Bowler High Game | M7: Bowler High Game | N7: 20
A8: Bowler High Series | E8: Bowler High Series | I8: Bowler High Series | M8: Bowler High Series | N8: 0
A9: Team High Game | E9: Team High Game | F9: =$B9 -> 0 | G9: =$C9 -> 0 | I9: Team High Game | J9: =$B9 -> 0 | K9: =$C9 -> 0 | M9: Team High Game | N9: 0
A10: Team High Series | E10: Team High Series | F10: 0 | G10: 0 | I10: Team High Series | J10: 0 | K10: 0 | M10: Team High Series | N10: 0
A11: Segment 1 Points | B11: =VLOOKUP($B$1,'Team Awards'!$B$6:$F$15,4,0) -> 0 | C11: =VLOOKUP($B1,'Team Awards'!$B$6:$F$15,3,0) -> 100 | E11: Segment 1 Points | F11: 0 | G11: 100 | I11: Segment 1 Points | J11: 0 | K11: 100 | M11: Segment 1 Points | N11: 300
A12: Segment 2 Points | B12: =VLOOKUP($B$1,'Team Awards'!$G$6:$K$15,4,0) ->  | C12: =VLOOKUP($B$1,'Team Awards'!$G$6:$K$15,3,0) ->  | E12: Segment 2 Points | I12: Segment 2 Points | M12: Segment 2 Points
A13: Segment 3 Points | B13: =VLOOKUP($B$1,'Team Awards'!$L$6:$O$15,4,0) ->  | C13: =VLOOKUP($B$1,'Team Awards'!$L$6:$O$15,3,0) ->  | E13: Segment 3 Points | I13: Segment 3 Points | M13: Segment 3 Points
A14: Season Team Points | E14: Season Team Points | F14: 0 | G14: 0 | I14: Season Team Points | J14: 0 | K14: 0 | M14: Season Team Points | N14: 0
A15: League Championship | E15: League Championship | F15: 0 | G15: 0 | I15: League Championship | J15: 0 | K15: 0 | M15: League Championship | N15: 0
A16: Over Avg. Sweeper | E16: Over Avg. Sweeper | I16: Over Avg. Sweeper | M16: Over Avg. Sweeper | N16: 0
A17: Total | C17: =SUM(C5:C16) ->  | E17: Total | G17: =SUM(G5:G16) ->  | I17: Total | K17: =SUM(K5:K16) ->  | M17: Total | N17: =SUM(N5:N16) ->  | O17: =C11+C12+C13+G11+G12+G13+K11+K12+K13 ->  | P17: =N5+N33+N60+N87+N114+N140+N166+N192+N218+N244 -> 50 | Q17: =N6+N61+N88+N115+N141+N167+N193+N219+N245 -> 90 | R17: =N7+N35+N62+N89+N116+N142+N168+N194+N220+N246 -> 80 | S17: =N8+N36+N63+N90+N117+N143+N169+N195+N221+N247 -> 80 | T17: =N9+N37+N64+N91+N118+N144+N170+N196+N222+N248 -> 90 | U17: =N10+N38+N65+N92+N119+N145+N171+N197+N223+N249 -> 90
A19: 100 | B19: =IF(C19*A19>0,C17-(C19*A19),C17) ->  | C19: =IF(C17>(A19-1),ROUNDDOWN(C17/A19,0),0) ->  | D19: =IF(D17>(A19-1),ROUNDDOWN(D17/A19,0),0) -> 0 | E19: 100 | F19: =IF(G19*E19>0,G17-(G19*E19),G17) ->  | G19: =IF(G17>(E19-1),ROUNDDOWN(G17/E19,0),0) ->  | I19: 100 | J19: =IF(K19*I19>0,K17-(K19*I19),K17) ->  | K19: =IF(K17>(I19-1),ROUNDDOWN(K17/I19,0),0) ->  | M19: 100 | N19: =C19+G19+K19 -> 
A20: 50 | B20: =IF(C20*A20>0,B19-(C20*A20),B19) ->  | C20: =IF(B19>(A20-1),ROUNDDOWN(B19/A20,0),0) ->  | D20: =IF(C19>(A20-1),ROUNDDOWN(C19/A20,0),0) ->  | E20: 50 | F20: =IF(G20*E20>0,F19-(G20*E20),F19) ->  | G20: =IF(F19>(E20-1),ROUNDDOWN(F19/E20,0),0) ->  | I20: 50 | J20: =IF(K20*I20>0,J19-(K20*I20),J19) ->  | K20: =IF(J19>(I20-1),ROUNDDOWN(J19/I20,0),0) ->  | M20: 50 | N20: =+N48+N75+N102+N129+N155+N181+N207+N233+N259 -> 
A21: 20 | E21: 20 | I21: 20 | M21: 20
A22: 10 | E22: 10 | I22: 10 | M22: 10
A23: 5 | E23: 5 | I23: 5 | M23: 5
A24: 1 | E24: 1 | I24: 1 | M24: 1
A25: 0.25 | E25: 0.25 | I25: 0.25 | M25: 0.25
C26: =C19*A19+C20*A20+C21*A21+C22*A22+C23*A23+C24*A24+C25*A25 ->  | D26: =D19*A19+D20*A20+D21*A21+D22*A22+D23*A23+D24*A24+D25*A25 ->  | G26: =G19*E19+G20*E20+G21*E21+G22*E22+G23*E23+G24*E24+G25*E25 ->  | K26: =K19*I19+K20*I20+K21*I21+K22*I22+K23*I23+K24*I24+K25*I25 ->  | N26: =N19*M19+N20*M20+N21*M21+N22*M22+N23*M23+N24*M24+N25*M25 -> 
A29: 21 | B29: 2 | E29: 22 | I29: 23
A30: ="Team "&VLOOKUP(B29,Roster!$B$2:$AF$33,1)&" "&VLOOKUP(B29,Roster!$B$2:$AF$33,2) -> Team 2 Rascals
A31: =_xlfn.IFNA(VLOOKUP($A29,Roster!$A$2:$AF$33,8,0),0)&IF(A46="",""," / "&VLOOKUP($A46,Roster!$A$2:$AF$33,8,0)) -> Marty Bell | E31: =_xlfn.IFNA(VLOOKUP($E29,Roster!$A$2:$AF$33,8,0),0)&IF(E46="",""," / "&VLOOKUP($E46,Roster!$A$2:$AF$33,8,0)) -> Alex Balok | I31: =_xlfn.IFNA(VLOOKUP($I29,Roster!$A$2:$AF$33,8,0),0)&IF(I46="",""," / "&VLOOKUP($I46,Roster!$A$2:$AF$33,8,0)) -> Johnny Gonzales | M31: =A30 -> Team 2 Rascals
A32: Award Category | B32: Ref | C32: Award | E32: Award Category | F32: Ref | G32: Award | I32: Award Category | J32: Ref | K32: Award | M32: Award Category | N32: Award
A33: Bowler High Avg. | E33: Bowler High Avg. | I33: Bowler High Avg. | M33: Bowler High Avg. | N33: =C33+G33+K33 -> 0
A34: Bowler High Points | E34: Bowler High Points | I34: Bowler High Points | M34: Bowler High Points | N34: 0
A35: Bowler High Game | B35: 290 | E35: Bowler High Game | I35: Bowler High Game | J35: 300 | K35: =ROUNDUP(('Prize Fund'!$G$39+'Prize Fund'!$H$39)/4,0) -> 20 | M35: Bowler High Game | N35: 20
A36: Bowler High Series | E36: Bowler High Series | I36: Bowler High Series | J36: 1020 | M36: Bowler High Series | N36: 0
A37: Team High Game | E37: Team High Game | F37: =$B37 -> 0 | G37: =$C37 -> 0 | I37: Team High Game | J37: =$B37 -> 0 | K37: =$C37 -> 0 | M37: Team High Game | N37: 0
A38: Team High Series | E38: Team High Series | F38: 0 | G38: 0 | I38: Team High Series | J38: 0 | K38: 0 | M38: Team High Series | N38: 0
A39: Segment 1 Points | B39: =VLOOKUP($B29,'Team Awards'!$B$6:$F$15,4,0) ->  | C39: =VLOOKUP($B29,'Team Awards'!$B$6:$F$15,3,0) ->  | E39: Segment 1 Points | I39: Segment 1 Points | M39: Segment 1 Points
A40: Segment 2 Points | B40: =VLOOKUP($B29,'Team Awards'!$G$6:$K$15,4,0) ->  | C40: =VLOOKUP($B29,'Team Awards'!$G$6:$K$15,3,0) ->  | E40: Segment 2 Points | I40: Segment 2 Points | M40: Segment 2 Points
A41: Segment 3 Points | B41: =VLOOKUP($B29,'Team Awards'!$L$6:$O$15,4,0) ->  | C41: =VLOOKUP($B29,'Team Awards'!$L$6:$O$15,3,0) ->  | E41: Segment 3 Points | I41: Segment 3 Points | M41: Segment 3 Points
A42: Season Team Points | E42: Season Team Points | F42: 0 | G42: 0 | I42: Season Team Points | J42: 0 | K42: 0 | M42: Season Team Points | N42: 0
A43: League Championship | E43: League Championship | F43: 0 | G43: 0 | I43: League Championship | J43: 0 | K43: 0 | M43: League Championship | N43: 0
A44: Over Avg. Sweeper | E44: Over Avg. Sweeper | I44: Over Avg. Sweeper | M44: Over Avg. Sweeper | N44: 0
A45: Total | C45: =SUM(C33:C44) ->  | E45: Total | G45: =SUM(G33:G44) ->  | I45: Total | K45: =SUM(K33:K44) ->  | M45: Total | N45: =SUM(N33:N44) ->  | O45: =C39+C40+C41+G39+G40+G41+K39+K40+K41 -> 
A47: 100 | B47: =IF(C47*A47>0,C45-(C47*A47),C45) ->  | C47: =IF(C45>(A47-1),ROUNDDOWN(C45/A47,0),0) ->  | D47: =IF(D45>(A47-1),ROUNDDOWN(D45/A47,0),0) -> 0 | E47: 100 | F47: =IF(G47*E47>0,G45-(G47*E47),G45) ->  | G47: =IF(G45>(E47-1),ROUNDDOWN(G45/E47,0),0) ->  | I47: 100 | J47: =IF(K47*I47>0,K45-(K47*I47),K45) ->  | K47: =IF(K45>(I47-1),ROUNDDOWN(K45/I47,0),0) ->  | M47: 100 | N47: =C47+G47+K47 -> 
A48: 50 | B48: =IF(C48*A48>0,B47-(C48*A48),B47) ->  | C48: =IF(B47>(A48-1),ROUNDDOWN(B47/A48,0),0) ->  | D48: =IF(C47>(A48-1),ROUNDDOWN(C47/A48,0),0) ->  | E48: 50 | F48: =IF(G48*E48>0,F47-(G48*E48),F47) ->  | G48: =IF(F47>(E48-1),ROUNDDOWN(F47/E48,0),0) ->  | I48: 50 | J48: =IF(K48*I48>0,J47-(K48*I48),J47) ->  | K48: =IF(J47>(I48-1),ROUNDDOWN(J47/I48,0),0) ->  | M48: 50
A49: 20 | E49: 20 | I49: 20 | M49: 20
A50: 10 | E50: 10 | I50: 10 | M50: 10
A51: 5 | E51: 5 | I51: 5 | M51: 5
A52: 1 | E52: 1 | I52: 1 | M52: 1
A53: 0.25 | E53: 0.25 | I53: 0.25 | M53: 0.25
C54: =C47*A47+C48*A48+C49*A49+C50*A50+C51*A51+C52*A52+C53*A53 ->  | D54: =D47*A47+D48*A48+D49*A49+D50*A50+D51*A51+D52*A52+D53*A53 ->  | G54: =G47*E47+G48*E48+G49*E49+G50*E50+G51*E51+G52*E52+G53*E53 ->  | K54: =K47*I47+K48*I48+K49*I49+K50*I50+K51*I51+K52*I52+K53*I53 ->  | N54: =N47*M47+N48*M48+N49*M49+N50*M50+N51*M51+N52*M52+N53*M53 -> 
A56: 31 | B56: 3 | E56: 32 | I56: 33
A57: ="Team "&VLOOKUP(B56,Roster!$B$2:$AF$33,1)&" "&VLOOKUP(B56,Roster!$B$2:$AF$33,2) -> Team 3 Desert Sun Embroidery
A58: =_xlfn.IFNA(VLOOKUP($A56,Roster!$A$2:$AF$33,8,0),0)&IF(A73="",""," / "&VLOOKUP($A73,Roster!$A$2:$AF$33,8,0)) -> Jeff Richard | E58: =_xlfn.IFNA(VLOOKUP($E56,Roster!$A$2:$AF$33,8,0),0)&IF(E73="",""," / "&VLOOKUP($E73,Roster!$A$2:$AF$33,8,0)) -> Jerry Elsen | I58: =_xlfn.IFNA(VLOOKUP($I56,Roster!$A$2:$AF$33,8,0),0)&IF(I73="",""," / "&VLOOKUP($I73,Roster!$A$2:$AF$33,8,0)) -> Bill Poff | M58: =A57 -> Team 3 Desert Sun Embroidery
A59: Award Category | B59: Ref | C59: Award | E59: Award Category | F59: Ref | G59: Award | I59: Award Category | J59: Ref | K59: Award | M59: Award Category | N59: Award
A60: Bowler High Avg. | E60: Bowler High Avg. | I60: Bowler High Avg. | M60: Bowler High Avg. | N60: =C60+G60+K60 -> 0
A61: Bowler High Points | B61: 90 | C61: ='Prize Fund'!G38 -> 60 | E61: Bowler High Points | I61: Bowler High Points | M61: Bowler High Points | N61: 60
A62: Bowler High Game | E62: Bowler High Game | I62: Bowler High Game | J62: 300 | K62: =ROUNDUP(('Prize Fund'!$G$39+'Prize Fund'!$H$39)/4,0) -> 20 | M62: Bowler High Game | N62: 20
A63: Bowler High Series | E63: Bowler High Series | I63: Bowler High Series | J63: 1035 | M63: Bowler High Series | N63: 0
A64: Team High Game | B64: 772 | E64: Team High Game | F64: =$B64 -> 772 | G64: =$C64 -> 0 | I64: Team High Game | J64: =$B64 -> 772 | K64: =$C64 -> 0 | M64: Team High Game | N64: 0
A65: Team High Series | B65: 2869 | C65: ='Prize Fund'!G44/3 -> 20 | E65: Team High Series | F65: 2869 | G65: 20 | I65: Team High Series | J65: 2869 | K65: 20 | M65: Team High Series | N65: 60
A66: Segment 1 Points | B66: =VLOOKUP($B56,'Team Awards'!$B$6:$F$15,4,0) ->  | C66: =VLOOKUP($B56,'Team Awards'!$B$6:$F$15,3,0) ->  | E66: Segment 1 Points | I66: Segment 1 Points | M66: Segment 1 Points
A67: Segment 2 Points | B67: =VLOOKUP($B56,'Team Awards'!$G$6:$K$15,4,0) ->  | C67: =VLOOKUP($B56,'Team Awards'!$G$6:$K$15,3,0) ->  | E67: Segment 2 Points | I67: Segment 2 Points | M67: Segment 2 Points
A68: Segment 3 Points | B68: =VLOOKUP($B56,'Team Awards'!$L$6:$O$15,4,0) ->  | C68: =VLOOKUP($B56,'Team Awards'!$L$6:$O$15,3,0) ->  | E68: Segment 3 Points | I68: Segment 3 Points | M68: Segment 3 Points
A69: Season Team Points | E69: Season Team Points | F69: 0 | G69: 0 | I69: Season Team Points | J69: 0 | K69: 0 | M69: Season Team Points | N69: 0
A70: League Championship | E70: League Championship | F70: 0 | G70: 0 | I70: League Championship | J70: 0 | K70: 0 | M70: League Championship | N70: 0
A71: Over Avg. Sweeper | E71: Over Avg. Sweeper | I71: Over Avg. Sweeper | M71: Over Avg. Sweeper | N71: 0
A72: Total | C72: =SUM(C60:C71) ->  | E72: Total | G72: =SUM(G60:G71) ->  | I72: Total | K72: =SUM(K60:K71) ->  | M72: Total | N72: =SUM(N60:N71) ->  | O72: =C66+C67+C68+G66+G67+G68+K66+K67+K68 -> 
A74: 100 | B74: =IF(C74*A74>0,C72-(C74*A74),C72) ->  | C74: =IF(C72>(A74-1),ROUNDDOWN(C72/A74,0),0) ->  | D74: =IF(D72>(A74-1),ROUNDDOWN(D72/A74,0),0) -> 0 | E74: 100 | F74: =IF(G74*E74>0,G72-(G74*E74),G72) ->  | G74: =IF(G72>(E74-1),ROUNDDOWN(G72/E74,0),0) ->  | I74: 100 | J74: =IF(K74*I74>0,K72-(K74*I74),K72) ->  | K74: =IF(K72>(I74-1),ROUNDDOWN(K72/I74,0),0) ->  | M74: 100 | N74: =C74+G74+K74 -> 
A75: 50 | B75: =IF(C75*A75>0,B74-(C75*A75),B74) ->  | C75: =IF(B74>(A75-1),ROUNDDOWN(B74/A75,0),0) ->  | D75: =IF(C74>(A75-1),ROUNDDOWN(C74/A75,0),0) ->  | E75: 50 | F75: =IF(G75*E75>0,F74-(G75*E75),F74) ->  | G75: =IF(F74>(E75-1),ROUNDDOWN(F74/E75,0),0) ->  | I75: 50 | J75: =IF(K75*I75>0,J74-(K75*I75),J74) ->  | K75: =IF(J74>(I75-1),ROUNDDOWN(J74/I75,0),0) ->  | M75: 50
A76: 20 | E76: 20 | I76: 20 | M76: 20
A77: 10 | E77: 10 | I77: 10 | M77: 10
A78: 5 | E78: 5 | I78: 5 | M78: 5
A79: 1 | E79: 1 | I79: 1 | M79: 1
A80: 0.25 | E80: 0.25 | I80: 0.25 | M80: 0.25
C81: =C74*A74+C75*A75+C76*A76+C77*A77+C78*A78+C79*A79+C80*A80 ->  | D81: =D74*A74+D75*A75+D76*A76+D77*A77+D78*A78+D79*A79+D80*A80 ->  | G81: =G74*E74+G75*E75+G76*E76+G77*E77+G78*E78+G79*E79+G80*E80 ->  | K81: =K74*I74+K75*I75+K76*I76+K77*I77+K78*I78+K79*I79+K80*I80 ->  | N81: =N74*M74+N75*M75+N76*M76+N77*M77+N78*M78+N79*M79+N80*M80 -> 
A83: 41 | B83: 4 | E83: 42 | I83: 43
A84: ="Team "&VLOOKUP(B83,Roster!$B$2:$AF$33,1)&" "&VLOOKUP(B83,Roster!$B$2:$AF$33,2) -> Team 4 Pro-Tech
A85: =_xlfn.IFNA(VLOOKUP($A83,Roster!$A$2:$AF$33,8,0),0)&IF(A100="",""," / "&VLOOKUP($A100,Roster!$A$2:$AF$33,8,0)) -> Dave Schmitz | E85: =_xlfn.IFNA(VLOOKUP($E83,Roster!$A$2:$AF$33,8,0),0)&IF(E100="",""," / "&VLOOKUP($E100,Roster!$A$2:$AF$33,8,0)) -> John Babbitt | I85: =_xlfn.IFNA(VLOOKUP($I83,Roster!$A$2:$AF$33,8,0),0)&IF(I100="",""," / "&VLOOKUP($I100,Roster!$A$2:$AF$33,8,0)) -> Larry Tolar | M85: =A84 -> Team 4 Pro-Tech
A86: Award Category | B86: Ref | C86: Award | E86: Award Category | F86: Ref | G86: Award | I86: Award Category | J86: Ref | K86: Award | M86: Award Category | N86: Award
A87: Bowler High Avg. | E87: Bowler High Avg. | I87: Bowler High Avg. | M87: Bowler High Avg. | N87: =C87+G87+K87 -> 0
A88: Bowler High Points | E88: Bowler High Points | I88: Bowler High Points | M88: Bowler High Points | N88: 0
A89: Bowler High Game | E89: Bowler High Game | I89: Bowler High Game | M89: Bowler High Game | N89: 0
A90: Bowler High Series | E90: Bowler High Series | F90: 1002 | I90: Bowler High Series | M90: Bowler High Series | N90: 0
A91: Team High Game | B91: 760 | E91: Team High Game | F91: =$B91 -> 760 | G91: =$C91 -> 0 | I91: Team High Game | J91: =$B91 -> 760 | K91: =$C91 -> 0 | M91: Team High Game | N91: 0
A92: Team High Series | B92: 2851 | C92: ='Prize Fund'!H44/3 -> 10 | E92: Team High Series | F92: 2851 | G92: 10 | I92: Team High Series | J92: 2851 | K92: 10 | M92: Team High Series | N92: 30
A93: Segment 1 Points | B93: =VLOOKUP($B83,'Team Awards'!$B$6:$F$15,4,0) ->  | C93: =VLOOKUP($B83,'Team Awards'!$B$6:$F$15,3,0) ->  | E93: Segment 1 Points | I93: Segment 1 Points | M93: Segment 1 Points
A94: Segment 2 Points | B94: =VLOOKUP($B83,'Team Awards'!$G$6:$K$15,4,0) ->  | C94: =VLOOKUP($B83,'Team Awards'!$G$6:$K$15,3,0) ->  | E94: Segment 2 Points | I94: Segment 2 Points | M94: Segment 2 Points
A95: Segment 3 Points | B95: =VLOOKUP($B83,'Team Awards'!$L$6:$O$15,4,0) ->  | C95: =VLOOKUP($B83,'Team Awards'!$L$6:$O$15,3,0) ->  | E95: Segment 3 Points | I95: Segment 3 Points | M95: Segment 3 Points
A96: Season Team Points | E96: Season Team Points | F96: 0 | G96: 0 | I96: Season Team Points | J96: 0 | K96: 0 | M96: Season Team Points | N96: 0
A97: League Championship | E97: League Championship | F97: 0 | G97: 0 | I97: League Championship | J97: 0 | K97: 0 | M97: League Championship | N97: 0
A98: Over Avg. Sweeper | E98: Over Avg. Sweeper | I98: Over Avg. Sweeper | M98: Over Avg. Sweeper | N98: 0
A99: Total | C99: =SUM(C87:C98) ->  | E99: Total | G99: =SUM(G87:G98) ->  | I99: Total | K99: =SUM(K87:K98) ->  | M99: Total | N99: =SUM(N87:N98) ->  | O99: =C93+C94+C95+G93+G94+G95+K93+K94+K95 -> 
A101: 100 | B101: =IF(C101*A101>0,C99-(C101*A101),C99) ->  | C101: =IF(C99>(A101-1),ROUNDDOWN(C99/A101,0),0) ->  | D101: =IF(D99>(A101-1),ROUNDDOWN(D99/A101,0),0) -> 0 | E101: 100 | F101: =IF(G101*E101>0,G99-(G101*E101),G99) ->  | G101: =IF(G99>(E101-1),ROUNDDOWN(G99/E101,0),0) ->  | I101: 100 | J101: =IF(K101*I101>0,K99-(K101*I101),K99) ->  | K101: =IF(K99>(I101-1),ROUNDDOWN(K99/I101,0),0) ->  | M101: 100 | N101: =C101+G101+K101 -> 
A102: 50 | B102: =IF(C102*A102>0,B101-(C102*A102),B101) ->  | C102: =IF(B101>(A102-1),ROUNDDOWN(B101/A102,0),0) ->  | D102: =IF(C101>(A102-1),ROUNDDOWN(C101/A102,0),0) ->  | E102: 50 | F102: =IF(G102*E102>0,F101-(G102*E102),F101) ->  | G102: =IF(F101>(E102-1),ROUNDDOWN(F101/E102,0),0) ->  | I102: 50 | J102: =IF(K102*I102>0,J101-(K102*I102),J101) ->  | K102: =IF(J101>(I102-1),ROUNDDOWN(J101/I102,0),0) ->  | M102: 50
A103: 20 | E103: 20 | I103: 20 | M103: 20
A104: 10 | E104: 10 | I104: 10 | M104: 10
A105: 5 | E105: 5 | I105: 5 | M105: 5
A106: 1 | E106: 1 | I106: 1 | M106: 1
A107: 0.25 | E107: 0.25 | I107: 0.25 | M107: 0.25
C108: =C101*A101+C102*A102+C103*A103+C104*A104+C105*A105+C106*A106+C107*A107 ->  | D108: =D101*A101+D102*A102+D103*A103+D104*A104+D105*A105+D106*A106+D107*A107 ->  | G108: =G101*E101+G102*E102+G103*E103+G104*E104+G105*E105+G106*E106+G107*E107 ->  | K108: =K101*I101+K102*I102+K103*I103+K104*I104+K105*I105+K106*I106+K107*I107 ->  | N108: =N101*M101+N102*M102+N103*M103+N104*M104+N105*M105+N106*M106+N107*M107 -> 
A110: 51 | B110: 5 | E110: 52 | I110: 53
A111: ="Team "&VLOOKUP(B110,Roster!$B$2:$AF$33,1)&" "&VLOOKUP(B110,Roster!$B$2:$AF$33,2) -> Team 5
A112: =_xlfn.IFNA(VLOOKUP($A110,Roster!$A$2:$AF$33,8,0),0)&IF(A127="",""," / "&VLOOKUP($A127,Roster!$A$2:$AF$33,8,0)) -> Dana Barrette | E112: =_xlfn.IFNA(VLOOKUP($E110,Roster!$A$2:$AF$33,8,0),0)&IF(E127="",""," / "&VLOOKUP($E127,Roster!$A$2:$AF$33,8,0)) -> Larry Latham | I112: =_xlfn.IFNA(VLOOKUP($I110,Roster!$A$2:$AF$33,8,0),0)&IF(I127="",""," / "&VLOOKUP($I127,Roster!$A$2:$AF$33,8,0)) -> Bob Reed | M112: =A111 -> Team 5
A113: Award Category | B113: Ref | C113: Award | E113: Award Category | F113: Ref | G113: Award | I113: Award Category | J113: Ref | K113: Award | M113: Award Category | N113: Award
A114: Bowler High Avg. | E114: Bowler High Avg. | I114: Bowler High Avg. | M114: Bowler High Avg. | N114: =C114+G114+K114 -> 0
A115: Bowler High Points | E115: Bowler High Points | F115: 81 | I115: Bowler High Points | M115: Bowler High Points | N115: 0
A116: Bowler High Game | E116: Bowler High Game | I116: Bowler High Game | M116: Bowler High Game | N116: 0
A117: Bowler High Series | B117: 1003 | C117: ='Prize Fund'!H40 -> 30 | E117: Bowler High Series | I117: Bowler High Series | M117: Bowler High Series | N117: 30
A118: Team High Game | B118: 759 | C118: ='Prize Fund'!H43/3 -> 10 | E118: Team High Game | F118: =$B118 -> 759 | G118: =$C118 -> 10 | I118: Team High Game | J118: =$B118 -> 759 | K118: =$C118 -> 10 | M118: Team High Game | N118: 30
A119: Team High Series | E119: Team High Series | F119: 0 | G119: 0 | I119: Team High Series | J119: 0 | K119: 0 | M119: Team High Series | N119: 0
A120: Segment 1 Points | B120: =VLOOKUP($B110,'Team Awards'!$B$6:$F$15,4,0) ->  | C120: =VLOOKUP($B110,'Team Awards'!$B$6:$F$15,3,0) ->  | E120: Segment 1 Points | I120: Segment 1 Points | M120: Segment 1 Points
A121: Segment 2 Points | B121: =VLOOKUP($B110,'Team Awards'!$G$6:$K$15,4,0) ->  | C121: =VLOOKUP($B110,'Team Awards'!$G$6:$K$15,3,0) ->  | E121: Segment 2 Points | I121: Segment 2 Points | M121: Segment 2 Points
A122: Segment 3 Points | B122: =VLOOKUP($B110,'Team Awards'!$L$6:$O$15,4,0) ->  | C122: =VLOOKUP($B110,'Team Awards'!$L$6:$O$15,3,0) ->  | E122: Segment 3 Points | I122: Segment 3 Points | M122: Segment 3 Points
A123: Season Team Points | E123: Season Team Points | F123: 0 | G123: 0 | I123: Season Team Points | J123: 0 | K123: 0 | M123: Season Team Points | N123: 0
A124: League Championship | E124: League Championship | F124: 0 | G124: 0 | I124: League Championship | J124: 0 | K124: 0 | M124: League Championship | N124: 0
A125: Over Avg. Sweeper | E125: Over Avg. Sweeper | I125: Over Avg. Sweeper | M125: Over Avg. Sweeper | N125: 0
A126: Total | C126: =SUM(C114:C125) ->  | E126: Total | G126: =SUM(G114:G125) ->  | I126: Total | K126: =SUM(K114:K125) ->  | M126: Total | N126: =SUM(N114:N125) ->  | O126: =C120+C121+C122+G120+G121+G122+K120+K121+K122 -> 
A128: 100 | B128: =IF(C128*A128>0,C126-(C128*A128),C126) ->  | C128: =IF(C126>(A128-1),ROUNDDOWN(C126/A128,0),0) ->  | D128: =IF(D126>(A128-1),ROUNDDOWN(D126/A128,0),0) -> 0 | E128: 100 | F128: =IF(G128*E128>0,G126-(G128*E128),G126) ->  | G128: =IF(G126>(E128-1),ROUNDDOWN(G126/E128,0),0) ->  | I128: 100 | J128: =IF(K128*I128>0,K126-(K128*I128),K126) ->  | K128: =IF(K126>(I128-1),ROUNDDOWN(K126/I128,0),0) ->  | M128: 100 | N128: =C128+G128+K128 -> 
A129: 50 | B129: =IF(C129*A129>0,B128-(C129*A129),B128) ->  | C129: =IF(B128>(A129-1),ROUNDDOWN(B128/A129,0),0) ->  | D129: =IF(C128>(A129-1),ROUNDDOWN(C128/A129,0),0) ->  | E129: 50 | F129: =IF(G129*E129>0,F128-(G129*E129),F128) ->  | G129: =IF(F128>(E129-1),ROUNDDOWN(F128/E129,0),0) ->  | I129: 50 | J129: =IF(K129*I129>0,J128-(K129*I129),J128) ->  | K129: =IF(J128>(I129-1),ROUNDDOWN(J128/I129,0),0) ->  | M129: 50
A130: 20 | E130: 20 | I130: 20 | M130: 20
A131: 10 | E131: 10 | I131: 10 | M131: 10
A132: 5 | E132: 5 | I132: 5 | M132: 5
A133: 1 | E133: 1 | I133: 1 | M133: 1
A134: 0.25 | E134: 0.25 | I134: 0.25 | M134: 0.25
C135: =C128*A128+C129*A129+C130*A130+C131*A131+C132*A132+C133*A133+C134*A134 ->  | D135: =D128*A128+D129*A129+D130*A130+D131*A131+D132*A132+D133*A133+D134*A134 ->  | G135: =G128*E128+G129*E129+G130*E130+G131*E131+G132*E132+G133*E133+G134*E134 ->  | K135: =K128*I128+K129*I129+K130*I130+K131*I131+K132*I132+K133*I133+K134*I134 ->  | N135: =N128*M128+N129*M129+N130*M130+N131*M131+N132*M132+N133*M133+N134*M134 -> 
A136: 61 | B136: 6 | E136: 62 | I136: 63
A137: ="Team "&VLOOKUP(B136,Roster!$B$2:$AF$33,1)&" "&VLOOKUP(B136,Roster!$B$2:$AF$33,2) -> Team 6 Your Strike Shop
A138: =_xlfn.IFNA(VLOOKUP($A136,Roster!$A$2:$AF$33,8,0),0)&IF(A153="",""," / "&VLOOKUP($A153,Roster!$A$2:$AF$33,8,0)) -> Ken Pavlik | E138: =_xlfn.IFNA(VLOOKUP($E136,Roster!$A$2:$AF$33,8,0),0)&IF(E153="",""," / "&VLOOKUP($E153,Roster!$A$2:$AF$33,8,0)) -> Mike Watt | I138: =_xlfn.IFNA(VLOOKUP($I136,Roster!$A$2:$AF$33,8,0),0)&IF(I153="",""," / "&VLOOKUP($I153,Roster!$A$2:$AF$33,8,0)) -> 0 | M138: =A137 -> Team 6 Your Strike Shop
A139: Award Category | B139: Ref | C139: Award | E139: Award Category | F139: Ref | G139: Award | I139: Award Category | J139: Ref | K139: Award | M139: Award Category | N139: Award
A140: Bowler High Avg. | E140: Bowler High Avg. | I140: Bowler High Avg. | M140: Bowler High Avg. | N140: =C140+G140+K140 -> 0
A141: Bowler High Points | E141: Bowler High Points | I141: Bowler High Points | M141: Bowler High Points | N141: 0
A142: Bowler High Game | E142: Bowler High Game | I142: Bowler High Game | M142: Bowler High Game | N142: 0
A143: Bowler High Series | E143: Bowler High Series | I143: Bowler High Series | M143: Bowler High Series | N143: 0
A144: Team High Game | E144: Team High Game | F144: =$B144 -> 0 | G144: =$C144 -> 0 | I144: Team High Game | J144: =$B144 -> 0 | K144: =$C144 -> 0 | M144: Team High Game | N144: 0
A145: Team High Series | E145: Team High Series | F145: 0 | G145: 0 | I145: Team High Series | J145: 0 | K145: 0 | M145: Team High Series | N145: 0
A146: Segment 1 Points | B146: =VLOOKUP($B136,'Team Awards'!$B$6:$F$15,4,0) ->  | C146: =VLOOKUP($B136,'Team Awards'!$B$6:$F$15,3,0) ->  | E146: Segment 1 Points | I146: Segment 1 Points | M146: Segment 1 Points
A147: Segment 2 Points | B147: =VLOOKUP($B136,'Team Awards'!$G$6:$K$15,4,0) ->  | C147: =VLOOKUP($B136,'Team Awards'!$G$6:$K$15,3,0) ->  | E147: Segment 2 Points | I147: Segment 2 Points | M147: Segment 2 Points
A148: Segment 3 Points | B148: =VLOOKUP($B136,'Team Awards'!$L$6:$O$15,4,0) ->  | C148: =VLOOKUP($B136,'Team Awards'!$L$6:$O$15,3,0) ->  | E148: Segment 3 Points | I148: Segment 3 Points | M148: Segment 3 Points
A149: Season Team Points | E149: Season Team Points | F149: 0 | G149: 0 | I149: Season Team Points | J149: 0 | K149: 0 | M149: Season Team Points | N149: 0
A150: League Championship | E150: League Championship | F150: 0 | G150: 0 | I150: League Championship | J150: 0 | K150: 0 | M150: League Championship | N150: 0
A151: Over Avg. Sweeper | E151: Over Avg. Sweeper | I151: Over Avg. Sweeper | M151: Over Avg. Sweeper | N151: 0
A152: Total | C152: =SUM(C140:C151) ->  | E152: Total | G152: =SUM(G140:G151) ->  | I152: Total | K152: =SUM(K140:K151) ->  | M152: Total | N152: =SUM(N140:N151) ->  | O152: =C146+C147+C148+G146+G147+G148+K146+K147+K148 -> 
A154: 100 | B154: =IF(C154*A154>0,C152-(C154*A154),C152) ->  | C154: =IF(C152>(A154-1),ROUNDDOWN(C152/A154,0),0) ->  | D154: =IF(D152>(A154-1),ROUNDDOWN(D152/A154,0),0) -> 0 | E154: 100 | F154: =IF(G154*E154>0,G152-(G154*E154),G152) ->  | G154: =IF(G152>(E154-1),ROUNDDOWN(G152/E154,0),0) ->  | I154: 100 | J154: =IF(K154*I154>0,K152-(K154*I154),K152) ->  | K154: =IF(K152>(I154-1),ROUNDDOWN(K152/I154,0),0) ->  | M154: 100 | N154: =C154+G154+K154 -> 
A155: 50 | B155: =IF(C155*A155>0,B154-(C155*A155),B154) ->  | C155: =IF(B154>(A155-1),ROUNDDOWN(B154/A155,0),0) ->  | D155: =IF(C154>(A155-1),ROUNDDOWN(C154/A155,0),0) ->  | E155: 50 | F155: =IF(G155*E155>0,F154-(G155*E155),F154) ->  | G155: =IF(F154>(E155-1),ROUNDDOWN(F154/E155,0),0) ->  | I155: 50 | J155: =IF(K155*I155>0,J154-(K155*I155),J154) ->  | K155: =IF(J154>(I155-1),ROUNDDOWN(J154/I155,0),0) ->  | M155: 50
A156: 20 | E156: 20 | I156: 20 | M156: 20
A157: 10 | E157: 10 | I157: 10 | M157: 10
A158: 5 | E158: 5 | I158: 5 | M158: 5
A159: 1 | E159: 1 | I159: 1 | M159: 1
A160: 0.25 | E160: 0.25 | I160: 0.25 | M160: 0.25
C161: =C154*A154+C155*A155+C156*A156+C157*A157+C158*A158+C159*A159+C160*A160 ->  | D161: =D154*A154+D155*A155+D156*A156+D157*A157+D158*A158+D159*A159+D160*A160 ->  | G161: =G154*E154+G155*E155+G156*E156+G157*E157+G158*E158+G159*E159+G160*E160 ->  | K161: =K154*I154+K155*I155+K156*I156+K157*I157+K158*I158+K159*I159+K160*I160 ->  | N161: =N154*M154+N155*M155+N156*M156+N157*M157+N158*M158+N159*M159+N160*M160 -> 
A162: 71 | B162: 7 | E162: 72 | I162: 73
A163: ="Team "&VLOOKUP(B162,Roster!$B$2:$AF$33,1)&" "&VLOOKUP(B162,Roster!$B$2:$AF$33,2) -> Team 7 Bitburgers
A164: =_xlfn.IFNA(VLOOKUP($A162,Roster!$A$2:$AF$33,8,0),0)&IF(A179="",""," / "&VLOOKUP($A179,Roster!$A$2:$AF$33,8,0)) -> Paul Kleckner | E164: =_xlfn.IFNA(VLOOKUP($E162,Roster!$A$2:$AF$33,8,0),0)&IF(E179="",""," / "&VLOOKUP($E179,Roster!$A$2:$AF$33,8,0)) -> Bob Edge | I164: =_xlfn.IFNA(VLOOKUP($I162,Roster!$A$2:$AF$33,8,0),0)&IF(I179="",""," / "&VLOOKUP($I179,Roster!$A$2:$AF$33,8,0)) -> Terry Camp | M164: =A163 -> Team 7 Bitburgers
A165: Award Category | B165: Ref | C165: Award | E165: Award Category | F165: Ref | G165: Award | I165: Award Category | J165: Ref | K165: Award | M165: Award Category | N165: Award
A166: Bowler High Avg. | E166: Bowler High Avg. | I166: Bowler High Avg. | M166: Bowler High Avg. | N166: =C166+G166+K166 -> 0
A167: Bowler High Points | E167: Bowler High Points | I167: Bowler High Points | M167: Bowler High Points | N167: 0
A168: Bowler High Game | E168: Bowler High Game | I168: Bowler High Game | M168: Bowler High Game | N168: 0
A169: Bowler High Series | E169: Bowler High Series | I169: Bowler High Series | J169: 1005 | K169: ='Prize Fund'!G40 -> 50 | M169: Bowler High Series | N169: 50
A170: Team High Game | B170: 769 | C170: ='Prize Fund'!G43/3 -> 20 | E170: Team High Game | F170: =$B170 -> 769 | G170: =$C170 -> 20 | I170: Team High Game | J170: =$B170 -> 769 | K170: =$C170 -> 20 | M170: Team High Game | N170: 60
A171: Team High Series | B171: 2758 | E171: Team High Series | F171: 2758 | G171: 0 | I171: Team High Series | J171: 2758 | K171: 0 | M171: Team High Series | N171: 0
A172: Segment 1 Points | B172: =VLOOKUP($B162,'Team Awards'!$B$6:$F$15,4,0) ->  | C172: =VLOOKUP($B162,'Team Awards'!$B$6:$F$15,3,0) ->  | E172: Segment 1 Points | I172: Segment 1 Points | M172: Segment 1 Points
A173: Segment 2 Points | B173: =VLOOKUP($B162,'Team Awards'!$G$6:$K$15,4,0) ->  | C173: =VLOOKUP($B162,'Team Awards'!$G$6:$K$15,3,0) ->  | E173: Segment 2 Points | I173: Segment 2 Points | M173: Segment 2 Points
A174: Segment 3 Points | B174: =VLOOKUP($B162,'Team Awards'!$L$6:$O$15,4,0) ->  | C174: =VLOOKUP($B162,'Team Awards'!$L$6:$O$15,3,0) ->  | E174: Segment 3 Points | I174: Segment 3 Points | M174: Segment 3 Points
A175: Season Team Points | E175: Season Team Points | F175: 0 | G175: 0 | I175: Season Team Points | J175: 0 | K175: 0 | M175: Season Team Points | N175: 0
A176: League Championship | E176: League Championship | F176: 0 | G176: 0 | I176: League Championship | J176: 0 | K176: 0 | M176: League Championship | N176: 0
A177: Over Avg. Sweeper | E177: Over Avg. Sweeper | I177: Over Avg. Sweeper | M177: Over Avg. Sweeper | N177: 0
A178: Total | C178: =SUM(C166:C177) ->  | E178: Total | G178: =SUM(G166:G177) ->  | I178: Total | K178: =SUM(K166:K177) ->  | M178: Total | N178: =SUM(N166:N177) ->  | O178: =C172+C173+C174+G172+G173+G174+K172+K173+K174 -> 
A180: 100 | B180: =IF(C180*A180>0,C178-(C180*A180),C178) ->  | C180: =IF(C178>(A180-1),ROUNDDOWN(C178/A180,0),0) ->  | D180: =IF(D178>(A180-1),ROUNDDOWN(D178/A180,0),0) -> 0 | E180: 100 | F180: =IF(G180*E180>0,G178-(G180*E180),G178) ->  | G180: =IF(G178>(E180-1),ROUNDDOWN(G178/E180,0),0) ->  | I180: 100 | J180: =IF(K180*I180>0,K178-(K180*I180),K178) ->  | K180: =IF(K178>(I180-1),ROUNDDOWN(K178/I180,0),0) ->  | M180: 100 | N180: =C180+G180+K180 -> 
A181: 50 | B181: =IF(C181*A181>0,B180-(C181*A181),B180) ->  | C181: =IF(B180>(A181-1),ROUNDDOWN(B180/A181,0),0) ->  | D181: =IF(C180>(A181-1),ROUNDDOWN(C180/A181,0),0) ->  | E181: 50 | F181: =IF(G181*E181>0,F180-(G181*E181),F180) ->  | G181: =IF(F180>(E181-1),ROUNDDOWN(F180/E181,0),0) ->  | I181: 50 | J181: =IF(K181*I181>0,J180-(K181*I181),J180) ->  | K181: =IF(J180>(I181-1),ROUNDDOWN(J180/I181,0),0) ->  | M181: 50
A182: 20 | E182: 20 | I182: 20 | M182: 20
A183: 10 | E183: 10 | I183: 10 | M183: 10
A184: 5 | E184: 5 | I184: 5 | M184: 5
A185: 1 | E185: 1 | I185: 1 | M185: 1
A186: 0.25 | E186: 0.25 | I186: 0.25 | M186: 0.25
C187: =C180*A180+C181*A181+C182*A182+C183*A183+C184*A184+C185*A185+C186*A186 ->  | D187: =D180*A180+D181*A181+D182*A182+D183*A183+D184*A184+D185*A185+D186*A186 ->  | G187: =G180*E180+G181*E181+G182*E182+G183*E183+G184*E184+G185*E185+G186*E186 ->  | K187: =K180*I180+K181*I181+K182*I182+K183*I183+K184*I184+K185*I185+K186*I186 ->  | N187: =N180*M180+N181*M181+N182*M182+N183*M183+N184*M184+N185*M185+N186*M186 -> 
A188: 81 | B188: 8 | E188: 82 | I188: 83
A189: ="Team "&VLOOKUP(B188,Roster!$B$2:$AF$33,1)&" "&VLOOKUP(B188,Roster!$B$2:$AF$33,2) -> Team 8 Brenda's Kitchen
A190: =_xlfn.IFNA(VLOOKUP($A188,Roster!$A$2:$AF$33,8,0),0)&IF(A205="",""," / "&VLOOKUP($A205,Roster!$A$2:$AF$33,8,0)) -> Dan Imholte | E190: =_xlfn.IFNA(VLOOKUP($E188,Roster!$A$2:$AF$33,8,0),0)&IF(E205="",""," / "&VLOOKUP($E205,Roster!$A$2:$AF$33,8,0)) -> Terry Hamman | I190: =_xlfn.IFNA(VLOOKUP($I188,Roster!$A$2:$AF$33,8,0),0)&IF(I205="",""," / "&VLOOKUP($I205,Roster!$A$2:$AF$33,8,0)) -> Gary Bentley | M190: =A189 -> Team 8 Brenda's Kitchen
A191: Award Category | B191: Ref | C191: Award | E191: Award Category | F191: Ref | G191: Award | I191: Award Category | J191: Ref | K191: Award | M191: Award Category | N191: Award
A192: Bowler High Avg. | E192: Bowler High Avg. | I192: Bowler High Avg. | M192: Bowler High Avg. | N192: =C192+G192+K192 -> 0
A193: Bowler High Points | E193: Bowler High Points | I193: Bowler High Points | M193: Bowler High Points | N193: 0
A194: Bowler High Game | E194: Bowler High Game | I194: Bowler High Game | M194: Bowler High Game | N194: 0
A195: Bowler High Series | E195: Bowler High Series | I195: Bowler High Series | M195: Bowler High Series | N195: 0
A196: Team High Game | E196: Team High Game | F196: =$B196 -> 0 | G196: =$C196 -> 0 | I196: Team High Game | J196: =$B196 -> 0 | K196: =$C196 -> 0 | M196: Team High Game | N196: 0
A197: Team High Series | E197: Team High Series | F197: 0 | G197: 0 | I197: Team High Series | J197: 0 | K197: 0 | M197: Team High Series | N197: 0
A198: Segment 1 Points | B198: =VLOOKUP($B188,'Team Awards'!$B$6:$F$15,4,0) ->  | C198: =VLOOKUP($B188,'Team Awards'!$B$6:$F$15,3,0) ->  | E198: Segment 1 Points | I198: Segment 1 Points | M198: Segment 1 Points
A199: Segment 2 Points | B199: =VLOOKUP($B188,'Team Awards'!$G$6:$K$15,4,0) ->  | C199: =VLOOKUP($B188,'Team Awards'!$G$6:$K$15,3,0) ->  | E199: Segment 2 Points | I199: Segment 2 Points | M199: Segment 2 Points
A200: Segment 3 Points | B200: =VLOOKUP($B188,'Team Awards'!$L$6:$O$15,4,0) ->  | C200: =VLOOKUP($B188,'Team Awards'!$L$6:$O$15,3,0) ->  | E200: Segment 3 Points | I200: Segment 3 Points | M200: Segment 3 Points
A201: Season Team Points | E201: Season Team Points | F201: 0 | G201: 0 | I201: Season Team Points | J201: 0 | K201: 0 | M201: Season Team Points | N201: 0
A202: League Championship | E202: League Championship | F202: 0 | G202: 0 | I202: League Championship | J202: 0 | K202: 0 | M202: League Championship | N202: 0
A203: Over Avg. Sweeper | E203: Over Avg. Sweeper | I203: Over Avg. Sweeper | M203: Over Avg. Sweeper | N203: 0
A204: Total | C204: =SUM(C192:C203) ->  | E204: Total | G204: =SUM(G192:G203) ->  | I204: Total | K204: =SUM(K192:K203) ->  | M204: Total | N204: =SUM(N192:N203) ->  | O204: =C198+C199+C200+G198+G199+G200+K198+K199+K200 -> 
A206: 100 | B206: =IF(C206*A206>0,C204-(C206*A206),C204) ->  | C206: =IF(C204>(A206-1),ROUNDDOWN(C204/A206,0),0) ->  | D206: =IF(D204>(A206-1),ROUNDDOWN(D204/A206,0),0) -> 0 | E206: 100 | F206: =IF(G206*E206>0,G204-(G206*E206),G204) ->  | G206: =IF(G204>(E206-1),ROUNDDOWN(G204/E206,0),0) ->  | I206: 100 | J206: =IF(K206*I206>0,K204-(K206*I206),K204) ->  | K206: =IF(K204>(I206-1),ROUNDDOWN(K204/I206,0),0) ->  | M206: 100 | N206: =C206+G206+K206 -> 
A207: 50 | B207: =IF(C207*A207>0,B206-(C207*A207),B206) ->  | C207: =IF(B206>(A207-1),ROUNDDOWN(B206/A207,0),0) ->  | D207: =IF(C206>(A207-1),ROUNDDOWN(C206/A207,0),0) ->  | E207: 50 | F207: =IF(G207*E207>0,F206-(G207*E207),F206) ->  | G207: =IF(F206>(E207-1),ROUNDDOWN(F206/E207,0),0) ->  | I207: 50 | J207: =IF(K207*I207>0,J206-(K207*I207),J206) ->  | K207: =IF(J206>(I207-1),ROUNDDOWN(J206/I207,0),0) ->  | M207: 50
A208: 20 | E208: 20 | I208: 20 | M208: 20
A209: 10 | E209: 10 | I209: 10 | M209: 10
A210: 5 | E210: 5 | I210: 5 | M210: 5
A211: 1 | E211: 1 | I211: 1 | M211: 1
A212: 0.25 | E212: 0.25 | I212: 0.25 | M212: 0.25
C213: =C206*A206+C207*A207+C208*A208+C209*A209+C210*A210+C211*A211+C212*A212 ->  | D213: =D206*A206+D207*A207+D208*A208+D209*A209+D210*A210+D211*A211+D212*A212 ->  | G213: =G206*E206+G207*E207+G208*E208+G209*E209+G210*E210+G211*E211+G212*E212 ->  | K213: =K206*I206+K207*I207+K208*I208+K209*I209+K210*I210+K211*I211+K212*I212 ->  | N213: =N206*M206+N207*M207+N208*M208+N209*M209+N210*M210+N211*M211+N212*M212 -> 
... 372 more rows

Sheet Withdrawl
B3: Men's Classic League
B4: Acct: 2527430499
B5: Denomination | C5: Number | D5: Amount
B6: 100 | C6: ='Distribution 2017'!AA689 ->  | D6: =C6*B6 -> 
B7: 50 | C7: ='Distribution 2017'!AB689 -> 
B8: 20 | C8: ='Distribution 2017'!AC689 -> 
B9: 10 | C9: ='Distribution 2017'!AD689 -> 
B10: 5 | C10: ='Distribution 2017'!AE689 -> 
B11: 1 | C11: ='Distribution 2017'!AF689 -> 
B12: 0.25 | C12: 0 | D12: 0
D13: =SUM(D6:D12) ->  | F13: ='Distribution 2017'!AH689 -> 
D17: 120 | E17: RCSCW
D18: 217.5 | E18: RCSCW
D19: 10 | E19: Placque
D20: =SUM(D13:D19) ->  | E20: Amt Required
D22: 8563.18 | E22: Bank
D23: =D22-D20 ->  | E23: Carried Over

Sheet Lineup
B1: TEAM ROSTER LINEUP FORM
B2: This form is DUE in the League Office a Minimum of 1 Week Prior to Start Date
G4: LEAGUE : | M4: Classic
B5: FOR HOUSE COMPUTER USE
G6: SECRETARY : | M6: Marty Bell
B7: Date Received
G8: START DATE : | M8: 2016-09-05
B10: CIRCLE APPROPRIATE FORMAT(S): MEN WOMEN MIXED NO-TAP | F10: MEN | I10: WOMEN | M10: MIXED | P10: NO TAP
B12: League Secretary if your bowlers start the season with a Book Average or an Entering Average enter the figure in the appropriate column. It will be assumed that columns left blank mean the bowlers start the season with NO AVERAGE.
B14: =_xlfn.IFNA(VLOOKUP($A16,Roster!$A$2:$AF$34,2,0),0) -> 1 | C14: TEAM | E14: =_xlfn.IFNA(VLOOKUP($A16,Roster!$A$2:$AF$34,3,0),0) -> 0 | G14: BK | I14: AVG | M14: =_xlfn.IFNA(VLOOKUP($X16,Roster!$A$2:$AF$34,2,0),0) -> 2 | O14: TEAM | P14: =_xlfn.IFNA(VLOOKUP($X16,Roster!$A$2:$AF$34,3,0),0) -> Rascals | T14: BK | V14: AVG | Z14: Team No. and Name Formula (without the quotes)
B15: BOWLER | N15: BOWLER | Z15: "=IFNA(VLOOKUP($A16,'2016'!$A$2:$AA$32,2,0),0)"
A16: 11 | B16: 1 | C16: =_xlfn.IFNA(VLOOKUP($A16,Roster!$A$2:$AF$33,8,0),0) -> David Burke | I16: =_xlfn.IFNA(VLOOKUP($A16,Roster!$A$2:$AF$34,29,0),0) -> 0 | M16: 1 | N16: =_xlfn.IFNA(VLOOKUP($X16,Roster!$A$2:$AF$33,8,0),0) -> Marty Bell | V16: =_xlfn.IFNA(VLOOKUP($X16,Roster!$A$2:$AF$34,29,0),0) -> 204 | X16: 21 | Z16: "=IFNA(VLOOKUP($A16,'2016'!$A$2:$AA$32,3,0),0)"
A17: 12 | B17: 2 | C17: =_xlfn.IFNA(VLOOKUP($A17,Roster!$A$2:$AF$33,8,0),0) -> Rich Matich | I17: =_xlfn.IFNA(VLOOKUP($A17,Roster!$A$2:$AF$34,29,0),0) -> 222 | M17: 2 | N17: =_xlfn.IFNA(VLOOKUP($X17,Roster!$A$2:$AF$33,8,0),0) -> Alex Balok | V17: =_xlfn.IFNA(VLOOKUP($X17,Roster!$A$2:$AF$34,29,0),0) -> 215 | X17: 22 | Z17: "=IFNA(VLOOKUP($X16,'2016'!$A$2:$AA$32,2,0),0)"
A18: 13 | B18: 3 | C18: =_xlfn.IFNA(VLOOKUP($A18,Roster!$A$2:$AF$33,8,0),0) -> Cal Shirey | I18: =_xlfn.IFNA(VLOOKUP($A18,Roster!$A$2:$AF$34,29,0),0) -> 228 | M18: 3 | N18: =_xlfn.IFNA(VLOOKUP($X18,Roster!$A$2:$AF$33,8,0),0) -> Johnny Gonzales | V18: =_xlfn.IFNA(VLOOKUP($X18,Roster!$A$2:$AF$34,29,0),0) -> 220 | X18: 23 | Z18: "=IFNA(VLOOKUP($X16,'2016'!$A$2:$AA$32,3,0),0)"
A19: 14 | B19: 4 | C19: =_xlfn.IFNA(VLOOKUP($A19,Roster!$A$2:$AF$33,8,0),0) -> 0 | I19: =_xlfn.IFNA(VLOOKUP($A19,Roster!$A$2:$AF$34,29,0),0) -> 0 | M19: 4 | N19: =_xlfn.IFNA(VLOOKUP($X19,Roster!$A$2:$AF$33,8,0),0) -> 0 | V19: =_xlfn.IFNA(VLOOKUP($X19,Roster!$A$2:$AF$34,29,0),0) -> 0 | X19: 24
A20: 15 | B20: 5 | C20: =_xlfn.IFNA(VLOOKUP($A20,Roster!$A$2:$AF$33,8,0),0) -> 0 | I20: =_xlfn.IFNA(VLOOKUP($A20,Roster!$A$2:$AF$34,25,0),0) -> 0 | M20: 5 | N20: =_xlfn.IFNA(VLOOKUP($X20,Roster!$A$2:$AF$33,8,0),0) -> 0 | V20: =_xlfn.IFNA(VLOOKUP($X20,Roster!$A$2:$AF$34,25,0),0) -> 0 | X20: 25
B22: =_xlfn.IFNA(VLOOKUP($A24,Roster!$A$2:$AF$34,2,0),0) -> 3 | C22: TEAM | E22: =_xlfn.IFNA(VLOOKUP($A24,Roster!$A$2:$AF$34,3,0),0) -> 0 | G22: BK | I22: AVG | M22: =_xlfn.IFNA(VLOOKUP($X24,Roster!$A$2:$AF$34,2,0),0) -> 4 | O22: TEAM | P22: =_xlfn.IFNA(VLOOKUP($X24,Roster!$A$2:$AF$34,3,0),0) -> Pro-Tech | T22: BK | V22: AVG | Z22: AVG Formula (without the quotes)
B23: BOWLER | N23: BOWLER | Z23: "=IFNA(VLOOKUP($A18,'2016'!$A$2:$AA$32,25,0),0)"
A24: 31 | B24: 1 | C24: =_xlfn.IFNA(VLOOKUP($A24,Roster!$A$2:$AF$33,8,0),0) -> Jeff Richard | I24: =_xlfn.IFNA(VLOOKUP($A24,Roster!$A$2:$AF$34,29,0),0) -> 205 | M24: 1 | N24: =_xlfn.IFNA(VLOOKUP($X24,Roster!$A$2:$AF$33,8,0),0) -> Dave Schmitz | V24: =_xlfn.IFNA(VLOOKUP($X24,Roster!$A$2:$AF$34,29,0),0) -> 199 | X24: 41 | Z24: "=IFNA(VLOOKUP($X18,'2016'!$A$2:$AA$32,25,0),0)"
A25: 32 | B25: 2 | C25: =_xlfn.IFNA(VLOOKUP($A25,Roster!$A$2:$AF$33,8,0),0) -> Jerry Elsen | I25: =_xlfn.IFNA(VLOOKUP($A25,Roster!$A$2:$AF$34,29,0),0) -> 216 | M25: 2 | N25: =_xlfn.IFNA(VLOOKUP($X25,Roster!$A$2:$AF$33,8,0),0) -> John Babbitt | V25: =_xlfn.IFNA(VLOOKUP($X25,Roster!$A$2:$AF$34,29,0),0) -> 220 | X25: 42
A26: 33 | B26: 3 | C26: =_xlfn.IFNA(VLOOKUP($A26,Roster!$A$2:$AF$33,8,0),0) -> Bill Poff | I26: =_xlfn.IFNA(VLOOKUP($A26,Roster!$A$2:$AF$34,29,0),0) -> 221 | M26: 3 | N26: =_xlfn.IFNA(VLOOKUP($X26,Roster!$A$2:$AF$33,8,0),0) -> Larry Tolar | V26: =_xlfn.IFNA(VLOOKUP($X26,Roster!$A$2:$AF$34,29,0),0) -> 226 | X26: 43
A27: 34 | B27: 4 | C27: =_xlfn.IFNA(VLOOKUP($A27,Roster!$A$2:$AF$33,8,0),0) -> 0 | I27: =_xlfn.IFNA(VLOOKUP($A27,Roster!$A$2:$AF$34,29,0),0) -> 0 | M27: 4 | N27: =_xlfn.IFNA(VLOOKUP($X27,Roster!$A$2:$AF$33,8,0),0) -> 0 | V27: =_xlfn.IFNA(VLOOKUP($X27,Roster!$A$2:$AF$34,29,0),0) -> 0 | X27: 44 | Z27: Name Formula (without the quotes)
A28: 35 | B28: 5 | C28: =_xlfn.IFNA(VLOOKUP($A28,Roster!$A$2:$AF$33,8,0),0) -> 0 | I28: =_xlfn.IFNA(VLOOKUP($A28,Roster!$A$2:$AF$34,25,0),0) -> 0 | M28: 5 | N28: =_xlfn.IFNA(VLOOKUP($X28,Roster!$A$2:$AF$33,8,0),0) -> 0 | V28: =_xlfn.IFNA(VLOOKUP($X28,Roster!$A$2:$AF$34,25,0),0) -> 0 | X28: 45 | Z28: "=ifna(VLOOKUP($A24,'2016'!$A$2:$AA$31,6)&" "&VLOOKUP($A24,'2016'!$A$2:$AA$31,7,0),0)"
Z29: "=ifna(VLOOKUP($X24,'2016'!$A$2:$AA$31,6)&" "&VLOOKUP($X24,'2016'!$A$2:$AA$31,7,0),0)"
B30: =_xlfn.IFNA(VLOOKUP($A32,Roster!$A$2:$AF$34,2,0),0) -> 5 | C30: TEAM | E30: =_xlfn.IFNA(VLOOKUP($A32,Roster!$A$2:$AF$34,3,0),0) -> 0 | G30: BK | I30: AVG | M30: =_xlfn.IFNA(VLOOKUP($X32,Roster!$A$2:$AF$34,2,0),0) -> 6 | O30: TEAM | P30: =_xlfn.IFNA(VLOOKUP($X32,Roster!$A$2:$AF$34,3,0),0) -> Your Strike Shop | T30: BK | V30: AVG
B31: BOWLER | N31: BOWLER
A32: 51 | B32: 1 | C32: =_xlfn.IFNA(VLOOKUP($A32,Roster!$A$2:$AF$33,8,0),0) -> Dana Barrette | I32: =_xlfn.IFNA(VLOOKUP($A32,Roster!$A$2:$AF$34,29,0),0) -> 213 | M32: 1 | N32: =_xlfn.IFNA(VLOOKUP($X32,Roster!$A$2:$AF$33,8,0),0) -> Ken Pavlik | V32: =_xlfn.IFNA(VLOOKUP($X32,Roster!$A$2:$AF$34,29,0),0) -> 192 | X32: 61
A33: 52 | B33: 2 | C33: =_xlfn.IFNA(VLOOKUP($A33,Roster!$A$2:$AF$33,8,0),0) -> Larry Latham | I33: =_xlfn.IFNA(VLOOKUP($A33,Roster!$A$2:$AF$34,29,0),0) -> 215 | M33: 2 | N33: =_xlfn.IFNA(VLOOKUP($X33,Roster!$A$2:$AF$33,8,0),0) -> Mike Watt | V33: =_xlfn.IFNA(VLOOKUP($X33,Roster!$A$2:$AF$34,29,0),0) -> 223 | X33: 62
A34: 53 | B34: 3 | C34: =_xlfn.IFNA(VLOOKUP($A34,Roster!$A$2:$AF$33,8,0),0) -> Bob Reed | I34: =_xlfn.IFNA(VLOOKUP($A34,Roster!$A$2:$AF$34,29,0),0) -> 200 | M34: 3 | N34: =_xlfn.IFNA(VLOOKUP($X34,Roster!$A$2:$AF$33,8,0),0) -> 0 | V34: =_xlfn.IFNA(VLOOKUP($X34,Roster!$A$2:$AF$34,29,0),0) -> 0 | X34: 63
A35: 54 | B35: 4 | C35: =_xlfn.IFNA(VLOOKUP($A35,Roster!$A$2:$AF$33,8,0),0) -> 0 | I35: =_xlfn.IFNA(VLOOKUP($A35,Roster!$A$2:$AF$34,29,0),0) -> 0 | M35: 4 | N35: =_xlfn.IFNA(VLOOKUP($X35,Roster!$A$2:$AF$33,8,0),0) -> 0 | V35: =_xlfn.IFNA(VLOOKUP($X35,Roster!$A$2:$AF$34,29,0),0) -> 0 | X35: 64
A36: 55 | B36: 5 | C36: =_xlfn.IFNA(VLOOKUP($A36,Roster!$A$2:$AF$33,8,0),0) -> 0 | I36: =_xlfn.IFNA(VLOOKUP($A36,Roster!$A$2:$AF$34,25,0),0) -> 0 | M36: 5 | N36: =_xlfn.IFNA(VLOOKUP($X36,Roster!$A$2:$AF$33,8,0),0) -> 0 | V36: =_xlfn.IFNA(VLOOKUP($X36,Roster!$A$2:$AF$34,25,0),0) -> 0 | X36: 65
B38: =_xlfn.IFNA(VLOOKUP($A40,Roster!$A$2:$AF$34,2,0),0) -> 7 | C38: TEAM | E38: =_xlfn.IFNA(VLOOKUP($A40,Roster!$A$2:$AF$34,3,0),0) -> Bitburgers | G38: BK | I38: AVG | M38: =_xlfn.IFNA(VLOOKUP($X40,Roster!$A$2:$AF$34,2,0),0) -> 8 | O38: TEAM | P38: =_xlfn.IFNA(VLOOKUP($X40,Roster!$A$2:$AF$34,3,0),0) -> Brenda's Kitchen | T38: BK | V38: AVG
B39: BOWLER | N39: BOWLER
A40: 71 | B40: 1 | C40: =_xlfn.IFNA(VLOOKUP($A40,Roster!$A$2:$AF$33,8,0),0) -> Paul Kleckner | I40: =_xlfn.IFNA(VLOOKUP($A40,Roster!$A$2:$AF$34,29,0),0) -> 218 | M40: 1 | N40: =_xlfn.IFNA(VLOOKUP($X40,Roster!$A$2:$AF$33,8,0),0) -> Dan Imholte | V40: =_xlfn.IFNA(VLOOKUP($X40,Roster!$A$2:$AF$34,29,0),0) -> 205 | X40: 81
A41: 72 | B41: 2 | C41: =_xlfn.IFNA(VLOOKUP($A41,Roster!$A$2:$AF$33,8,0),0) -> Bob Edge | I41: =_xlfn.IFNA(VLOOKUP($A41,Roster!$A$2:$AF$34,29,0),0) -> 207 | M41: 2 | N41: =_xlfn.IFNA(VLOOKUP($X41,Roster!$A$2:$AF$33,8,0),0) -> Terry Hamman | V41: =_xlfn.IFNA(VLOOKUP($X41,Roster!$A$2:$AF$34,29,0),0) -> 207 | X41: 82
A42: 73 | B42: 3 | C42: =_xlfn.IFNA(VLOOKUP($A42,Roster!$A$2:$AF$33,8,0),0) -> Terry Camp | I42: =_xlfn.IFNA(VLOOKUP($A42,Roster!$A$2:$AF$34,29,0),0) -> 219 | M42: 3 | N42: =_xlfn.IFNA(VLOOKUP($X42,Roster!$A$2:$AF$33,8,0),0) -> Gary Bentley | V42: =_xlfn.IFNA(VLOOKUP($X42,Roster!$A$2:$AF$34,29,0),0) -> 209 | X42: 83
A43: 74 | B43: 4 | C43: =_xlfn.IFNA(VLOOKUP($A43,Roster!$A$2:$AF$33,8,0),0) -> 0 | I43: =_xlfn.IFNA(VLOOKUP($A43,Roster!$A$2:$AF$34,29,0),0) -> 0 | M43: 4 | N43: =_xlfn.IFNA(VLOOKUP($X43,Roster!$A$2:$AF$33,8,0),0) -> 0 | V43: =_xlfn.IFNA(VLOOKUP($X43,Roster!$A$2:$AF$34,29,0),0) -> 0 | X43: 84
A44: 75 | B44: 5 | C44: =_xlfn.IFNA(VLOOKUP($A44,Roster!$A$2:$AF$33,8,0),0) -> 0 | I44: =_xlfn.IFNA(VLOOKUP($A44,Roster!$A$2:$AF$34,29,0),0) -> 0 | M44: 5 | N44: =_xlfn.IFNA(VLOOKUP($X44,Roster!$A$2:$AF$33,8,0),0) -> 0 | V44: =_xlfn.IFNA(VLOOKUP($X44,Roster!$A$2:$AF$34,25,0),0) -> 0 | X44: 85
B46: =_xlfn.IFNA(VLOOKUP($A48,Roster!$A$2:$AF$34,2,0),0) -> 9 | C46: TEAM | E46: =_xlfn.IFNA(VLOOKUP($A48,Roster!$A$2:$AF$34,3,0),0) -> 0 | G46: BK | I46: AVG | M46: =_xlfn.IFNA(VLOOKUP($X48,Roster!$A$2:$AF$34,2,0),0) -> 10 | O46: TEAM | P46: =_xlfn.IFNA(VLOOKUP($X48,Roster!$A$2:$AF$34,3,0),0) -> Vital Care | T46: BK | V46: AVG
B47: BOWLER | N47: BOWLER
A48: 91 | B48: 1 | C48: =_xlfn.IFNA(VLOOKUP($A48,Roster!$A$2:$AF$33,8,0),0) -> Joe Couch | I48: =_xlfn.IFNA(VLOOKUP($A48,Roster!$A$2:$AF$34,29,0),0) -> 205 | M48: 1 | N48: =_xlfn.IFNA(VLOOKUP($X48,Roster!$A$2:$AF$33,8,0),0) -> Andy Lewis | V48: =_xlfn.IFNA(VLOOKUP($X48,Roster!$A$2:$AF$34,29,0),0) -> 203 | X48: 101
A49: 92 | B49: 2 | C49: =_xlfn.IFNA(VLOOKUP($A49,Roster!$A$2:$AF$33,8,0),0) -> Paul Williams | I49: =_xlfn.IFNA(VLOOKUP($A49,Roster!$A$2:$AF$34,29,0),0) -> 211 | M49: 2 | N49: =_xlfn.IFNA(VLOOKUP($X49,Roster!$A$2:$AF$33,8,0),0) -> Dennis Barnes | V49: =_xlfn.IFNA(VLOOKUP($X49,Roster!$A$2:$AF$34,29,0),0) -> 211 | X49: 102
A50: 93 | B50: 3 | C50: =_xlfn.IFNA(VLOOKUP($A50,Roster!$A$2:$AF$33,8,0),0) -> Ted Bogumil | I50: =_xlfn.IFNA(VLOOKUP($A50,Roster!$A$2:$AF$34,29,0),0) -> 231 | M50: 3 | N50: =_xlfn.IFNA(VLOOKUP($X50,Roster!$A$2:$AF$33,8,0),0) -> Gary McCoy | V50: =_xlfn.IFNA(VLOOKUP($X50,Roster!$A$2:$AF$34,29,0),0) -> 227 | X50: 103
A51: 94 | B51: 4 | C51: =_xlfn.IFNA(VLOOKUP($A51,Roster!$A$2:$AF$33,8,0),0) -> 0 | I51: =_xlfn.IFNA(VLOOKUP($A51,Roster!$A$2:$AF$34,29,0),0) -> 0 | M51: 4 | N51: =_xlfn.IFNA(VLOOKUP($X51,Roster!$A$2:$AF$33,8,0),0) -> 0 | V51: =_xlfn.IFNA(VLOOKUP($X51,Roster!$A$2:$AF$34,29,0),0) -> 0 | X51: 104
A52: 95 | B52: 5 | C52: =_xlfn.IFNA(VLOOKUP($A52,Roster!$A$2:$AF$33,8,0),0) -> 0 | I52: =_xlfn.IFNA(VLOOKUP($A52,Roster!$A$2:$AF$34,29,0),0) -> 0 | M52: 5 | N52: =_xlfn.IFNA(VLOOKUP($X52,Roster!$A$2:$AF$33,8,0),0) -> 0 | V52: =_xlfn.IFNA(VLOOKUP($X52,Roster!$A$2:$AF$34,25,0),0) -> 0 | X52: 105
B54: League Secretary if your bowlers start the season with a Book Average or an Entering Average enter the figure in the appropriate column. It will be assumed that columns left blank mean the bowlers start the season with NO AVERAGE.
B55: =_xlfn.IFNA(VLOOKUP($A57,Roster!$A$2:$AF$34,2,0),0) -> 11 | C55: TEAM | E55: =_xlfn.IFNA(VLOOKUP($A57,Roster!$A$2:$AF$34,3,0),0) -> 0 | G55: BK | I55: AVG | M55: =_xlfn.IFNA(VLOOKUP($X57,Roster!$A$2:$AF$34,2,0),0) -> 0 | O55: TEAM | P55: =_xlfn.IFNA(VLOOKUP($X57,Roster!$A$2:$AF$34,3,0),0) -> 0 | T55: BK | V55: AVG
B56: BOWLER | N56: BOWLER
A57: 111 | B57: 1 | C57: =_xlfn.IFNA(VLOOKUP($A57,Roster!$A$2:$AF$33,6)&" "&VLOOKUP($A57,Roster!$A$2:$AF$33,7,0),0) -> 0 | I57: =_xlfn.IFNA(VLOOKUP($A57,Roster!$A$2:$AF$34,25,0),0) -> 191 | M57: 1 | N57: =_xlfn.IFNA(VLOOKUP($X57,Roster!$A$2:$AF$33,6)&" "&VLOOKUP($X57,Roster!$A$2:$AF$33,7,0),0) -> 0 | V57: =_xlfn.IFNA(VLOOKUP($X57,Roster!$A$2:$AF$34,25,0),0) -> 0 | X57: 121
A58: 112 | B58: 2 | C58: =_xlfn.IFNA(VLOOKUP($A58,Roster!$A$2:$AF$33,6)&" "&VLOOKUP($A58,Roster!$A$2:$AF$33,7,0),0) -> 0 | I58: =_xlfn.IFNA(VLOOKUP($A58,Roster!$A$2:$AF$34,25,0),0) -> 0 | M58: 2 | N58: =_xlfn.IFNA(VLOOKUP($X58,Roster!$A$2:$AF$33,6)&" "&VLOOKUP($X58,Roster!$A$2:$AF$33,7,0),0) -> 0 | V58: =_xlfn.IFNA(VLOOKUP($X58,Roster!$A$2:$AF$34,25,0),0) -> 0 | X58: 122
A59: 113 | B59: 3 | C59: =_xlfn.IFNA(VLOOKUP($A59,Roster!$A$2:$AF$33,6)&" "&VLOOKUP($A59,Roster!$A$2:$AF$33,7,0),0) -> 0 | I59: =_xlfn.IFNA(VLOOKUP($A59,Roster!$A$2:$AF$34,25,0),0) -> 0 | M59: 3 | N59: =_xlfn.IFNA(VLOOKUP($X59,Roster!$A$2:$AF$33,6)&" "&VLOOKUP($X59,Roster!$A$2:$AF$33,7,0),0) -> 0 | V59: =_xlfn.IFNA(VLOOKUP($X59,Roster!$A$2:$AF$34,25,0),0) -> 0 | X59: 123
A60: 114 | B60: 4 | C60: =_xlfn.IFNA(VLOOKUP($A60,Roster!$A$2:$AF$33,6)&" "&VLOOKUP($A60,Roster!$A$2:$AF$33,7,0),0) -> 0 | I60: =_xlfn.IFNA(VLOOKUP($A60,Roster!$A$2:$AF$34,25,0),0) -> 0 | M60: 4 | N60: =_xlfn.IFNA(VLOOKUP($X60,Roster!$A$2:$AF$33,6)&" "&VLOOKUP($X60,Roster!$A$2:$AF$33,7,0),0) -> 0 | V60: =_xlfn.IFNA(VLOOKUP($X60,Roster!$A$2:$AF$34,25,0),0) -> 0 | X60: 124
A61: 115 | B61: 5 | C61: =_xlfn.IFNA(VLOOKUP($A61,Roster!$A$2:$AF$33,6)&" "&VLOOKUP($A61,Roster!$A$2:$AF$33,7,0),0) -> 0 | I61: =_xlfn.IFNA(VLOOKUP($A61,Roster!$A$2:$AF$34,25,0),0) -> 0 | M61: 5 | N61: =_xlfn.IFNA(VLOOKUP($X61,Roster!$A$2:$AF$33,6)&" "&VLOOKUP($X61,Roster!$A$2:$AF$33,7,0),0) -> 0 | V61: =_xlfn.IFNA(VLOOKUP($X61,Roster!$A$2:$AF$34,25,0),0) -> 0 | X61: 125
B62: =_xlfn.IFNA(VLOOKUP($A64,Roster!$A$2:$AF$34,2,0),0) -> 0 | C62: TEAM | E62: =_xlfn.IFNA(VLOOKUP($A64,Roster!$A$2:$AF$34,3,0),0) -> 0 | G62: BK | I62: AVG | M62: =_xlfn.IFNA(VLOOKUP($X64,Roster!$A$2:$AF$34,2,0),0) -> 0 | O62: TEAM | P62: =_xlfn.IFNA(VLOOKUP($X64,Roster!$A$2:$AF$34,3,0),0) -> 0 | T62: BK | V62: AVG
B63: BOWLER | N63: BOWLER
A64: 131 | B64: 1 | C64: =_xlfn.IFNA(VLOOKUP($A64,Roster!$A$2:$AF$33,6)&" "&VLOOKUP($A64,Roster!$A$2:$AF$33,7,0),0) -> 0 | I64: =_xlfn.IFNA(VLOOKUP($A64,Roster!$A$2:$AF$34,25,0),0) -> 0 | M64: 1 | V64: =_xlfn.IFNA(VLOOKUP($X64,Roster!$A$2:$AF$34,25,0),0) -> 0 | X64: 141
A65: 132 | B65: 2 | C65: =_xlfn.IFNA(VLOOKUP($A65,Roster!$A$2:$AF$33,6)&" "&VLOOKUP($A65,Roster!$A$2:$AF$33,7,0),0) -> 0 | I65: =_xlfn.IFNA(VLOOKUP($A65,Roster!$A$2:$AF$34,25,0),0) -> 0 | M65: 2 | V65: =_xlfn.IFNA(VLOOKUP($X65,Roster!$A$2:$AF$34,25,0),0) -> 0 | X65: 142
A66: 133 | B66: 3 | C66: =_xlfn.IFNA(VLOOKUP($A66,Roster!$A$2:$AF$33,6)&" "&VLOOKUP($A66,Roster!$A$2:$AF$33,7,0),0) -> 0 | I66: =_xlfn.IFNA(VLOOKUP($A66,Roster!$A$2:$AF$34,25,0),0) -> 0 | M66: 3 | V66: =_xlfn.IFNA(VLOOKUP($X66,Roster!$A$2:$AF$34,25,0),0) -> 0 | X66: 143
A67: 134 | B67: 4 | C67: =_xlfn.IFNA(VLOOKUP($A67,Roster!$A$2:$AF$33,6)&" "&VLOOKUP($A67,Roster!$A$2:$AF$33,7,0),0) -> 0 | I67: =_xlfn.IFNA(VLOOKUP($A67,Roster!$A$2:$AF$34,25,0),0) -> 0 | M67: 4 | V67: =_xlfn.IFNA(VLOOKUP($X67,Roster!$A$2:$AF$34,25,0),0) -> 0 | X67: 144
A68: 135 | B68: 5 | C68: =_xlfn.IFNA(VLOOKUP($A68,Roster!$A$2:$AF$33,6)&" "&VLOOKUP($A68,Roster!$A$2:$AF$33,7,0),0) -> 0 | I68: =_xlfn.IFNA(VLOOKUP($A68,Roster!$A$2:$AF$34,25,0),0) -> 0 | M68: 5 | V68: =_xlfn.IFNA(VLOOKUP($X68,Roster!$A$2:$AF$34,25,0),0) -> 0 | X68: 145
B70: League Secretary if your bowlers start the season with a Book Average or an Entering Average enter the figure in the appropriate column. It will be assumed that columns left blank mean the bowlers start the season with NO AVERAGE.
B72: =_xlfn.IFNA(VLOOKUP($A74,Roster!$A$2:$AF$34,2,0),0) -> 0 | C72: TEAM | E72: =_xlfn.IFNA(VLOOKUP($A74,Roster!$A$2:$AF$34,3,0),0) -> 0 | G72: BK | I72: AVG | M72: =_xlfn.IFNA(VLOOKUP($X74,Roster!$A$2:$AF$34,2,0),0) -> 0 | O72: TEAM | P72: =_xlfn.IFNA(VLOOKUP($X74,Roster!$A$2:$AF$34,3,0),0) -> 0 | T72: BK | V72: AVG
B73: BOWLER | N73: BOWLER
A74: 151 | B74: 1 | C74: =_xlfn.IFNA(VLOOKUP($A74,Roster!$A$2:$AF$33,6)&" "&VLOOKUP($A74,Roster!$A$2:$AF$33,7,0),0) -> 0 | I74: =_xlfn.IFNA(VLOOKUP($A74,Roster!$A$2:$AF$34,25,0),0) -> 0 | M74: 1 | N74: =_xlfn.IFNA(VLOOKUP($X74,Roster!$A$2:$AF$33,6)&" "&VLOOKUP($X74,Roster!$A$2:$AF$33,7,0),0) -> 0 | V74: =_xlfn.IFNA(VLOOKUP($X74,Roster!$A$2:$AF$34,25,0),0) -> 0 | X74: 161
A75: 152 | B75: 2 | C75: =_xlfn.IFNA(VLOOKUP($A75,Roster!$A$2:$AF$33,6)&" "&VLOOKUP($A75,Roster!$A$2:$AF$33,7,0),0) -> 0 | I75: =_xlfn.IFNA(VLOOKUP($A75,Roster!$A$2:$AF$34,25,0),0) -> 0 | M75: 2 | N75: =_xlfn.IFNA(VLOOKUP($X75,Roster!$A$2:$AF$33,6)&" "&VLOOKUP($X75,Roster!$A$2:$AF$33,7,0),0) -> 0 | V75: =_xlfn.IFNA(VLOOKUP($X75,Roster!$A$2:$AF$34,25,0),0) -> 0 | X75: 162
A76: 153 | B76: 3 | C76: =_xlfn.IFNA(VLOOKUP($A76,Roster!$A$2:$AF$33,6)&" "&VLOOKUP($A76,Roster!$A$2:$AF$33,7,0),0) -> 0 | I76: =_xlfn.IFNA(VLOOKUP($A76,Roster!$A$2:$AF$34,25,0),0) -> 0 | M76: 3 | N76: =_xlfn.IFNA(VLOOKUP($X76,Roster!$A$2:$AF$33,6)&" "&VLOOKUP($X76,Roster!$A$2:$AF$33,7,0),0) -> 0 | V76: =_xlfn.IFNA(VLOOKUP($X76,Roster!$A$2:$AF$34,25,0),0) -> 0 | X76: 163
A77: 154 | B77: 4 | C77: =_xlfn.IFNA(VLOOKUP($A77,Roster!$A$2:$AF$33,6)&" "&VLOOKUP($A77,Roster!$A$2:$AF$33,7,0),0) -> 0 | I77: =_xlfn.IFNA(VLOOKUP($A77,Roster!$A$2:$AF$34,25,0),0) -> 0 | M77: 4 | N77: =_xlfn.IFNA(VLOOKUP($X77,Roster!$A$2:$AF$33,6)&" "&VLOOKUP($X77,Roster!$A$2:$AF$33,7,0),0) -> 0 | V77: =_xlfn.IFNA(VLOOKUP($X77,Roster!$A$2:$AF$34,25,0),0) -> 0 | X77: 164
A78: 155 | B78: 5 | C78: =_xlfn.IFNA(VLOOKUP($A78,Roster!$A$2:$AF$33,6)&" "&VLOOKUP($A78,Roster!$A$2:$AF$33,7,0),0) -> 0 | I78: =_xlfn.IFNA(VLOOKUP($A78,Roster!$A$2:$AF$34,25,0),0) -> 0 | M78: 5 | N78: =_xlfn.IFNA(VLOOKUP($X78,Roster!$A$2:$AF$33,6)&" "&VLOOKUP($X78,Roster!$A$2:$AF$33,7,0),0) -> 0 | V78: =_xlfn.IFNA(VLOOKUP($X78,Roster!$A$2:$AF$34,25,0),0) -> 0 | X78: 165
B80: =_xlfn.IFNA(VLOOKUP($A82,Roster!$A$2:$AF$34,2,0),0) -> 0 | C80: TEAM | E80: =_xlfn.IFNA(VLOOKUP($A82,Roster!$A$2:$AF$34,3,0),0) -> 0 | G80: BK | I80: AVG | M80: =_xlfn.IFNA(VLOOKUP($X82,Roster!$A$2:$AF$34,2,0),0) -> 0 | O80: TEAM | P80: =_xlfn.IFNA(VLOOKUP($X82,Roster!$A$2:$AF$34,3,0),0) -> 0 | T80: BK | V80: AVG
B81: BOWLER | N81: BOWLER
A82: 171 | B82: 1 | C82: =_xlfn.IFNA(VLOOKUP($A82,Roster!$A$2:$AF$33,6)&" "&VLOOKUP($A82,Roster!$A$2:$AF$33,7,0),0) -> 0 | I82: =_xlfn.IFNA(VLOOKUP($A82,Roster!$A$2:$AF$34,25,0),0) -> 0 | M82: 1 | N82: =_xlfn.IFNA(VLOOKUP($X82,Roster!$A$2:$AF$33,6)&" "&VLOOKUP($X82,Roster!$A$2:$AF$33,7,0),0) -> 0 | V82: =_xlfn.IFNA(VLOOKUP($X82,Roster!$A$2:$AF$34,25,0),0) -> 0 | X82: 181
A83: 172 | B83: 2 | C83: =_xlfn.IFNA(VLOOKUP($A83,Roster!$A$2:$AF$33,6)&" "&VLOOKUP($A83,Roster!$A$2:$AF$33,7,0),0) -> 0 | I83: =_xlfn.IFNA(VLOOKUP($A83,Roster!$A$2:$AF$34,25,0),0) -> 0 | M83: 2 | N83: =_xlfn.IFNA(VLOOKUP($X83,Roster!$A$2:$AF$33,6)&" "&VLOOKUP($X83,Roster!$A$2:$AF$33,7,0),0) -> 0 | V83: =_xlfn.IFNA(VLOOKUP($X83,Roster!$A$2:$AF$34,25,0),0) -> 0 | X83: 182
A84: 173 | B84: 3 | C84: =_xlfn.IFNA(VLOOKUP($A84,Roster!$A$2:$AF$33,6)&" "&VLOOKUP($A84,Roster!$A$2:$AF$33,7,0),0) -> 0 | I84: =_xlfn.IFNA(VLOOKUP($A84,Roster!$A$2:$AF$34,25,0),0) -> 0 | M84: 3 | N84: =_xlfn.IFNA(VLOOKUP($X84,Roster!$A$2:$AF$33,6)&" "&VLOOKUP($X84,Roster!$A$2:$AF$33,7,0),0) -> 0 | V84: =_xlfn.IFNA(VLOOKUP($X84,Roster!$A$2:$AF$34,25,0),0) -> 0 | X84: 183
A85: 174 | B85: 4 | C85: =_xlfn.IFNA(VLOOKUP($A85,Roster!$A$2:$AF$33,6)&" "&VLOOKUP($A85,Roster!$A$2:$AF$33,7,0),0) -> 0 | I85: =_xlfn.IFNA(VLOOKUP($A85,Roster!$A$2:$AF$34,25,0),0) -> 0 | M85: 4 | N85: =_xlfn.IFNA(VLOOKUP($X85,Roster!$A$2:$AF$33,6)&" "&VLOOKUP($X85,Roster!$A$2:$AF$33,7,0),0) -> 0 | V85: =_xlfn.IFNA(VLOOKUP($X85,Roster!$A$2:$AF$34,25,0),0) -> 0 | X85: 184
A86: 175 | B86: 5 | C86: =_xlfn.IFNA(VLOOKUP($A86,Roster!$A$2:$AF$33,6)&" "&VLOOKUP($A86,Roster!$A$2:$AF$33,7,0),0) -> 0 | I86: =_xlfn.IFNA(VLOOKUP($A86,Roster!$A$2:$AF$34,25,0),0) -> 0 | M86: 5 | N86: =_xlfn.IFNA(VLOOKUP($X86,Roster!$A$2:$AF$33,6)&" "&VLOOKUP($X86,Roster!$A$2:$AF$33,7,0),0) -> 0 | V86: =_xlfn.IFNA(VLOOKUP($X86,Roster!$A$2:$AF$34,25,0),0) -> 0 | X86: 185
B87: =_xlfn.IFNA(VLOOKUP($A89,Roster!$A$2:$AF$34,2,0),0) -> 0 | C87: TEAM | E87: =_xlfn.IFNA(VLOOKUP($A89,Roster!$A$2:$AF$34,3,0),0) -> 0 | G87: BK | I87: AVG | M87: =_xlfn.IFNA(VLOOKUP($X89,Roster!$A$2:$AF$34,2,0),0) -> 0 | O87: TEAM | P87: =_xlfn.IFNA(VLOOKUP($X89,Roster!$A$2:$AF$34,3,0),0) -> 0 | T87: BK | V87: AVG
B88: BOWLER | N88: BOWLER
A89: 191 | B89: 1 | C89: =_xlfn.IFNA(VLOOKUP($A89,Roster!$A$2:$AF$33,6)&" "&VLOOKUP($A89,Roster!$A$2:$AF$33,7,0),0) -> 0 | I89: =_xlfn.IFNA(VLOOKUP($A89,Roster!$A$2:$AF$34,25,0),0) -> 0 | M89: 1 | N89: =_xlfn.IFNA(VLOOKUP($X89,Roster!$A$2:$AF$33,6)&" "&VLOOKUP($X89,Roster!$A$2:$AF$33,7,0),0) -> 0 | V89: =_xlfn.IFNA(VLOOKUP($X89,Roster!$A$2:$AF$34,25,0),0) -> 0 | X89: 201
A90: 192 | B90: 2 | C90: =_xlfn.IFNA(VLOOKUP($A90,Roster!$A$2:$AF$33,6)&" "&VLOOKUP($A90,Roster!$A$2:$AF$33,7,0),0) -> 0 | I90: =_xlfn.IFNA(VLOOKUP($A90,Roster!$A$2:$AF$34,25,0),0) -> 0 | M90: 2 | N90: =_xlfn.IFNA(VLOOKUP($X90,Roster!$A$2:$AF$33,6)&" "&VLOOKUP($X90,Roster!$A$2:$AF$33,7,0),0) -> 0 | V90: =_xlfn.IFNA(VLOOKUP($X90,Roster!$A$2:$AF$34,25,0),0) -> 0 | X90: 202
A91: 193 | B91: 3 | C91: =_xlfn.IFNA(VLOOKUP($A91,Roster!$A$2:$AF$33,6)&" "&VLOOKUP($A91,Roster!$A$2:$AF$33,7,0),0) -> 0 | I91: =_xlfn.IFNA(VLOOKUP($A91,Roster!$A$2:$AF$34,25,0),0) -> 0 | M91: 3 | N91: =_xlfn.IFNA(VLOOKUP($X91,Roster!$A$2:$AF$33,6)&" "&VLOOKUP($X91,Roster!$A$2:$AF$33,7,0),0) -> 0 | V91: =_xlfn.IFNA(VLOOKUP($X91,Roster!$A$2:$AF$34,25,0),0) -> 0 | X91: 203
A92: 194 | B92: 4 | C92: =_xlfn.IFNA(VLOOKUP($A92,Roster!$A$2:$AF$33,6)&" "&VLOOKUP($A92,Roster!$A$2:$AF$33,7,0),0) -> 0 | I92: =_xlfn.IFNA(VLOOKUP($A92,Roster!$A$2:$AF$34,25,0),0) -> 0 | M92: 4 | N92: =_xlfn.IFNA(VLOOKUP($X92,Roster!$A$2:$AF$33,6)&" "&VLOOKUP($X92,Roster!$A$2:$AF$33,7,0),0) -> 0 | V92: =_xlfn.IFNA(VLOOKUP($X92,Roster!$A$2:$AF$34,25,0),0) -> 0 | X92: 204
A93: 195 | B93: 5 | C93: =_xlfn.IFNA(VLOOKUP($A93,Roster!$A$2:$AF$33,6)&" "&VLOOKUP($A93,Roster!$A$2:$AF$33,7,0),0) -> 0 | I93: =_xlfn.IFNA(VLOOKUP($A93,Roster!$A$2:$AF$34,25,0),0) -> 0 | M93: 5 | N93: =_xlfn.IFNA(VLOOKUP($X93,Roster!$A$2:$AF$33,6)&" "&VLOOKUP($X93,Roster!$A$2:$AF$33,7,0),0) -> 0 | V93: =_xlfn.IFNA(VLOOKUP($X93,Roster!$A$2:$AF$34,25,0),0) -> 0 | X93: 205
B95: =_xlfn.IFNA(VLOOKUP($A97,Roster!$A$2:$AF$34,2,0),0) -> 0 | C95: TEAM | E95: =_xlfn.IFNA(VLOOKUP($A97,Roster!$A$2:$AF$34,3,0),0) -> 0 | G95: BK | I95: AVG | M95: =_xlfn.IFNA(VLOOKUP($X97,Roster!$A$2:$AF$34,2,0),0) -> 0 | O95: TEAM | P95: =_xlfn.IFNA(VLOOKUP($X97,Roster!$A$2:$AF$34,3,0),0) -> 0 | T95: BK | V95: AVG
B96: BOWLER | N96: BOWLER
A97: 211 | B97: 1 | C97: =_xlfn.IFNA(VLOOKUP($A97,Roster!$A$2:$AF$33,6)&" "&VLOOKUP($A97,Roster!$A$2:$AF$33,7,0),0) -> 0 | I97: =_xlfn.IFNA(VLOOKUP($A97,Roster!$A$2:$AF$34,25,0),0) -> 0 | M97: 1 | N97: =_xlfn.IFNA(VLOOKUP($X97,Roster!$A$2:$AF$33,6)&" "&VLOOKUP($X97,Roster!$A$2:$AF$33,7,0),0) -> 0 | V97: =_xlfn.IFNA(VLOOKUP($X97,Roster!$A$2:$AF$34,25,0),0) -> 0 | X97: 221
A98: 212 | B98: 2 | C98: =_xlfn.IFNA(VLOOKUP($A98,Roster!$A$2:$AF$33,6)&" "&VLOOKUP($A98,Roster!$A$2:$AF$33,7,0),0) -> 0 | I98: =_xlfn.IFNA(VLOOKUP($A98,Roster!$A$2:$AF$34,25,0),0) -> 0 | M98: 2 | N98: =_xlfn.IFNA(VLOOKUP($X98,Roster!$A$2:$AF$33,6)&" "&VLOOKUP($X98,Roster!$A$2:$AF$33,7,0),0) -> 0 | V98: =_xlfn.IFNA(VLOOKUP($X98,Roster!$A$2:$AF$34,25,0),0) -> 0 | X98: 222
A99: 213 | B99: 3 | C99: =_xlfn.IFNA(VLOOKUP($A99,Roster!$A$2:$AF$33,6)&" "&VLOOKUP($A99,Roster!$A$2:$AF$33,7,0),0) -> 0 | I99: =_xlfn.IFNA(VLOOKUP($A99,Roster!$A$2:$AF$34,25,0),0) -> 0 | M99: 3 | N99: =_xlfn.IFNA(VLOOKUP($X99,Roster!$A$2:$AF$33,6)&" "&VLOOKUP($X99,Roster!$A$2:$AF$33,7,0),0) -> 0 | V99: =_xlfn.IFNA(VLOOKUP($X99,Roster!$A$2:$AF$34,25,0),0) -> 0 | X99: 223
A100: 214 | B100: 4 | C100: =_xlfn.IFNA(VLOOKUP($A100,Roster!$A$2:$AF$33,6)&" "&VLOOKUP($A100,Roster!$A$2:$AF$33,7,0),0) -> 0 | I100: =_xlfn.IFNA(VLOOKUP($A100,Roster!$A$2:$AF$34,25,0),0) -> 0 | M100: 4 | N100: =_xlfn.IFNA(VLOOKUP($X100,Roster!$A$2:$AF$33,6)&" "&VLOOKUP($X100,Roster!$A$2:$AF$33,7,0),0) -> 0 | V100: =_xlfn.IFNA(VLOOKUP($X100,Roster!$A$2:$AF$34,25,0),0) -> 0 | X100: 224
A101: 215 | B101: 5 | C101: =_xlfn.IFNA(VLOOKUP($A101,Roster!$A$2:$AF$33,6)&" "&VLOOKUP($A101,Roster!$A$2:$AF$33,7,0),0) -> 0 | I101: =_xlfn.IFNA(VLOOKUP($A101,Roster!$A$2:$AF$34,25,0),0) -> 0 | M101: 5 | N101: =_xlfn.IFNA(VLOOKUP($X101,Roster!$A$2:$AF$33,6)&" "&VLOOKUP($X101,Roster!$A$2:$AF$33,7,0),0) -> 0 | V101: =_xlfn.IFNA(VLOOKUP($X101,Roster!$A$2:$AF$34,25,0),0) -> 0 | X101: 225
B103: League Secretary if your bowlers start the season with a Book Average or an Entering Average enter the figure in the appropriate column. It will be assumed that columns left blank mean the bowlers start the season with NO AVERAGE.
B105: =_xlfn.IFNA(VLOOKUP($A107,Roster!$A$2:$AF$34,2,0),0) -> 0 | C105: TEAM | E105: =_xlfn.IFNA(VLOOKUP($A107,Roster!$A$2:$AF$34,3,0),0) -> 0 | G105: BK | I105: AVG | M105: =_xlfn.IFNA(VLOOKUP($X107,Roster!$A$2:$AF$34,2,0),0) -> 0 | O105: TEAM | P105: =_xlfn.IFNA(VLOOKUP($X107,Roster!$A$2:$AF$34,3,0),0) -> 0 | T105: BK | V105: AVG
B106: BOWLER | N106: BOWLER
A107: 231 | B107: 1 | C107: =_xlfn.IFNA(VLOOKUP($A107,Roster!$A$2:$AF$33,6)&" "&VLOOKUP($A107,Roster!$A$2:$AF$33,7,0),0) -> 0 | I107: =_xlfn.IFNA(VLOOKUP($A107,Roster!$A$2:$AF$34,25,0),0) -> 0 | M107: 1 | N107: =_xlfn.IFNA(VLOOKUP($X107,Roster!$A$2:$AF$33,6)&" "&VLOOKUP($X107,Roster!$A$2:$AF$33,7,0),0) -> 0 | V107: =_xlfn.IFNA(VLOOKUP($X107,Roster!$A$2:$AF$34,25,0),0) -> 0 | X107: 241
A108: 232 | B108: 2 | C108: =_xlfn.IFNA(VLOOKUP($A108,Roster!$A$2:$AF$33,6)&" "&VLOOKUP($A108,Roster!$A$2:$AF$33,7,0),0) -> 0 | I108: =_xlfn.IFNA(VLOOKUP($A108,Roster!$A$2:$AF$34,25,0),0) -> 0 | M108: 2 | N108: =_xlfn.IFNA(VLOOKUP($X108,Roster!$A$2:$AF$33,6)&" "&VLOOKUP($X108,Roster!$A$2:$AF$33,7,0),0) -> 0 | V108: =_xlfn.IFNA(VLOOKUP($X108,Roster!$A$2:$AF$34,25,0),0) -> 0 | X108: 242
A109: 233 | B109: 3 | C109: =_xlfn.IFNA(VLOOKUP($A109,Roster!$A$2:$AF$33,6)&" "&VLOOKUP($A109,Roster!$A$2:$AF$33,7,0),0) -> 0 | I109: =_xlfn.IFNA(VLOOKUP($A109,Roster!$A$2:$AF$34,25,0),0) -> 0 | M109: 3 | N109: =_xlfn.IFNA(VLOOKUP($X109,Roster!$A$2:$AF$33,6)&" "&VLOOKUP($X109,Roster!$A$2:$AF$33,7,0),0) -> 0 | V109: =_xlfn.IFNA(VLOOKUP($X109,Roster!$A$2:$AF$34,25,0),0) -> 0 | X109: 243
A110: 234 | B110: 4 | C110: =_xlfn.IFNA(VLOOKUP($A110,Roster!$A$2:$AF$33,6)&" "&VLOOKUP($A110,Roster!$A$2:$AF$33,7,0),0) -> 0 | I110: =_xlfn.IFNA(VLOOKUP($A110,Roster!$A$2:$AF$34,25,0),0) -> 0 | M110: 4 | N110: =_xlfn.IFNA(VLOOKUP($X110,Roster!$A$2:$AF$33,6)&" "&VLOOKUP($X110,Roster!$A$2:$AF$33,7,0),0) -> 0 | V110: =_xlfn.IFNA(VLOOKUP($X110,Roster!$A$2:$AF$34,25,0),0) -> 0 | X110: 244
A111: 235 | B111: 5 | C111: =_xlfn.IFNA(VLOOKUP($A111,Roster!$A$2:$AF$33,6)&" "&VLOOKUP($A111,Roster!$A$2:$AF$33,7,0),0) -> 0 | I111: =_xlfn.IFNA(VLOOKUP($A111,Roster!$A$2:$AF$34,25,0),0) -> 0 | M111: 5 | N111: =_xlfn.IFNA(VLOOKUP($X111,Roster!$A$2:$AF$33,6)&" "&VLOOKUP($X111,Roster!$A$2:$AF$33,7,0),0) -> 0 | V111: =_xlfn.IFNA(VLOOKUP($X111,Roster!$A$2:$AF$34,25,0),0) -> 0 | X111: 245
B112: =_xlfn.IFNA(VLOOKUP($A114,Roster!$A$2:$AF$34,2,0),0) -> 0 | C112: TEAM | E112: =_xlfn.IFNA(VLOOKUP($A114,Roster!$A$2:$AF$34,3,0),0) -> 0 | G112: BK | I112: AVG | M112: =_xlfn.IFNA(VLOOKUP($X114,Roster!$A$2:$AF$34,2,0),0) -> 0 | O112: TEAM | P112: =_xlfn.IFNA(VLOOKUP($X114,Roster!$A$2:$AF$34,3,0),0) -> 0 | T112: BK | V112: AVG
B113: BOWLER | N113: BOWLER
A114: 251 | B114: 1 | C114: =_xlfn.IFNA(VLOOKUP($A114,Roster!$A$2:$AF$33,6)&" "&VLOOKUP($A114,Roster!$A$2:$AF$33,7,0),0) -> 0 | I114: =_xlfn.IFNA(VLOOKUP($A114,Roster!$A$2:$AF$34,25,0),0) -> 0 | M114: 1 | N114: =_xlfn.IFNA(VLOOKUP($X114,Roster!$A$2:$AF$33,6)&" "&VLOOKUP($X114,Roster!$A$2:$AF$33,7,0),0) -> 0 | V114: =_xlfn.IFNA(VLOOKUP($X114,Roster!$A$2:$AF$34,25,0),0) -> 0 | X114: 261
A115: 252 | B115: 2 | C115: =_xlfn.IFNA(VLOOKUP($A115,Roster!$A$2:$AF$33,6)&" "&VLOOKUP($A115,Roster!$A$2:$AF$33,7,0),0) -> 0 | I115: =_xlfn.IFNA(VLOOKUP($A115,Roster!$A$2:$AF$34,25,0),0) -> 0 | M115: 2 | N115: =_xlfn.IFNA(VLOOKUP($X115,Roster!$A$2:$AF$33,6)&" "&VLOOKUP($X115,Roster!$A$2:$AF$33,7,0),0) -> 0 | V115: =_xlfn.IFNA(VLOOKUP($X115,Roster!$A$2:$AF$34,25,0),0) -> 0 | X115: 262
A116: 253 | B116: 3 | C116: =_xlfn.IFNA(VLOOKUP($A116,Roster!$A$2:$AF$33,6)&" "&VLOOKUP($A116,Roster!$A$2:$AF$33,7,0),0) -> 0 | I116: =_xlfn.IFNA(VLOOKUP($A116,Roster!$A$2:$AF$34,25,0),0) -> 0 | M116: 3 | N116: =_xlfn.IFNA(VLOOKUP($X116,Roster!$A$2:$AF$33,6)&" "&VLOOKUP($X116,Roster!$A$2:$AF$33,7,0),0) -> 0 | V116: =_xlfn.IFNA(VLOOKUP($X116,Roster!$A$2:$AF$34,25,0),0) -> 0 | X116: 263
A117: 254 | B117: 4 | C117: =_xlfn.IFNA(VLOOKUP($A117,Roster!$A$2:$AF$33,6)&" "&VLOOKUP($A117,Roster!$A$2:$AF$33,7,0),0) -> 0 | I117: =_xlfn.IFNA(VLOOKUP($A117,Roster!$A$2:$AF$34,25,0),0) -> 0 | M117: 4 | N117: =_xlfn.IFNA(VLOOKUP($X117,Roster!$A$2:$AF$33,6)&" "&VLOOKUP($X117,Roster!$A$2:$AF$33,7,0),0) -> 0 | V117: =_xlfn.IFNA(VLOOKUP($X117,Roster!$A$2:$AF$34,25,0),0) -> 0 | X117: 264
A118: 255 | B118: 5 | C118: =_xlfn.IFNA(VLOOKUP($A118,Roster!$A$2:$AF$33,6)&" "&VLOOKUP($A118,Roster!$A$2:$AF$33,7,0),0) -> 0 | I118: =_xlfn.IFNA(VLOOKUP($A118,Roster!$A$2:$AF$34,25,0),0) -> 0 | M118: 5 | N118: =_xlfn.IFNA(VLOOKUP($X118,Roster!$A$2:$AF$33,6)&" "&VLOOKUP($X118,Roster!$A$2:$AF$33,7,0),0) -> 0 | V118: =_xlfn.IFNA(VLOOKUP($X118,Roster!$A$2:$AF$34,25,0),0) -> 0 | X118: 265
B120: =_xlfn.IFNA(VLOOKUP($A122,Roster!$A$2:$AF$34,2,0),0) -> 0 | C120: TEAM | E120: =_xlfn.IFNA(VLOOKUP($A122,Roster!$A$2:$AF$34,3,0),0) -> 0 | G120: BK | I120: AVG | M120: =_xlfn.IFNA(VLOOKUP($X122,Roster!$A$2:$AF$34,2,0),0) -> 0 | O120: TEAM | P120: =_xlfn.IFNA(VLOOKUP($X122,Roster!$A$2:$AF$34,3,0),0) -> 0 | T120: BK | V120: AVG
B121: BOWLER | N121: BOWLER
A122: 271 | B122: 1 | C122: =_xlfn.IFNA(VLOOKUP($A122,Roster!$A$2:$AF$33,6)&" "&VLOOKUP($A122,Roster!$A$2:$AF$33,7,0),0) -> 0 | I122: =_xlfn.IFNA(VLOOKUP($A122,Roster!$A$2:$AF$34,25,0),0) -> 0 | M122: 1 | N122: =_xlfn.IFNA(VLOOKUP($X122,Roster!$A$2:$AF$33,6)&" "&VLOOKUP($X122,Roster!$A$2:$AF$33,7,0),0) -> 0 | V122: =_xlfn.IFNA(VLOOKUP($X122,Roster!$A$2:$AF$34,25,0),0) -> 0 | X122: 281
A123: 272 | B123: 2 | C123: =_xlfn.IFNA(VLOOKUP($A123,Roster!$A$2:$AF$33,6)&" "&VLOOKUP($A123,Roster!$A$2:$AF$33,7,0),0) -> 0 | I123: =_xlfn.IFNA(VLOOKUP($A123,Roster!$A$2:$AF$34,25,0),0) -> 0 | M123: 2 | N123: =_xlfn.IFNA(VLOOKUP($X123,Roster!$A$2:$AF$33,6)&" "&VLOOKUP($X123,Roster!$A$2:$AF$33,7,0),0) -> 0 | V123: =_xlfn.IFNA(VLOOKUP($X123,Roster!$A$2:$AF$34,25,0),0) -> 0 | X123: 282
A124: 273 | B124: 3 | C124: =_xlfn.IFNA(VLOOKUP($A124,Roster!$A$2:$AF$33,6)&" "&VLOOKUP($A124,Roster!$A$2:$AF$33,7,0),0) -> 0 | I124: =_xlfn.IFNA(VLOOKUP($A124,Roster!$A$2:$AF$34,25,0),0) -> 0 | M124: 3 | N124: =_xlfn.IFNA(VLOOKUP($X124,Roster!$A$2:$AF$33,6)&" "&VLOOKUP($X124,Roster!$A$2:$AF$33,7,0),0) -> 0 | V124: =_xlfn.IFNA(VLOOKUP($X124,Roster!$A$2:$AF$34,25,0),0) -> 0 | X124: 283
A125: 274 | B125: 4 | C125: =_xlfn.IFNA(VLOOKUP($A125,Roster!$A$2:$AF$33,6)&" "&VLOOKUP($A125,Roster!$A$2:$AF$33,7,0),0) -> 0 | I125: =_xlfn.IFNA(VLOOKUP($A125,Roster!$A$2:$AF$34,25,0),0) -> 0 | M125: 4 | N125: =_xlfn.IFNA(VLOOKUP($X125,Roster!$A$2:$AF$33,6)&" "&VLOOKUP($X125,Roster!$A$2:$AF$33,7,0),0) -> 0 | V125: =_xlfn.IFNA(VLOOKUP($X125,Roster!$A$2:$AF$34,25,0),0) -> 0 | X125: 284
A126: 275 | B126: 5 | C126: =_xlfn.IFNA(VLOOKUP($A126,Roster!$A$2:$AF$33,6)&" "&VLOOKUP($A126,Roster!$A$2:$AF$33,7,0),0) -> 0 | I126: =_xlfn.IFNA(VLOOKUP($A126,Roster!$A$2:$AF$34,25,0),0) -> 0 | M126: 5 | N126: =_xlfn.IFNA(VLOOKUP($X126,Roster!$A$2:$AF$33,6)&" "&VLOOKUP($X126,Roster!$A$2:$AF$33,7,0),0) -> 0 | V126: =_xlfn.IFNA(VLOOKUP($X126,Roster!$A$2:$AF$34,25,0),0) -> 0 | X126: 285
B128: =_xlfn.IFNA(VLOOKUP($A130,Roster!$A$2:$AF$34,2,0),0) -> 0 | C128: TEAM | E128: =_xlfn.IFNA(VLOOKUP($A130,Roster!$A$2:$AF$34,3,0),0) -> 0 | G128: BK | I128: AVG | M128: =_xlfn.IFNA(VLOOKUP($X130,Roster!$A$2:$AF$34,2,0),0) -> 0 | O128: TEAM | P128: =_xlfn.IFNA(VLOOKUP($X130,Roster!$A$2:$AF$34,3,0),0) -> 0 | T128: BK | V128: AVG
B129: BOWLER | N129: BOWLER
A130: 291 | B130: 1 | C130: =_xlfn.IFNA(VLOOKUP($A130,Roster!$A$2:$AF$33,6)&" "&VLOOKUP($A130,Roster!$A$2:$AF$33,7,0),0) -> 0 | I130: =_xlfn.IFNA(VLOOKUP($A130,Roster!$A$2:$AF$34,25,0),0) -> 0 | M130: 1 | N130: =_xlfn.IFNA(VLOOKUP($X130,Roster!$A$2:$AF$33,6)&" "&VLOOKUP($X130,Roster!$A$2:$AF$33,7,0),0) -> 0 | V130: =_xlfn.IFNA(VLOOKUP($X130,Roster!$A$2:$AF$34,25,0),0) -> 0 | X130: 301
A131: 292 | B131: 2 | C131: =_xlfn.IFNA(VLOOKUP($A131,Roster!$A$2:$AF$33,6)&" "&VLOOKUP($A131,Roster!$A$2:$AF$33,7,0),0) -> 0 | I131: =_xlfn.IFNA(VLOOKUP($A131,Roster!$A$2:$AF$34,25,0),0) -> 0 | M131: 2 | N131: =_xlfn.IFNA(VLOOKUP($X131,Roster!$A$2:$AF$33,6)&" "&VLOOKUP($X131,Roster!$A$2:$AF$33,7,0),0) -> 0 | V131: =_xlfn.IFNA(VLOOKUP($X131,Roster!$A$2:$AF$34,25,0),0) -> 0 | X131: 302
A132: 293 | B132: 3 | C132: =_xlfn.IFNA(VLOOKUP($A132,Roster!$A$2:$AF$33,6)&" "&VLOOKUP($A132,Roster!$A$2:$AF$33,7,0),0) -> 0 | I132: =_xlfn.IFNA(VLOOKUP($A132,Roster!$A$2:$AF$34,25,0),0) -> 0 | M132: 3 | N132: =_xlfn.IFNA(VLOOKUP($X132,Roster!$A$2:$AF$33,6)&" "&VLOOKUP($X132,Roster!$A$2:$AF$33,7,0),0) -> 0 | V132: =_xlfn.IFNA(VLOOKUP($X132,Roster!$A$2:$AF$34,25,0),0) -> 0 | X132: 303
A133: 294 | B133: 4 | C133: =_xlfn.IFNA(VLOOKUP($A133,Roster!$A$2:$AF$33,6)&" "&VLOOKUP($A133,Roster!$A$2:$AF$33,7,0),0) -> 0 | I133: =_xlfn.IFNA(VLOOKUP($A133,Roster!$A$2:$AF$34,25,0),0) -> 0 | M133: 4 | N133: =_xlfn.IFNA(VLOOKUP($X133,Roster!$A$2:$AF$33,6)&" "&VLOOKUP($X133,Roster!$A$2:$AF$33,7,0),0) -> 0 | V133: =_xlfn.IFNA(VLOOKUP($X133,Roster!$A$2:$AF$34,25,0),0) -> 0 | X133: 304
A134: 295 | B134: 5 | C134: =_xlfn.IFNA(VLOOKUP($A134,Roster!$A$2:$AF$33,6)&" "&VLOOKUP($A134,Roster!$A$2:$AF$33,7,0),0) -> 0 | I134: =_xlfn.IFNA(VLOOKUP($A134,Roster!$A$2:$AF$34,25,0),0) -> 0 | M134: 5 | N134: =_xlfn.IFNA(VLOOKUP($X134,Roster!$A$2:$AF$33,6)&" "&VLOOKUP($X134,Roster!$A$2:$AF$33,7,0),0) -> 0 | V134: =_xlfn.IFNA(VLOOKUP($X134,Roster!$A$2:$AF$34,25,0),0) -> 0 | X134: 305
B137: rev 6/1/13

Sheet Verification
B1: MEMO
B2: To All League Secretaries:
B3: From: Johnson Lanes Sports Pavilion Manager
B4: Date: | C4: 2017-09-05
B5: Subject: League Bowlers Verification
B6: League Name: Classic League Secretary: Marty Bell Sanctioned League USBC Cert #:
B7: It is the responsibility of each League Secretary to check individual league bowlers SCW Rec Cards or CNP Cards to verify they are valid. Please complete the following and return it to the Sports Pavilion Manager by the beginning of the 3rd Week of Bowling
G8: SCW Resident | H8: Non-SCW Resident | I8: Sanctioned Bowler USBC # | J8: E-mail
B9: FirstName | C9: LastName | D9: Address | E9: Tm | F9: Phone | G9: SCW Rec Card | H9: CNP Card | M9: B Day | O9: Tm | P9: ID
A10: 1 | B10: =_xlfn.IFNA(VLOOKUP($P10,Roster!$A$2:$AF$34,6,0),0) -> David | C10: =_xlfn.IFNA(VLOOKUP($P10,Roster!$A$2:$AF$34,7,0),0) -> Burke | D10: 15808 W Falcon Ridge Dr | E10: =_xlfn.IFNA(VLOOKUP($P10,Roster!$A$2:$AF$34,2,0),0) -> 1 | F10: =_xlfn.IFNA(VLOOKUP($P10,Roster!$A$2:$AF$34,18,0),0) -> 0 | G10: =_xlfn.IFNA(VLOOKUP($P10,Roster!$A$2:$AF$34,21,0),0) -> 0 | H10: =_xlfn.IFNA(VLOOKUP($P10,Roster!$A$2:$AF$34,22,0),0) -> 0 | I10: =_xlfn.IFNA(VLOOKUP($P10,Roster!$A$2:$AF$34,20,0),0) -> 0 | J10: =_xlfn.IFNA(VLOOKUP($P10,Roster!$A$2:$AF$34,17,0),0) -> 0 | M10: =_xlfn.IFNA(VLOOKUP($P10,Roster!$A$2:$AF$34,16,0),0) -> 00:00:00 | O10: 1 | P10: 11
A11: =A10+1 -> 2 | B11: =_xlfn.IFNA(VLOOKUP($P11,Roster!$A$2:$AF$34,6,0),0) -> Rich | C11: =_xlfn.IFNA(VLOOKUP($P11,Roster!$A$2:$AF$34,7,0),0) -> Matich | D11: 15808 W Falcon Ridge Dr | E11: =_xlfn.IFNA(VLOOKUP($P11,Roster!$A$2:$AF$34,2,0),0) -> 1 | F11: =_xlfn.IFNA(VLOOKUP($P11,Roster!$A$2:$AF$34,18,0),0) -> (623) 535-1886 | G11: =_xlfn.IFNA(VLOOKUP($P11,Roster!$A$2:$AF$34,21,0),0) -> 0 | H11: =_xlfn.IFNA(VLOOKUP($P11,Roster!$A$2:$AF$34,22,0),0) -> 3041 | I11: =_xlfn.IFNA(VLOOKUP($P11,Roster!$A$2:$AF$34,20,0),0) -> 157-13981 | J11: =_xlfn.IFNA(VLOOKUP($P11,Roster!$A$2:$AF$34,17,0),0) -> avdenise@aol.com | M11: =_xlfn.IFNA(VLOOKUP($P11,Roster!$A$2:$AF$34,16,0),0) -> 1948-11-07 | O11: 1 | P11: 12
A12: 3 | B12: =_xlfn.IFNA(VLOOKUP($P12,Roster!$A$2:$AF$34,6,0),0) -> Cal | C12: =_xlfn.IFNA(VLOOKUP($P12,Roster!$A$2:$AF$34,7,0),0) -> Shirey | D12: 15808 W Falcon Ridge Dr | E12: =_xlfn.IFNA(VLOOKUP($P12,Roster!$A$2:$AF$34,2,0),0) -> 1 | F12: =_xlfn.IFNA(VLOOKUP($P12,Roster!$A$2:$AF$34,18,0),0) -> (623) 214-3295 | G12: =_xlfn.IFNA(VLOOKUP($P12,Roster!$A$2:$AF$34,21,0),0) -> 107243 | H12: =_xlfn.IFNA(VLOOKUP($P12,Roster!$A$2:$AF$34,22,0),0) -> 0 | I12: =_xlfn.IFNA(VLOOKUP($P12,Roster!$A$2:$AF$34,20,0),0) -> 2398-593 | J12: =_xlfn.IFNA(VLOOKUP($P12,Roster!$A$2:$AF$34,17,0),0) -> howardhs@outlook.com | M12: =_xlfn.IFNA(VLOOKUP($P12,Roster!$A$2:$AF$34,16,0),0) -> 1944-02-04 | O12: 1 | P12: 13
A13: 4 | B13: =_xlfn.IFNA(VLOOKUP($P13,Roster!$A$2:$AF$34,6,0),0) -> Marty | C13: =_xlfn.IFNA(VLOOKUP($P13,Roster!$A$2:$AF$34,7,0),0) -> Bell | D13: 15808 W Falcon Ridge Dr | E13: =_xlfn.IFNA(VLOOKUP($P13,Roster!$A$2:$AF$34,2,0),0) -> 2 | F13: =_xlfn.IFNA(VLOOKUP($P13,Roster!$A$2:$AF$34,18,0),0) -> (623) 584-9459 | G13: =_xlfn.IFNA(VLOOKUP($P13,Roster!$A$2:$AF$34,21,0),0) -> 72029 | H13: =_xlfn.IFNA(VLOOKUP($P13,Roster!$A$2:$AF$34,22,0),0) -> 0 | I13: =_xlfn.IFNA(VLOOKUP($P13,Roster!$A$2:$AF$34,20,0),0) -> 157-21502 | J13: =_xlfn.IFNA(VLOOKUP($P13,Roster!$A$2:$AF$34,17,0),0) -> ezbowling@cox.net | M13: =_xlfn.IFNA(VLOOKUP($P13,Roster!$A$2:$AF$34,16,0),0) -> 1940-01-26 | O13: 2 | P13: 21
A14: 5 | B14: =_xlfn.IFNA(VLOOKUP($P14,Roster!$A$2:$AF$34,6,0),0) -> Alex | C14: =_xlfn.IFNA(VLOOKUP($P14,Roster!$A$2:$AF$34,7,0),0) -> Balok | D14: 15808 W Falcon Ridge Dr | E14: =_xlfn.IFNA(VLOOKUP($P14,Roster!$A$2:$AF$34,2,0),0) -> 2 | F14: =_xlfn.IFNA(VLOOKUP($P14,Roster!$A$2:$AF$34,18,0),0) -> (928) 699-4481 | G14: =_xlfn.IFNA(VLOOKUP($P14,Roster!$A$2:$AF$34,21,0),0) -> 0 | H14: =_xlfn.IFNA(VLOOKUP($P14,Roster!$A$2:$AF$34,22,0),0) -> 3004 | I14: =_xlfn.IFNA(VLOOKUP($P14,Roster!$A$2:$AF$34,20,0),0) -> 8833-64090 | J14: =_xlfn.IFNA(VLOOKUP($P14,Roster!$A$2:$AF$34,17,0),0) -> balok9@aol.com | M14: =_xlfn.IFNA(VLOOKUP($P14,Roster!$A$2:$AF$34,16,0),0) -> 1953-06-28 | O14: 2 | P14: 22
A15: 6 | B15: =_xlfn.IFNA(VLOOKUP($P15,Roster!$A$2:$AF$34,6,0),0) -> Johnny | C15: =_xlfn.IFNA(VLOOKUP($P15,Roster!$A$2:$AF$34,7,0),0) -> Gonzales | D15: 15808 W Falcon Ridge Dr | E15: =_xlfn.IFNA(VLOOKUP($P15,Roster!$A$2:$AF$34,2,0),0) -> 2 | F15: =_xlfn.IFNA(VLOOKUP($P15,Roster!$A$2:$AF$34,18,0),0) -> (623) 687-7498 | G15: =_xlfn.IFNA(VLOOKUP($P15,Roster!$A$2:$AF$34,21,0),0) -> 0 | H15: =_xlfn.IFNA(VLOOKUP($P15,Roster!$A$2:$AF$34,22,0),0) -> 0 | I15: =_xlfn.IFNA(VLOOKUP($P15,Roster!$A$2:$AF$34,20,0),0) -> 157-872 | J15: =_xlfn.IFNA(VLOOKUP($P15,Roster!$A$2:$AF$34,17,0),0) -> 0 | M15: =_xlfn.IFNA(VLOOKUP($P15,Roster!$A$2:$AF$34,16,0),0) -> 00:00:00 | O15: 2 | P15: 23
A16: 7 | B16: =_xlfn.IFNA(VLOOKUP($P16,Roster!$A$2:$AF$34,6,0),0) -> Jeff | C16: =_xlfn.IFNA(VLOOKUP($P16,Roster!$A$2:$AF$34,7,0),0) -> Richard | D16: 15808 W Falcon Ridge Dr | E16: =_xlfn.IFNA(VLOOKUP($P16,Roster!$A$2:$AF$34,2,0),0) -> 3 | F16: =_xlfn.IFNA(VLOOKUP($P16,Roster!$A$2:$AF$34,18,0),0) -> (623)362-8248 | G16: =_xlfn.IFNA(VLOOKUP($P16,Roster!$A$2:$AF$34,21,0),0) -> 0 | H16: =_xlfn.IFNA(VLOOKUP($P16,Roster!$A$2:$AF$34,22,0),0) -> 3072 | I16: =_xlfn.IFNA(VLOOKUP($P16,Roster!$A$2:$AF$34,20,0),0) -> 8833-55870 | J16: =_xlfn.IFNA(VLOOKUP($P16,Roster!$A$2:$AF$34,17,0),0) -> lephty123@cox.net | M16: =_xlfn.IFNA(VLOOKUP($P16,Roster!$A$2:$AF$34,16,0),0) -> 1949-04-09 | O16: 3 | P16: 31
A17: 8 | B17: =_xlfn.IFNA(VLOOKUP($P17,Roster!$A$2:$AF$34,6,0),0) -> Jerry | C17: =_xlfn.IFNA(VLOOKUP($P17,Roster!$A$2:$AF$34,7,0),0) -> Elsen | D17: 15808 W Falcon Ridge Dr | E17: =_xlfn.IFNA(VLOOKUP($P17,Roster!$A$2:$AF$34,2,0),0) -> 3 | F17: =_xlfn.IFNA(VLOOKUP($P17,Roster!$A$2:$AF$34,18,0),0) -> (262) 412-0433 | G17: =_xlfn.IFNA(VLOOKUP($P17,Roster!$A$2:$AF$34,21,0),0) -> 0 | H17: =_xlfn.IFNA(VLOOKUP($P17,Roster!$A$2:$AF$34,22,0),0) -> 3113 | I17: =_xlfn.IFNA(VLOOKUP($P17,Roster!$A$2:$AF$34,20,0),0) -> 2468-4618 | J17: =_xlfn.IFNA(VLOOKUP($P17,Roster!$A$2:$AF$34,17,0),0) -> jbbuyers@aol.com | M17: =_xlfn.IFNA(VLOOKUP($P17,Roster!$A$2:$AF$34,16,0),0) -> 1953-07-21 | O17: 3 | P17: 32
A18: 9 | B18: =_xlfn.IFNA(VLOOKUP($P18,Roster!$A$2:$AF$34,6,0),0) -> Bill | C18: =_xlfn.IFNA(VLOOKUP($P18,Roster!$A$2:$AF$34,7,0),0) -> Poff | D18: 15808 W Falcon Ridge Dr | E18: =_xlfn.IFNA(VLOOKUP($P18,Roster!$A$2:$AF$34,2,0),0) -> 3 | F18: =_xlfn.IFNA(VLOOKUP($P18,Roster!$A$2:$AF$34,18,0),0) -> (615) 423-4196 | G18: =_xlfn.IFNA(VLOOKUP($P18,Roster!$A$2:$AF$34,21,0),0) -> 109950 | H18: =_xlfn.IFNA(VLOOKUP($P18,Roster!$A$2:$AF$34,22,0),0) -> 0 | I18: =_xlfn.IFNA(VLOOKUP($P18,Roster!$A$2:$AF$34,20,0),0) -> 263-133 | J18: =_xlfn.IFNA(VLOOKUP($P18,Roster!$A$2:$AF$34,17,0),0) -> bill.poff@hotmail.com | M18: =_xlfn.IFNA(VLOOKUP($P18,Roster!$A$2:$AF$34,16,0),0) -> 1945-06-25 | O18: 3 | P18: 33
A19: 10 | B19: =_xlfn.IFNA(VLOOKUP($P19,Roster!$A$2:$AF$34,6,0),0) -> Dave | C19: =_xlfn.IFNA(VLOOKUP($P19,Roster!$A$2:$AF$34,7,0),0) -> Schmitz | D19: 15808 W Falcon Ridge Dr | E19: =_xlfn.IFNA(VLOOKUP($P19,Roster!$A$2:$AF$34,2,0),0) -> 4 | F19: =_xlfn.IFNA(VLOOKUP($P19,Roster!$A$2:$AF$34,18,0),0) -> (602) 621-0447 | G19: =_xlfn.IFNA(VLOOKUP($P19,Roster!$A$2:$AF$34,21,0),0) -> 64331 | H19: =_xlfn.IFNA(VLOOKUP($P19,Roster!$A$2:$AF$34,22,0),0) -> 0 | I19: =_xlfn.IFNA(VLOOKUP($P19,Roster!$A$2:$AF$34,20,0),0) -> 2374-592 | J19: =_xlfn.IFNA(VLOOKUP($P19,Roster!$A$2:$AF$34,17,0),0) -> sfpagolf@msn.com | M19: =_xlfn.IFNA(VLOOKUP($P19,Roster!$A$2:$AF$34,16,0),0) -> 1957-06-08 | O19: 4 | P19: 41
A20: 11 | B20: =_xlfn.IFNA(VLOOKUP($P20,Roster!$A$2:$AF$34,6,0),0) -> John | C20: =_xlfn.IFNA(VLOOKUP($P20,Roster!$A$2:$AF$34,7,0),0) -> Babbitt | D20: 15808 W Falcon Ridge Dr | E20: =_xlfn.IFNA(VLOOKUP($P20,Roster!$A$2:$AF$34,2,0),0) -> 4 | F20: =_xlfn.IFNA(VLOOKUP($P20,Roster!$A$2:$AF$34,18,0),0) -> 470.535.6926 | G20: =_xlfn.IFNA(VLOOKUP($P20,Roster!$A$2:$AF$34,21,0),0) -> 0 | H20: =_xlfn.IFNA(VLOOKUP($P20,Roster!$A$2:$AF$34,22,0),0) -> 3165 | I20: =_xlfn.IFNA(VLOOKUP($P20,Roster!$A$2:$AF$34,20,0),0) -> 389-1053 | J20: =_xlfn.IFNA(VLOOKUP($P20,Roster!$A$2:$AF$34,17,0),0) -> johnbabbitt@hotmail.com | M20: =_xlfn.IFNA(VLOOKUP($P20,Roster!$A$2:$AF$34,16,0),0) -> 1953-05-17 | O20: 4 | P20: 42
A21: 12 | B21: =_xlfn.IFNA(VLOOKUP($P21,Roster!$A$2:$AF$34,6,0),0) -> Larry | C21: =_xlfn.IFNA(VLOOKUP($P21,Roster!$A$2:$AF$34,7,0),0) -> Tolar | D21: 15808 W Falcon Ridge Dr | E21: =_xlfn.IFNA(VLOOKUP($P21,Roster!$A$2:$AF$34,2,0),0) -> 4 | F21: =_xlfn.IFNA(VLOOKUP($P21,Roster!$A$2:$AF$34,18,0),0) -> (623) 544-3529 | G21: =_xlfn.IFNA(VLOOKUP($P21,Roster!$A$2:$AF$34,21,0),0) -> 0 | H21: =_xlfn.IFNA(VLOOKUP($P21,Roster!$A$2:$AF$34,22,0),0) -> 3036 | I21: =_xlfn.IFNA(VLOOKUP($P21,Roster!$A$2:$AF$34,20,0),0) -> 157-42400 | J21: =_xlfn.IFNA(VLOOKUP($P21,Roster!$A$2:$AF$34,17,0),0) -> ldt0747@yahoo.com | M21: =_xlfn.IFNA(VLOOKUP($P21,Roster!$A$2:$AF$34,16,0),0) -> 1947-07-28 | O21: 4 | P21: 43
A22: 13 | B22: =_xlfn.IFNA(VLOOKUP($P22,Roster!$A$2:$AF$34,6,0),0) -> Dana | C22: =_xlfn.IFNA(VLOOKUP($P22,Roster!$A$2:$AF$34,7,0),0) -> Barrette | D22: 15808 W Falcon Ridge Dr | E22: =_xlfn.IFNA(VLOOKUP($P22,Roster!$A$2:$AF$34,2,0),0) -> 5 | F22: =_xlfn.IFNA(VLOOKUP($P22,Roster!$A$2:$AF$34,18,0),0) -> (623) 383-3909 | G22: =_xlfn.IFNA(VLOOKUP($P22,Roster!$A$2:$AF$34,21,0),0) -> 4011789 | H22: =_xlfn.IFNA(VLOOKUP($P22,Roster!$A$2:$AF$34,22,0),0) -> 0 | I22: =_xlfn.IFNA(VLOOKUP($P22,Roster!$A$2:$AF$34,20,0),0) -> 8833-57886 | J22: =_xlfn.IFNA(VLOOKUP($P22,Roster!$A$2:$AF$34,17,0),0) -> djbarrette@gmail.com | M22: =_xlfn.IFNA(VLOOKUP($P22,Roster!$A$2:$AF$34,16,0),0) -> 1953-08-23 | O22: 5 | P22: 51
A23: 14 | B23: =_xlfn.IFNA(VLOOKUP($P23,Roster!$A$2:$AF$34,6,0),0) -> Larry | C23: =_xlfn.IFNA(VLOOKUP($P23,Roster!$A$2:$AF$34,7,0),0) -> Latham | D23: 15808 W Falcon Ridge Dr | E23: =_xlfn.IFNA(VLOOKUP($P23,Roster!$A$2:$AF$34,2,0),0) -> 5 | F23: =_xlfn.IFNA(VLOOKUP($P23,Roster!$A$2:$AF$34,18,0),0) -> (206) 992-7540 | G23: =_xlfn.IFNA(VLOOKUP($P23,Roster!$A$2:$AF$34,21,0),0) -> 110788 | H23: =_xlfn.IFNA(VLOOKUP($P23,Roster!$A$2:$AF$34,22,0),0) -> 0 | I23: =_xlfn.IFNA(VLOOKUP($P23,Roster!$A$2:$AF$34,20,0),0) -> 8833-52304 | J23: =_xlfn.IFNA(VLOOKUP($P23,Roster!$A$2:$AF$34,17,0),0) -> larryd329@gmail.com | M23: =_xlfn.IFNA(VLOOKUP($P23,Roster!$A$2:$AF$34,16,0),0) -> 1954-03-29 | O23: 5 | P23: 52
A24: 15 | B24: =_xlfn.IFNA(VLOOKUP($P24,Roster!$A$2:$AF$34,6,0),0) -> Bob | C24: =_xlfn.IFNA(VLOOKUP($P24,Roster!$A$2:$AF$34,7,0),0) -> Reed | D24: 15808 W Falcon Ridge Dr | E24: =_xlfn.IFNA(VLOOKUP($P24,Roster!$A$2:$AF$34,2,0),0) -> 5 | F24: =_xlfn.IFNA(VLOOKUP($P24,Roster!$A$2:$AF$34,18,0),0) -> (623) 556-2476 | G24: =_xlfn.IFNA(VLOOKUP($P24,Roster!$A$2:$AF$34,21,0),0) -> 71020 | H24: =_xlfn.IFNA(VLOOKUP($P24,Roster!$A$2:$AF$34,22,0),0) -> 0 | I24: =_xlfn.IFNA(VLOOKUP($P24,Roster!$A$2:$AF$34,20,0),0) -> 8833-56045 | J24: =_xlfn.IFNA(VLOOKUP($P24,Roster!$A$2:$AF$34,17,0),0) -> hotrodreed53@hotmail.com | M24: =_xlfn.IFNA(VLOOKUP($P24,Roster!$A$2:$AF$34,16,0),0) -> 00:00:00 | O24: 5 | P24: 53
B25: =IF($O25>0,OFFSET(#REF!,$O25,),0) -> 0 | C25: =IF($O25>0,OFFSET(#REF!,$O25,),0) -> 0 | D25: 15808 W Falcon Ridge Dr | E25: =IF($O25>0,OFFSET(#REF!,$O25,),0) -> 0 | F25: =IF($O25>0,OFFSET(#REF!,$O25,),0) -> 0 | G25: =IF($O25>0,OFFSET(#REF!,$O25,),0) -> 0 | H25: =IF($O25>0,OFFSET(#REF!,$O25,),0) -> 0 | I25: =IF($O25>0,OFFSET(#REF!,$O25,),0) -> 0 | J25: =IF($O25>0,OFFSET(#REF!,$O25,),0) -> 0
G26: SCW Resident | H26: Non-SCW Resident | I26: Sanctioned Bowler USBC # | J26: E-mail
B27: FirstName | C27: LastName | D27: Address | E27: Tm | F27: Phone | G27: SCW Rec Card | H27: CNP Card
A28: =A24+1 -> 16 | B28: =_xlfn.IFNA(VLOOKUP($P28,Roster!$A$2:$AF$34,6,0),0) -> Ken | C28: =_xlfn.IFNA(VLOOKUP($P28,Roster!$A$2:$AF$34,7,0),0) -> Pavlik | D28: 15808 W Falcon Ridge Dr | E28: =_xlfn.IFNA(VLOOKUP($P28,Roster!$A$2:$AF$34,2,0),0) -> 6 | F28: =_xlfn.IFNA(VLOOKUP($P28,Roster!$A$2:$AF$34,18,0),0) -> (623) 214-8637 | G28: =_xlfn.IFNA(VLOOKUP($P28,Roster!$A$2:$AF$34,21,0),0) -> 57675 | H28: =_xlfn.IFNA(VLOOKUP($P28,Roster!$A$2:$AF$34,22,0),0) -> 0 | I28: =_xlfn.IFNA(VLOOKUP($P28,Roster!$A$2:$AF$34,20,0),0) -> 157-11953 | J28: =_xlfn.IFNA(VLOOKUP($P28,Roster!$A$2:$AF$34,17,0),0) -> kpo91060@cox.net | O28: 6 | P28: 61
A29: 17 | B29: =_xlfn.IFNA(VLOOKUP($P29,Roster!$A$2:$AF$34,6,0),0) -> Mike | C29: =_xlfn.IFNA(VLOOKUP($P29,Roster!$A$2:$AF$34,7,0),0) -> Watt | D29: 15808 W Falcon Ridge Dr | E29: =_xlfn.IFNA(VLOOKUP($P29,Roster!$A$2:$AF$34,2,0),0) -> 6 | F29: =_xlfn.IFNA(VLOOKUP($P29,Roster!$A$2:$AF$34,18,0),0) -> 972.989.2208 | G29: =_xlfn.IFNA(VLOOKUP($P29,Roster!$A$2:$AF$34,21,0),0) -> 17692 | H29: =_xlfn.IFNA(VLOOKUP($P29,Roster!$A$2:$AF$34,22,0),0) -> 0 | I29: =_xlfn.IFNA(VLOOKUP($P29,Roster!$A$2:$AF$34,20,0),0) -> 2243-755 | J29: =_xlfn.IFNA(VLOOKUP($P29,Roster!$A$2:$AF$34,17,0),0) -> mlwatt99@gmail.com | O29: 6 | P29: 62
A30: 18 | B30: =_xlfn.IFNA(VLOOKUP($P30,Roster!$A$2:$AF$34,6,0),0) -> 0 | C30: =_xlfn.IFNA(VLOOKUP($P30,Roster!$A$2:$AF$34,7,0),0) -> 0 | D30: 15808 W Falcon Ridge Dr | E30: =_xlfn.IFNA(VLOOKUP($P30,Roster!$A$2:$AF$34,2,0),0) -> 0 | F30: =_xlfn.IFNA(VLOOKUP($P30,Roster!$A$2:$AF$34,18,0),0) -> 0 | G30: =_xlfn.IFNA(VLOOKUP($P30,Roster!$A$2:$AF$34,21,0),0) -> 0 | H30: =_xlfn.IFNA(VLOOKUP($P30,Roster!$A$2:$AF$34,22,0),0) -> 0 | I30: =_xlfn.IFNA(VLOOKUP($P30,Roster!$A$2:$AF$34,20,0),0) -> 0 | J30: =_xlfn.IFNA(VLOOKUP($P30,Roster!$A$2:$AF$34,17,0),0) -> 0 | O30: 6 | P30: 63
A31: 19 | B31: =_xlfn.IFNA(VLOOKUP($P31,Roster!$A$2:$AF$34,6,0),0) -> Paul | C31: =_xlfn.IFNA(VLOOKUP($P31,Roster!$A$2:$AF$34,7,0),0) -> Kleckner | D31: 15808 W Falcon Ridge Dr | E31: =_xlfn.IFNA(VLOOKUP($P31,Roster!$A$2:$AF$34,2,0),0) -> 7 | F31: =_xlfn.IFNA(VLOOKUP($P31,Roster!$A$2:$AF$34,18,0),0) -> (719) 246-0371 | G31: =_xlfn.IFNA(VLOOKUP($P31,Roster!$A$2:$AF$34,21,0),0) -> 128508 | H31: =_xlfn.IFNA(VLOOKUP($P31,Roster!$A$2:$AF$34,22,0),0) -> 0 | I31: =_xlfn.IFNA(VLOOKUP($P31,Roster!$A$2:$AF$34,20,0),0) -> 296-2878 | J31: =_xlfn.IFNA(VLOOKUP($P31,Roster!$A$2:$AF$34,17,0),0) -> chiefkco@gmail.com | O31: 7 | P31: 71
A32: 20 | B32: =_xlfn.IFNA(VLOOKUP($P32,Roster!$A$2:$AF$34,6,0),0) -> Bob | C32: =_xlfn.IFNA(VLOOKUP($P32,Roster!$A$2:$AF$34,7,0),0) -> Edge | D32: 15808 W Falcon Ridge Dr | E32: =_xlfn.IFNA(VLOOKUP($P32,Roster!$A$2:$AF$34,2,0),0) -> 7 | F32: =_xlfn.IFNA(VLOOKUP($P32,Roster!$A$2:$AF$34,18,0),0) -> (224-772-3066 | G32: =_xlfn.IFNA(VLOOKUP($P32,Roster!$A$2:$AF$34,21,0),0) -> 125901 | H32: =_xlfn.IFNA(VLOOKUP($P32,Roster!$A$2:$AF$34,22,0),0) -> 0 | I32: =_xlfn.IFNA(VLOOKUP($P32,Roster!$A$2:$AF$34,20,0),0) -> 522-328 | J32: =_xlfn.IFNA(VLOOKUP($P32,Roster!$A$2:$AF$34,17,0),0) -> deadeyebob@aol.com | O32: 7 | P32: 72
A33: 21 | B33: =_xlfn.IFNA(VLOOKUP($P33,Roster!$A$2:$AF$34,6,0),0) -> Terry | C33: =_xlfn.IFNA(VLOOKUP($P33,Roster!$A$2:$AF$34,7,0),0) -> Camp | D33: 15808 W Falcon Ridge Dr | E33: =_xlfn.IFNA(VLOOKUP($P33,Roster!$A$2:$AF$34,2,0),0) -> 7 | F33: =_xlfn.IFNA(VLOOKUP($P33,Roster!$A$2:$AF$34,18,0),0) -> (970) 744-0809 | G33: =_xlfn.IFNA(VLOOKUP($P33,Roster!$A$2:$AF$34,21,0),0) -> 0 | H33: =_xlfn.IFNA(VLOOKUP($P33,Roster!$A$2:$AF$34,22,0),0) -> 3049 | I33: =_xlfn.IFNA(VLOOKUP($P33,Roster!$A$2:$AF$34,20,0),0) -> 1675-43393 | J33: =_xlfn.IFNA(VLOOKUP($P33,Roster!$A$2:$AF$34,17,0),0) -> tlcclu7@yahoo.com | O33: 7 | P33: 73
A34: 22 | B34: =_xlfn.IFNA(VLOOKUP($P34,Roster!$A$2:$AF$34,6,0),0) -> Dan | C34: =_xlfn.IFNA(VLOOKUP($P34,Roster!$A$2:$AF$34,7,0),0) -> Imholte | D34: 15808 W Falcon Ridge Dr | E34: =_xlfn.IFNA(VLOOKUP($P34,Roster!$A$2:$AF$34,2,0),0) -> 8 | F34: =_xlfn.IFNA(VLOOKUP($P34,Roster!$A$2:$AF$34,18,0),0) -> (623) 975-0139 | G34: =_xlfn.IFNA(VLOOKUP($P34,Roster!$A$2:$AF$34,21,0),0) -> 0 | H34: =_xlfn.IFNA(VLOOKUP($P34,Roster!$A$2:$AF$34,22,0),0) -> 0 | I34: =_xlfn.IFNA(VLOOKUP($P34,Roster!$A$2:$AF$34,20,0),0) -> 8833-49996 | J34: =_xlfn.IFNA(VLOOKUP($P34,Roster!$A$2:$AF$34,17,0),0) -> dimholte1@gmail.com | O34: 8 | P34: 81
A35: 23 | B35: =_xlfn.IFNA(VLOOKUP($P35,Roster!$A$2:$AF$34,6,0),0) -> Terry | C35: =_xlfn.IFNA(VLOOKUP($P35,Roster!$A$2:$AF$34,7,0),0) -> Hamman | D35: 15808 W Falcon Ridge Dr | E35: =_xlfn.IFNA(VLOOKUP($P35,Roster!$A$2:$AF$34,2,0),0) -> 8 | F35: =_xlfn.IFNA(VLOOKUP($P35,Roster!$A$2:$AF$34,18,0),0) -> (623) 243-7666 | G35: =_xlfn.IFNA(VLOOKUP($P35,Roster!$A$2:$AF$34,21,0),0) -> 108533 | H35: =_xlfn.IFNA(VLOOKUP($P35,Roster!$A$2:$AF$34,22,0),0) -> 0 | I35: =_xlfn.IFNA(VLOOKUP($P35,Roster!$A$2:$AF$34,20,0),0) -> 2443-2227 | J35: =_xlfn.IFNA(VLOOKUP($P35,Roster!$A$2:$AF$34,17,0),0) -> terryhamman@hotmail.com | O35: 8 | P35: 82
A36: 24 | B36: =_xlfn.IFNA(VLOOKUP($P36,Roster!$A$2:$AF$34,6,0),0) -> Gary | C36: =_xlfn.IFNA(VLOOKUP($P36,Roster!$A$2:$AF$34,7,0),0) -> Bentley | D36: 15808 W Falcon Ridge Dr | E36: =_xlfn.IFNA(VLOOKUP($P36,Roster!$A$2:$AF$34,2,0),0) -> 8 | F36: =_xlfn.IFNA(VLOOKUP($P36,Roster!$A$2:$AF$34,18,0),0) -> (701) 400-6400 | G36: =_xlfn.IFNA(VLOOKUP($P36,Roster!$A$2:$AF$34,21,0),0) -> 0 | H36: =_xlfn.IFNA(VLOOKUP($P36,Roster!$A$2:$AF$34,22,0),0) -> 3083 | I36: =_xlfn.IFNA(VLOOKUP($P36,Roster!$A$2:$AF$34,20,0),0) -> 1749-41 | J36: =_xlfn.IFNA(VLOOKUP($P36,Roster!$A$2:$AF$34,17,0),0) -> debgary1991@gmail.com | O36: 8 | P36: 83
A37: 25 | B37: =_xlfn.IFNA(VLOOKUP($P37,Roster!$A$2:$AF$34,6,0),0) -> Joe | C37: =_xlfn.IFNA(VLOOKUP($P37,Roster!$A$2:$AF$34,7,0),0) -> Couch | D37: 15808 W Falcon Ridge Dr | E37: =_xlfn.IFNA(VLOOKUP($P37,Roster!$A$2:$AF$34,2,0),0) -> 9 | F37: =_xlfn.IFNA(VLOOKUP($P37,Roster!$A$2:$AF$34,18,0),0) -> (562) 367-3629 | G37: =_xlfn.IFNA(VLOOKUP($P37,Roster!$A$2:$AF$34,21,0),0) -> 0 | H37: =_xlfn.IFNA(VLOOKUP($P37,Roster!$A$2:$AF$34,22,0),0) -> 0 | I37: =_xlfn.IFNA(VLOOKUP($P37,Roster!$A$2:$AF$34,20,0),0) -> 235-135 | J37: =_xlfn.IFNA(VLOOKUP($P37,Roster!$A$2:$AF$34,17,0),0) -> easyjoe300@aol.com | O37: 9 | P37: 91
A38: 26 | B38: =_xlfn.IFNA(VLOOKUP($P38,Roster!$A$2:$AF$34,6,0),0) -> Paul | C38: =_xlfn.IFNA(VLOOKUP($P38,Roster!$A$2:$AF$34,7,0),0) -> Williams | D38: 15808 W Falcon Ridge Dr | E38: =_xlfn.IFNA(VLOOKUP($P38,Roster!$A$2:$AF$34,2,0),0) -> 9 | F38: =_xlfn.IFNA(VLOOKUP($P38,Roster!$A$2:$AF$34,18,0),0) -> (517 304-1448 | G38: =_xlfn.IFNA(VLOOKUP($P38,Roster!$A$2:$AF$34,21,0),0) -> 0 | H38: =_xlfn.IFNA(VLOOKUP($P38,Roster!$A$2:$AF$34,22,0),0) -> 0 | I38: =_xlfn.IFNA(VLOOKUP($P38,Roster!$A$2:$AF$34,20,0),0) -> 150-18093 | J38: =_xlfn.IFNA(VLOOKUP($P38,Roster!$A$2:$AF$34,17,0),0) -> paulrwilliams60@gmail.com | O38: 9 | P38: 92
A39: 27 | B39: =_xlfn.IFNA(VLOOKUP($P39,Roster!$A$2:$AF$34,6,0),0) -> Ted | C39: =_xlfn.IFNA(VLOOKUP($P39,Roster!$A$2:$AF$34,7,0),0) -> Bogumil | D39: 15808 W Falcon Ridge Dr | E39: =_xlfn.IFNA(VLOOKUP($P39,Roster!$A$2:$AF$34,2,0),0) -> 9 | F39: =_xlfn.IFNA(VLOOKUP($P39,Roster!$A$2:$AF$34,18,0),0) -> (602) 820-0853 | G39: =_xlfn.IFNA(VLOOKUP($P39,Roster!$A$2:$AF$34,21,0),0) -> 0 | H39: =_xlfn.IFNA(VLOOKUP($P39,Roster!$A$2:$AF$34,22,0),0) -> 0 | I39: =_xlfn.IFNA(VLOOKUP($P39,Roster!$A$2:$AF$34,20,0),0) -> 1369-14316 | J39: =_xlfn.IFNA(VLOOKUP($P39,Roster!$A$2:$AF$34,17,0),0) -> nascarted@att.com | O39: 9 | P39: 93
A40: 28 | B40: =_xlfn.IFNA(VLOOKUP($P40,Roster!$A$2:$AF$34,6,0),0) -> Andy | C40: =_xlfn.IFNA(VLOOKUP($P40,Roster!$A$2:$AF$34,7,0),0) -> Lewis | D40: 15808 W Falcon Ridge Dr | E40: =_xlfn.IFNA(VLOOKUP($P40,Roster!$A$2:$AF$34,2,0),0) -> 10 | F40: =_xlfn.IFNA(VLOOKUP($P40,Roster!$A$2:$AF$34,18,0),0) -> (602) 882-9228 | G40: =_xlfn.IFNA(VLOOKUP($P40,Roster!$A$2:$AF$34,21,0),0) -> 0 | H40: =_xlfn.IFNA(VLOOKUP($P40,Roster!$A$2:$AF$34,22,0),0) -> 3164 | I40: =_xlfn.IFNA(VLOOKUP($P40,Roster!$A$2:$AF$34,20,0),0) -> 2786-15403 | J40: =_xlfn.IFNA(VLOOKUP($P40,Roster!$A$2:$AF$34,17,0),0) -> azadlewis@cox.net | O40: 10 | P40: 101
A41: 29 | B41: =_xlfn.IFNA(VLOOKUP($P41,Roster!$A$2:$AF$34,6,0),0) -> Dennis | C41: =_xlfn.IFNA(VLOOKUP($P41,Roster!$A$2:$AF$34,7,0),0) -> Barnes | D41: 15808 W Falcon Ridge Dr | E41: =_xlfn.IFNA(VLOOKUP($P41,Roster!$A$2:$AF$34,2,0),0) -> 10 | F41: =_xlfn.IFNA(VLOOKUP($P41,Roster!$A$2:$AF$34,18,0),0) -> (623) 229-2010 | G41: =_xlfn.IFNA(VLOOKUP($P41,Roster!$A$2:$AF$34,21,0),0) -> 109510 | H41: =_xlfn.IFNA(VLOOKUP($P41,Roster!$A$2:$AF$34,22,0),0) -> 0 | I41: =_xlfn.IFNA(VLOOKUP($P41,Roster!$A$2:$AF$34,20,0),0) -> 8833-49320 | J41: =_xlfn.IFNA(VLOOKUP($P41,Roster!$A$2:$AF$34,17,0),0) -> dbarnes1946@cox.net | O41: 10 | P41: 102
A42: 30 | B42: =_xlfn.IFNA(VLOOKUP($P42,Roster!$A$2:$AF$34,6,0),0) -> Gary | C42: =_xlfn.IFNA(VLOOKUP($P42,Roster!$A$2:$AF$34,7,0),0) -> McCoy | D42: 15808 W Falcon Ridge Dr | E42: =_xlfn.IFNA(VLOOKUP($P42,Roster!$A$2:$AF$34,2,0),0) -> 10 | F42: =_xlfn.IFNA(VLOOKUP($P42,Roster!$A$2:$AF$34,18,0),0) -> (206) 909-6672 | G42: =_xlfn.IFNA(VLOOKUP($P42,Roster!$A$2:$AF$34,21,0),0) -> 124548 | H42: =_xlfn.IFNA(VLOOKUP($P42,Roster!$A$2:$AF$34,22,0),0) -> 0 | I42: =_xlfn.IFNA(VLOOKUP($P42,Roster!$A$2:$AF$34,20,0),0) -> 5033-2008 | J42: =_xlfn.IFNA(VLOOKUP($P42,Roster!$A$2:$AF$34,17,0),0) -> gandsmccoy@cox.net | O42: 10 | P42: 103
A43: 31 | B43: =_xlfn.IFNA(VLOOKUP($P43,Roster!$A$2:$AF$34,6,0),0) -> Phil | C43: =_xlfn.IFNA(VLOOKUP($P43,Roster!$A$2:$AF$34,7,0),0) -> Jameson | D43: 15808 W Falcon Ridge Dr | E43: =_xlfn.IFNA(VLOOKUP($P43,Roster!$A$2:$AF$34,2,0),0) -> 11 | F43: =_xlfn.IFNA(VLOOKUP($P43,Roster!$A$2:$AF$34,18,0),0) -> (480) 544-5467 | G43: =_xlfn.IFNA(VLOOKUP($P43,Roster!$A$2:$AF$34,21,0),0) -> 112103 | H43: =_xlfn.IFNA(VLOOKUP($P43,Roster!$A$2:$AF$34,22,0),0) -> 0 | I43: =_xlfn.IFNA(VLOOKUP($P43,Roster!$A$2:$AF$34,20,0),0) -> 8833-62408 | J43: =_xlfn.IFNA(VLOOKUP($P43,Roster!$A$2:$AF$34,17,0),0) -> pajameson@cox.net | O43: 11 | P43: 111
A44: 32 | B44: =_xlfn.IFNA(VLOOKUP($P44,Roster!$A$2:$AF$34,6,0),0) -> 0 | C44: =_xlfn.IFNA(VLOOKUP($P44,Roster!$A$2:$AF$34,7,0),0) -> 0 | D44: 15808 W Falcon Ridge Dr | E44: =_xlfn.IFNA(VLOOKUP($P44,Roster!$A$2:$AF$34,2,0),0) -> 0 | F44: =_xlfn.IFNA(VLOOKUP($P44,Roster!$A$2:$AF$34,18,0),0) -> 0 | G44: =_xlfn.IFNA(VLOOKUP($P44,Roster!$A$2:$AF$34,21,0),0) -> 0 | H44: =_xlfn.IFNA(VLOOKUP($P44,Roster!$A$2:$AF$34,22,0),0) -> 0 | I44: =_xlfn.IFNA(VLOOKUP($P44,Roster!$A$2:$AF$34,20,0),0) -> 0 | J44: =_xlfn.IFNA(VLOOKUP($P44,Roster!$A$2:$AF$34,17,0),0) -> 0 | O44: 11 | P44: 112
A45: 33 | B45: =_xlfn.IFNA(VLOOKUP($P45,Roster!$A$2:$AF$34,6,0),0) -> 0 | C45: =_xlfn.IFNA(VLOOKUP($P45,Roster!$A$2:$AF$34,7,0),0) -> 0 | D45: 15808 W Falcon Ridge Dr | E45: =_xlfn.IFNA(VLOOKUP($P45,Roster!$A$2:$AF$34,2,0),0) -> 0 | F45: =_xlfn.IFNA(VLOOKUP($P45,Roster!$A$2:$AF$34,18,0),0) -> 0 | G45: =_xlfn.IFNA(VLOOKUP($P45,Roster!$A$2:$AF$34,21,0),0) -> 0 | H45: =_xlfn.IFNA(VLOOKUP($P45,Roster!$A$2:$AF$34,22,0),0) -> 0 | I45: =_xlfn.IFNA(VLOOKUP($P45,Roster!$A$2:$AF$34,20,0),0) -> 0 | J45: =_xlfn.IFNA(VLOOKUP($P45,Roster!$A$2:$AF$34,17,0),0) -> 0 | O45: 11 | P45: 113
A46: 34 | B46: =_xlfn.IFNA(VLOOKUP($P46,Roster!$A$2:$AF$34,6,0),0) -> 0 | C46: =_xlfn.IFNA(VLOOKUP($P46,Roster!$A$2:$AF$34,7,0),0) -> 0 | D46: 15808 W Falcon Ridge Dr | E46: =_xlfn.IFNA(VLOOKUP($P46,Roster!$A$2:$AF$34,2,0),0) -> 0 | F46: =_xlfn.IFNA(VLOOKUP($P46,Roster!$A$2:$AF$34,18,0),0) -> 0 | G46: =_xlfn.IFNA(VLOOKUP($P46,Roster!$A$2:$AF$34,21,0),0) -> 0 | H46: =_xlfn.IFNA(VLOOKUP($P46,Roster!$A$2:$AF$34,22,0),0) -> 0 | I46: =_xlfn.IFNA(VLOOKUP($P46,Roster!$A$2:$AF$34,20,0),0) -> 0 | J46: =_xlfn.IFNA(VLOOKUP($P46,Roster!$A$2:$AF$34,17,0),0) -> 0 | O46: 12 | P46: 121
A47: 35 | B47: =_xlfn.IFNA(VLOOKUP($P47,Roster!$A$2:$AF$34,6,0),0) -> 0 | C47: =_xlfn.IFNA(VLOOKUP($P47,Roster!$A$2:$AF$34,7,0),0) -> 0 | D47: 15808 W Falcon Ridge Dr | E47: =_xlfn.IFNA(VLOOKUP($P47,Roster!$A$2:$AF$34,2,0),0) -> 0 | F47: =_xlfn.IFNA(VLOOKUP($P47,Roster!$A$2:$AF$34,18,0),0) -> 0 | G47: =_xlfn.IFNA(VLOOKUP($P47,Roster!$A$2:$AF$34,21,0),0) -> 0 | H47: =_xlfn.IFNA(VLOOKUP($P47,Roster!$A$2:$AF$34,22,0),0) -> 0 | I47: =_xlfn.IFNA(VLOOKUP($P47,Roster!$A$2:$AF$34,20,0),0) -> 0 | J47: =_xlfn.IFNA(VLOOKUP($P47,Roster!$A$2:$AF$34,17,0),0) -> 0 | O47: 12 | P47: 122
A48: 36 | B48: =_xlfn.IFNA(VLOOKUP($P48,Roster!$A$2:$AF$34,6,0),0) -> 0 | C48: =_xlfn.IFNA(VLOOKUP($P48,Roster!$A$2:$AF$34,7,0),0) -> 0 | D48: 15808 W Falcon Ridge Dr | E48: =_xlfn.IFNA(VLOOKUP($P48,Roster!$A$2:$AF$34,2,0),0) -> 0 | F48: =_xlfn.IFNA(VLOOKUP($P48,Roster!$A$2:$AF$34,18,0),0) -> 0 | G48: =_xlfn.IFNA(VLOOKUP($P48,Roster!$A$2:$AF$34,21,0),0) -> 0 | H48: =_xlfn.IFNA(VLOOKUP($P48,Roster!$A$2:$AF$34,22,0),0) -> 0 | I48: =_xlfn.IFNA(VLOOKUP($P48,Roster!$A$2:$AF$34,20,0),0) -> 0 | J48: =_xlfn.IFNA(VLOOKUP($P48,Roster!$A$2:$AF$34,17,0),0) -> 0 | O48: 12 | P48: 123
A49: 37 | B49: =_xlfn.IFNA(VLOOKUP($P49,Roster!$A$2:$AF$34,6,0),0) -> 0 | C49: =_xlfn.IFNA(VLOOKUP($P49,Roster!$A$2:$AF$34,7,0),0) -> 0 | D49: 15808 W Falcon Ridge Dr | E49: =_xlfn.IFNA(VLOOKUP($P49,Roster!$A$2:$AF$34,2,0),0) -> 0 | F49: =_xlfn.IFNA(VLOOKUP($P49,Roster!$A$2:$AF$34,18,0),0) -> 0 | G49: =_xlfn.IFNA(VLOOKUP($P49,Roster!$A$2:$AF$34,21,0),0) -> 0 | H49: =_xlfn.IFNA(VLOOKUP($P49,Roster!$A$2:$AF$34,22,0),0) -> 0 | I49: =_xlfn.IFNA(VLOOKUP($P49,Roster!$A$2:$AF$34,20,0),0) -> 0 | J49: =_xlfn.IFNA(VLOOKUP($P49,Roster!$A$2:$AF$34,17,0),0) -> 0 | O49: 13 | P49: 131
A50: 38 | B50: =_xlfn.IFNA(VLOOKUP($P50,Roster!$A$2:$AF$34,6,0),0) -> 0 | C50: =_xlfn.IFNA(VLOOKUP($P50,Roster!$A$2:$AF$34,7,0),0) -> 0 | D50: 15808 W Falcon Ridge Dr | E50: =_xlfn.IFNA(VLOOKUP($P50,Roster!$A$2:$AF$34,2,0),0) -> 0 | F50: =_xlfn.IFNA(VLOOKUP($P50,Roster!$A$2:$AF$34,18,0),0) -> 0 | G50: =_xlfn.IFNA(VLOOKUP($P50,Roster!$A$2:$AF$34,21,0),0) -> 0 | H50: =_xlfn.IFNA(VLOOKUP($P50,Roster!$A$2:$AF$34,22,0),0) -> 0 | I50: =_xlfn.IFNA(VLOOKUP($P50,Roster!$A$2:$AF$34,20,0),0) -> 0 | J50: =_xlfn.IFNA(VLOOKUP($P50,Roster!$A$2:$AF$34,17,0),0) -> 0 | O50: 13 | P50: 132
A51: 39 | B51: =_xlfn.IFNA(VLOOKUP($P51,Roster!$A$2:$AF$34,6,0),0) -> 0 | C51: =_xlfn.IFNA(VLOOKUP($P51,Roster!$A$2:$AF$34,7,0),0) -> 0 | D51: 15808 W Falcon Ridge Dr | E51: =_xlfn.IFNA(VLOOKUP($P51,Roster!$A$2:$AF$34,2,0),0) -> 0 | F51: =_xlfn.IFNA(VLOOKUP($P51,Roster!$A$2:$AF$34,18,0),0) -> 0 | G51: =_xlfn.IFNA(VLOOKUP($P51,Roster!$A$2:$AF$34,21,0),0) -> 0 | H51: =_xlfn.IFNA(VLOOKUP($P51,Roster!$A$2:$AF$34,22,0),0) -> 0 | I51: =_xlfn.IFNA(VLOOKUP($P51,Roster!$A$2:$AF$34,20,0),0) -> 0 | J51: =_xlfn.IFNA(VLOOKUP($P51,Roster!$A$2:$AF$34,17,0),0) -> 0 | O51: 13 | P51: 133
A52: 40 | B52: =_xlfn.IFNA(VLOOKUP($P52,Roster!$A$2:$AF$34,6,0),0) -> 0 | C52: =_xlfn.IFNA(VLOOKUP($P52,Roster!$A$2:$AF$34,7,0),0) -> 0 | D52: 15808 W Falcon Ridge Dr | E52: =_xlfn.IFNA(VLOOKUP($P52,Roster!$A$2:$AF$34,2,0),0) -> 0 | F52: =_xlfn.IFNA(VLOOKUP($P52,Roster!$A$2:$AF$34,18,0),0) -> 0 | G52: =_xlfn.IFNA(VLOOKUP($P52,Roster!$A$2:$AF$34,21,0),0) -> 0 | H52: =_xlfn.IFNA(VLOOKUP($P52,Roster!$A$2:$AF$34,22,0),0) -> 0 | I52: =_xlfn.IFNA(VLOOKUP($P52,Roster!$A$2:$AF$34,20,0),0) -> 0 | J52: =_xlfn.IFNA(VLOOKUP($P52,Roster!$A$2:$AF$34,17,0),0) -> 0 | O52: 14 | P52: 141
A53: 41 | B53: =_xlfn.IFNA(VLOOKUP($P53,Roster!$A$2:$AF$34,6,0),0) -> 0 | C53: =_xlfn.IFNA(VLOOKUP($P53,Roster!$A$2:$AF$34,7,0),0) -> 0 | D53: 15808 W Falcon Ridge Dr | E53: =_xlfn.IFNA(VLOOKUP($P53,Roster!$A$2:$AF$34,2,0),0) -> 0 | F53: =_xlfn.IFNA(VLOOKUP($P53,Roster!$A$2:$AF$34,18,0),0) -> 0 | G53: =_xlfn.IFNA(VLOOKUP($P53,Roster!$A$2:$AF$34,21,0),0) -> 0 | H53: =_xlfn.IFNA(VLOOKUP($P53,Roster!$A$2:$AF$34,22,0),0) -> 0 | I53: =_xlfn.IFNA(VLOOKUP($P53,Roster!$A$2:$AF$34,20,0),0) -> 0 | J53: =_xlfn.IFNA(VLOOKUP($P53,Roster!$A$2:$AF$34,17,0),0) -> 0 | O53: 14 | P53: 142
A54: 42 | B54: =_xlfn.IFNA(VLOOKUP($P54,Roster!$A$2:$AF$34,6,0),0) -> 0 | C54: =_xlfn.IFNA(VLOOKUP($P54,Roster!$A$2:$AF$34,7,0),0) -> 0 | D54: 15808 W Falcon Ridge Dr | E54: =_xlfn.IFNA(VLOOKUP($P54,Roster!$A$2:$AF$34,2,0),0) -> 0 | F54: =_xlfn.IFNA(VLOOKUP($P54,Roster!$A$2:$AF$34,18,0),0) -> 0 | G54: =_xlfn.IFNA(VLOOKUP($P54,Roster!$A$2:$AF$34,21,0),0) -> 0 | H54: =_xlfn.IFNA(VLOOKUP($P54,Roster!$A$2:$AF$34,22,0),0) -> 0 | I54: =_xlfn.IFNA(VLOOKUP($P54,Roster!$A$2:$AF$34,20,0),0) -> 0 | J54: =_xlfn.IFNA(VLOOKUP($P54,Roster!$A$2:$AF$34,17,0),0) -> 0 | O54: 14 | P54: 143
A55: 43 | B55: =_xlfn.IFNA(VLOOKUP($P55,Roster!$A$2:$AF$34,6,0),0) -> 0 | C55: =_xlfn.IFNA(VLOOKUP($P55,Roster!$A$2:$AF$34,7,0),0) -> 0 | D55: 15808 W Falcon Ridge Dr | E55: =_xlfn.IFNA(VLOOKUP($P55,Roster!$A$2:$AF$34,2,0),0) -> 0 | F55: =_xlfn.IFNA(VLOOKUP($P55,Roster!$A$2:$AF$34,18,0),0) -> 0 | G55: =_xlfn.IFNA(VLOOKUP($P55,Roster!$A$2:$AF$34,21,0),0) -> 0 | H55: =_xlfn.IFNA(VLOOKUP($P55,Roster!$A$2:$AF$34,22,0),0) -> 0 | I55: =_xlfn.IFNA(VLOOKUP($P55,Roster!$A$2:$AF$34,20,0),0) -> 0 | J55: =_xlfn.IFNA(VLOOKUP($P55,Roster!$A$2:$AF$34,17,0),0) -> 0 | O55: 15 | P55: 151
A56: 44 | B56: =_xlfn.IFNA(VLOOKUP($P56,Roster!$A$2:$AF$34,6,0),0) -> 0 | C56: =_xlfn.IFNA(VLOOKUP($P56,Roster!$A$2:$AF$34,7,0),0) -> 0 | D56: 15808 W Falcon Ridge Dr | E56: =_xlfn.IFNA(VLOOKUP($P56,Roster!$A$2:$AF$34,2,0),0) -> 0 | F56: =_xlfn.IFNA(VLOOKUP($P56,Roster!$A$2:$AF$34,18,0),0) -> 0 | G56: =_xlfn.IFNA(VLOOKUP($P56,Roster!$A$2:$AF$34,21,0),0) -> 0 | H56: =_xlfn.IFNA(VLOOKUP($P56,Roster!$A$2:$AF$34,22,0),0) -> 0 | I56: =_xlfn.IFNA(VLOOKUP($P56,Roster!$A$2:$AF$34,20,0),0) -> 0 | J56: =_xlfn.IFNA(VLOOKUP($P56,Roster!$A$2:$AF$34,17,0),0) -> 0 | O56: 15 | P56: 152
A57: 45 | B57: =_xlfn.IFNA(VLOOKUP($P57,Roster!$A$2:$AF$34,6,0),0) -> 0 | C57: =_xlfn.IFNA(VLOOKUP($P57,Roster!$A$2:$AF$34,7,0),0) -> 0 | D57: 15808 W Falcon Ridge Dr | E57: =_xlfn.IFNA(VLOOKUP($P57,Roster!$A$2:$AF$34,2,0),0) -> 0 | F57: =_xlfn.IFNA(VLOOKUP($P57,Roster!$A$2:$AF$34,18,0),0) -> 0 | G57: =_xlfn.IFNA(VLOOKUP($P57,Roster!$A$2:$AF$34,21,0),0) -> 0 | H57: =_xlfn.IFNA(VLOOKUP($P57,Roster!$A$2:$AF$34,22,0),0) -> 0 | I57: =_xlfn.IFNA(VLOOKUP($P57,Roster!$A$2:$AF$34,20,0),0) -> 0 | J57: =_xlfn.IFNA(VLOOKUP($P57,Roster!$A$2:$AF$34,17,0),0) -> 0 | O57: 15 | P57: 153
A58: 46 | B58: =_xlfn.IFNA(VLOOKUP($P58,Roster!$A$2:$AF$34,6,0),0) -> 0 | C58: =_xlfn.IFNA(VLOOKUP($P58,Roster!$A$2:$AF$34,7,0),0) -> 0 | D58: 15808 W Falcon Ridge Dr | E58: =_xlfn.IFNA(VLOOKUP($P58,Roster!$A$2:$AF$34,2,0),0) -> 0 | F58: =_xlfn.IFNA(VLOOKUP($P58,Roster!$A$2:$AF$34,18,0),0) -> 0 | G58: =_xlfn.IFNA(VLOOKUP($P58,Roster!$A$2:$AF$34,21,0),0) -> 0 | H58: =_xlfn.IFNA(VLOOKUP($P58,Roster!$A$2:$AF$34,22,0),0) -> 0 | I58: =_xlfn.IFNA(VLOOKUP($P58,Roster!$A$2:$AF$34,20,0),0) -> 0 | J58: =_xlfn.IFNA(VLOOKUP($P58,Roster!$A$2:$AF$34,17,0),0) -> 0 | O58: 16 | P58: 161
A59: 47 | B59: =_xlfn.IFNA(VLOOKUP($P59,Roster!$A$2:$AF$34,6,0),0) -> 0 | C59: =_xlfn.IFNA(VLOOKUP($P59,Roster!$A$2:$AF$34,7,0),0) -> 0 | D59: 15808 W Falcon Ridge Dr | E59: =_xlfn.IFNA(VLOOKUP($P59,Roster!$A$2:$AF$34,2,0),0) -> 0 | F59: =_xlfn.IFNA(VLOOKUP($P59,Roster!$A$2:$AF$34,18,0),0) -> 0 | G59: =_xlfn.IFNA(VLOOKUP($P59,Roster!$A$2:$AF$34,21,0),0) -> 0 | H59: =_xlfn.IFNA(VLOOKUP($P59,Roster!$A$2:$AF$34,22,0),0) -> 0 | I59: =_xlfn.IFNA(VLOOKUP($P59,Roster!$A$2:$AF$34,20,0),0) -> 0 | J59: =_xlfn.IFNA(VLOOKUP($P59,Roster!$A$2:$AF$34,17,0),0) -> 0 | O59: 16 | P59: 162
A60: 48 | B60: =_xlfn.IFNA(VLOOKUP($P60,Roster!$A$2:$AF$34,6,0),0) -> 0 | C60: =_xlfn.IFNA(VLOOKUP($P60,Roster!$A$2:$AF$34,7,0),0) -> 0 | D60: 15808 W Falcon Ridge Dr | E60: =_xlfn.IFNA(VLOOKUP($P60,Roster!$A$2:$AF$34,2,0),0) -> 0 | F60: =_xlfn.IFNA(VLOOKUP($P60,Roster!$A$2:$AF$34,18,0),0) -> 0 | G60: =_xlfn.IFNA(VLOOKUP($P60,Roster!$A$2:$AF$34,21,0),0) -> 0 | H60: =_xlfn.IFNA(VLOOKUP($P60,Roster!$A$2:$AF$34,22,0),0) -> 0 | I60: =_xlfn.IFNA(VLOOKUP($P60,Roster!$A$2:$AF$34,20,0),0) -> 0 | J60: =_xlfn.IFNA(VLOOKUP($P60,Roster!$A$2:$AF$34,17,0),0) -> 0 | O60: 16 | P60: 163
A61: 49 | B61: =_xlfn.IFNA(VLOOKUP($P61,Roster!$A$2:$AF$34,6,0),0) -> 0 | C61: =_xlfn.IFNA(VLOOKUP($P61,Roster!$A$2:$AF$34,7,0),0) -> 0 | D61: 15808 W Falcon Ridge Dr | E61: =_xlfn.IFNA(VLOOKUP($P61,Roster!$A$2:$AF$34,2,0),0) -> 0 | F61: =_xlfn.IFNA(VLOOKUP($P61,Roster!$A$2:$AF$34,18,0),0) -> 0 | G61: =_xlfn.IFNA(VLOOKUP($P61,Roster!$A$2:$AF$34,21,0),0) -> 0 | H61: =_xlfn.IFNA(VLOOKUP($P61,Roster!$A$2:$AF$34,22,0),0) -> 0 | I61: =_xlfn.IFNA(VLOOKUP($P61,Roster!$A$2:$AF$34,20,0),0) -> 0 | J61: =_xlfn.IFNA(VLOOKUP($P61,Roster!$A$2:$AF$34,17,0),0) -> 0 | O61: 17 | P61: 171
A62: 50 | B62: =_xlfn.IFNA(VLOOKUP($P62,Roster!$A$2:$AF$34,6,0),0) -> 0 | C62: =_xlfn.IFNA(VLOOKUP($P62,Roster!$A$2:$AF$34,7,0),0) -> 0 | D62: 15808 W Falcon Ridge Dr | E62: =_xlfn.IFNA(VLOOKUP($P62,Roster!$A$2:$AF$34,2,0),0) -> 0 | F62: =_xlfn.IFNA(VLOOKUP($P62,Roster!$A$2:$AF$34,18,0),0) -> 0 | G62: =_xlfn.IFNA(VLOOKUP($P62,Roster!$A$2:$AF$34,21,0),0) -> 0 | H62: =_xlfn.IFNA(VLOOKUP($P62,Roster!$A$2:$AF$34,22,0),0) -> 0 | I62: =_xlfn.IFNA(VLOOKUP($P62,Roster!$A$2:$AF$34,20,0),0) -> 0 | J62: =_xlfn.IFNA(VLOOKUP($P62,Roster!$A$2:$AF$34,17,0),0) -> 0 | O62: 17 | P62: 172
A63: 51 | B63: =_xlfn.IFNA(VLOOKUP($P63,Roster!$A$2:$AF$34,6,0),0) -> 0 | C63: =_xlfn.IFNA(VLOOKUP($P63,Roster!$A$2:$AF$34,7,0),0) -> 0 | D63: 15808 W Falcon Ridge Dr | E63: =_xlfn.IFNA(VLOOKUP($P63,Roster!$A$2:$AF$34,2,0),0) -> 0 | F63: =_xlfn.IFNA(VLOOKUP($P63,Roster!$A$2:$AF$34,18,0),0) -> 0 | G63: =_xlfn.IFNA(VLOOKUP($P63,Roster!$A$2:$AF$34,21,0),0) -> 0 | H63: =_xlfn.IFNA(VLOOKUP($P63,Roster!$A$2:$AF$34,22,0),0) -> 0 | I63: =_xlfn.IFNA(VLOOKUP($P63,Roster!$A$2:$AF$34,20,0),0) -> 0 | J63: =_xlfn.IFNA(VLOOKUP($P63,Roster!$A$2:$AF$34,17,0),0) -> 0 | O63: 17 | P63: 173
A64: 52 | B64: =_xlfn.IFNA(VLOOKUP($P64,Roster!$A$2:$AF$34,6,0),0) -> 0 | C64: =_xlfn.IFNA(VLOOKUP($P64,Roster!$A$2:$AF$34,7,0),0) -> 0 | D64: 15808 W Falcon Ridge Dr | E64: =_xlfn.IFNA(VLOOKUP($P64,Roster!$A$2:$AF$34,2,0),0) -> 0 | F64: =_xlfn.IFNA(VLOOKUP($P64,Roster!$A$2:$AF$34,18,0),0) -> 0 | G64: =_xlfn.IFNA(VLOOKUP($P64,Roster!$A$2:$AF$34,21,0),0) -> 0 | H64: =_xlfn.IFNA(VLOOKUP($P64,Roster!$A$2:$AF$34,22,0),0) -> 0 | I64: =_xlfn.IFNA(VLOOKUP($P64,Roster!$A$2:$AF$34,20,0),0) -> 0 | J64: =_xlfn.IFNA(VLOOKUP($P64,Roster!$A$2:$AF$34,17,0),0) -> 0 | O64: 18 | P64: 181
A65: 53 | B65: =_xlfn.IFNA(VLOOKUP($P65,Roster!$A$2:$AF$34,6,0),0) -> 0 | C65: =_xlfn.IFNA(VLOOKUP($P65,Roster!$A$2:$AF$34,7,0),0) -> 0 | D65: 15808 W Falcon Ridge Dr | E65: =_xlfn.IFNA(VLOOKUP($P65,Roster!$A$2:$AF$34,2,0),0) -> 0 | F65: =_xlfn.IFNA(VLOOKUP($P65,Roster!$A$2:$AF$34,18,0),0) -> 0 | G65: =_xlfn.IFNA(VLOOKUP($P65,Roster!$A$2:$AF$34,21,0),0) -> 0 | H65: =_xlfn.IFNA(VLOOKUP($P65,Roster!$A$2:$AF$34,22,0),0) -> 0 | I65: =_xlfn.IFNA(VLOOKUP($P65,Roster!$A$2:$AF$34,20,0),0) -> 0 | J65: =_xlfn.IFNA(VLOOKUP($P65,Roster!$A$2:$AF$34,17,0),0) -> 0 | O65: 18 | P65: 182
A66: 54 | B66: =_xlfn.IFNA(VLOOKUP($P66,Roster!$A$2:$AF$34,6,0),0) -> 0 | C66: =_xlfn.IFNA(VLOOKUP($P66,Roster!$A$2:$AF$34,7,0),0) -> 0 | D66: 15808 W Falcon Ridge Dr | E66: =_xlfn.IFNA(VLOOKUP($P66,Roster!$A$2:$AF$34,2,0),0) -> 0 | F66: =_xlfn.IFNA(VLOOKUP($P66,Roster!$A$2:$AF$34,18,0),0) -> 0 | G66: =_xlfn.IFNA(VLOOKUP($P66,Roster!$A$2:$AF$34,21,0),0) -> 0 | H66: =_xlfn.IFNA(VLOOKUP($P66,Roster!$A$2:$AF$34,22,0),0) -> 0 | I66: =_xlfn.IFNA(VLOOKUP($P66,Roster!$A$2:$AF$34,20,0),0) -> 0 | J66: =_xlfn.IFNA(VLOOKUP($P66,Roster!$A$2:$AF$34,17,0),0) -> 0 | O66: 18 | P66: 183
A67: 55 | B67: =_xlfn.IFNA(VLOOKUP($P67,Roster!$A$2:$AF$34,6,0),0) -> 0 | C67: =_xlfn.IFNA(VLOOKUP($P67,Roster!$A$2:$AF$34,7,0),0) -> 0 | D67: 15808 W Falcon Ridge Dr | E67: =_xlfn.IFNA(VLOOKUP($P67,Roster!$A$2:$AF$34,2,0),0) -> 0 | F67: =_xlfn.IFNA(VLOOKUP($P67,Roster!$A$2:$AF$34,18,0),0) -> 0 | G67: =_xlfn.IFNA(VLOOKUP($P67,Roster!$A$2:$AF$34,21,0),0) -> 0 | H67: =_xlfn.IFNA(VLOOKUP($P67,Roster!$A$2:$AF$34,22,0),0) -> 0 | I67: =_xlfn.IFNA(VLOOKUP($P67,Roster!$A$2:$AF$34,20,0),0) -> 0 | J67: =_xlfn.IFNA(VLOOKUP($P67,Roster!$A$2:$AF$34,17,0),0) -> 0
A68: 56 | B68: =_xlfn.IFNA(VLOOKUP($P68,Roster!$A$2:$AF$34,6,0),0) -> 0 | C68: =_xlfn.IFNA(VLOOKUP($P68,Roster!$A$2:$AF$34,7,0),0) -> 0 | D68: 15808 W Falcon Ridge Dr | E68: =_xlfn.IFNA(VLOOKUP($P68,Roster!$A$2:$AF$34,2,0),0) -> 0 | F68: =_xlfn.IFNA(VLOOKUP($P68,Roster!$A$2:$AF$34,18,0),0) -> 0 | G68: =_xlfn.IFNA(VLOOKUP($P68,Roster!$A$2:$AF$34,21,0),0) -> 0 | H68: =_xlfn.IFNA(VLOOKUP($P68,Roster!$A$2:$AF$34,22,0),0) -> 0 | I68: =_xlfn.IFNA(VLOOKUP($P68,Roster!$A$2:$AF$34,20,0),0) -> 0 | J68: =_xlfn.IFNA(VLOOKUP($P68,Roster!$A$2:$AF$34,17,0),0) -> 0
A69: 57 | B69: =_xlfn.IFNA(VLOOKUP($P69,Roster!$A$2:$AF$34,6,0),0) -> 0 | C69: =_xlfn.IFNA(VLOOKUP($P69,Roster!$A$2:$AF$34,7,0),0) -> 0 | D69: 15808 W Falcon Ridge Dr | E69: =_xlfn.IFNA(VLOOKUP($P69,Roster!$A$2:$AF$34,2,0),0) -> 0 | F69: =_xlfn.IFNA(VLOOKUP($P69,Roster!$A$2:$AF$34,18,0),0) -> 0 | G69: =_xlfn.IFNA(VLOOKUP($P69,Roster!$A$2:$AF$34,21,0),0) -> 0 | H69: =_xlfn.IFNA(VLOOKUP($P69,Roster!$A$2:$AF$34,22,0),0) -> 0 | I69: =_xlfn.IFNA(VLOOKUP($P69,Roster!$A$2:$AF$34,20,0),0) -> 0 | J69: =_xlfn.IFNA(VLOOKUP($P69,Roster!$A$2:$AF$34,17,0),0) -> 0
A70: 58 | B70: =_xlfn.IFNA(VLOOKUP($P70,Roster!$A$2:$AF$34,6,0),0) -> 0 | C70: =_xlfn.IFNA(VLOOKUP($P70,Roster!$A$2:$AF$34,7,0),0) -> 0 | D70: 15808 W Falcon Ridge Dr | E70: =_xlfn.IFNA(VLOOKUP($P70,Roster!$A$2:$AF$34,2,0),0) -> 0 | F70: =_xlfn.IFNA(VLOOKUP($P70,Roster!$A$2:$AF$34,18,0),0) -> 0 | G70: =_xlfn.IFNA(VLOOKUP($P70,Roster!$A$2:$AF$34,21,0),0) -> 0 | H70: =_xlfn.IFNA(VLOOKUP($P70,Roster!$A$2:$AF$34,22,0),0) -> 0 | I70: =_xlfn.IFNA(VLOOKUP($P70,Roster!$A$2:$AF$34,20,0),0) -> 0 | J70: =_xlfn.IFNA(VLOOKUP($P70,Roster!$A$2:$AF$34,17,0),0) -> 0
A71: 59 | B71: =_xlfn.IFNA(VLOOKUP($P71,Roster!$A$2:$AF$34,6,0),0) -> 0 | C71: =_xlfn.IFNA(VLOOKUP($P71,Roster!$A$2:$AF$34,7,0),0) -> 0 | D71: 15808 W Falcon Ridge Dr | E71: =_xlfn.IFNA(VLOOKUP($P71,Roster!$A$2:$AF$34,2,0),0) -> 0 | F71: =_xlfn.IFNA(VLOOKUP($P71,Roster!$A$2:$AF$34,18,0),0) -> 0 | G71: =_xlfn.IFNA(VLOOKUP($P71,Roster!$A$2:$AF$34,21,0),0) -> 0 | H71: =_xlfn.IFNA(VLOOKUP($P71,Roster!$A$2:$AF$34,22,0),0) -> 0 | I71: =_xlfn.IFNA(VLOOKUP($P71,Roster!$A$2:$AF$34,20,0),0) -> 0 | J71: =_xlfn.IFNA(VLOOKUP($P71,Roster!$A$2:$AF$34,17,0),0) -> 0
A72: 60 | B72: =_xlfn.IFNA(VLOOKUP($P72,Roster!$A$2:$AF$34,6,0),0) -> 0 | C72: =_xlfn.IFNA(VLOOKUP($P72,Roster!$A$2:$AF$34,7,0),0) -> 0 | D72: 15808 W Falcon Ridge Dr | E72: =_xlfn.IFNA(VLOOKUP($P72,Roster!$A$2:$AF$34,2,0),0) -> 0 | F72: =_xlfn.IFNA(VLOOKUP($P72,Roster!$A$2:$AF$34,18,0),0) -> 0 | G72: =_xlfn.IFNA(VLOOKUP($P72,Roster!$A$2:$AF$34,21,0),0) -> 0 | H72: =_xlfn.IFNA(VLOOKUP($P72,Roster!$A$2:$AF$34,22,0),0) -> 0 | I72: =_xlfn.IFNA(VLOOKUP($P72,Roster!$A$2:$AF$34,20,0),0) -> 0 | J72: =_xlfn.IFNA(VLOOKUP($P72,Roster!$A$2:$AF$34,17,0),0) -> 0
A73: 61 | B73: =_xlfn.IFNA(VLOOKUP($P73,Roster!$A$2:$AF$34,6,0),0) -> 0 | C73: =_xlfn.IFNA(VLOOKUP($P73,Roster!$A$2:$AF$34,7,0),0) -> 0 | D73: 15808 W Falcon Ridge Dr | E73: =_xlfn.IFNA(VLOOKUP($P73,Roster!$A$2:$AF$34,2,0),0) -> 0 | F73: =_xlfn.IFNA(VLOOKUP($P73,Roster!$A$2:$AF$34,18,0),0) -> 0 | G73: =_xlfn.IFNA(VLOOKUP($P73,Roster!$A$2:$AF$34,21,0),0) -> 0 | H73: =_xlfn.IFNA(VLOOKUP($P73,Roster!$A$2:$AF$34,22,0),0) -> 0 | I73: =_xlfn.IFNA(VLOOKUP($P73,Roster!$A$2:$AF$34,20,0),0) -> 0 | J73: =_xlfn.IFNA(VLOOKUP($P73,Roster!$A$2:$AF$34,17,0),0) -> 0
A74: 62 | B74: =_xlfn.IFNA(VLOOKUP($P74,Roster!$A$2:$AF$34,6,0),0) -> 0 | C74: =_xlfn.IFNA(VLOOKUP($P74,Roster!$A$2:$AF$34,7,0),0) -> 0 | D74: 15808 W Falcon Ridge Dr | E74: =_xlfn.IFNA(VLOOKUP($P74,Roster!$A$2:$AF$34,2,0),0) -> 0 | F74: =_xlfn.IFNA(VLOOKUP($P74,Roster!$A$2:$AF$34,18,0),0) -> 0 | G74: =_xlfn.IFNA(VLOOKUP($P74,Roster!$A$2:$AF$34,21,0),0) -> 0 | H74: =_xlfn.IFNA(VLOOKUP($P74,Roster!$A$2:$AF$34,22,0),0) -> 0 | I74: =_xlfn.IFNA(VLOOKUP($P74,Roster!$A$2:$AF$34,20,0),0) -> 0 | J74: =_xlfn.IFNA(VLOOKUP($P74,Roster!$A$2:$AF$34,17,0),0) -> 0
A75: 63 | B75: =_xlfn.IFNA(VLOOKUP($P75,Roster!$A$2:$AF$34,6,0),0) -> 0 | C75: =_xlfn.IFNA(VLOOKUP($P75,Roster!$A$2:$AF$34,7,0),0) -> 0 | D75: 15808 W Falcon Ridge Dr | E75: =_xlfn.IFNA(VLOOKUP($P75,Roster!$A$2:$AF$34,2,0),0) -> 0 | F75: =_xlfn.IFNA(VLOOKUP($P75,Roster!$A$2:$AF$34,18,0),0) -> 0 | G75: =_xlfn.IFNA(VLOOKUP($P75,Roster!$A$2:$AF$34,21,0),0) -> 0 | H75: =_xlfn.IFNA(VLOOKUP($P75,Roster!$A$2:$AF$34,22,0),0) -> 0 | I75: =_xlfn.IFNA(VLOOKUP($P75,Roster!$A$2:$AF$34,20,0),0) -> 0 | J75: =_xlfn.IFNA(VLOOKUP($P75,Roster!$A$2:$AF$34,17,0),0) -> 0
A76: 64 | B76: =_xlfn.IFNA(VLOOKUP($P76,Roster!$A$2:$AF$34,6,0),0) -> 0 | C76: =_xlfn.IFNA(VLOOKUP($P76,Roster!$A$2:$AF$34,7,0),0) -> 0 | D76: 15808 W Falcon Ridge Dr | E76: =_xlfn.IFNA(VLOOKUP($P76,Roster!$A$2:$AF$34,2,0),0) -> 0 | F76: =_xlfn.IFNA(VLOOKUP($P76,Roster!$A$2:$AF$34,18,0),0) -> 0 | G76: =_xlfn.IFNA(VLOOKUP($P76,Roster!$A$2:$AF$34,21,0),0) -> 0 | H76: =_xlfn.IFNA(VLOOKUP($P76,Roster!$A$2:$AF$34,22,0),0) -> 0 | I76: =_xlfn.IFNA(VLOOKUP($P76,Roster!$A$2:$AF$34,20,0),0) -> 0 | J76: =_xlfn.IFNA(VLOOKUP($P76,Roster!$A$2:$AF$34,17,0),0) -> 0
A77: 65 | B77: =_xlfn.IFNA(VLOOKUP($P77,Roster!$A$2:$AF$34,6,0),0) -> 0 | C77: =_xlfn.IFNA(VLOOKUP($P77,Roster!$A$2:$AF$34,7,0),0) -> 0 | D77: 15808 W Falcon Ridge Dr | E77: =_xlfn.IFNA(VLOOKUP($P77,Roster!$A$2:$AF$34,2,0),0) -> 0 | F77: =_xlfn.IFNA(VLOOKUP($P77,Roster!$A$2:$AF$34,18,0),0) -> 0 | G77: =_xlfn.IFNA(VLOOKUP($P77,Roster!$A$2:$AF$34,21,0),0) -> 0 | H77: =_xlfn.IFNA(VLOOKUP($P77,Roster!$A$2:$AF$34,22,0),0) -> 0 | I77: =_xlfn.IFNA(VLOOKUP($P77,Roster!$A$2:$AF$34,20,0),0) -> 0 | J77: =_xlfn.IFNA(VLOOKUP($P77,Roster!$A$2:$AF$34,17,0),0) -> 0
A78: =A77+1 -> 66 | B78: =_xlfn.IFNA(VLOOKUP($P78,Roster!$A$2:$AF$34,6,0),0) -> 0 | C78: =_xlfn.IFNA(VLOOKUP($P78,Roster!$A$2:$AF$34,7,0),0) -> 0 | D78: 15808 W Falcon Ridge Dr | E78: =_xlfn.IFNA(VLOOKUP($P78,Roster!$A$2:$AF$34,2,0),0) -> 0 | F78: =_xlfn.IFNA(VLOOKUP($P78,Roster!$A$2:$AF$34,18,0),0) -> 0 | G78: =_xlfn.IFNA(VLOOKUP($P78,Roster!$A$2:$AF$34,21,0),0) -> 0 | H78: =_xlfn.IFNA(VLOOKUP($P78,Roster!$A$2:$AF$34,22,0),0) -> 0 | I78: =_xlfn.IFNA(VLOOKUP($P78,Roster!$A$2:$AF$34,20,0),0) -> 0 | J78: =_xlfn.IFNA(VLOOKUP($P78,Roster!$A$2:$AF$34,17,0),0) -> 0
A79: 67 | B79: =_xlfn.IFNA(VLOOKUP($P79,Roster!$A$2:$AF$34,6,0),0) -> 0 | C79: =_xlfn.IFNA(VLOOKUP($P79,Roster!$A$2:$AF$34,7,0),0) -> 0 | D79: 15808 W Falcon Ridge Dr | E79: =_xlfn.IFNA(VLOOKUP($P79,Roster!$A$2:$AF$34,2,0),0) -> 0 | F79: =_xlfn.IFNA(VLOOKUP($P79,Roster!$A$2:$AF$34,18,0),0) -> 0 | G79: =_xlfn.IFNA(VLOOKUP($P79,Roster!$A$2:$AF$34,21,0),0) -> 0 | H79: =_xlfn.IFNA(VLOOKUP($P79,Roster!$A$2:$AF$34,22,0),0) -> 0 | I79: =_xlfn.IFNA(VLOOKUP($P79,Roster!$A$2:$AF$34,20,0),0) -> 0 | J79: =_xlfn.IFNA(VLOOKUP($P79,Roster!$A$2:$AF$34,17,0),0) -> 0
A80: 68 | B80: =_xlfn.IFNA(VLOOKUP($P80,Roster!$A$2:$AF$34,6,0),0) -> 0 | C80: =_xlfn.IFNA(VLOOKUP($P80,Roster!$A$2:$AF$34,7,0),0) -> 0 | D80: 15808 W Falcon Ridge Dr | E80: =_xlfn.IFNA(VLOOKUP($P80,Roster!$A$2:$AF$34,2,0),0) -> 0 | F80: =_xlfn.IFNA(VLOOKUP($P80,Roster!$A$2:$AF$34,18,0),0) -> 0 | G80: =_xlfn.IFNA(VLOOKUP($P80,Roster!$A$2:$AF$34,21,0),0) -> 0 | H80: =_xlfn.IFNA(VLOOKUP($P80,Roster!$A$2:$AF$34,22,0),0) -> 0 | I80: =_xlfn.IFNA(VLOOKUP($P80,Roster!$A$2:$AF$34,20,0),0) -> 0 | J80: =_xlfn.IFNA(VLOOKUP($P80,Roster!$A$2:$AF$34,17,0),0) -> 0
A81: 69 | B81: =_xlfn.IFNA(VLOOKUP($P81,Roster!$A$2:$AF$34,6,0),0) -> 0 | C81: =_xlfn.IFNA(VLOOKUP($P81,Roster!$A$2:$AF$34,7,0),0) -> 0 | D81: 15808 W Falcon Ridge Dr | E81: =_xlfn.IFNA(VLOOKUP($P81,Roster!$A$2:$AF$34,2,0),0) -> 0 | F81: =_xlfn.IFNA(VLOOKUP($P81,Roster!$A$2:$AF$34,18,0),0) -> 0 | G81: =_xlfn.IFNA(VLOOKUP($P81,Roster!$A$2:$AF$34,21,0),0) -> 0 | H81: =_xlfn.IFNA(VLOOKUP($P81,Roster!$A$2:$AF$34,22,0),0) -> 0 | I81: =_xlfn.IFNA(VLOOKUP($P81,Roster!$A$2:$AF$34,20,0),0) -> 0 | J81: =_xlfn.IFNA(VLOOKUP($P81,Roster!$A$2:$AF$34,17,0),0) -> 0
A82: 70 | B82: =_xlfn.IFNA(VLOOKUP($P82,Roster!$A$2:$AF$34,6,0),0) -> 0 | C82: =_xlfn.IFNA(VLOOKUP($P82,Roster!$A$2:$AF$34,7,0),0) -> 0 | D82: 15808 W Falcon Ridge Dr | E82: =_xlfn.IFNA(VLOOKUP($P82,Roster!$A$2:$AF$34,2,0),0) -> 0 | F82: =_xlfn.IFNA(VLOOKUP($P82,Roster!$A$2:$AF$34,18,0),0) -> 0 | G82: =_xlfn.IFNA(VLOOKUP($P82,Roster!$A$2:$AF$34,21,0),0) -> 0 | H82: =_xlfn.IFNA(VLOOKUP($P82,Roster!$A$2:$AF$34,22,0),0) -> 0 | I82: =_xlfn.IFNA(VLOOKUP($P82,Roster!$A$2:$AF$34,20,0),0) -> 0 | J82: =_xlfn.IFNA(VLOOKUP($P82,Roster!$A$2:$AF$34,17,0),0) -> 0
A83: 71 | B83: =_xlfn.IFNA(VLOOKUP($P83,Roster!$A$2:$AF$34,6,0),0) -> 0 | C83: =_xlfn.IFNA(VLOOKUP($P83,Roster!$A$2:$AF$34,7,0),0) -> 0 | D83: 15808 W Falcon Ridge Dr | E83: =_xlfn.IFNA(VLOOKUP($P83,Roster!$A$2:$AF$34,2,0),0) -> 0 | F83: =_xlfn.IFNA(VLOOKUP($P83,Roster!$A$2:$AF$34,18,0),0) -> 0 | G83: =_xlfn.IFNA(VLOOKUP($P83,Roster!$A$2:$AF$34,21,0),0) -> 0 | H83: =_xlfn.IFNA(VLOOKUP($P83,Roster!$A$2:$AF$34,22,0),0) -> 0 | I83: =_xlfn.IFNA(VLOOKUP($P83,Roster!$A$2:$AF$34,20,0),0) -> 0 | J83: =_xlfn.IFNA(VLOOKUP($P83,Roster!$A$2:$AF$34,17,0),0) -> 0
A84: 72 | B84: =_xlfn.IFNA(VLOOKUP($P84,Roster!$A$2:$AF$34,6,0),0) -> 0 | C84: =_xlfn.IFNA(VLOOKUP($P84,Roster!$A$2:$AF$34,7,0),0) -> 0 | D84: 15808 W Falcon Ridge Dr | E84: =_xlfn.IFNA(VLOOKUP($P84,Roster!$A$2:$AF$34,2,0),0) -> 0 | F84: =_xlfn.IFNA(VLOOKUP($P84,Roster!$A$2:$AF$34,18,0),0) -> 0 | G84: =_xlfn.IFNA(VLOOKUP($P84,Roster!$A$2:$AF$34,21,0),0) -> 0 | H84: =_xlfn.IFNA(VLOOKUP($P84,Roster!$A$2:$AF$34,22,0),0) -> 0 | I84: =_xlfn.IFNA(VLOOKUP($P84,Roster!$A$2:$AF$34,20,0),0) -> 0 | J84: =_xlfn.IFNA(VLOOKUP($P84,Roster!$A$2:$AF$34,17,0),0) -> 0
A85: 73 | B85: =_xlfn.IFNA(VLOOKUP($P85,Roster!$A$2:$AF$34,6,0),0) -> 0 | C85: =_xlfn.IFNA(VLOOKUP($P85,Roster!$A$2:$AF$34,7,0),0) -> 0 | D85: 15808 W Falcon Ridge Dr | E85: =_xlfn.IFNA(VLOOKUP($P85,Roster!$A$2:$AF$34,2,0),0) -> 0 | F85: =_xlfn.IFNA(VLOOKUP($P85,Roster!$A$2:$AF$34,18,0),0) -> 0 | G85: =_xlfn.IFNA(VLOOKUP($P85,Roster!$A$2:$AF$34,21,0),0) -> 0 | H85: =_xlfn.IFNA(VLOOKUP($P85,Roster!$A$2:$AF$34,22,0),0) -> 0 | I85: =_xlfn.IFNA(VLOOKUP($P85,Roster!$A$2:$AF$34,20,0),0) -> 0 | J85: =_xlfn.IFNA(VLOOKUP($P85,Roster!$A$2:$AF$34,17,0),0) -> 0
A86: 74 | B86: =_xlfn.IFNA(VLOOKUP($P86,Roster!$A$2:$AF$34,6,0),0) -> 0 | C86: =_xlfn.IFNA(VLOOKUP($P86,Roster!$A$2:$AF$34,7,0),0) -> 0 | D86: 15808 W Falcon Ridge Dr | E86: =_xlfn.IFNA(VLOOKUP($P86,Roster!$A$2:$AF$34,2,0),0) -> 0 | F86: =_xlfn.IFNA(VLOOKUP($P86,Roster!$A$2:$AF$34,18,0),0) -> 0 | G86: =_xlfn.IFNA(VLOOKUP($P86,Roster!$A$2:$AF$34,21,0),0) -> 0 | H86: =_xlfn.IFNA(VLOOKUP($P86,Roster!$A$2:$AF$34,22,0),0) -> 0 | I86: =_xlfn.IFNA(VLOOKUP($P86,Roster!$A$2:$AF$34,20,0),0) -> 0 | J86: =_xlfn.IFNA(VLOOKUP($P86,Roster!$A$2:$AF$34,17,0),0) -> 0
A87: 75 | B87: =_xlfn.IFNA(VLOOKUP($P87,Roster!$A$2:$AF$34,6,0),0) -> 0 | C87: =_xlfn.IFNA(VLOOKUP($P87,Roster!$A$2:$AF$34,7,0),0) -> 0 | D87: 15808 W Falcon Ridge Dr | E87: =_xlfn.IFNA(VLOOKUP($P87,Roster!$A$2:$AF$34,2,0),0) -> 0 | F87: =_xlfn.IFNA(VLOOKUP($P87,Roster!$A$2:$AF$34,18,0),0) -> 0 | G87: =_xlfn.IFNA(VLOOKUP($P87,Roster!$A$2:$AF$34,21,0),0) -> 0 | H87: =_xlfn.IFNA(VLOOKUP($P87,Roster!$A$2:$AF$34,22,0),0) -> 0 | I87: =_xlfn.IFNA(VLOOKUP($P87,Roster!$A$2:$AF$34,20,0),0) -> 0 | J87: =_xlfn.IFNA(VLOOKUP($P87,Roster!$A$2:$AF$34,17,0),0) -> 0
A88: 76 | B88: =_xlfn.IFNA(VLOOKUP($P88,Roster!$A$2:$AF$34,6,0),0) -> 0 | C88: =_xlfn.IFNA(VLOOKUP($P88,Roster!$A$2:$AF$34,7,0),0) -> 0 | D88: 15808 W Falcon Ridge Dr | E88: =_xlfn.IFNA(VLOOKUP($P88,Roster!$A$2:$AF$34,2,0),0) -> 0 | F88: =_xlfn.IFNA(VLOOKUP($P88,Roster!$A$2:$AF$34,18,0),0) -> 0 | G88: =_xlfn.IFNA(VLOOKUP($P88,Roster!$A$2:$AF$34,21,0),0) -> 0 | H88: =_xlfn.IFNA(VLOOKUP($P88,Roster!$A$2:$AF$34,22,0),0) -> 0 | I88: =_xlfn.IFNA(VLOOKUP($P88,Roster!$A$2:$AF$34,20,0),0) -> 0 | J88: =_xlfn.IFNA(VLOOKUP($P88,Roster!$A$2:$AF$34,17,0),0) -> 0
A89: 77 | B89: =_xlfn.IFNA(VLOOKUP($P89,Roster!$A$2:$AF$34,6,0),0) -> 0 | C89: =_xlfn.IFNA(VLOOKUP($P89,Roster!$A$2:$AF$34,7,0),0) -> 0 | D89: 15808 W Falcon Ridge Dr | E89: =_xlfn.IFNA(VLOOKUP($P89,Roster!$A$2:$AF$34,2,0),0) -> 0 | F89: =_xlfn.IFNA(VLOOKUP($P89,Roster!$A$2:$AF$34,18,0),0) -> 0 | G89: =_xlfn.IFNA(VLOOKUP($P89,Roster!$A$2:$AF$34,21,0),0) -> 0 | H89: =_xlfn.IFNA(VLOOKUP($P89,Roster!$A$2:$AF$34,22,0),0) -> 0 | I89: =_xlfn.IFNA(VLOOKUP($P89,Roster!$A$2:$AF$34,20,0),0) -> 0 | J89: =_xlfn.IFNA(VLOOKUP($P89,Roster!$A$2:$AF$34,17,0),0) -> 0
A90: 78 | B90: =_xlfn.IFNA(VLOOKUP($P90,Roster!$A$2:$AF$34,6,0),0) -> 0 | C90: =_xlfn.IFNA(VLOOKUP($P90,Roster!$A$2:$AF$34,7,0),0) -> 0 | D90: 15808 W Falcon Ridge Dr | E90: =_xlfn.IFNA(VLOOKUP($P90,Roster!$A$2:$AF$34,2,0),0) -> 0 | F90: =_xlfn.IFNA(VLOOKUP($P90,Roster!$A$2:$AF$34,18,0),0) -> 0 | G90: =_xlfn.IFNA(VLOOKUP($P90,Roster!$A$2:$AF$34,21,0),0) -> 0 | H90: =_xlfn.IFNA(VLOOKUP($P90,Roster!$A$2:$AF$34,22,0),0) -> 0 | I90: =_xlfn.IFNA(VLOOKUP($P90,Roster!$A$2:$AF$34,20,0),0) -> 0 | J90: =_xlfn.IFNA(VLOOKUP($P90,Roster!$A$2:$AF$34,17,0),0) -> 0
A91: 79 | B91: =_xlfn.IFNA(VLOOKUP($P91,Roster!$A$2:$AF$34,6,0),0) -> 0 | C91: =_xlfn.IFNA(VLOOKUP($P91,Roster!$A$2:$AF$34,7,0),0) -> 0 | D91: 15808 W Falcon Ridge Dr | E91: =_xlfn.IFNA(VLOOKUP($P91,Roster!$A$2:$AF$34,2,0),0) -> 0 | F91: =_xlfn.IFNA(VLOOKUP($P91,Roster!$A$2:$AF$34,18,0),0) -> 0 | G91: =_xlfn.IFNA(VLOOKUP($P91,Roster!$A$2:$AF$34,21,0),0) -> 0 | H91: =_xlfn.IFNA(VLOOKUP($P91,Roster!$A$2:$AF$34,22,0),0) -> 0 | I91: =_xlfn.IFNA(VLOOKUP($P91,Roster!$A$2:$AF$34,20,0),0) -> 0 | J91: =_xlfn.IFNA(VLOOKUP($P91,Roster!$A$2:$AF$34,17,0),0) -> 0
A92: 80 | B92: =_xlfn.IFNA(VLOOKUP($P92,Roster!$A$2:$AF$34,6,0),0) -> 0 | C92: =_xlfn.IFNA(VLOOKUP($P92,Roster!$A$2:$AF$34,7,0),0) -> 0 | D92: 15808 W Falcon Ridge Dr | E92: =_xlfn.IFNA(VLOOKUP($P92,Roster!$A$2:$AF$34,2,0),0) -> 0 | F92: =_xlfn.IFNA(VLOOKUP($P92,Roster!$A$2:$AF$34,18,0),0) -> 0 | G92: =_xlfn.IFNA(VLOOKUP($P92,Roster!$A$2:$AF$34,21,0),0) -> 0 | H92: =_xlfn.IFNA(VLOOKUP($P92,Roster!$A$2:$AF$34,22,0),0) -> 0 | I92: =_xlfn.IFNA(VLOOKUP($P92,Roster!$A$2:$AF$34,20,0),0) -> 0 | J92: =_xlfn.IFNA(VLOOKUP($P92,Roster!$A$2:$AF$34,17,0),0) -> 0
A93: 81 | B93: =_xlfn.IFNA(VLOOKUP($P93,Roster!$A$2:$AF$34,6,0),0) -> 0 | C93: =_xlfn.IFNA(VLOOKUP($P93,Roster!$A$2:$AF$34,7,0),0) -> 0 | D93: 15808 W Falcon Ridge Dr | E93: =_xlfn.IFNA(VLOOKUP($P93,Roster!$A$2:$AF$34,2,0),0) -> 0 | F93: =_xlfn.IFNA(VLOOKUP($P93,Roster!$A$2:$AF$34,18,0),0) -> 0 | G93: =_xlfn.IFNA(VLOOKUP($P93,Roster!$A$2:$AF$34,21,0),0) -> 0 | H93: =_xlfn.IFNA(VLOOKUP($P93,Roster!$A$2:$AF$34,22,0),0) -> 0 | I93: =_xlfn.IFNA(VLOOKUP($P93,Roster!$A$2:$AF$34,20,0),0) -> 0 | J93: =_xlfn.IFNA(VLOOKUP($P93,Roster!$A$2:$AF$34,17,0),0) -> 0
A94: 82 | B94: =_xlfn.IFNA(VLOOKUP($P94,Roster!$A$2:$AF$34,6,0),0) -> 0 | C94: =_xlfn.IFNA(VLOOKUP($P94,Roster!$A$2:$AF$34,7,0),0) -> 0 | D94: 15808 W Falcon Ridge Dr | E94: =_xlfn.IFNA(VLOOKUP($P94,Roster!$A$2:$AF$34,2,0),0) -> 0 | F94: =_xlfn.IFNA(VLOOKUP($P94,Roster!$A$2:$AF$34,18,0),0) -> 0 | G94: =_xlfn.IFNA(VLOOKUP($P94,Roster!$A$2:$AF$34,21,0),0) -> 0 | H94: =_xlfn.IFNA(VLOOKUP($P94,Roster!$A$2:$AF$34,22,0),0) -> 0 | I94: =_xlfn.IFNA(VLOOKUP($P94,Roster!$A$2:$AF$34,20,0),0) -> 0 | J94: =_xlfn.IFNA(VLOOKUP($P94,Roster!$A$2:$AF$34,17,0),0) -> 0
A95: 83 | B95: =_xlfn.IFNA(VLOOKUP($P95,Roster!$A$2:$AF$34,6,0),0) -> 0 | C95: =_xlfn.IFNA(VLOOKUP($P95,Roster!$A$2:$AF$34,7,0),0) -> 0 | D95: 15808 W Falcon Ridge Dr | E95: =_xlfn.IFNA(VLOOKUP($P95,Roster!$A$2:$AF$34,2,0),0) -> 0 | F95: =_xlfn.IFNA(VLOOKUP($P95,Roster!$A$2:$AF$34,18,0),0) -> 0 | G95: =_xlfn.IFNA(VLOOKUP($P95,Roster!$A$2:$AF$34,21,0),0) -> 0 | H95: =_xlfn.IFNA(VLOOKUP($P95,Roster!$A$2:$AF$34,22,0),0) -> 0 | I95: =_xlfn.IFNA(VLOOKUP($P95,Roster!$A$2:$AF$34,20,0),0) -> 0 | J95: =_xlfn.IFNA(VLOOKUP($P95,Roster!$A$2:$AF$34,17,0),0) -> 0
A96: 84 | B96: =_xlfn.IFNA(VLOOKUP($P96,Roster!$A$2:$AF$34,6,0),0) -> 0 | C96: =_xlfn.IFNA(VLOOKUP($P96,Roster!$A$2:$AF$34,7,0),0) -> 0 | D96: 15808 W Falcon Ridge Dr | E96: =_xlfn.IFNA(VLOOKUP($P96,Roster!$A$2:$AF$34,2,0),0) -> 0 | F96: =_xlfn.IFNA(VLOOKUP($P96,Roster!$A$2:$AF$34,18,0),0) -> 0 | G96: =_xlfn.IFNA(VLOOKUP($P96,Roster!$A$2:$AF$34,21,0),0) -> 0 | H96: =_xlfn.IFNA(VLOOKUP($P96,Roster!$A$2:$AF$34,22,0),0) -> 0 | I96: =_xlfn.IFNA(VLOOKUP($P96,Roster!$A$2:$AF$34,20,0),0) -> 0 | J96: =_xlfn.IFNA(VLOOKUP($P96,Roster!$A$2:$AF$34,17,0),0) -> 0
A97: 85 | B97: =_xlfn.IFNA(VLOOKUP($P97,Roster!$A$2:$AF$34,6,0),0) -> 0 | C97: =_xlfn.IFNA(VLOOKUP($P97,Roster!$A$2:$AF$34,7,0),0) -> 0 | D97: 15808 W Falcon Ridge Dr | E97: =_xlfn.IFNA(VLOOKUP($P97,Roster!$A$2:$AF$34,2,0),0) -> 0 | F97: =_xlfn.IFNA(VLOOKUP($P97,Roster!$A$2:$AF$34,18,0),0) -> 0 | G97: =_xlfn.IFNA(VLOOKUP($P97,Roster!$A$2:$AF$34,21,0),0) -> 0 | H97: =_xlfn.IFNA(VLOOKUP($P97,Roster!$A$2:$AF$34,22,0),0) -> 0 | I97: =_xlfn.IFNA(VLOOKUP($P97,Roster!$A$2:$AF$34,20,0),0) -> 0 | J97: =_xlfn.IFNA(VLOOKUP($P97,Roster!$A$2:$AF$34,17,0),0) -> 0
A98: 86 | B98: =_xlfn.IFNA(VLOOKUP($P98,Roster!$A$2:$AF$34,6,0),0) -> 0 | C98: =_xlfn.IFNA(VLOOKUP($P98,Roster!$A$2:$AF$34,7,0),0) -> 0 | D98: 15808 W Falcon Ridge Dr | E98: =_xlfn.IFNA(VLOOKUP($P98,Roster!$A$2:$AF$34,2,0),0) -> 0 | F98: =_xlfn.IFNA(VLOOKUP($P98,Roster!$A$2:$AF$34,18,0),0) -> 0 | G98: =_xlfn.IFNA(VLOOKUP($P98,Roster!$A$2:$AF$34,21,0),0) -> 0 | H98: =_xlfn.IFNA(VLOOKUP($P98,Roster!$A$2:$AF$34,22,0),0) -> 0 | I98: =_xlfn.IFNA(VLOOKUP($P98,Roster!$A$2:$AF$34,20,0),0) -> 0 | J98: =_xlfn.IFNA(VLOOKUP($P98,Roster!$A$2:$AF$34,17,0),0) -> 0
A99: 87 | B99: =_xlfn.IFNA(VLOOKUP($P99,Roster!$A$2:$AF$34,6,0),0) -> 0 | C99: =_xlfn.IFNA(VLOOKUP($P99,Roster!$A$2:$AF$34,7,0),0) -> 0 | D99: 15808 W Falcon Ridge Dr | E99: =_xlfn.IFNA(VLOOKUP($P99,Roster!$A$2:$AF$34,2,0),0) -> 0 | F99: =_xlfn.IFNA(VLOOKUP($P99,Roster!$A$2:$AF$34,18,0),0) -> 0 | G99: =_xlfn.IFNA(VLOOKUP($P99,Roster!$A$2:$AF$34,21,0),0) -> 0 | H99: =_xlfn.IFNA(VLOOKUP($P99,Roster!$A$2:$AF$34,22,0),0) -> 0 | I99: =_xlfn.IFNA(VLOOKUP($P99,Roster!$A$2:$AF$34,20,0),0) -> 0 | J99: =_xlfn.IFNA(VLOOKUP($P99,Roster!$A$2:$AF$34,17,0),0) -> 0
A100: 88 | B100: =_xlfn.IFNA(VLOOKUP($P100,Roster!$A$2:$AF$34,6,0),0) -> 0 | C100: =_xlfn.IFNA(VLOOKUP($P100,Roster!$A$2:$AF$34,7,0),0) -> 0 | D100: 15808 W Falcon Ridge Dr | E100: =_xlfn.IFNA(VLOOKUP($P100,Roster!$A$2:$AF$34,2,0),0) -> 0 | F100: =_xlfn.IFNA(VLOOKUP($P100,Roster!$A$2:$AF$34,18,0),0) -> 0 | G100: =_xlfn.IFNA(VLOOKUP($P100,Roster!$A$2:$AF$34,21,0),0) -> 0 | H100: =_xlfn.IFNA(VLOOKUP($P100,Roster!$A$2:$AF$34,22,0),0) -> 0 | I100: =_xlfn.IFNA(VLOOKUP($P100,Roster!$A$2:$AF$34,20,0),0) -> 0 | J100: =_xlfn.IFNA(VLOOKUP($P100,Roster!$A$2:$AF$34,17,0),0) -> 0
A101: 89 | B101: =_xlfn.IFNA(VLOOKUP($P101,Roster!$A$2:$AF$34,6,0),0) -> 0 | C101: =_xlfn.IFNA(VLOOKUP($P101,Roster!$A$2:$AF$34,7,0),0) -> 0 | D101: 15808 W Falcon Ridge Dr | E101: =_xlfn.IFNA(VLOOKUP($P101,Roster!$A$2:$AF$34,2,0),0) -> 0 | F101: =_xlfn.IFNA(VLOOKUP($P101,Roster!$A$2:$AF$34,18,0),0) -> 0 | G101: =_xlfn.IFNA(VLOOKUP($P101,Roster!$A$2:$AF$34,21,0),0) -> 0 | H101: =_xlfn.IFNA(VLOOKUP($P101,Roster!$A$2:$AF$34,22,0),0) -> 0 | I101: =_xlfn.IFNA(VLOOKUP($P101,Roster!$A$2:$AF$34,20,0),0) -> 0 | J101: =_xlfn.IFNA(VLOOKUP($P101,Roster!$A$2:$AF$34,17,0),0) -> 0
A102: 90 | B102: =_xlfn.IFNA(VLOOKUP($P102,Roster!$A$2:$AF$34,6,0),0) -> 0 | C102: =_xlfn.IFNA(VLOOKUP($P102,Roster!$A$2:$AF$34,7,0),0) -> 0 | D102: 15808 W Falcon Ridge Dr | E102: =_xlfn.IFNA(VLOOKUP($P102,Roster!$A$2:$AF$34,2,0),0) -> 0 | F102: =_xlfn.IFNA(VLOOKUP($P102,Roster!$A$2:$AF$34,18,0),0) -> 0 | G102: =_xlfn.IFNA(VLOOKUP($P102,Roster!$A$2:$AF$34,21,0),0) -> 0 | H102: =_xlfn.IFNA(VLOOKUP($P102,Roster!$A$2:$AF$34,22,0),0) -> 0 | I102: =_xlfn.IFNA(VLOOKUP($P102,Roster!$A$2:$AF$34,20,0),0) -> 0 | J102: =_xlfn.IFNA(VLOOKUP($P102,Roster!$A$2:$AF$34,17,0),0) -> 0
A103: 91 | B103: =_xlfn.IFNA(VLOOKUP($P103,Roster!$A$2:$AF$34,6,0),0) -> 0 | C103: =_xlfn.IFNA(VLOOKUP($P103,Roster!$A$2:$AF$34,7,0),0) -> 0 | D103: 15808 W Falcon Ridge Dr | E103: =_xlfn.IFNA(VLOOKUP($P103,Roster!$A$2:$AF$34,2,0),0) -> 0 | F103: =_xlfn.IFNA(VLOOKUP($P103,Roster!$A$2:$AF$34,18,0),0) -> 0 | G103: =_xlfn.IFNA(VLOOKUP($P103,Roster!$A$2:$AF$34,21,0),0) -> 0 | H103: =_xlfn.IFNA(VLOOKUP($P103,Roster!$A$2:$AF$34,22,0),0) -> 0 | I103: =_xlfn.IFNA(VLOOKUP($P103,Roster!$A$2:$AF$34,20,0),0) -> 0 | J103: =_xlfn.IFNA(VLOOKUP($P103,Roster!$A$2:$AF$34,17,0),0) -> 0
A104: 92 | B104: =_xlfn.IFNA(VLOOKUP($P104,Roster!$A$2:$AF$34,6,0),0) -> 0 | C104: =_xlfn.IFNA(VLOOKUP($P104,Roster!$A$2:$AF$34,7,0),0) -> 0 | D104: 15808 W Falcon Ridge Dr | E104: =_xlfn.IFNA(VLOOKUP($P104,Roster!$A$2:$AF$34,2,0),0) -> 0 | F104: =_xlfn.IFNA(VLOOKUP($P104,Roster!$A$2:$AF$34,18,0),0) -> 0 | G104: =_xlfn.IFNA(VLOOKUP($P104,Roster!$A$2:$AF$34,21,0),0) -> 0 | H104: =_xlfn.IFNA(VLOOKUP($P104,Roster!$A$2:$AF$34,22,0),0) -> 0 | I104: =_xlfn.IFNA(VLOOKUP($P104,Roster!$A$2:$AF$34,20,0),0) -> 0 | J104: =_xlfn.IFNA(VLOOKUP($P104,Roster!$A$2:$AF$34,17,0),0) -> 0
A105: 93 | B105: =_xlfn.IFNA(VLOOKUP($P105,Roster!$A$2:$AF$34,6,0),0) -> 0 | C105: =_xlfn.IFNA(VLOOKUP($P105,Roster!$A$2:$AF$34,7,0),0) -> 0 | D105: 15808 W Falcon Ridge Dr | E105: =_xlfn.IFNA(VLOOKUP($P105,Roster!$A$2:$AF$34,2,0),0) -> 0 | F105: =_xlfn.IFNA(VLOOKUP($P105,Roster!$A$2:$AF$34,18,0),0) -> 0 | G105: =_xlfn.IFNA(VLOOKUP($P105,Roster!$A$2:$AF$34,21,0),0) -> 0 | H105: =_xlfn.IFNA(VLOOKUP($P105,Roster!$A$2:$AF$34,22,0),0) -> 0 | I105: =_xlfn.IFNA(VLOOKUP($P105,Roster!$A$2:$AF$34,20,0),0) -> 0 | J105: =_xlfn.IFNA(VLOOKUP($P105,Roster!$A$2:$AF$34,17,0),0) -> 0
A106: 94 | B106: =_xlfn.IFNA(VLOOKUP($P106,Roster!$A$2:$AF$34,6,0),0) -> 0 | C106: =_xlfn.IFNA(VLOOKUP($P106,Roster!$A$2:$AF$34,7,0),0) -> 0 | D106: 15808 W Falcon Ridge Dr | E106: =_xlfn.IFNA(VLOOKUP($P106,Roster!$A$2:$AF$34,2,0),0) -> 0 | F106: =_xlfn.IFNA(VLOOKUP($P106,Roster!$A$2:$AF$34,18,0),0) -> 0 | G106: =_xlfn.IFNA(VLOOKUP($P106,Roster!$A$2:$AF$34,21,0),0) -> 0 | H106: =_xlfn.IFNA(VLOOKUP($P106,Roster!$A$2:$AF$34,22,0),0) -> 0 | I106: =_xlfn.IFNA(VLOOKUP($P106,Roster!$A$2:$AF$34,20,0),0) -> 0 | J106: =_xlfn.IFNA(VLOOKUP($P106,Roster!$A$2:$AF$34,17,0),0) -> 0
A107: 95 | B107: =_xlfn.IFNA(VLOOKUP($P107,Roster!$A$2:$AF$34,6,0),0) -> 0 | C107: =_xlfn.IFNA(VLOOKUP($P107,Roster!$A$2:$AF$34,7,0),0) -> 0 | D107: 15808 W Falcon Ridge Dr | E107: =_xlfn.IFNA(VLOOKUP($P107,Roster!$A$2:$AF$34,2,0),0) -> 0 | F107: =_xlfn.IFNA(VLOOKUP($P107,Roster!$A$2:$AF$34,18,0),0) -> 0 | G107: =_xlfn.IFNA(VLOOKUP($P107,Roster!$A$2:$AF$34,21,0),0) -> 0 | H107: =_xlfn.IFNA(VLOOKUP($P107,Roster!$A$2:$AF$34,22,0),0) -> 0 | I107: =_xlfn.IFNA(VLOOKUP($P107,Roster!$A$2:$AF$34,20,0),0) -> 0 | J107: =_xlfn.IFNA(VLOOKUP($P107,Roster!$A$2:$AF$34,17,0),0) -> 0
A108: 96 | B108: =_xlfn.IFNA(VLOOKUP($P108,Roster!$A$2:$AF$34,6,0),0) -> 0 | C108: =_xlfn.IFNA(VLOOKUP($P108,Roster!$A$2:$AF$34,7,0),0) -> 0 | D108: 15808 W Falcon Ridge Dr | E108: =_xlfn.IFNA(VLOOKUP($P108,Roster!$A$2:$AF$34,2,0),0) -> 0 | F108: =_xlfn.IFNA(VLOOKUP($P108,Roster!$A$2:$AF$34,18,0),0) -> 0 | G108: =_xlfn.IFNA(VLOOKUP($P108,Roster!$A$2:$AF$34,21,0),0) -> 0 | H108: =_xlfn.IFNA(VLOOKUP($P108,Roster!$A$2:$AF$34,22,0),0) -> 0 | I108: =_xlfn.IFNA(VLOOKUP($P108,Roster!$A$2:$AF$34,20,0),0) -> 0 | J108: =_xlfn.IFNA(VLOOKUP($P108,Roster!$A$2:$AF$34,17,0),0) -> 0
A109: 97 | B109: =_xlfn.IFNA(VLOOKUP($P109,Roster!$A$2:$AF$34,6,0),0) -> 0 | C109: =_xlfn.IFNA(VLOOKUP($P109,Roster!$A$2:$AF$34,7,0),0) -> 0 | D109: 15808 W Falcon Ridge Dr | E109: =_xlfn.IFNA(VLOOKUP($P109,Roster!$A$2:$AF$34,2,0),0) -> 0 | F109: =_xlfn.IFNA(VLOOKUP($P109,Roster!$A$2:$AF$34,18,0),0) -> 0 | G109: =_xlfn.IFNA(VLOOKUP($P109,Roster!$A$2:$AF$34,21,0),0) -> 0 | H109: =_xlfn.IFNA(VLOOKUP($P109,Roster!$A$2:$AF$34,22,0),0) -> 0 | I109: =_xlfn.IFNA(VLOOKUP($P109,Roster!$A$2:$AF$34,20,0),0) -> 0 | J109: =_xlfn.IFNA(VLOOKUP($P109,Roster!$A$2:$AF$34,17,0),0) -> 0
A110: 98 | B110: =_xlfn.IFNA(VLOOKUP($P110,Roster!$A$2:$AF$34,6,0),0) -> 0 | C110: =_xlfn.IFNA(VLOOKUP($P110,Roster!$A$2:$AF$34,7,0),0) -> 0 | D110: 15808 W Falcon Ridge Dr | E110: =_xlfn.IFNA(VLOOKUP($P110,Roster!$A$2:$AF$34,2,0),0) -> 0 | F110: =_xlfn.IFNA(VLOOKUP($P110,Roster!$A$2:$AF$34,18,0),0) -> 0 | G110: =_xlfn.IFNA(VLOOKUP($P110,Roster!$A$2:$AF$34,21,0),0) -> 0 | H110: =_xlfn.IFNA(VLOOKUP($P110,Roster!$A$2:$AF$34,22,0),0) -> 0 | I110: =_xlfn.IFNA(VLOOKUP($P110,Roster!$A$2:$AF$34,20,0),0) -> 0 | J110: =_xlfn.IFNA(VLOOKUP($P110,Roster!$A$2:$AF$34,17,0),0) -> 0
A111: 99 | B111: =_xlfn.IFNA(VLOOKUP($P111,Roster!$A$2:$AF$34,6,0),0) -> 0 | C111: =_xlfn.IFNA(VLOOKUP($P111,Roster!$A$2:$AF$34,7,0),0) -> 0 | D111: 15808 W Falcon Ridge Dr | E111: =_xlfn.IFNA(VLOOKUP($P111,Roster!$A$2:$AF$34,2,0),0) -> 0 | F111: =_xlfn.IFNA(VLOOKUP($P111,Roster!$A$2:$AF$34,18,0),0) -> 0 | G111: =_xlfn.IFNA(VLOOKUP($P111,Roster!$A$2:$AF$34,21,0),0) -> 0 | H111: =_xlfn.IFNA(VLOOKUP($P111,Roster!$A$2:$AF$34,22,0),0) -> 0 | I111: =_xlfn.IFNA(VLOOKUP($P111,Roster!$A$2:$AF$34,20,0),0) -> 0 | J111: =_xlfn.IFNA(VLOOKUP($P111,Roster!$A$2:$AF$34,17,0),0) -> 0
A112: 100 | B112: =_xlfn.IFNA(VLOOKUP($P112,Roster!$A$2:$AF$34,6,0),0) -> 0 | C112: =_xlfn.IFNA(VLOOKUP($P112,Roster!$A$2:$AF$34,7,0),0) -> 0 | D112: 15808 W Falcon Ridge Dr | E112: =_xlfn.IFNA(VLOOKUP($P112,Roster!$A$2:$AF$34,2,0),0) -> 0 | F112: =_xlfn.IFNA(VLOOKUP($P112,Roster!$A$2:$AF$34,18,0),0) -> 0 | G112: =_xlfn.IFNA(VLOOKUP($P112,Roster!$A$2:$AF$34,21,0),0) -> 0 | H112: =_xlfn.IFNA(VLOOKUP($P112,Roster!$A$2:$AF$34,22,0),0) -> 0 | I112: =_xlfn.IFNA(VLOOKUP($P112,Roster!$A$2:$AF$34,20,0),0) -> 0 | J112: =_xlfn.IFNA(VLOOKUP($P112,Roster!$A$2:$AF$34,17,0),0) -> 0
A113: 101 | B113: =_xlfn.IFNA(VLOOKUP($P113,Roster!$A$2:$AF$34,6,0),0) -> 0 | C113: =_xlfn.IFNA(VLOOKUP($P113,Roster!$A$2:$AF$34,7,0),0) -> 0 | D113: 15808 W Falcon Ridge Dr | E113: =_xlfn.IFNA(VLOOKUP($P113,Roster!$A$2:$AF$34,2,0),0) -> 0 | F113: =_xlfn.IFNA(VLOOKUP($P113,Roster!$A$2:$AF$34,18,0),0) -> 0 | G113: =_xlfn.IFNA(VLOOKUP($P113,Roster!$A$2:$AF$34,21,0),0) -> 0 | H113: =_xlfn.IFNA(VLOOKUP($P113,Roster!$A$2:$AF$34,22,0),0) -> 0 | I113: =_xlfn.IFNA(VLOOKUP($P113,Roster!$A$2:$AF$34,20,0),0) -> 0 | J113: =_xlfn.IFNA(VLOOKUP($P113,Roster!$A$2:$AF$34,17,0),0) -> 0
A114: 102 | B114: =_xlfn.IFNA(VLOOKUP($P114,Roster!$A$2:$AF$34,6,0),0) -> 0 | C114: =_xlfn.IFNA(VLOOKUP($P114,Roster!$A$2:$AF$34,7,0),0) -> 0 | D114: 15808 W Falcon Ridge Dr | E114: =_xlfn.IFNA(VLOOKUP($P114,Roster!$A$2:$AF$34,2,0),0) -> 0 | F114: =_xlfn.IFNA(VLOOKUP($P114,Roster!$A$2:$AF$34,18,0),0) -> 0 | G114: =_xlfn.IFNA(VLOOKUP($P114,Roster!$A$2:$AF$34,21,0),0) -> 0 | H114: =_xlfn.IFNA(VLOOKUP($P114,Roster!$A$2:$AF$34,22,0),0) -> 0 | I114: =_xlfn.IFNA(VLOOKUP($P114,Roster!$A$2:$AF$34,20,0),0) -> 0 | J114: =_xlfn.IFNA(VLOOKUP($P114,Roster!$A$2:$AF$34,17,0),0) -> 0
A115: 103 | B115: =_xlfn.IFNA(VLOOKUP($P115,Roster!$A$2:$AF$34,6,0),0) -> 0 | C115: =_xlfn.IFNA(VLOOKUP($P115,Roster!$A$2:$AF$34,7,0),0) -> 0 | D115: 15808 W Falcon Ridge Dr | E115: =_xlfn.IFNA(VLOOKUP($P115,Roster!$A$2:$AF$34,2,0),0) -> 0 | F115: =_xlfn.IFNA(VLOOKUP($P115,Roster!$A$2:$AF$34,18,0),0) -> 0 | G115: =_xlfn.IFNA(VLOOKUP($P115,Roster!$A$2:$AF$34,21,0),0) -> 0 | H115: =_xlfn.IFNA(VLOOKUP($P115,Roster!$A$2:$AF$34,22,0),0) -> 0 | I115: =_xlfn.IFNA(VLOOKUP($P115,Roster!$A$2:$AF$34,20,0),0) -> 0 | J115: =_xlfn.IFNA(VLOOKUP($P115,Roster!$A$2:$AF$34,17,0),0) -> 0
A116: 104 | B116: =_xlfn.IFNA(VLOOKUP($P116,Roster!$A$2:$AF$34,6,0),0) -> 0 | C116: =_xlfn.IFNA(VLOOKUP($P116,Roster!$A$2:$AF$34,7,0),0) -> 0 | D116: 15808 W Falcon Ridge Dr | E116: =_xlfn.IFNA(VLOOKUP($P116,Roster!$A$2:$AF$34,2,0),0) -> 0 | F116: =_xlfn.IFNA(VLOOKUP($P116,Roster!$A$2:$AF$34,18,0),0) -> 0 | G116: =_xlfn.IFNA(VLOOKUP($P116,Roster!$A$2:$AF$34,21,0),0) -> 0 | H116: =_xlfn.IFNA(VLOOKUP($P116,Roster!$A$2:$AF$34,22,0),0) -> 0 | I116: =_xlfn.IFNA(VLOOKUP($P116,Roster!$A$2:$AF$34,20,0),0) -> 0 | J116: =_xlfn.IFNA(VLOOKUP($P116,Roster!$A$2:$AF$34,17,0),0) -> 0
A117: 105 | B117: =_xlfn.IFNA(VLOOKUP($P117,Roster!$A$2:$AF$34,6,0),0) -> 0 | C117: =_xlfn.IFNA(VLOOKUP($P117,Roster!$A$2:$AF$34,7,0),0) -> 0 | D117: 15808 W Falcon Ridge Dr | E117: =_xlfn.IFNA(VLOOKUP($P117,Roster!$A$2:$AF$34,2,0),0) -> 0 | F117: =_xlfn.IFNA(VLOOKUP($P117,Roster!$A$2:$AF$34,18,0),0) -> 0 | G117: =_xlfn.IFNA(VLOOKUP($P117,Roster!$A$2:$AF$34,21,0),0) -> 0 | H117: =_xlfn.IFNA(VLOOKUP($P117,Roster!$A$2:$AF$34,22,0),0) -> 0 | I117: =_xlfn.IFNA(VLOOKUP($P117,Roster!$A$2:$AF$34,20,0),0) -> 0 | J117: =_xlfn.IFNA(VLOOKUP($P117,Roster!$A$2:$AF$34,17,0),0) -> 0
A118: 106 | B118: =_xlfn.IFNA(VLOOKUP($P118,Roster!$A$2:$AF$34,6,0),0) -> 0 | C118: =_xlfn.IFNA(VLOOKUP($P118,Roster!$A$2:$AF$34,7,0),0) -> 0 | D118: 15808 W Falcon Ridge Dr | E118: =_xlfn.IFNA(VLOOKUP($P118,Roster!$A$2:$AF$34,2,0),0) -> 0 | F118: =_xlfn.IFNA(VLOOKUP($P118,Roster!$A$2:$AF$34,18,0),0) -> 0 | G118: =_xlfn.IFNA(VLOOKUP($P118,Roster!$A$2:$AF$34,21,0),0) -> 0 | H118: =_xlfn.IFNA(VLOOKUP($P118,Roster!$A$2:$AF$34,22,0),0) -> 0 | I118: =_xlfn.IFNA(VLOOKUP($P118,Roster!$A$2:$AF$34,20,0),0) -> 0 | J118: =_xlfn.IFNA(VLOOKUP($P118,Roster!$A$2:$AF$34,17,0),0) -> 0
A119: 107 | B119: =_xlfn.IFNA(VLOOKUP($P119,Roster!$A$2:$AF$34,6,0),0) -> 0 | C119: =_xlfn.IFNA(VLOOKUP($P119,Roster!$A$2:$AF$34,7,0),0) -> 0 | D119: 15808 W Falcon Ridge Dr | E119: =_xlfn.IFNA(VLOOKUP($P119,Roster!$A$2:$AF$34,2,0),0) -> 0 | F119: =_xlfn.IFNA(VLOOKUP($P119,Roster!$A$2:$AF$34,18,0),0) -> 0 | G119: =_xlfn.IFNA(VLOOKUP($P119,Roster!$A$2:$AF$34,21,0),0) -> 0 | H119: =_xlfn.IFNA(VLOOKUP($P119,Roster!$A$2:$AF$34,22,0),0) -> 0 | I119: =_xlfn.IFNA(VLOOKUP($P119,Roster!$A$2:$AF$34,20,0),0) -> 0 | J119: =_xlfn.IFNA(VLOOKUP($P119,Roster!$A$2:$AF$34,17,0),0) -> 0
A120: 108 | B120: =_xlfn.IFNA(VLOOKUP($P120,Roster!$A$2:$AF$34,6,0),0) -> 0 | C120: =_xlfn.IFNA(VLOOKUP($P120,Roster!$A$2:$AF$34,7,0),0) -> 0 | D120: 15808 W Falcon Ridge Dr | E120: =_xlfn.IFNA(VLOOKUP($P120,Roster!$A$2:$AF$34,2,0),0) -> 0 | F120: =_xlfn.IFNA(VLOOKUP($P120,Roster!$A$2:$AF$34,18,0),0) -> 0 | G120: =_xlfn.IFNA(VLOOKUP($P120,Roster!$A$2:$AF$34,21,0),0) -> 0 | H120: =_xlfn.IFNA(VLOOKUP($P120,Roster!$A$2:$AF$34,22,0),0) -> 0 | I120: =_xlfn.IFNA(VLOOKUP($P120,Roster!$A$2:$AF$34,20,0),0) -> 0 | J120: =_xlfn.IFNA(VLOOKUP($P120,Roster!$A$2:$AF$34,17,0),0) -> 0
A121: 109 | B121: =_xlfn.IFNA(VLOOKUP($P121,Roster!$A$2:$AF$34,6,0),0) -> 0 | C121: =_xlfn.IFNA(VLOOKUP($P121,Roster!$A$2:$AF$34,7,0),0) -> 0 | D121: 15808 W Falcon Ridge Dr | E121: =_xlfn.IFNA(VLOOKUP($P121,Roster!$A$2:$AF$34,2,0),0) -> 0 | F121: =_xlfn.IFNA(VLOOKUP($P121,Roster!$A$2:$AF$34,18,0),0) -> 0 | G121: =_xlfn.IFNA(VLOOKUP($P121,Roster!$A$2:$AF$34,21,0),0) -> 0 | H121: =_xlfn.IFNA(VLOOKUP($P121,Roster!$A$2:$AF$34,22,0),0) -> 0 | I121: =_xlfn.IFNA(VLOOKUP($P121,Roster!$A$2:$AF$34,20,0),0) -> 0 | J121: =_xlfn.IFNA(VLOOKUP($P121,Roster!$A$2:$AF$34,17,0),0) -> 0
A122: 110 | B122: =_xlfn.IFNA(VLOOKUP($P122,Roster!$A$2:$AF$34,6,0),0) -> 0 | C122: =_xlfn.IFNA(VLOOKUP($P122,Roster!$A$2:$AF$34,7,0),0) -> 0 | D122: 15808 W Falcon Ridge Dr | E122: =_xlfn.IFNA(VLOOKUP($P122,Roster!$A$2:$AF$34,2,0),0) -> 0 | F122: =_xlfn.IFNA(VLOOKUP($P122,Roster!$A$2:$AF$34,18,0),0) -> 0 | G122: =_xlfn.IFNA(VLOOKUP($P122,Roster!$A$2:$AF$34,21,0),0) -> 0 | H122: =_xlfn.IFNA(VLOOKUP($P122,Roster!$A$2:$AF$34,22,0),0) -> 0 | I122: =_xlfn.IFNA(VLOOKUP($P122,Roster!$A$2:$AF$34,20,0),0) -> 0 | J122: =_xlfn.IFNA(VLOOKUP($P122,Roster!$A$2:$AF$34,17,0),0) -> 0
A123: 111 | B123: =_xlfn.IFNA(VLOOKUP($P123,Roster!$A$2:$AF$34,6,0),0) -> 0 | C123: =_xlfn.IFNA(VLOOKUP($P123,Roster!$A$2:$AF$34,7,0),0) -> 0 | D123: 15808 W Falcon Ridge Dr | E123: =_xlfn.IFNA(VLOOKUP($P123,Roster!$A$2:$AF$34,2,0),0) -> 0 | F123: =_xlfn.IFNA(VLOOKUP($P123,Roster!$A$2:$AF$34,18,0),0) -> 0 | G123: =_xlfn.IFNA(VLOOKUP($P123,Roster!$A$2:$AF$34,21,0),0) -> 0 | H123: =_xlfn.IFNA(VLOOKUP($P123,Roster!$A$2:$AF$34,22,0),0) -> 0 | I123: =_xlfn.IFNA(VLOOKUP($P123,Roster!$A$2:$AF$34,20,0),0) -> 0 | J123: =_xlfn.IFNA(VLOOKUP($P123,Roster!$A$2:$AF$34,17,0),0) -> 0
A124: 112 | B124: =_xlfn.IFNA(VLOOKUP($P124,Roster!$A$2:$AF$34,6,0),0) -> 0 | C124: =_xlfn.IFNA(VLOOKUP($P124,Roster!$A$2:$AF$34,7,0),0) -> 0 | D124: 15808 W Falcon Ridge Dr | E124: =_xlfn.IFNA(VLOOKUP($P124,Roster!$A$2:$AF$34,2,0),0) -> 0 | F124: =_xlfn.IFNA(VLOOKUP($P124,Roster!$A$2:$AF$34,18,0),0) -> 0 | G124: =_xlfn.IFNA(VLOOKUP($P124,Roster!$A$2:$AF$34,21,0),0) -> 0 | H124: =_xlfn.IFNA(VLOOKUP($P124,Roster!$A$2:$AF$34,22,0),0) -> 0 | I124: =_xlfn.IFNA(VLOOKUP($P124,Roster!$A$2:$AF$34,20,0),0) -> 0 | J124: =_xlfn.IFNA(VLOOKUP($P124,Roster!$A$2:$AF$34,17,0),0) -> 0
A125: 113 | B125: =_xlfn.IFNA(VLOOKUP($P125,Roster!$A$2:$AF$34,6,0),0) -> 0 | C125: =_xlfn.IFNA(VLOOKUP($P125,Roster!$A$2:$AF$34,7,0),0) -> 0 | D125: 15808 W Falcon Ridge Dr | E125: =_xlfn.IFNA(VLOOKUP($P125,Roster!$A$2:$AF$34,2,0),0) -> 0 | F125: =_xlfn.IFNA(VLOOKUP($P125,Roster!$A$2:$AF$34,18,0),0) -> 0 | G125: =_xlfn.IFNA(VLOOKUP($P125,Roster!$A$2:$AF$34,21,0),0) -> 0 | H125: =_xlfn.IFNA(VLOOKUP($P125,Roster!$A$2:$AF$34,22,0),0) -> 0 | I125: =_xlfn.IFNA(VLOOKUP($P125,Roster!$A$2:$AF$34,20,0),0) -> 0 | J125: =_xlfn.IFNA(VLOOKUP($P125,Roster!$A$2:$AF$34,17,0),0) -> 0
A126: 114 | B126: =_xlfn.IFNA(VLOOKUP($P126,Roster!$A$2:$AF$34,6,0),0) -> 0 | C126: =_xlfn.IFNA(VLOOKUP($P126,Roster!$A$2:$AF$34,7,0),0) -> 0 | D126: 15808 W Falcon Ridge Dr | E126: =_xlfn.IFNA(VLOOKUP($P126,Roster!$A$2:$AF$34,2,0),0) -> 0 | F126: =_xlfn.IFNA(VLOOKUP($P126,Roster!$A$2:$AF$34,18,0),0) -> 0 | G126: =_xlfn.IFNA(VLOOKUP($P126,Roster!$A$2:$AF$34,21,0),0) -> 0 | H126: =_xlfn.IFNA(VLOOKUP($P126,Roster!$A$2:$AF$34,22,0),0) -> 0 | I126: =_xlfn.IFNA(VLOOKUP($P126,Roster!$A$2:$AF$34,20,0),0) -> 0 | J126: =_xlfn.IFNA(VLOOKUP($P126,Roster!$A$2:$AF$34,17,0),0) -> 0
A127: 115 | B127: =_xlfn.IFNA(VLOOKUP($P127,Roster!$A$2:$AF$34,6,0),0) -> 0 | C127: =_xlfn.IFNA(VLOOKUP($P127,Roster!$A$2:$AF$34,7,0),0) -> 0 | D127: 15808 W Falcon Ridge Dr | E127: =_xlfn.IFNA(VLOOKUP($P127,Roster!$A$2:$AF$34,2,0),0) -> 0 | F127: =_xlfn.IFNA(VLOOKUP($P127,Roster!$A$2:$AF$34,18,0),0) -> 0 | G127: =_xlfn.IFNA(VLOOKUP($P127,Roster!$A$2:$AF$34,21,0),0) -> 0 | H127: =_xlfn.IFNA(VLOOKUP($P127,Roster!$A$2:$AF$34,22,0),0) -> 0 | I127: =_xlfn.IFNA(VLOOKUP($P127,Roster!$A$2:$AF$34,20,0),0) -> 0 | J127: =_xlfn.IFNA(VLOOKUP($P127,Roster!$A$2:$AF$34,17,0),0) -> 0
A128: 116 | B128: =_xlfn.IFNA(VLOOKUP($P128,Roster!$A$2:$AF$34,6,0),0) -> 0 | C128: =_xlfn.IFNA(VLOOKUP($P128,Roster!$A$2:$AF$34,7,0),0) -> 0 | D128: 15808 W Falcon Ridge Dr | E128: =_xlfn.IFNA(VLOOKUP($P128,Roster!$A$2:$AF$34,2,0),0) -> 0 | F128: =_xlfn.IFNA(VLOOKUP($P128,Roster!$A$2:$AF$34,18,0),0) -> 0 | G128: =_xlfn.IFNA(VLOOKUP($P128,Roster!$A$2:$AF$34,21,0),0) -> 0 | H128: =_xlfn.IFNA(VLOOKUP($P128,Roster!$A$2:$AF$34,22,0),0) -> 0 | I128: =_xlfn.IFNA(VLOOKUP($P128,Roster!$A$2:$AF$34,20,0),0) -> 0 | J128: =_xlfn.IFNA(VLOOKUP($P128,Roster!$A$2:$AF$34,17,0),0) -> 0
A129: 117 | B129: =_xlfn.IFNA(VLOOKUP($P129,Roster!$A$2:$AF$34,6,0),0) -> 0 | C129: =_xlfn.IFNA(VLOOKUP($P129,Roster!$A$2:$AF$34,7,0),0) -> 0 | D129: 15808 W Falcon Ridge Dr | E129: =_xlfn.IFNA(VLOOKUP($P129,Roster!$A$2:$AF$34,2,0),0) -> 0 | F129: =_xlfn.IFNA(VLOOKUP($P129,Roster!$A$2:$AF$34,18,0),0) -> 0 | G129: =_xlfn.IFNA(VLOOKUP($P129,Roster!$A$2:$AF$34,21,0),0) -> 0 | H129: =_xlfn.IFNA(VLOOKUP($P129,Roster!$A$2:$AF$34,22,0),0) -> 0 | I129: =_xlfn.IFNA(VLOOKUP($P129,Roster!$A$2:$AF$34,20,0),0) -> 0 | J129: =_xlfn.IFNA(VLOOKUP($P129,Roster!$A$2:$AF$34,17,0),0) -> 0
A130: 118 | B130: =_xlfn.IFNA(VLOOKUP($P130,Roster!$A$2:$AF$34,6,0),0) -> 0 | C130: =_xlfn.IFNA(VLOOKUP($P130,Roster!$A$2:$AF$34,7,0),0) -> 0 | D130: 15808 W Falcon Ridge Dr | E130: =_xlfn.IFNA(VLOOKUP($P130,Roster!$A$2:$AF$34,2,0),0) -> 0 | F130: =_xlfn.IFNA(VLOOKUP($P130,Roster!$A$2:$AF$34,18,0),0) -> 0 | G130: =_xlfn.IFNA(VLOOKUP($P130,Roster!$A$2:$AF$34,21,0),0) -> 0 | H130: =_xlfn.IFNA(VLOOKUP($P130,Roster!$A$2:$AF$34,22,0),0) -> 0 | I130: =_xlfn.IFNA(VLOOKUP($P130,Roster!$A$2:$AF$34,20,0),0) -> 0 | J130: =_xlfn.IFNA(VLOOKUP($P130,Roster!$A$2:$AF$34,17,0),0) -> 0
A131: 119 | B131: =_xlfn.IFNA(VLOOKUP($P131,Roster!$A$2:$AF$34,6,0),0) -> 0 | C131: =_xlfn.IFNA(VLOOKUP($P131,Roster!$A$2:$AF$34,7,0),0) -> 0 | D131: 15808 W Falcon Ridge Dr | E131: =_xlfn.IFNA(VLOOKUP($P131,Roster!$A$2:$AF$34,2,0),0) -> 0 | F131: =_xlfn.IFNA(VLOOKUP($P131,Roster!$A$2:$AF$34,18,0),0) -> 0 | G131: =_xlfn.IFNA(VLOOKUP($P131,Roster!$A$2:$AF$34,21,0),0) -> 0 | H131: =_xlfn.IFNA(VLOOKUP($P131,Roster!$A$2:$AF$34,22,0),0) -> 0 | I131: =_xlfn.IFNA(VLOOKUP($P131,Roster!$A$2:$AF$34,20,0),0) -> 0 | J131: =_xlfn.IFNA(VLOOKUP($P131,Roster!$A$2:$AF$34,17,0),0) -> 0
A132: 120 | B132: =_xlfn.IFNA(VLOOKUP($P132,Roster!$A$2:$AF$34,6,0),0) -> 0 | C132: =_xlfn.IFNA(VLOOKUP($P132,Roster!$A$2:$AF$34,7,0),0) -> 0 | D132: 15808 W Falcon Ridge Dr | E132: =_xlfn.IFNA(VLOOKUP($P132,Roster!$A$2:$AF$34,2,0),0) -> 0 | F132: =_xlfn.IFNA(VLOOKUP($P132,Roster!$A$2:$AF$34,18,0),0) -> 0 | G132: =_xlfn.IFNA(VLOOKUP($P132,Roster!$A$2:$AF$34,21,0),0) -> 0 | H132: =_xlfn.IFNA(VLOOKUP($P132,Roster!$A$2:$AF$34,22,0),0) -> 0 | I132: =_xlfn.IFNA(VLOOKUP($P132,Roster!$A$2:$AF$34,20,0),0) -> 0 | J132: =_xlfn.IFNA(VLOOKUP($P132,Roster!$A$2:$AF$34,17,0),0) -> 0
A133: 121 | B133: =_xlfn.IFNA(VLOOKUP($P133,Roster!$A$2:$AF$34,6,0),0) -> 0 | C133: =_xlfn.IFNA(VLOOKUP($P133,Roster!$A$2:$AF$34,7,0),0) -> 0 | D133: 15808 W Falcon Ridge Dr | E133: =_xlfn.IFNA(VLOOKUP($P133,Roster!$A$2:$AF$34,2,0),0) -> 0 | F133: =_xlfn.IFNA(VLOOKUP($P133,Roster!$A$2:$AF$34,18,0),0) -> 0 | G133: =_xlfn.IFNA(VLOOKUP($P133,Roster!$A$2:$AF$34,21,0),0) -> 0 | H133: =_xlfn.IFNA(VLOOKUP($P133,Roster!$A$2:$AF$34,22,0),0) -> 0 | I133: =_xlfn.IFNA(VLOOKUP($P133,Roster!$A$2:$AF$34,20,0),0) -> 0 | J133: =_xlfn.IFNA(VLOOKUP($P133,Roster!$A$2:$AF$34,17,0),0) -> 0
A134: 122 | B134: =_xlfn.IFNA(VLOOKUP($P134,Roster!$A$2:$AF$34,6,0),0) -> 0 | C134: =_xlfn.IFNA(VLOOKUP($P134,Roster!$A$2:$AF$34,7,0),0) -> 0 | D134: 15808 W Falcon Ridge Dr | E134: =_xlfn.IFNA(VLOOKUP($P134,Roster!$A$2:$AF$34,2,0),0) -> 0 | F134: =_xlfn.IFNA(VLOOKUP($P134,Roster!$A$2:$AF$34,18,0),0) -> 0 | G134: =_xlfn.IFNA(VLOOKUP($P134,Roster!$A$2:$AF$34,21,0),0) -> 0 | H134: =_xlfn.IFNA(VLOOKUP($P134,Roster!$A$2:$AF$34,22,0),0) -> 0 | I134: =_xlfn.IFNA(VLOOKUP($P134,Roster!$A$2:$AF$34,20,0),0) -> 0 | J134: =_xlfn.IFNA(VLOOKUP($P134,Roster!$A$2:$AF$34,17,0),0) -> 0
A135: 123 | B135: =_xlfn.IFNA(VLOOKUP($P135,Roster!$A$2:$AF$34,6,0),0) -> 0 | C135: =_xlfn.IFNA(VLOOKUP($P135,Roster!$A$2:$AF$34,7,0),0) -> 0 | D135: 15808 W Falcon Ridge Dr | E135: =_xlfn.IFNA(VLOOKUP($P135,Roster!$A$2:$AF$34,2,0),0) -> 0 | F135: =_xlfn.IFNA(VLOOKUP($P135,Roster!$A$2:$AF$34,18,0),0) -> 0 | G135: =_xlfn.IFNA(VLOOKUP($P135,Roster!$A$2:$AF$34,21,0),0) -> 0 | H135: =_xlfn.IFNA(VLOOKUP($P135,Roster!$A$2:$AF$34,22,0),0) -> 0 | I135: =_xlfn.IFNA(VLOOKUP($P135,Roster!$A$2:$AF$34,20,0),0) -> 0 | J135: =_xlfn.IFNA(VLOOKUP($P135,Roster!$A$2:$AF$34,17,0),0) -> 0
A136: 124 | B136: =_xlfn.IFNA(VLOOKUP($P136,Roster!$A$2:$AF$34,6,0),0) -> 0 | C136: =_xlfn.IFNA(VLOOKUP($P136,Roster!$A$2:$AF$34,7,0),0) -> 0 | D136: 15808 W Falcon Ridge Dr | E136: =_xlfn.IFNA(VLOOKUP($P136,Roster!$A$2:$AF$34,2,0),0) -> 0 | F136: =_xlfn.IFNA(VLOOKUP($P136,Roster!$A$2:$AF$34,18,0),0) -> 0 | G136: =_xlfn.IFNA(VLOOKUP($P136,Roster!$A$2:$AF$34,21,0),0) -> 0 | H136: =_xlfn.IFNA(VLOOKUP($P136,Roster!$A$2:$AF$34,22,0),0) -> 0 | I136: =_xlfn.IFNA(VLOOKUP($P136,Roster!$A$2:$AF$34,20,0),0) -> 0 | J136: =_xlfn.IFNA(VLOOKUP($P136,Roster!$A$2:$AF$34,17,0),0) -> 0
A137: 125 | B137: =_xlfn.IFNA(VLOOKUP($P137,Roster!$A$2:$AF$34,6,0),0) -> 0 | C137: =_xlfn.IFNA(VLOOKUP($P137,Roster!$A$2:$AF$34,7,0),0) -> 0 | D137: 15808 W Falcon Ridge Dr | E137: =_xlfn.IFNA(VLOOKUP($P137,Roster!$A$2:$AF$34,2,0),0) -> 0 | F137: =_xlfn.IFNA(VLOOKUP($P137,Roster!$A$2:$AF$34,18,0),0) -> 0 | G137: =_xlfn.IFNA(VLOOKUP($P137,Roster!$A$2:$AF$34,21,0),0) -> 0 | H137: =_xlfn.IFNA(VLOOKUP($P137,Roster!$A$2:$AF$34,22,0),0) -> 0 | I137: =_xlfn.IFNA(VLOOKUP($P137,Roster!$A$2:$AF$34,20,0),0) -> 0 | J137: =_xlfn.IFNA(VLOOKUP($P137,Roster!$A$2:$AF$34,17,0),0) -> 0
A138: 126 | B138: =_xlfn.IFNA(VLOOKUP($P138,Roster!$A$2:$AF$34,6,0),0) -> 0 | C138: =_xlfn.IFNA(VLOOKUP($P138,Roster!$A$2:$AF$34,7,0),0) -> 0 | D138: 15808 W Falcon Ridge Dr | E138: =_xlfn.IFNA(VLOOKUP($P138,Roster!$A$2:$AF$34,2,0),0) -> 0 | F138: =_xlfn.IFNA(VLOOKUP($P138,Roster!$A$2:$AF$34,18,0),0) -> 0 | G138: =_xlfn.IFNA(VLOOKUP($P138,Roster!$A$2:$AF$34,21,0),0) -> 0 | H138: =_xlfn.IFNA(VLOOKUP($P138,Roster!$A$2:$AF$34,22,0),0) -> 0 | I138: =_xlfn.IFNA(VLOOKUP($P138,Roster!$A$2:$AF$34,20,0),0) -> 0 | J138: =_xlfn.IFNA(VLOOKUP($P138,Roster!$A$2:$AF$34,17,0),0) -> 0
A139: 127 | B139: =_xlfn.IFNA(VLOOKUP($P139,Roster!$A$2:$AF$33,6,0),0) -> 0 | C139: =_xlfn.IFNA(VLOOKUP($P139,Roster!$A$2:$AF$33,7,0),0) -> 0 | D139: 15808 W Falcon Ridge Dr | E139: =_xlfn.IFNA(VLOOKUP($P139,Roster!$A$2:$AF$33,2,0),0) -> 0 | F139: =_xlfn.IFNA(VLOOKUP($P139,Roster!$A$2:$AF$33,16,0),0) -> 0 | G139: =_xlfn.IFNA(VLOOKUP($P139,Roster!$A$2:$AF$33,19,0),0) -> 0 | H139: =_xlfn.IFNA(VLOOKUP($P139,Roster!$A$2:$AF$33,20,0),0) -> 0 | I139: =_xlfn.IFNA(VLOOKUP($P139,Roster!$A$2:$AF$33,18,0),0) -> 0 | J139: =_xlfn.IFNA(VLOOKUP($P139,Roster!$A$2:$AF$33,15,0),0) -> 0
A140: 128 | B140: =_xlfn.IFNA(VLOOKUP($P140,Roster!$A$2:$AF$33,6,0),0) -> 0 | C140: =_xlfn.IFNA(VLOOKUP($P140,Roster!$A$2:$AF$33,7,0),0) -> 0 | D140: 15808 W Falcon Ridge Dr | E140: =_xlfn.IFNA(VLOOKUP($P140,Roster!$A$2:$AF$33,2,0),0) -> 0 | F140: =_xlfn.IFNA(VLOOKUP($P140,Roster!$A$2:$AF$33,16,0),0) -> 0 | G140: =_xlfn.IFNA(VLOOKUP($P140,Roster!$A$2:$AF$33,19,0),0) -> 0 | H140: =_xlfn.IFNA(VLOOKUP($P140,Roster!$A$2:$AF$33,20,0),0) -> 0 | I140: =_xlfn.IFNA(VLOOKUP($P140,Roster!$A$2:$AF$33,18,0),0) -> 0 | J140: =_xlfn.IFNA(VLOOKUP($P140,Roster!$A$2:$AF$33,15,0),0) -> 0
A141: 129 | B141: =_xlfn.IFNA(VLOOKUP($P141,Roster!$A$2:$AF$33,6,0),0) -> 0 | C141: =_xlfn.IFNA(VLOOKUP($P141,Roster!$A$2:$AF$33,7,0),0) -> 0 | D141: 15808 W Falcon Ridge Dr | E141: =_xlfn.IFNA(VLOOKUP($P141,Roster!$A$2:$AF$33,2,0),0) -> 0 | F141: =_xlfn.IFNA(VLOOKUP($P141,Roster!$A$2:$AF$33,16,0),0) -> 0 | G141: =_xlfn.IFNA(VLOOKUP($P141,Roster!$A$2:$AF$33,19,0),0) -> 0 | H141: =_xlfn.IFNA(VLOOKUP($P141,Roster!$A$2:$AF$33,20,0),0) -> 0 | I141: =_xlfn.IFNA(VLOOKUP($P141,Roster!$A$2:$AF$33,18,0),0) -> 0 | J141: =_xlfn.IFNA(VLOOKUP($P141,Roster!$A$2:$AF$33,15,0),0) -> 0
A142: =A141+1 -> 130 | B142: =_xlfn.IFNA(VLOOKUP($P142,Roster!$A$2:$AF$33,6,0),0) -> 0 | C142: =_xlfn.IFNA(VLOOKUP($P142,Roster!$A$2:$AF$33,7,0),0) -> 0 | D142: 15808 W Falcon Ridge Dr | E142: =_xlfn.IFNA(VLOOKUP($P142,Roster!$A$2:$AF$33,2,0),0) -> 0 | F142: =_xlfn.IFNA(VLOOKUP($P142,Roster!$A$2:$AF$33,16,0),0) -> 0 | G142: =_xlfn.IFNA(VLOOKUP($P142,Roster!$A$2:$AF$33,19,0),0) -> 0 | H142: =_xlfn.IFNA(VLOOKUP($P142,Roster!$A$2:$AF$33,20,0),0) -> 0 | I142: =_xlfn.IFNA(VLOOKUP($P142,Roster!$A$2:$AF$33,18,0),0) -> 0 | J142: =_xlfn.IFNA(VLOOKUP($P142,Roster!$A$2:$AF$33,15,0),0) -> 0
A143: 131 | B143: =_xlfn.IFNA(VLOOKUP($P143,Roster!$A$2:$AF$33,6,0),0) -> 0 | C143: =_xlfn.IFNA(VLOOKUP($P143,Roster!$A$2:$AF$33,7,0),0) -> 0 | D143: 15808 W Falcon Ridge Dr | E143: =_xlfn.IFNA(VLOOKUP($P143,Roster!$A$2:$AF$33,2,0),0) -> 0 | F143: =_xlfn.IFNA(VLOOKUP($P143,Roster!$A$2:$AF$33,16,0),0) -> 0 | G143: =_xlfn.IFNA(VLOOKUP($P143,Roster!$A$2:$AF$33,19,0),0) -> 0 | H143: =_xlfn.IFNA(VLOOKUP($P143,Roster!$A$2:$AF$33,20,0),0) -> 0 | I143: =_xlfn.IFNA(VLOOKUP($P143,Roster!$A$2:$AF$33,18,0),0) -> 0 | J143: =_xlfn.IFNA(VLOOKUP($P143,Roster!$A$2:$AF$33,15,0),0) -> 0
A144: 132 | B144: =_xlfn.IFNA(VLOOKUP($P144,Roster!$A$2:$AF$33,6,0),0) -> 0 | C144: =_xlfn.IFNA(VLOOKUP($P144,Roster!$A$2:$AF$33,7,0),0) -> 0 | D144: 15808 W Falcon Ridge Dr | E144: =_xlfn.IFNA(VLOOKUP($P144,Roster!$A$2:$AF$33,2,0),0) -> 0 | F144: =_xlfn.IFNA(VLOOKUP($P144,Roster!$A$2:$AF$33,16,0),0) -> 0 | G144: =_xlfn.IFNA(VLOOKUP($P144,Roster!$A$2:$AF$33,19,0),0) -> 0 | H144: =_xlfn.IFNA(VLOOKUP($P144,Roster!$A$2:$AF$33,20,0),0) -> 0 | I144: =_xlfn.IFNA(VLOOKUP($P144,Roster!$A$2:$AF$33,18,0),0) -> 0 | J144: =_xlfn.IFNA(VLOOKUP($P144,Roster!$A$2:$AF$33,15,0),0) -> 0
A145: 133 | B145: =_xlfn.IFNA(VLOOKUP($P145,Roster!$A$2:$AF$33,6,0),0) -> 0 | C145: =_xlfn.IFNA(VLOOKUP($P145,Roster!$A$2:$AF$33,7,0),0) -> 0 | D145: 15808 W Falcon Ridge Dr | E145: =_xlfn.IFNA(VLOOKUP($P145,Roster!$A$2:$AF$33,2,0),0) -> 0 | F145: =_xlfn.IFNA(VLOOKUP($P145,Roster!$A$2:$AF$33,16,0),0) -> 0 | G145: =_xlfn.IFNA(VLOOKUP($P145,Roster!$A$2:$AF$33,19,0),0) -> 0 | H145: =_xlfn.IFNA(VLOOKUP($P145,Roster!$A$2:$AF$33,20,0),0) -> 0 | I145: =_xlfn.IFNA(VLOOKUP($P145,Roster!$A$2:$AF$33,18,0),0) -> 0 | J145: =_xlfn.IFNA(VLOOKUP($P145,Roster!$A$2:$AF$33,15,0),0) -> 0
A146: 134 | B146: =_xlfn.IFNA(VLOOKUP($P146,Roster!$A$2:$AF$33,6,0),0) -> 0 | C146: =_xlfn.IFNA(VLOOKUP($P146,Roster!$A$2:$AF$33,7,0),0) -> 0 | D146: 15808 W Falcon Ridge Dr | E146: =_xlfn.IFNA(VLOOKUP($P146,Roster!$A$2:$AF$33,2,0),0) -> 0 | F146: =_xlfn.IFNA(VLOOKUP($P146,Roster!$A$2:$AF$33,16,0),0) -> 0 | G146: =_xlfn.IFNA(VLOOKUP($P146,Roster!$A$2:$AF$33,19,0),0) -> 0 | H146: =_xlfn.IFNA(VLOOKUP($P146,Roster!$A$2:$AF$33,20,0),0) -> 0 | I146: =_xlfn.IFNA(VLOOKUP($P146,Roster!$A$2:$AF$33,18,0),0) -> 0 | J146: =_xlfn.IFNA(VLOOKUP($P146,Roster!$A$2:$AF$33,15,0),0) -> 0
A147: 135 | B147: =_xlfn.IFNA(VLOOKUP($P147,Roster!$A$2:$AF$33,6,0),0) -> 0 | C147: =_xlfn.IFNA(VLOOKUP($P147,Roster!$A$2:$AF$33,7,0),0) -> 0 | D147: 15808 W Falcon Ridge Dr | E147: =_xlfn.IFNA(VLOOKUP($P147,Roster!$A$2:$AF$33,2,0),0) -> 0 | F147: =_xlfn.IFNA(VLOOKUP($P147,Roster!$A$2:$AF$33,16,0),0) -> 0 | G147: =_xlfn.IFNA(VLOOKUP($P147,Roster!$A$2:$AF$33,19,0),0) -> 0 | H147: =_xlfn.IFNA(VLOOKUP($P147,Roster!$A$2:$AF$33,20,0),0) -> 0 | I147: =_xlfn.IFNA(VLOOKUP($P147,Roster!$A$2:$AF$33,18,0),0) -> 0 | J147: =_xlfn.IFNA(VLOOKUP($P147,Roster!$A$2:$AF$33,15,0),0) -> 0
A148: 136 | B148: =_xlfn.IFNA(VLOOKUP($P148,Roster!$A$2:$AF$33,6,0),0) -> 0 | C148: =_xlfn.IFNA(VLOOKUP($P148,Roster!$A$2:$AF$33,7,0),0) -> 0 | D148: 15808 W Falcon Ridge Dr | E148: =_xlfn.IFNA(VLOOKUP($P148,Roster!$A$2:$AF$33,2,0),0) -> 0 | F148: =_xlfn.IFNA(VLOOKUP($P148,Roster!$A$2:$AF$33,16,0),0) -> 0 | G148: =_xlfn.IFNA(VLOOKUP($P148,Roster!$A$2:$AF$33,19,0),0) -> 0 | H148: =_xlfn.IFNA(VLOOKUP($P148,Roster!$A$2:$AF$33,20,0),0) -> 0 | I148: =_xlfn.IFNA(VLOOKUP($P148,Roster!$A$2:$AF$33,18,0),0) -> 0 | J148: =_xlfn.IFNA(VLOOKUP($P148,Roster!$A$2:$AF$33,15,0),0) -> 0
A149: 137 | B149: =_xlfn.IFNA(VLOOKUP($P149,Roster!$A$2:$AF$33,6,0),0) -> 0 | C149: =_xlfn.IFNA(VLOOKUP($P149,Roster!$A$2:$AF$33,7,0),0) -> 0 | D149: 15808 W Falcon Ridge Dr | E149: =_xlfn.IFNA(VLOOKUP($P149,Roster!$A$2:$AF$33,2,0),0) -> 0 | F149: =_xlfn.IFNA(VLOOKUP($P149,Roster!$A$2:$AF$33,16,0),0) -> 0 | G149: =_xlfn.IFNA(VLOOKUP($P149,Roster!$A$2:$AF$33,19,0),0) -> 0 | H149: =_xlfn.IFNA(VLOOKUP($P149,Roster!$A$2:$AF$33,20,0),0) -> 0 | I149: =_xlfn.IFNA(VLOOKUP($P149,Roster!$A$2:$AF$33,18,0),0) -> 0 | J149: =_xlfn.IFNA(VLOOKUP($P149,Roster!$A$2:$AF$33,15,0),0) -> 0
A150: 138 | B150: =_xlfn.IFNA(VLOOKUP($P150,Roster!$A$2:$AF$33,6,0),0) -> 0 | C150: =_xlfn.IFNA(VLOOKUP($P150,Roster!$A$2:$AF$33,7,0),0) -> 0 | D150: 15808 W Falcon Ridge Dr | E150: =_xlfn.IFNA(VLOOKUP($P150,Roster!$A$2:$AF$33,2,0),0) -> 0 | F150: =_xlfn.IFNA(VLOOKUP($P150,Roster!$A$2:$AF$33,16,0),0) -> 0 | G150: =_xlfn.IFNA(VLOOKUP($P150,Roster!$A$2:$AF$33,19,0),0) -> 0 | H150: =_xlfn.IFNA(VLOOKUP($P150,Roster!$A$2:$AF$33,20,0),0) -> 0 | I150: =_xlfn.IFNA(VLOOKUP($P150,Roster!$A$2:$AF$33,18,0),0) -> 0 | J150: =_xlfn.IFNA(VLOOKUP($P150,Roster!$A$2:$AF$33,15,0),0) -> 0
A151: 139 | B151: =_xlfn.IFNA(VLOOKUP($P151,Roster!$A$2:$AF$33,6,0),0) -> 0 | C151: =_xlfn.IFNA(VLOOKUP($P151,Roster!$A$2:$AF$33,7,0),0) -> 0 | D151: 15808 W Falcon Ridge Dr | E151: =_xlfn.IFNA(VLOOKUP($P151,Roster!$A$2:$AF$33,2,0),0) -> 0 | F151: =_xlfn.IFNA(VLOOKUP($P151,Roster!$A$2:$AF$33,16,0),0) -> 0 | G151: =_xlfn.IFNA(VLOOKUP($P151,Roster!$A$2:$AF$33,19,0),0) -> 0 | H151: =_xlfn.IFNA(VLOOKUP($P151,Roster!$A$2:$AF$33,20,0),0) -> 0 | I151: =_xlfn.IFNA(VLOOKUP($P151,Roster!$A$2:$AF$33,18,0),0) -> 0 | J151: =_xlfn.IFNA(VLOOKUP($P151,Roster!$A$2:$AF$33,15,0),0) -> 0
A152: 140 | B152: =_xlfn.IFNA(VLOOKUP($P152,Roster!$A$2:$AF$33,6,0),0) -> 0 | C152: =_xlfn.IFNA(VLOOKUP($P152,Roster!$A$2:$AF$33,7,0),0) -> 0 | D152: 15808 W Falcon Ridge Dr | E152: =_xlfn.IFNA(VLOOKUP($P152,Roster!$A$2:$AF$33,2,0),0) -> 0 | F152: =_xlfn.IFNA(VLOOKUP($P152,Roster!$A$2:$AF$33,16,0),0) -> 0 | G152: =_xlfn.IFNA(VLOOKUP($P152,Roster!$A$2:$AF$33,19,0),0) -> 0 | H152: =_xlfn.IFNA(VLOOKUP($P152,Roster!$A$2:$AF$33,20,0),0) -> 0 | I152: =_xlfn.IFNA(VLOOKUP($P152,Roster!$A$2:$AF$33,18,0),0) -> 0 | J152: =_xlfn.IFNA(VLOOKUP($P152,Roster!$A$2:$AF$33,15,0),0) -> 0
A153: 141 | B153: =_xlfn.IFNA(VLOOKUP($P153,Roster!$A$2:$AF$33,6,0),0) -> 0 | C153: =_xlfn.IFNA(VLOOKUP($P153,Roster!$A$2:$AF$33,7,0),0) -> 0 | D153: 15808 W Falcon Ridge Dr | E153: =_xlfn.IFNA(VLOOKUP($P153,Roster!$A$2:$AF$33,2,0),0) -> 0 | F153: =_xlfn.IFNA(VLOOKUP($P153,Roster!$A$2:$AF$33,16,0),0) -> 0 | G153: =_xlfn.IFNA(VLOOKUP($P153,Roster!$A$2:$AF$33,19,0),0) -> 0 | H153: =_xlfn.IFNA(VLOOKUP($P153,Roster!$A$2:$AF$33,20,0),0) -> 0 | I153: =_xlfn.IFNA(VLOOKUP($P153,Roster!$A$2:$AF$33,18,0),0) -> 0 | J153: =_xlfn.IFNA(VLOOKUP($P153,Roster!$A$2:$AF$33,15,0),0) -> 0
A154: 142 | B154: =_xlfn.IFNA(VLOOKUP($P154,Roster!$A$2:$AF$33,6,0),0) -> 0 | C154: =_xlfn.IFNA(VLOOKUP($P154,Roster!$A$2:$AF$33,7,0),0) -> 0 | D154: 15808 W Falcon Ridge Dr | E154: =_xlfn.IFNA(VLOOKUP($P154,Roster!$A$2:$AF$33,2,0),0) -> 0 | F154: =_xlfn.IFNA(VLOOKUP($P154,Roster!$A$2:$AF$33,16,0),0) -> 0 | G154: =_xlfn.IFNA(VLOOKUP($P154,Roster!$A$2:$AF$33,19,0),0) -> 0 | H154: =_xlfn.IFNA(VLOOKUP($P154,Roster!$A$2:$AF$33,20,0),0) -> 0 | I154: =_xlfn.IFNA(VLOOKUP($P154,Roster!$A$2:$AF$33,18,0),0) -> 0 | J154: =_xlfn.IFNA(VLOOKUP($P154,Roster!$A$2:$AF$33,15,0),0) -> 0
A155: 143 | B155: =_xlfn.IFNA(VLOOKUP($P155,Roster!$A$2:$AF$33,6,0),0) -> 0 | C155: =_xlfn.IFNA(VLOOKUP($P155,Roster!$A$2:$AF$33,7,0),0) -> 0 | D155: 15808 W Falcon Ridge Dr | E155: =_xlfn.IFNA(VLOOKUP($P155,Roster!$A$2:$AF$33,2,0),0) -> 0 | F155: =_xlfn.IFNA(VLOOKUP($P155,Roster!$A$2:$AF$33,16,0),0) -> 0 | G155: =_xlfn.IFNA(VLOOKUP($P155,Roster!$A$2:$AF$33,19,0),0) -> 0 | H155: =_xlfn.IFNA(VLOOKUP($P155,Roster!$A$2:$AF$33,20,0),0) -> 0 | I155: =_xlfn.IFNA(VLOOKUP($P155,Roster!$A$2:$AF$33,18,0),0) -> 0 | J155: =_xlfn.IFNA(VLOOKUP($P155,Roster!$A$2:$AF$33,15,0),0) -> 0
A156: 144 | D156: 15808 W Falcon Ridge Dr
A157: 145 | D157: 15808 W Falcon Ridge Dr
A158: 146 | D158: 15808 W Falcon Ridge Dr
A159: 147 | D159: 15808 W Falcon Ridge Dr
A160: 148 | D160: 15808 W Falcon Ridge Dr
A161: 149 | D161: 15808 W Falcon Ridge Dr
A162: 150
A163: 151
A164: 152
A165: 153
A166: 154
A167: 155
A168: 156
A169: 157
A170: 158
A171: 159
A172: 160
A173: 161
A174: 162
A175: 163
A176: 164
A177: 165
A178: 166
A179: 167
A180: 168
A181: 169
A182: 170
A183: 171
A184: 172
A185: 173
A186: 174
A187: 175
A188: 176
A189: 177
A190: 178
A191: 179
A192: 180
A193: 181
A194: 182
A195: 183
A196: 184
A197: 185
A198: 186
A199: 187
A200: 188
... 20 more rows

Sheet 50-50
A1: Classic League Ball Program
C2: Weekly Amt Paid Out | F2: Ball Accounting
A3: Date | B3: Collected | C3: Amount Paid Out | D3: No. Paid | E3: Amt Each | F3: Amt Deposit | G3: Accum. Deposit | H3: Ball Paid | I3: Balance | J3: Ball Awarded to
A4: =Financial!A5 -> 2017-09-05 | G4: =F4 -> 0 | I4: =G4-H4 -> 0
A5: =Financial!A6 -> 2017-09-12 | G5: =G4+F5 -> 0 | I5: =G5-H5 -> 0
A6: =Financial!A7 -> 2017-09-19 | G6: =G5+F6 -> 0 | I6: =G6-H6 -> 0
A7: =Financial!A8 -> 2017-09-26 | G7: =G6+F7 -> 0 | I7: =G7-H7 -> 0
A8: =Financial!A9 -> 2017-10-03 | G8: =G7+F8 -> 0 | I8: =G8-H8 -> 0
A9: =Financial!A10 -> 2017-10-10 | G9: 0 | I9: 0
A10: =Financial!A11 -> 2017-10-17 | G10: 0 | I10: 0
A11: =Financial!A12 -> 2017-10-24 | G11: 0 | I11: 0
A12: =Financial!A13 -> 2017-10-31 | G12: 0 | I12: 0
A13: =Financial!A14 -> 2017-11-07 | G13: 0 | I13: 0
A14: =Financial!A15 -> 2017-11-14 | G14: 0 | I14: 0
A15: =Financial!A16 -> 2017-11-21 | G15: 0 | I15: 0
A16: =Financial!A17 -> 2017-11-28 | G16: 0 | I16: 0
A17: =Financial!A18 -> 2017-12-05 | G17: 0 | I17: 0
A18: =Financial!A19 -> 2017-12-12 | G18: 0 | I18: 0
A19: =Financial!D5 -> 2018-01-02 | G19: 0 | I19: 0
A20: =Financial!D6 -> 2018-01-09 | G20: 0 | I20: 0
A21: =Financial!D7 -> 2018-01-16 | G21: 0 | I21: 0
A22: =Financial!D8 -> 2018-01-23 | G22: 0 | I22: 0
A23: =Financial!D9 -> 2018-01-30 | G23: 0 | I23: 0
A24: =Financial!D10 -> 2018-02-06 | G24: 0 | I24: 0
A25: =Financial!D11 -> 2018-02-13 | G25: 0 | I25: 0
A26: =Financial!D12 -> 2018-02-20 | G26: 0 | I26: 0
A27: =Financial!D13 -> 2018-02-27 | G27: 0 | I27: 0
A28: =Financial!D14 -> 2018-03-06 | G28: 0 | I28: 0
A29: =Financial!D15 -> 2018-03-13 | G29: 0 | I29: 0
A30: =Financial!D16 -> 2018-03-20 | G30: 0 | I30: 0
A31: =Financial!D17 -> 2018-03-27 | G31: 0 | I31: 0
A32: =Financial!D18 -> 2018-04-03 | G32: 0 | I32: 0
A33: =Financial!D19 -> 2018-04-10 | G33: 0 | I33: 0
A34: Totals | B34: =SUM(B4:B33) -> 0 | C34: =SUM(C4:C33) -> 0 | D34: =SUM(D4:D33) -> 0 | F34: =SUM(F4:F33) -> 0 | H34: =SUM(H4:H33) -> 0

Sheet Schedule
A1: Classic League Schedule 2017-2018
B3: Team 1 vs. | D3: Team 2 vs. | F3: Team 3 vs. | H3: Team 4 vs. | J3: Team 5 vs. | L3: Team 6 vs. | N3: Team 7 vs. | P3: Team 8 vs. | R3: Team 9 vs. | T3: Team 10 vs. | W3: Team Rosters
A4: Date | B4: Lane | C4: Team | D4: Lane | E4: Team | F4: Lane | G4: Team | H4: Lane | I4: Team | J4: Lane | K4: Team | L4: Lane | M4: Team | N4: Lane | O4: Team | P4: Lane | Q4: Team | R4: Lane | S4: Team | T4: Lane | U4: Team | W4: Team | X4: Team Name | Y4: Bowler | Z4: Capt | AB4: ID
A5: =Financial!A5 -> 2017-09-05 | B5: 9 | C5: 2 | D5: 10 | E5: 1 | F5: 11 | G5: 4 | H5: 12 | I5: 3 | J5: 13 | K5: 6 | L5: 14 | M5: 5 | N5: 15 | O5: 8 | P5: 16 | Q5: 7 | R5: 17 | S5: 10 | T5: 18 | U5: 9 | W5: 1 | X5: =VLOOKUP($W5,Roster!B$2:AF$33,2) -> 0 | Y5: =VLOOKUP($AB5,Roster!D$2:AG$33,5) -> 0 | Z5: =VLOOKUP($AB5,Roster!$D$2:AH$33,2) -> 0 | AB5: 11
A6: =Financial!A6 -> 2017-09-12 | B6: 11 | C6: 6 | D6: 13 | E6: 9 | F6: 10 | G6: 7 | H6: 18 | I6: 4 | J6: 15 | K6: 10 | L6: 12 | M6: 1 | N6: 9 | O6: 3 | P6: 17 | Q6: 4 | R6: 14 | S6: 2 | T6: 16 | U6: 5 | W6: 1 | X6: =VLOOKUP($W6,Roster!B$2:AF$33,2) -> 0 | Y6: =VLOOKUP($AB6,Roster!D$2:AG$33,5) -> 0 | Z6: =VLOOKUP($AB6,Roster!$D$2:AH$33,2) -> 0 | AB6: 12
A7: =Financial!A7 -> 2017-09-19 | B7: 14 | C7: 10 | D7: 16 | E7: 3 | F7: 15 | G7: 2 | H7: 9 | I7: 5 | J7: 10 | K7: 4 | L7: 17 | M7: 7 | N7: 18 | O7: 6 | P7: 12 | Q7: 9 | R7: 11 | S7: 8 | T7: 13 | U7: 1 | W7: 1 | X7: =VLOOKUP($W7,Roster!B$2:AF$33,2) -> 0 | Y7: =VLOOKUP($AB7,Roster!D$2:AG$33,5) -> 0 | Z7: =VLOOKUP($AB7,Roster!$D$2:AH$33,2) -> 0 | AB7: 13
A8: =Financial!A8 -> 2017-09-26 | B8: 11 | C8: 9 | D8: 20 | E8: 10 | F8: 14 | G8: 5 | H8: 15 | I8: 7 | J8: 13 | K8: 3 | L8: 18 | M8: 8 | N8: 16 | O8: 4 | P8: 17 | Q8: 6 | R8: 11 | S8: 1 | T8: 19 | U8: 2 | W8: 2 | X8: =VLOOKUP($W8,Roster!B$2:AF$33,2) -> Rascals | Y8: =VLOOKUP($AB8,Roster!D$2:AG$33,5) -> 0 | Z8: =VLOOKUP($AB8,Roster!$D$2:AH$33,2) -> 0 | AB8: 21
A9: =Financial!A9 -> 2017-10-03 | B9: 18 | C9: 4 | D9: 14 | E9: 6 | F9: 16 | G9: 8 | H9: 17 | I9: 1 | J9: 19 | K9: 9 | L9: 13 | M9: 2 | N9: 12 | O9: 10 | P9: 15 | Q9: 3 | R9: 20 | S9: 5 | T9: 11 | U9: 7 | W9: 2 | X9: =VLOOKUP($W9,Roster!B$2:AF$33,2) -> Rascals | Y9: =VLOOKUP($AB9,Roster!D$2:AG$33,5) -> 0 | Z9: =VLOOKUP($AB9,Roster!$D$2:AH$33,2) -> 0 | AB9: 22
A10: =Financial!A10 -> 2017-10-10 | B10: 19 | C10: 3 | D10: 16 | E10: 7 | F10: 20 | G10: 1 | H10: 13 | I10: 10 | J10: 11 | K10: 8 | L10: 17 | M10: 9 | N10: 15 | O10: 2 | P10: 12 | Q10: 5 | R10: 18 | S10: 6 | T10: 14 | U10: 4 | W10: 2 | X10: =VLOOKUP($W10,Roster!B$2:AF$33,2) -> Rascals | Y10: =VLOOKUP($AB10,Roster!D$2:AG$33,5) -> 0 | Z10: =VLOOKUP($AB10,Roster!$D$2:AH$33,2) -> 0 | AB10: 23
A11: =Financial!A11 -> 2017-10-17 | B11: 15 | C11: 5 | D11: 19 | E11: 8 | F11: 18 | G11: 10 | H11: 12 | I11: 8 | J11: 16 | K11: 1 | L11: 11 | M11: 4 | N11: 13 | O11: 9 | P11: 20 | Q11: 2 | R11: 14 | S11: 7 | T11: 17 | U11: 3 | W11: 3 | X11: =VLOOKUP($W11,Roster!B$2:AF$33,2) -> Desert Sun Embroidery | Y11: =VLOOKUP($AB11,Roster!D$2:AG$33,5) -> 0 | Z11: =VLOOKUP($AB11,Roster!$D$2:AH$33,2) -> 0 | AB11: 31
A12: =Financial!A12 -> 2017-10-24 | B12: 14 | C12: 8 | D12: 17 | E12: 4 | F12: 11 | G12: 9 | H12: 18 | I12: 2 | J12: 20 | K12: 7 | L12: 15 | M12: 10 | N12: 19 | O12: 5 | P12: 13 | Q12: 1 | R12: 12 | S12: 3 | T12: 16 | U12: 6 | W12: 3 | X12: =VLOOKUP($W12,Roster!B$2:AF$33,2) -> Desert Sun Embroidery | Y12: =VLOOKUP($AB12,Roster!D$2:AG$33,5) -> 0 | Z12: =VLOOKUP($AB12,Roster!$D$2:AH$33,2) -> 0 | AB12: 32
A13: =Financial!A13 -> 2017-10-31 | B13: 17 | C13: 7 | D13: 13 | E13: 5 | F13: 19 | G13: 6 | H13: 16 | I13: 9 | J13: 14 | K13: 2 | L13: 20 | M13: 3 | N13: 18 | O13: 1 | P13: 11 | Q13: 10 | R13: 15 | S13: 4 | T13: 12 | U13: 8 | W13: 3 | X13: =VLOOKUP($W13,Roster!B$2:AF$33,2) -> Desert Sun Embroidery | Y13: =VLOOKUP($AB13,Roster!D$2:AG$33,5) -> 0 | Z13: =VLOOKUP($AB13,Roster!$D$2:AH$33,2) -> 0 | AB13: 33
A14: =Financial!A14 -> 2017-11-07 | B14: Position | D14: Position | F14: Position | H14: Position | J14: Position | L14: Position | N14: Position | P14: Position | R14: Position | T14: Position | W14: 4 | X14: =VLOOKUP($W14,Roster!B$2:AF$33,2) -> Pro-Tech | Y14: =VLOOKUP($AB14,Roster!D$2:AG$33,5) -> 0 | Z14: =VLOOKUP($AB14,Roster!$D$2:AH$33,2) -> 0 | AB14: 41
A15: =Financial!A15 -> 2017-11-14 | B15: 16 | C15: 2 | D15: 15 | E15: 1 | F15: 12 | G15: 4 | H15: 11 | I15: 3 | J15: 18 | K15: 6 | L15: 17 | M15: 5 | N15: 20 | O15: 8 | P15: 19 | Q15: 7 | R15: 14 | S15: 10 | T15: 13 | U15: 9 | W15: 4 | X15: =VLOOKUP($W15,Roster!B$2:AF$33,2) -> Pro-Tech | Y15: =VLOOKUP($AB15,Roster!D$2:AG$33,5) -> 0 | Z15: =VLOOKUP($AB15,Roster!$D$2:AH$33,2) -> 0 | AB15: 42
A16: =Financial!A16 -> 2017-11-21 | B16: 12 | C16: 6 | D16: 18 | E16: 9 | F16: 15 | G16: 7 | H16: 13 | I16: 8 | J16: 20 | K16: 10 | L16: 11 | M16: 1 | N16: 16 | O16: 3 | P16: 14 | Q16: 4 | R16: 17 | S16: 2 | T16: 19 | U16: 5 | W16: 4 | X16: =VLOOKUP($W16,Roster!B$2:AF$33,2) -> Pro-Tech | Y16: =VLOOKUP($AB16,Roster!D$2:AG$33,5) -> 0 | Z16: =VLOOKUP($AB16,Roster!$D$2:AH$33,2) -> 0 | AB16: 43
A17: =Financial!A17 -> 2017-11-28 | B17: 17 | C17: 10 | D17: 19 | E17: 3 | F17: 20 | G17: 2 | H17: 16 | I17: 5 | J17: 15 | K17: 4 | L17: 14 | M17: 7 | N17: 13 | O17: 6 | P17: 11 | Q17: 9 | R17: 12 | S17: 8 | T17: 18 | U17: 1 | W17: 5 | X17: =VLOOKUP($W17,Roster!B$2:AF$33,2) -> 0 | Y17: =VLOOKUP($AB17,Roster!D$2:AG$33,5) -> 0 | Z17: =VLOOKUP($AB17,Roster!$D$2:AH$33,2) -> 0 | AB17: 51
A18: =Financial!A18 -> 2017-12-05 | B18: 15 | C18: 9 | D18: 13 | E18: 10 | F18: 11 | G18: 5 | H18: 18 | I18: 7 | J18: 12 | K18: 3 | L18: 19 | M18: 8 | N18: 17 | O18: 4 | P18: 20 | Q18: 6 | R18: 16 | S18: 1 | T18: 14 | U18: 2 | W18: 5 | X18: =VLOOKUP($W18,Roster!B$2:AF$33,2) -> 0 | Y18: =VLOOKUP($AB18,Roster!D2:AC33,5,0) -> Larry Latham | Z18: =VLOOKUP($AB18,Roster!$D$2:AH$33,2) -> 0 | AB18: 52
A19: =Financial!A19 -> 2017-12-12 | B19: 19 | C19: 4 | D19: 11 | E19: 6 | F19: 17 | G19: 8 | H19: 20 | I19: 1 | J19: 14 | K19: 9 | L19: 12 | M19: 2 | N19: 15 | O19: 10 | P19: 18 | Q19: 3 | R19: 13 | S19: 5 | T19: 16 | U19: 7 | W19: 5 | X19: =VLOOKUP($W19,Roster!B$2:AF$33,2) -> 0 | Y19: =VLOOKUP(AB19,Roster!D3:AC34,5,0) -> Bob Reed | Z19: =VLOOKUP($AB19,Roster!$D$2:AH$33,2) -> 0 | AB19: 53
A20: =Financial!D5 -> 2018-01-02 | B20: 14 | C20: 3 | D20: 17 | E20: 7 | F20: 13 | G20: 1 | H20: 12 | I20: 10 | J20: 16 | K20: 8 | L20: 20 | M20: 9 | N20: 18 | O20: 2 | P20: 15 | Q20: 5 | R20: 19 | S20: 6 | T20: 11 | U20: 4 | W20: 5 | X20: =VLOOKUP($W20,Roster!B$2:AF$33,2) -> 0 | Y20: =VLOOKUP(AB20,Roster!D4:AC52,5,0) ->  | Z20: =VLOOKUP($AB20,Roster!$D$2:AH$33,2) -> 0 | AB20: 54
A21: =Financial!D6 -> 2018-01-09 | B21: 18 | C21: 5 | D21: 14 | E21: 8 | F21: 19 | G21: 10 | H21: 15 | I21: 6 | J21: 17 | K21: 1 | L21: 16 | M21: 4 | N21: 12 | O21: 9 | P21: 13 | Q21: 2 | R21: 11 | S21: 7 | T21: 20 | U21: 3 | W21: 6 | X21: =VLOOKUP($W21,Roster!B$2:AF$33,2) -> Your Strike Shop | Y21: =VLOOKUP($AB21,Roster!D$2:AG$33,5) -> Dennis Klein | Z21: =VLOOKUP($AB20,Roster!$D$2:AH$33,2) -> 0 | AB21: 61
A22: =Financial!D7 -> 2018-01-16 | B22: 11 | C22: 8 | D22: 20 | E22: 4 | F22: 16 | G22: 9 | H22: 19 | I22: 2 | J22: 13 | K22: 7 | L22: 18 | M22: 10 | N22: 14 | O22: 5 | P22: 12 | Q22: 1 | R22: 15 | S22: 3 | T22: 17 | U22: 6 | W22: 6 | X22: =VLOOKUP($W22,Roster!B$2:AF$33,2) -> Your Strike Shop | Y22: =VLOOKUP($AB22,Roster!D$2:AG$33,5) -> Mike Watt | Z22: =VLOOKUP($AB21,Roster!$D$2:AH$33,2) -> 0 | AB22: 62
A23: =Financial!D8 -> 2018-01-23 | B23: 20 | C23: 7 | D23: 12 | E23: 5 | F23: 14 | G23: 6 | H23: 17 | I23: 9 | J23: 11 | K23: 2 | L23: 13 | M23: 3 | N23: 19 | O23: 1 | P23: 16 | Q23: 10 | R23: 18 | S23: 4 | T23: 15 | U23: 8 | W23: 6 | X23: =VLOOKUP($W23,Roster!B$2:AF$33,2) -> Your Strike Shop | Y23: =VLOOKUP($AB23,Roster!D$2:AG$33,5) -> Mike Watt | Z23: =VLOOKUP($AB22,Roster!$D$2:AH$33,2) -> C | AB23: 63
A24: =Financial!D9 -> 2018-01-30 | B24: Position | D24: Position | F24: Position | H24: Position | J24: Position | L24: Position | N24: Position | P24: Position | R24: Position | T24: Position | W24: 7 | X24: =VLOOKUP($W24,Roster!B$2:AF$33,2) -> Bitburgers | Y24: =VLOOKUP($AB24,Roster!D$2:AG$33,5) -> Paul Kleckner | Z24: =VLOOKUP($AB23,Roster!$D$2:AH$33,2) -> C | AB24: 71
A25: =Financial!D10 -> 2018-02-06 | B25: 17 | C25: 2 | D25: 18 | E25: 1 | F25: 15 | G25: 4 | H25: 16 | I25: 3 | J25: 19 | K25: 6 | L25: 20 | M25: 5 | N25: 13 | O25: 8 | P25: 14 | Q25: 7 | R25: 11 | S25: 10 | T25: 12 | U25: 9 | W25: 7 | X25: =VLOOKUP($W25,Roster!B$2:AF$33,2) -> Bitburgers | Y25: =VLOOKUP($AB25,Roster!D$2:AG$33,5) -> Paul Kleckner | Z25: =VLOOKUP($AB24,Roster!$D$2:AH$33,2) -> 0 | AB25: 72
A26: =Financial!D11 -> 2018-02-13 | B26: 15 | C26: 6 | D26: 19 | E26: 9 | F26: 18 | G26: 7 | H26: 12 | I26: 8 | J26: 13 | K26: 10 | L26: 16 | M26: 1 | N26: 17 | O26: 3 | P26: 11 | Q26: 4 | R26: 20 | S26: 2 | T26: 14 | U26: 5 | W26: 7 | X26: =VLOOKUP($W26,Roster!B$2:AF$33,2) -> Bitburgers | Y26: =VLOOKUP($AB26,Roster!D$2:AG$33,5) -> Terry Camp | Z26: =VLOOKUP($AB25,Roster!$D$2:AH$33,2) -> 0 | AB26: 73
A27: =Financial!D12 -> 2018-02-20 | B27: 20 | C27: 10 | D27: 14 | E27: 3 | F27: 13 | G27: 2 | H27: 17 | I27: 5 | J27: 18 | K27: 4 | L27: 11 | M27: 7 | N27: 12 | O27: 6 | P27: 16 | Q27: 9 | R27: 15 | S27: 8 | T27: 19 | U27: 1 | W27: 8 | X27: =VLOOKUP($W27,Roster!B$2:AF$33,2) -> Brenda's Kitchen | Y27: =VLOOKUP($AB27,Roster!D$2:AG$33,5) -> Dan Imholte | Z27: =VLOOKUP($AB26,Roster!$D$2:AH$33,2) -> C | AB27: 81
A28: =Financial!D13 -> 2018-02-27 | B28: 18 | C28: 9 | D28: 12 | E28: 10 | F28: 16 | G28: 5 | H28: 19 | I28: 7 | J28: 15 | K28: 3 | L28: 14 | M28: 8 | N28: 20 | O28: 4 | P28: 13 | Q28: 6 | R28: 17 | S28: 1 | T28: 11 | U28: 2 | W28: 8 | X28: =VLOOKUP($W28,Roster!B$2:AF$33,2) -> Brenda's Kitchen | Y28: =VLOOKUP($AB28,Roster!D$2:AG$33,5) -> Terry Hamman | Z28: =VLOOKUP($AB27,Roster!$D$2:AH$33,2) -> 0 | AB28: 82
A29: =Financial!D14 -> 2018-03-06 | B29: 14 | C29: 4 | D29: 16 | E29: 6 | F29: 20 | G29: 8 | H29: 13 | I29: 1 | J29: 11 | K29: 9 | L29: 15 | M29: 2 | N29: 18 | O29: 10 | P29: 19 | Q29: 3 | R29: 12 | S29: 5 | T29: 17 | U29: 7 | W29: 8 | X29: =VLOOKUP($W29,Roster!B$2:AF$33,2) -> Brenda's Kitchen | Y29: =VLOOKUP($AB29,Roster!D$2:AG$33,5) -> Gary Bentley | Z29: =VLOOKUP($AB28,Roster!$D$2:AH$33,2) -> 0 | AB29: 83
A30: =Financial!D15 -> 2018-03-13 | B30: 11 | C30: 3 | D30: 20 | E30: 7 | F30: 12 | G30: 1 | H30: 45 | I30: 10 | J30: 17 | K30: 8 | L30: 13 | M30: 9 | N30: 19 | O30: 2 | P30: 18 | Q30: 5 | R30: 14 | S30: 6 | T30: 16 | U30: 4 | W30: 9 | X30: =VLOOKUP($W30,Roster!B$2:AF$33,2) -> 0 | Y30: =VLOOKUP($AB30,Roster!D$2:AG$33,5) -> Joe Couch | Z30: =VLOOKUP($AB29,Roster!$D$2:AH$33,2) -> C | AB30: 91
A31: =Financial!D16 -> 2018-03-20 | B31: 19 | C31: 5 | D31: 11 | E31: 8 | F31: 14 | G31: 10 | H31: 18 | I31: 6 | J31: 20 | K31: 1 | L31: 17 | M31: 4 | N31: 15 | O31: 9 | P31: 12 | Q31: 2 | R31: 16 | S31: 7 | T31: 13 | U31: 3 | W31: 9 | X31: =VLOOKUP($W31,Roster!B$2:AF$33,2) -> 0 | Y31: =VLOOKUP($AB31,Roster!D$2:AG$33,5) -> Paul Williams | Z31: =VLOOKUP($AB30,Roster!$D$2:AH$33,2) -> 0 | AB31: 92
A32: =Financial!D17 -> 2018-03-27 | B32: 16 | C32: 8 | D32: 13 | E32: 4 | F32: 17 | G32: 9 | H32: 14 | I32: 2 | J32: 12 | K32: 7 | L32: 19 | M32: 10 | N32: 11 | O32: 5 | P32: 15 | Q32: 1 | R32: 18 | S32: 3 | T32: 20 | U32: 6 | W32: 9 | X32: =VLOOKUP($W32,Roster!B$2:AF$33,2) -> 0 | Y32: =VLOOKUP($AB32,Roster!D$2:AG$33,5) -> Ted Bogumil | Z32: =VLOOKUP($AB31,Roster!$D$2:AH$33,2) -> C | AB32: 93
A33: =Financial!D18 -> 2018-04-03 | B33: 13 | C33: 7 | D33: 15 | E33: 5 | F33: 11 | G33: 6 | H33: 20 | I33: 9 | J33: 16 | K33: 2 | L33: 12 | M33: 3 | N33: 14 | O33: 1 | P33: 17 | Q33: 10 | R33: 19 | S33: 4 | T33: 18 | U33: 8 | W33: 10 | X33: =VLOOKUP($W33,Roster!B$2:AF$33,2) -> Vital Care | Y33: =VLOOKUP($AB33,Roster!D$2:AG$33,5) -> Andy Lewis | Z33: =VLOOKUP($AB32,Roster!$D$2:AH$33,2) -> 0 | AB33: 101
A34: =Financial!D19 -> 2018-04-10 | B34: Position | D34: Position | F34: Position | H34: Position | J34: Position | L34: Position | N34: Position | P34: Position | R34: Position | T34: Position | W34: 10 | X34: =VLOOKUP($W34,Roster!B$2:AF$33,2) -> Vital Care | Y34: =VLOOKUP($AB34,Roster!D$2:AG$33,5) -> Dennis Barnes | Z34: =VLOOKUP($AB33,Roster!$D$2:AH$33,2) -> 0 | AB34: 102
A35: =Financial!D20 -> 00:00:00 | B35: Sweeper | D35: Sweeper | F35: Sweeper | H35: Sweeper | J35: Sweeper | L35: Sweeper | N35: Sweeper | P35: Sweeper | R35: Sweeper | T35: Sweeper | W35: 10 | X35: =VLOOKUP($W35,Roster!B$2:AF$33,2) -> Vital Care | Y35: =VLOOKUP($AB35,Roster!D$2:AG$33,5) -> Gary McCoy | Z35: =VLOOKUP($AB34,Roster!$D$2:AH$33,2) -> C | AB35: 103
B36: Tm | C36: Lane | D36: Tm | E36: Lane | F36: Tm | G36: Lane | H36: Tm | I36: Lane | J36: Tm | K36: Lane | L36: Tm | M36: Lane | N36: Tm | O36: Lane | P36: Tm | Q36: Lane | R36: Tm | S36: Lane | T36: Tm | U36: Lane | AB36: 112
B37: Steve Wilson | D37: =Y8 -> 0 | F37: =Y11 -> 0 | H37: =Y14 -> 0 | J37: =Y17 -> 0 | L37: =Y21 -> Dennis Klein | N37: =Y24 -> Paul Kleckner | P37: =Y27 -> Dan Imholte | R37: =Y30 -> Joe Couch | T37: =Y33 -> Andy Lewis | AB37: 121
B38: Rich Matich | D38: =Y9 -> 0 | F38: =Y12 -> 0 | H38: =Y15 -> 0 | J38: =Y18 -> Larry Latham | L38: =Y22 -> Mike Watt | N38: =Y25 -> Paul Kleckner | P38: =Y28 -> Terry Hamman | R38: =Y31 -> Paul Williams | T38: =Y34 -> Dennis Barnes | AB38: 122
B39: Cal Shirey | D39: =Y10 -> 0 | F39: =Y13 -> 0 | H39: =Y16 -> 0 | J39: =Y19 -> Bob Reed | L39: =Y23 -> Mike Watt | N39: =Y26 -> Terry Camp | P39: =Y29 -> Gary Bentley | R39: =Y32 -> Ted Bogumil | T39: =Y35 -> Gary McCoy | AB39: 123
J40: =Y20 ->  | AB40: 131
AB41: 132
AB42: 133
AB43: 141
AB44: 142
AB45: 143
AB46: 151
AB47: 152
AB48: 153
AB49: 161
AB50: 162
AB51: 163
AB52: 171
AB53: 172
AB54: 173
AB55: 181
AB56: 182
AB57: 183

Sheet Calendar 25
A1: Yearly Calendar with Notes (Portrait)
A3: Year | C3: Month
A4: 2018 | C4: 8
A5: Start Day
A6: 1 | B6: 1: Sunday, 2: Monday
B8: Classic League
B9: =IF($C$4=1,A4,A4&"-"&A4+1)&" " &"25 Weeks 2 Position Weeks" -> 2018-2019 25 Weeks 2 Position Weeks | AN9: 22+3
B11: =DATE($A$4,$C$4,1) -> 2018-08-01 | J11: =DATE(YEAR(B11+35),MONTH(B11+35),1) -> 2018-09-01 | R11: =DATE(YEAR(J11+35),MONTH(J11+35),1) -> 2018-10-01 | Z11: =DATE(YEAR(R11+35),MONTH(R11+35),1) -> 2018-11-01
B12: =IF($A$6=2,"M","Su") -> Su | C12: =IF($A$6=2,"Tu","M") -> M | D12: =IF($A$6=2,"W","Tu") -> Tu | E12: =IF($A$6=2,"Th","W") -> W | F12: =IF($A$6=2,"F","Th") -> Th | G12: =IF($A$6=2,"Sa","F") -> F | H12: =IF($A$6=2,"Su","Sa") -> Sa | J12: =IF($A$6=2,"M","Su") -> Su | K12: =IF($A$6=2,"Tu","M") -> M | L12: =IF($A$6=2,"W","Tu") -> Tu | M12: =IF($A$6=2,"Th","W") -> W | N12: =IF($A$6=2,"F","Th") -> Th | O12: =IF($A$6=2,"Sa","F") -> F | P12: =IF($A$6=2,"Su","Sa") -> Sa | R12: =IF($A$6=2,"M","Su") -> Su | S12: =IF($A$6=2,"Tu","M") -> M | T12: =IF($A$6=2,"W","Tu") -> Tu | U12: =IF($A$6=2,"Th","W") -> W | V12: =IF($A$6=2,"F","Th") -> Th | W12: =IF($A$6=2,"Sa","F") -> F | X12: =IF($A$6=2,"Su","Sa") -> Sa | Z12: =IF($A$6=2,"M","Su") -> Su | AA12: =IF($A$6=2,"Tu","M") -> M | AB12: =IF($A$6=2,"W","Tu") -> Tu | AC12: =IF($A$6=2,"Th","W") -> W | AD12: =IF($A$6=2,"F","Th") -> Th | AE12: =IF($A$6=2,"Sa","F") -> F | AF12: =IF($A$6=2,"Su","Sa") -> Sa
B13: =IF(MONTH($B$11)<>MONTH($B$11-WEEKDAY($B$11,$A$6)+(ROW(B13)-ROW($B$13))*7+(COLUMN(B13)-COLUMN($B$13)+1)),"",$B$11-WEEKDAY($B$11,$A$6)+(ROW(B13)-ROW($B$13))*7+(COLUMN(B13)-COLUMN($B$13)+1)) ->  | E13: 2018-08-01 | F13: 2018-08-02 | G13: 2018-08-03 | H13: 2018-08-04 | J13: =IF(MONTH($J$11)<>MONTH($J$11-WEEKDAY($J$11,$A$6)+(ROW(J13)-ROW($J$13))*7+(COLUMN(J13)-COLUMN($J$13)+1)),"",$J$11-WEEKDAY($J$11,$A$6)+(ROW(J13)-ROW($J$13))*7+(COLUMN(J13)-COLUMN($J$13)+1)) ->  | P13: 2018-09-01 | R13: =IF(MONTH($R$11)<>MONTH($R$11-WEEKDAY($R$11,$A$6)+(ROW(R13)-ROW($R$13))*7+(COLUMN(R13)-COLUMN($R$13)+1)),"",$R$11-WEEKDAY($R$11,$A$6)+(ROW(R13)-ROW($R$13))*7+(COLUMN(R13)-COLUMN($R$13)+1)) ->  | S13: 2018-10-01 | T13: 2018-10-02 | U13: 2018-10-03 | V13: 2018-10-04 | W13: 2018-10-05 | X13: 2018-10-06 | Z13: =IF(MONTH($Z$11)<>MONTH($Z$11-WEEKDAY($Z$11,$A$6)+(ROW(Z13)-ROW($Z$13))*7+(COLUMN(Z13)-COLUMN($Z$13)+1)),"",$Z$11-WEEKDAY($Z$11,$A$6)+(ROW(Z13)-ROW($Z$13))*7+(COLUMN(Z13)-COLUMN($Z$13)+1)) ->  | AD13: 2018-11-01 | AE13: 2018-11-02 | AF13: 2018-11-03
B14: 2018-08-05 | C14: 2018-08-06 | D14: 2018-08-07 | E14: 2018-08-08 | F14: 2018-08-09 | G14: 2018-08-10 | H14: 2018-08-11 | J14: 2018-09-02 | K14: 2018-09-03 | L14: 2018-09-04 | M14: 2018-09-05 | N14: 2018-09-06 | O14: 2018-09-07 | P14: 2018-09-08 | R14: 2018-10-07 | S14: 2018-10-08 | T14: 2018-10-09 | U14: 2018-10-10 | V14: 2018-10-11 | W14: 2018-10-12 | X14: 2018-10-13 | Z14: 2018-11-04 | AA14: 2018-11-05 | AB14: 2018-11-06 | AC14: 2018-11-07 | AD14: 2018-11-08 | AE14: 2018-11-09 | AF14: 2018-11-10
B15: 2018-08-12 | C15: 2018-08-13 | D15: 2018-08-14 | E15: 2018-08-15 | F15: 2018-08-16 | G15: 2018-08-17 | H15: 2018-08-18 | J15: 2018-09-09 | K15: 2018-09-10 | L15: 2018-09-11 | M15: 2018-09-12 | N15: 2018-09-13 | O15: 2018-09-14 | P15: 2018-09-15 | R15: 2018-10-14 | S15: 2018-10-15 | T15: 2018-10-16 | U15: 2018-10-17 | V15: 2018-10-18 | W15: 2018-10-19 | X15: 2018-10-20 | Z15: 2018-11-11 | AA15: 2018-11-12 | AB15: 2018-11-13 | AC15: 2018-11-14 | AD15: 2018-11-15 | AE15: 2018-11-16 | AF15: 2018-11-17
B16: 2018-08-19 | C16: 2018-08-20 | D16: 2018-08-21 | E16: 2018-08-22 | F16: 2018-08-23 | G16: 2018-08-24 | H16: 2018-08-25 | J16: 2018-09-16 | K16: 2018-09-17 | L16: 2018-09-18 | M16: 2018-09-19 | N16: 2018-09-20 | O16: 2018-09-21 | P16: 2018-09-22 | R16: 2018-10-21 | S16: 2018-10-22 | T16: 2018-10-23 | U16: 2018-10-24 | V16: 2018-10-25 | W16: 2018-10-26 | X16: 2018-10-27 | Z16: 2018-11-18 | AA16: 2018-11-19 | AB16: 2018-11-20 | AC16: 2018-11-21 | AD16: 2018-11-22 | AE16: 2018-11-23 | AF16: 2018-11-24
B17: 2018-08-26 | C17: 2018-08-27 | D17: 2018-08-28 | E17: 2018-08-29 | F17: 2018-08-30 | G17: 2018-08-31 | J17: 2018-09-23 | K17: 2018-09-24 | L17: 2018-09-25 | M17: 2018-09-26 | N17: 2018-09-27 | O17: 2018-09-28 | P17: 2018-09-29 | R17: 2018-10-28 | S17: 2018-10-29 | T17: 2018-10-30 | U17: 2018-10-31 | Z17: 2018-11-25 | AA17: 2018-11-26 | AB17: 2018-11-27 | AC17: 2018-11-28 | AD17: 2018-11-29 | AE17: 2018-11-30
J18: 2018-09-30
B20: =DATE(YEAR(Z11+35),MONTH(Z11+35),1) -> 2018-12-01 | J20: =DATE(YEAR(B20+35),MONTH(B20+35),1) -> 2019-01-01 | R20: =DATE(YEAR(J20+35),MONTH(J20+35),1) -> 2019-02-01 | Z20: =DATE(YEAR(R20+35),MONTH(R20+35),1) -> 2019-03-01
B21: =IF($A$6=2,"M","Su") -> Su | C21: =IF($A$6=2,"Tu","M") -> M | D21: =IF($A$6=2,"W","Tu") -> Tu | E21: =IF($A$6=2,"Th","W") -> W | F21: =IF($A$6=2,"F","Th") -> Th | G21: =IF($A$6=2,"Sa","F") -> F | H21: =IF($A$6=2,"Su","Sa") -> Sa | J21: =IF($A$6=2,"M","Su") -> Su | K21: =IF($A$6=2,"Tu","M") -> M | L21: =IF($A$6=2,"W","Tu") -> Tu | M21: =IF($A$6=2,"Th","W") -> W | N21: =IF($A$6=2,"F","Th") -> Th | O21: =IF($A$6=2,"Sa","F") -> F | P21: =IF($A$6=2,"Su","Sa") -> Sa | R21: =IF($A$6=2,"M","Su") -> Su | S21: =IF($A$6=2,"Tu","M") -> M | T21: =IF($A$6=2,"W","Tu") -> Tu | U21: =IF($A$6=2,"Th","W") -> W | V21: =IF($A$6=2,"F","Th") -> Th | W21: =IF($A$6=2,"Sa","F") -> F | X21: =IF($A$6=2,"Su","Sa") -> Sa | Z21: =IF($A$6=2,"M","Su") -> Su | AA21: =IF($A$6=2,"Tu","M") -> M | AB21: =IF($A$6=2,"W","Tu") -> Tu | AC21: =IF($A$6=2,"Th","W") -> W | AD21: =IF($A$6=2,"F","Th") -> Th | AE21: =IF($A$6=2,"Sa","F") -> F | AF21: =IF($A$6=2,"Su","Sa") -> Sa
B22: =IF(MONTH($B$20)<>MONTH($B$20-WEEKDAY($B$20,$A$6)+(ROW(B22)-ROW($B$22))*7+(COLUMN(B22)-COLUMN($B$22)+1)),"",$B$20-WEEKDAY($B$20,$A$6)+(ROW(B22)-ROW($B$22))*7+(COLUMN(B22)-COLUMN($B$22)+1)) ->  | H22: 2018-12-01 | J22: =IF(MONTH($J$20)<>MONTH($J$20-WEEKDAY($J$20,$A$6)+(ROW(J22)-ROW($J$22))*7+(COLUMN(J22)-COLUMN($J$22)+1)),"",$J$20-WEEKDAY($J$20,$A$6)+(ROW(J22)-ROW($J$22))*7+(COLUMN(J22)-COLUMN($J$22)+1)) ->  | L22: 2019-01-01 | M22: 2019-01-02 | N22: 2019-01-03 | O22: 2019-01-04 | P22: 2019-01-05 | R22: =IF(MONTH($R$20)<>MONTH($R$20-WEEKDAY($R$20,$A$6)+(ROW(R22)-ROW($R$22))*7+(COLUMN(R22)-COLUMN($R$22)+1)),"",$R$20-WEEKDAY($R$20,$A$6)+(ROW(R22)-ROW($R$22))*7+(COLUMN(R22)-COLUMN($R$22)+1)) ->  | W22: 2019-02-01 | X22: 2019-02-02 | Z22: =IF(MONTH($Z$20)<>MONTH($Z$20-WEEKDAY($Z$20,$A$6)+(ROW(Z22)-ROW($Z$22))*7+(COLUMN(Z22)-COLUMN($Z$22)+1)),"",$Z$20-WEEKDAY($Z$20,$A$6)+(ROW(Z22)-ROW($Z$22))*7+(COLUMN(Z22)-COLUMN($Z$22)+1)) ->  | AE22: 2019-03-01 | AF22: 2019-03-02
B23: 2018-12-02 | C23: 2018-12-03 | D23: 2018-12-04 | E23: 2018-12-05 | F23: 2018-12-06 | G23: 2018-12-07 | H23: 2018-12-08 | J23: 2019-01-06 | K23: 2019-01-07 | L23: 2019-01-08 | M23: 2019-01-09 | N23: 2019-01-10 | O23: 2019-01-11 | P23: 2019-01-12 | R23: 2019-02-03 | S23: 2019-02-04 | T23: 2019-02-05 | U23: 2019-02-06 | V23: 2019-02-07 | W23: 2019-02-08 | X23: 2019-02-09 | Z23: 2019-03-03 | AA23: 2019-03-04 | AB23: 2019-03-05 | AC23: 2019-03-06 | AD23: 2019-03-07 | AE23: 2019-03-08 | AF23: 2019-03-09
B24: 2018-12-09 | C24: 2018-12-10 | D24: 2018-12-11 | E24: 2018-12-12 | F24: 2018-12-13 | G24: 2018-12-14 | H24: 2018-12-15 | J24: 2019-01-13 | K24: 2019-01-14 | L24: 2019-01-15 | M24: 2019-01-16 | N24: 2019-01-17 | O24: 2019-01-18 | P24: 2019-01-19 | R24: 2019-02-10 | S24: 2019-02-11 | T24: 2019-02-12 | U24: 2019-02-13 | V24: 2019-02-14 | W24: 2019-02-15 | X24: 2019-02-16 | Z24: 2019-03-10 | AA24: 2019-03-11 | AB24: 2019-03-12 | AC24: 2019-03-13 | AD24: 2019-03-14 | AE24: 2019-03-15 | AF24: 2019-03-16
B25: 2018-12-16 | C25: 2018-12-17 | D25: 2018-12-18 | E25: 2018-12-19 | F25: 2018-12-20 | G25: 2018-12-21 | H25: 2018-12-22 | J25: 2019-01-20 | K25: 2019-01-21 | L25: 2019-01-22 | M25: 2019-01-23 | N25: 2019-01-24 | O25: 2019-01-25 | P25: 2019-01-26 | R25: 2019-02-17 | S25: 2019-02-18 | T25: 2019-02-19 | U25: 2019-02-20 | V25: 2019-02-21 | W25: 2019-02-22 | X25: 2019-02-23 | Z25: 2019-03-17 | AA25: 2019-03-18 | AB25: 2019-03-19 | AC25: 2019-03-20 | AD25: 2019-03-21 | AE25: 2019-03-22 | AF25: 2019-03-23
B26: 2018-12-23 | C26: 2018-12-24 | D26: 2018-12-25 | E26: 2018-12-26 | F26: 2018-12-27 | G26: 2018-12-28 | H26: 2018-12-29 | J26: 2019-01-27 | K26: 2019-01-28 | L26: 2019-01-29 | M26: 2019-01-30 | N26: 2019-01-31 | R26: 2019-02-24 | S26: 2019-02-25 | T26: 2019-02-26 | U26: 2019-02-27 | V26: 2019-02-28 | Z26: 2019-03-24 | AA26: 2019-03-25 | AB26: 2019-03-26 | AC26: 2019-03-27 | AD26: 2019-03-28 | AE26: 2019-03-29 | AF26: 2019-03-30
B27: 2018-12-30 | C27: 2018-12-31 | Z27: 2019-03-31
B29: =DATE(YEAR(Z20+35),MONTH(Z20+35),1) -> 2019-04-01 | J29: =DATE(YEAR(B29+35),MONTH(B29+35),1) -> 2019-05-01 | R29: =DATE(YEAR(J29+35),MONTH(J29+35),1) -> 2019-06-01 | Z29: =DATE(YEAR(R29+35),MONTH(R29+35),1) -> 2019-07-01
B30: =IF($A$6=2,"M","Su") -> Su | C30: =IF($A$6=2,"Tu","M") -> M | D30: =IF($A$6=2,"W","Tu") -> Tu | E30: =IF($A$6=2,"Th","W") -> W | F30: =IF($A$6=2,"F","Th") -> Th | G30: =IF($A$6=2,"Sa","F") -> F | H30: =IF($A$6=2,"Su","Sa") -> Sa | J30: =IF($A$6=2,"M","Su") -> Su | K30: =IF($A$6=2,"Tu","M") -> M | L30: =IF($A$6=2,"W","Tu") -> Tu | M30: =IF($A$6=2,"Th","W") -> W | N30: =IF($A$6=2,"F","Th") -> Th | O30: =IF($A$6=2,"Sa","F") -> F | P30: =IF($A$6=2,"Su","Sa") -> Sa | R30: =IF($A$6=2,"M","Su") -> Su | S30: =IF($A$6=2,"Tu","M") -> M | T30: =IF($A$6=2,"W","Tu") -> Tu | U30: =IF($A$6=2,"Th","W") -> W | V30: =IF($A$6=2,"F","Th") -> Th | W30: =IF($A$6=2,"Sa","F") -> F | X30: =IF($A$6=2,"Su","Sa") -> Sa | Z30: =IF($A$6=2,"M","Su") -> Su | AA30: =IF($A$6=2,"Tu","M") -> M | AB30: =IF($A$6=2,"W","Tu") -> Tu | AC30: =IF($A$6=2,"Th","W") -> W | AD30: =IF($A$6=2,"F","Th") -> Th | AE30: =IF($A$6=2,"Sa","F") -> F | AF30: =IF($A$6=2,"Su","Sa") -> Sa
